Workbook

Sheet INPUT
A1: =IF(H7=1,"BASE PERIOD WITH RIDERS","BASE PERIOD WITHOUT RIDERS") -> BASE PERIOD WITH RIDERS
A4: Input Areas in Grey
B5: 6 Months Actual Ending August 31, 2022
B6: =IF(H7=1,"6 Months Actual and 6 Months Projected with Riders","6 Months Actual and 6 Months Projected without Riders") -> 6 Months Actual and 6 Months Projected with Riders
H7: 1
B8: DUKE ENERGY KENTUCKY, INC.
B9: AUTOMATED RATE CASE FILING SYSTEM
B10: FOR THE TWELVE MONTHS ENDED February 28, 2023
B11: CASE NO. 2022-00372
B12: SERVICE: | D12: (ELECTRIC SERVICE)
B13: DATA: __X__ BASE PERIOD ____FORECASTED PERIOD | I13: Number of Pages
B14: TYPE OF FILING: _X_ ORIGINAL ___UPDATED ___ REVISED | I14: Schedule M-2.2 | J14: 23
B15: ANNUALIZED BASE YEAR REVENUES AT PROPOSED VS. MOST CURRENT RATES | I15: Schedule M-2.3 | J15: 24
C17: CURRENT | D17: PROPOSED
B18: FUEL COSTS:
B19: FUEL ADJUSTMENT CLAUSE (FAC): | C19: 0.005965 | D19: 0.005965 | E19: $ PER KWH | J19: not used
B20: BASE FUEL COST: | C20: 0.025401 | D20: 0.025401 | E20: $ PER KWH
B22: RIDER MSR-E: (EFFECTIVE MAY 2010)
B23: RESIDENTIAL | C23: 0 | D23: 0 | E23: $ PER KWH | F23: CANCELLED & WITHDRAWN
B24: DISTRIBUTION | C24: 0 | D24: 0 | E24: $ PER KWH
B25: TRANSMISSION | C25: 0 | D25: 0 | E25: $ PER KWH
B26: LIGHTING | C26: 0 | D26: 0 | E26: $ PER KWH
B28: RIDER DSMR: (EFFECTIVE OCTOBER 1, 2022)
B29: RESIDENTIAL | C29: 0.006975 | D29: 0.006975 | E29: $ PER KWH | J29: 0.3 | K29: HEA $ / MONTH
B30: DISTRIBUTION | C30: -0.000718 | D30: -0.000718 | E30: $ PER KWH
B31: TRANSMISSION | C31: 6.6e-05 | D31: 6.6e-05 | E31: $ PER KWH
B33: RIDER PSM : (EFFECTIVE October 1, 2022)
B34: All Rates | C34: 0.004727 | D34: 0.004727 | E34: $ PER KWH
B38: WITNESS: | D38: B. L. SAILERS
C41: CURRENT | D41: PROPOSED
B42: RATE RS:
B43: CUSTOMER CHARGE | C43: 12.6 | D43: 13 | E43: $ PER MONTH
B44: ENERGY CHARGE | C44: 0.080995 | D44: 0.107428 | E44: $ PER KWH
B46: RATE DS:
B47: CUSTOMER CHARGE
B48: Single Phase | C48: 15 | D48: 15 | E48: $ PER MONTH
B49: Three Phase | C49: 30 | D49: 30 | E49: $ PER MONTH
B50: ENERGY CHARGE
B51: First 6000 | C51: 0.08917 | D51: 0.108384 | E51: $ PER KWH
B52: Next 300 KWH/KW | C52: 0.055342 | D52: 0.067267 | E52: $ PER KWH
B53: Additional | C53: 0.045604 | D53: 0.055431 | E53: $ PER KWH
B54: DEMAND CHARGE
B55: First 15 KW | C55: 0 | D55: 0 | E55: $ PER KW
B56: Additional | C56: 9 | D56: 10.94 | E56: $ PER KW
B57: CAP RATES
B58: NON-CHURCH | C58: 0.258792 | D58: 0.314556 | E58: $ PER KWH
B59: CHURCH | C59: 0.158876 | D59: 0.193108 | E59: $ PER KWH
B61: RIDER LM:
B62: CUSTOMER CHARGE
B63: DS (NO INTERVAL DATA RECORDER) | C63: 5 | D63: 5 | E63: $ PER MONTH
B64: DS & DP (INTERVAL DATA RECORDER) | C64: 5 | D64: 5 | E64: $ PER MONTH
B66: RATE DT:
B67: CUSTOMER CHARGE
B68: Single Phase | C68: 63.5 | D68: 63.5 | E68: $ PER MONTH
B69: Three Phase | C69: 127 | D69: 127 | E69: $ PER MONTH
B70: Primary Voltage | C70: 138 | D70: 138 | E70: $ PER MONTH
B71: ENERGY CHARGE
B72: Summer On-Peak | C72: 0.048389 | D72: 0.049516 | E72: $ PER KWH
B73: Winter On-Peak | C73: 0.046262 | D73: 0.047338 | E73: $ PER KWH
B74: Off-Peak | C74: 0.039909 | D74: 0.040836 | E74: $ PER KWH
B75: DEMAND CHARGE
B76: Summer On-Peak | C76: 14.85 | D76: 15.2 | E76: $ PER KW
B77: Summer Off-Peak | C77: 1.34 | D77: 1.37 | E77: $ PER KW
B78: Winter On-Peak | C78: 14.05 | D78: 14.38 | E78: $ PER KW
B79: Winter Off-Peak | C79: 1.34 | D79: 1.37 | E79: $ PER KW
B80: Primary Service Discount First 1000 KW | C80: -0.75 | D80: -0.77 | E80: $ PER KW
B81: Primary Service Discount Additional KW | C81: -0.58 | D81: -0.59 | E81: $ PER KW
C82: 0 | D82: 6.23
B84: RATE EH:
B85: CUSTOMER CHARGE
B86: Single Phase | C86: 15 | D86: 15 | E86: $ PER MONTH
B87: Three Phase | C87: 30 | D87: 30 | E87: $ PER MONTH
B88: Primary Voltage | C88: 117 | D88: 117 | E88: $ PER MONTH
B89: ENERGY CHARGE
B90: All KWH | C90: 0.069268 | D90: 0.083966 | E90: $ PER KWH
B91: DEMAND CHARGE
B92: All KW | C92: 0 | D92: 0 | E92: $ PER KW
B94: RATE SP:
B95: CUSTOMER CHARGE
B96: Single Phase | C96: 15 | D96: 15 | E96: $ PER MONTH
B97: ENERGY CHARGE
B98: All KWH | C98: 0.107965 | D98: 0.132982 | E98: $ PER KWH
B99: DEMAND CHARGE
B100: All KW | C100: 0 | D100: 0 | E100: $ PER KW
B102: RATE GSFL:
B103: MINIMUM BILL
B104: Minimum Bill | C104: 3.23 | D104: 3.9 | E104: $ PER MONTH
B105: ENERGY CHARGE
B106: Loads Between 540 to 720 Hours Use per Month | C106: 0.091069 | D106: 0.110107 | E106: $ PER KWH
B107: Loads < 540 Hours Use per Month | C107: 0.104699 | D107: 0.126535 | E107: $ PER KWH
B108: DEMAND CHARGE
B109: All KW | C109: 0 | D109: 0 | E109: $ PER KW
B111: RATE DP:
B112: CUSTOMER CHARGE
B113: Primary Voltage | C113: 117 | D113: 117 | E113: $ PER MONTH
B114: ENERGY CHARGE
B115: First 300 KWH/KW | C115: 0.057053 | D115: 0.067432 | E115: $ PER KWH
B116: Additional | C116: 0.048481 | D116: 0.057341 | E116: $ PER KWH
B117: Cap Rate | C117: 0.26202 | D117: 0.309795 | E117: $ PER KWH
B118: DEMAND CHARGE
B119: All KW | C119: 8.6 | D119: 10.16 | E119: $ PER KW
B121: RATE TT:
B122: CUSTOMER CHARGE
B123: Customer Charge | C123: 500 | D123: 500 | E123: $ PER MONTH
B124: ENERGY CHARGE
B125: On-Peak Summer | C125: 0.053306 | D125: 0.061035 | E125: $ PER KWH
B126: On-Peak Winter | C126: 0.050959 | D126: 0.058348
B127: Off-Peak | C127: 0.043936 | D127: 0.050307
B128: DEMAND CHARGE
B129: Summer On-Peak | C129: 8.51 | D129: 9.74 | E129: $ PER KW
B130: Summer Off-Peak | C130: 1.29 | D130: 1.48 | E130: $ PER KW
B131: Winter On-Peak | C131: 6.98 | D131: 7.99 | E131: $ PER KW
B132: Winter Off-Peak | C132: 1.29 | D132: 1.48 | E132: $ PER KW
E136: $ PER MONTH
E137: $ PER MONTH
E138: $ PER MONTH
E140: $ PER KWH
E141: $ PER KWH
E142: $ PER KWH
E144: $ PER KWH
E145: $ PER KWH
E146: $ PER KWH
E148: $ PER KWH
E149: $ PER KWH
E150: $ PER KWH
B152: RATE RTP:
B153: PROGRAM CHARGE
B154: Program Charge | C154: 183 | D154: 183 | E154: $ PER MONTH
B155: ENERGY DELIVERY CHARGE
B156: Secondary Voltage | C156: 0.018119 | D156: 0.024809 | E156: $ PER KWH
B157: Primary Voltage | C157: 0.014956 | D157: 0.020898 | E157: $ PER KWH
B158: Transmission Voltage | C158: 0.006575 | D158: 0.008139 | E158: $ PER KWH
B159: COMMODITY CHARGE
B160: Distribution Service (DS-Secondary) | C160: 0.101658 | D160: 0.101658 | E160: $ PER KWH
B161: Primary Service (DT-Secondary) | C161: 0.064166 | D161: 0.064166 | E161: $ PER KWH
B162: Transmission Service | C162: 0.046419 | D162: 0.046419 | E162: $ PER KWH
B164: RIDER ESM :
B165: Residential | C165: 0.04885516338 | D165: 0.02653842 | E165: % of BASE REVENUE
B166: Non Residential | C166: 0.08798914629 | D166: 0.04779623602
E169: $ PER KWH
E170: $ PER KW
E171: $ PER KW
E172: $ PER KW
E173: $ PER KWH
E174: $ PER KWH
E175: $ PER KWH
E176: $ PER KW
E178: $ PER KWH
B180: EXCLUDES TRANSMISSION
E183: 0
E184: 0
E185: 0
E186: 0
E187: 0
E188: 0
E189: 0
E190: 0
E191: 0
E192: 0
B194: RIDER NAMES:
B195: HOME ENERGY ASSISTANCE (HEA)
B196: DEMAND SIDE MANAGEMENT RIDER (DSMR)
B197: ENVIRONMENTAL SURCHARGE MECHANISM RIDER (ESM)
B198: FUEL ADJUSTMENT CLAUSE (FAC)
B199: PROFIT SHARING MECHANISM (PSM)
B203: RATE WS:
B204: Energy | C204: 0.062941 | D204: 0.067 | E204: $ PER KWH

Sheet PRINT
B1: =+INPUT!A1 -> BASE PERIOD WITH RIDERS
B6: SCHEDULE M-2.2 (CURRENT RATES) | L6: SCHEDULE M-2.3 (PROPOSED RATES)

Sheet SCH M
A1: =NAME -> DUKE ENERGY KENTUCKY, INC.
A2: =CASE_NO -> CASE NO. 2022-00372
A3: REVENUES AT PRESENT AND PROPOSED RATES
A4: =DATE -> FOR THE TWELVE MONTHS ENDED February 28, 2023
A5: =SERVICE -> (ELECTRIC SERVICE)
A7: =DATA_PERIOD -> DATA: __X__ BASE PERIOD ____FORECASTED PERIOD | I7: SCHEDULE M
A8: =TYPE -> TYPE OF FILING: _X_ ORIGINAL ___UPDATED ___ REVISED | I8: PAGE 1 OF 1
A9: WORK PAPER REFERENCE NO(S).: | I9: WITNESS:
A10: =TIME -> 6 Months Actual and 6 Months Projected with Riders | I10: =WIT -> B. L. SAILERS
A11: =INPUT!B5 -> 6 Months Actual Ending August 31, 2022
E15: REVENUE AT | G15: REVENUE AT | I15: REVENUE | K15: % OF
A16: LINE | C16: RATE | E16: PRESENT | G16: PROPOSED | I16: CHANGE | K16: REVENUE
A17: NO. | C17: CLASSIFICATION | E17: RATES | G17: RATES | I17: (AMOUNT) | K17: CHANGE
C18: (A) | E18: (B) | G18: (C) | I18: (D=C-B) | K18: (E=D / B)
E19: ($) | G19: ($) | I19: ($)
C20: RESIDENTIAL
A21: 1 | C21: RESIDENTIAL SERVICE (RS) | E21: ='Rate RS'!AN79 -> 177720788 | G21: ='Rate RS'!R38 -> 218195282 | I21: =G21-E21 -> 40474494 | K21: =IF(E21=0,"-",ROUND(I21/E21,4)) -> 0.2277
A22: 2 | C22: RESIDENTIAL - TIME OF USE - CRITICAL PEAK PRICING (RS-TOU-CPP) | E22: 0 | G22: 0 | I22: =G22-E22 -> 0 | K22: 0
A23: 3 | C23: TOTAL RESIDENTIAL | E23: =E21+E22 -> 177720788 | G23: =G21+G22 -> 218195282 | I23: =G23-E23 -> 40474494 | K23: =IF(E23=0,"-",ROUND(I23/E23,4)) -> 0.2277
C25: DISTRIBUTION
A26: 4 | C26: DISTRIBUTION SERVICE (DS) | E26: ='Rate DS'!AO105 -> 116998214 | G26: ='Rate DS'!R50 -> 137595071 | I26: =G26-E26 -> 20596857 | K26: =IF(E26=0,"-",ROUND(I26/E26,4)) -> 0.176
A27: 5 | C27: DT PRIMARY TIME OF DAY (DT-PRI) | E27: ='Rate DT-Pri'!AO137 -> 40749238 | G27: ='Rate DT-Pri'!R65 -> 47883826 | I27: 7134588 | K27: 0.1751
A28: 6 | C28: DT SECONDARY TIME OF DAY (DT-SEC) | E28: ='Rate DT-Sec'!AO133 -> 52098203 | G28: ='Rate DT-Sec'!R63 -> 61320744 | I28: =G28-E28 -> 9222541 | K28: =IF(E28=0,"-",ROUND(I28/E28,4)) -> 0.177
A29: 7 | C29: ELECTRIC SPACE HEATING (EH) | E29: ='Rate EH'!AO91 -> 1473948 | G29: ='Rate EH'!R43 -> 1729789 | I29: =G29-E29 -> 255841 | K29: 0.1736
A30: 8 | C30: SPORTS SERVICE (SP) | E30: ='Rate SP GSFL'!AO101 -> 22404 | G30: ='Rate SP GSFL'!R38 -> 26361 | I30: =G30-E30 -> 3957 | K30: 0.1766
A31: 9 | C31: SMALL FIXED LOADS (GSFL) | E31: ='Rate SP GSFL'!AO120 -> 779088 | G31: ='Rate SP GSFL'!R57 -> 918589 | I31: =G31-E31 -> 139501 | K31: 0.1791
A32: 10 | C32: PRIMARY VOLTAGE (DP) | E32: ='Rate DP'!AO98 -> 1127167 | G32: ='Rate DP'!R46 -> 1295111 | I32: 167944 | K32: 0.149
A33: 11 | C33: TOTAL DISTRIBUTION | E33: =SUM(E26:E32) -> 213248262 | G33: =SUM(G26:G32) -> 250769491 | I33: =SUM(I26:I32) -> 37521229 | K33: 0.176
C35: TRANSMISSION
A36: 12 | C36: TIME OF DAY (TT) | E36: ='Rate TT'!AO120 -> 13352963 | G36: ='Rate TT'!R56 -> 14914035 | I36: =G36-E36 -> 1561072 | K36: =IF(E36=0,"-",ROUND(I36/E36,4)) -> 0.1169
A37: 13 | C37: TOTAL TRANSMISSION | E37: =SUM(E36) -> 13352963 | G37: =SUM(G36) -> 14914035 | I37: =SUM(I36) -> 1561072 | K37: =IF(E37=0,"-",ROUND(I37/E37,4)) -> 0.1169
C39: REAL TIME PRICING
A40: 14 | C40: DT PRIMARY-REAL TIME PRICING (DT-RTP PRI) | E40: ='Rate DT RTP-P'!AO82 -> 0 | G40: ='Rate DT RTP-P'!R38 -> 0 | I40: =G40-E40 -> 0 | K40: =IF(E40=0,"-",ROUND(I40/E40,4)) -> -
A41: 15 | C41: DT SECONDARY-REAL TIME PRICING (DT-RTP SEC) | E41: ='Rate DT RTP-S'!AO83 -> 313011 | G41: ='Rate DT RTP-S'!R39 -> 336994 | I41: =G41-E41 -> 23983 | K41: =IF(E41=0,"-",ROUND(I41/E41,4)) -> 0.0766
A42: 16 | C42: DS-REAL TIME PRICING (DS-RTP) | E42: ='Rate DS RTP'!AO83 -> 68594 | G42: ='Rate DS RTP'!R39 -> 72034 | I42: =G42-E42 -> 3440 | K42: =IF(E42=0,"-",ROUND(I42/E42,4)) -> 0.0502
A43: 17 | C43: TT-REAL TIME PRICING (TT-RTP) | E43: ='Rate TT RTP'!AO85 -> 790860 | G43: ='Rate TT RTP'!R39 -> 811981 | I43: =G43-E43 -> 21121 | K43: =IF(E43=0,"-",ROUND(I43/E43,4)) -> 0.0267
A44: 18 | C44: TOTAL REAL TIME PRICING | E44: =SUM(E40:E43) -> 1172465 | G44: =SUM(G40:G43) -> 1221009 | I44: =SUM(I40:I43) -> 48544 | K44: =IF(E44=0,"-",ROUND(I44/E44,4)) -> 0.0414
C46: LIGHTING
A47: 19 | C47: STREET LIGHTING (SL) | E47: ='Rate SL'!AO429 -> 1253606 | G47: ='Rate SL'!R209 -> 1703708 | I47: =G47-E47 -> 450102 | K47: =IF(E47=0,"-",ROUND(I47/E47,4)) -> 0.359
A48: 20 | C48: TRAFFIC LIGHTING (TL) | E48: ='Rate TL'!AO98 -> 99885 | G48: ='Rate TL'!R47 -> 109172 | I48: 9287 | K48: 0.093
A49: 21 | C49: UNMETERED OUTDOOR LIGHTING (UOLS) | E49: ='Rate UOLS'!AO63 -> 272473 | G49: ='Rate UOLS'!R28 -> 358826 | I49: 86353 | K49: 0.3169
A50: 22 | C50: NON STANDARD STREET LIGHTING (NSU) | E50: ='Rate NSU'!AO95 -> 76288 | G50: ='Rate NSU'!R45 -> 103935 | I50: 27647 | K50: 0.3624
A51: 23 | C51: CUST OWNED STREET LIGHTING SERVICE (SC) | E51: ='Rate SC'!AO145 -> 5108 | G51: ='Rate SC'!R72 -> 6727 | I51: 1619 | K51: 0.317
A52: 24 | C52: OVERHEAD EQUIV STREET LIGHTING SERVICE (SE) | E52: ='Rate SE'!AO108 -> 233433 | G52: ='Rate SE'!R52 -> 317336 | I52: 83903 | K52: 0.3594
A53: 25 | C53: LED OUDTOOR LIGHTING SERVICE (LED) | E53: ='Rate LED'!AO467 -> 19650 | G53: ='Rate LED'!R252 -> 13171.11342 | I53: -6478.886576 | K53: -0.3297
A54: 26 | C54: TOTAL LIGHTING | E54: =SUM(E47:E53) -> 1960443 | G54: =SUM(G47:G53) -> 2612875.113 | I54: =SUM(I47:I53) -> 652432.1134 | K54: 0.3328
A56: 27 | C56: INTERDEPARTMENTAL | E56: ='SCH M-2.2'!V57 -> 120514 | G56: ='SCH M-2.3'!R57 -> 140005.3029 | I56: =G56-E56 -> 19491.30288 | K56: =IF(E56=0,"-",ROUND(I56/E56,4)) -> 0.1617
A57: 28 | C57: SPECIAL CONTRACTS | E57: =+'SCH M-2.2'!V63 -> 848309 | G57: ='SCH M-2.3'!R63 -> 983410.816 | I57: =G57-E57 -> 135101.816 | K57: =IF(E57=0,"-",ROUND(I57/E57,4)) -> 0.1593
A59: 29 | C59: TOTAL RETAIL REVENUE | E59: =E54+E44+E37+E33+E23+E56+E57 -> 408423744 | G59: =G54+G44+G37+G33+G23+G56+G57 -> 488836108.2 | I59: =G59-E59 -> 80412364.23 | K59: =IF(E59=0,"-",ROUND(I59/E59,4)) -> 0.1969
C61: OTHER MISCELLANEOUS REVENUE
A62: 30 | C62: PJM AND TRANSMISSION | E62: ='SCH M-2.2'!V58 -> 33614037 | G62: ='SCH M-2.3'!R58 -> 33614037 | I62: =G62-E62 -> 0 | K62: =IF(E62=0,"-",ROUND(I62/E62,4)) -> 0
A63: 31 | C63: BAD CHECK CHARGES | E63: ='SCH M-2.2'!V59 -> 65319 | G63: =+'SCH M-2.3'!R59 -> 65319 | I63: 0 | K63: 0
A64: 32 | C64: RECONNECTION CHARGES | E64: ='SCH M-2.2'!V60 -> 85642 | G64: =+'SCH M-2.3'!R60 -> 81564 | I64: -4078 | K64: -0.0476
A65: 33 | C65: POLE AND LINE ATTACHMENTS | E65: ='SCH M-2.2'!V61 -> 108668 | G65: =+'SCH M-2.3'!R61 -> 127627 | I65: 18959 | K65: =IF(E65=0,"-",ROUND(I65/E65,4)) -> 0.1745
A66: 34 | C66: RENTS | E66: ='SCH M-2.2'!V62 -> 1123843 | G66: =+'SCH M-2.3'!R62 -> 1123843 | I66: 0 | K66: 0
A67: 35 | C67: OTHER MISCELLANEOUS | E67: ='SCH M-2.2'!V64 -> -2354153 | G67: =+'SCH M-2.3'!R64 -> -2354153 | I67: 0 | K67: 0
A68: 36 | C68: TOTAL MISCELLANEOUS REVENUE | E68: =SUM(E62:E67) -> 32643356 | G68: =SUM(G62:G67) -> 32658237 | I68: =SUM(I62:I67) -> 14881 | K68: 0.0005
A70: 37 | C70: TOTAL REVENUE | E70: =E68+E59 -> 441067100 | G70: =G68+G59 -> 521494345.2 | I70: =I68+I59 -> 80427245.23 | K70: =IF(E70=0,"-",ROUND(I70/E70,4)) -> 0.1823

Sheet SCH M-2.1
A1: =NAME -> DUKE ENERGY KENTUCKY, INC.
A2: =CASE_NO -> CASE NO. 2022-00372
A3: BASE PERIOD REVENUES AT CURRENT RATES
A4: =DATE -> FOR THE TWELVE MONTHS ENDED February 28, 2023
A5: =SERVICE -> (ELECTRIC SERVICE)
A6: =DATA_PERIOD -> DATA: __X__ BASE PERIOD ____FORECASTED PERIOD | R6: SCHEDULE M-2.1
A7: =TYPE -> TYPE OF FILING: _X_ ORIGINAL ___UPDATED ___ REVISED | R7: PAGE 1 OF 1
A8: WORK PAPER REFERENCE NO(S).: | R8: WITNESS:
A9: =TIME -> 6 Months Actual and 6 Months Projected with Riders | R9: =WIT -> B. L. SAILERS
A10: =INPUT!B5 -> 6 Months Actual Ending August 31, 2022
A11: BASE PERIOD REVENUES AT CURRENT RATES
J13: TEST PERIOD | N13: % OF REV
J14: REVENUE LESS | N14: TO TOTAL | R14: TEST PERIOD
A15: LINE | C15: RATE | D15: CLASS / | F15: CUSTOMER | J15: FUEL COST | L15: AVERAGE | N15: EXCLUSIVE OF | P15: FUEL COST | R15: REVENUE | T15: % OF REV
A16: NO. | C16: CODE | D16: DESCRIPTION | F16: BILLS | H16: SALES | J16: REVENUE | L16: RATE | N16: FUEL COST | P16: REVENUE | R16: TOTAL | T16: TO TOTAL
C17: (A) | D17: (B) | F17: (C) | H17: (D) | J17: (E) | L17: (F=E/D) | N17: (G) | P17: (H) | R17: (I) | T17: (J)
H19: (KWH) | J19: ($) | L19: (¢/KWH) | N19: (%) | P19: ($) | R19: ($) | T19: (%)
A20: 1 | C20: RS | D20: RESIDENTIAL SERV | F20: ='Rate RS'!X79 -> 1610445 | H20: ='Rate RS'!Z79 -> 1506840514 | J20: ='Rate RS'!AD79 -> 168732484 | L20: =IF(H20=0,"-",ROUND(J20/H20*100,6)) -> 11.197767 | N20: =IF(ABS(J20/$J$49*100)<0.005,"- ",ROUND(J20/$J$49*100,2)) -> 40.41 | P20: ='Rate RS'!AL79 -> 8988304 | R20: ='Rate RS'!AN79 -> 177720788 | T20: =IF(ABS(R20/$R$49*100)<0.005,"- ",ROUND(R20/$R$49*100,2)) -> 40.29
A21: 2 | C21: RS-TOU-CPP | D21: RESIDENTIAL TOU CPP | F21: 0 | H21: 0 | J21: 0 | L21: 0 | N21: 0 | P21: 0 | R21: 0 | T21: 0
A22: 3 | C22: DS | D22: DISTRIBUTION SERV | F22: ='Rate DS'!Y105 -> 160852 | H22: ='Rate DS'!AA105 -> 1132686407 | J22: ='Rate DS'!AE105 -> 110241740 | L22: 9.732768 | N22: =IF(ABS(J22/$J$49*100)<0.005,"- ",ROUND(J22/$J$49*100,2)) -> 26.4 | P22: ='Rate DS'!AM105 -> 6756474 | R22: ='Rate DS'!AO105 -> 116998214 | T22: =IF(ABS(R22/$R$49*100)<0.005,"- ",ROUND(R22/$R$49*100,2)) -> 26.53
A23: 4 | C23: DT-PRI | D23: TIME OF DAY | F23: ='Rate DT-Pri'!Y137 -> 499 | H23: ='Rate DT-Pri'!AA137 -> 481914004.7 | J23: ='Rate DT-Pri'!AE137 -> 37874621 | L23: 7.859207 | N23: =IF(ABS(J23/$J$49*100)<0.005,"- ",ROUND(J23/$J$49*100,2)) -> 9.07 | P23: ='Rate DT-Pri'!AM137 -> 2874617 | R23: ='Rate DT-Pri'!AO137 -> 40749238 | T23: 9.24
A24: 5 | C24: DT-SEC | D24: TIME OF DAY | F24: ='Rate DT-Sec'!Y133 -> 1403 | H24: ='Rate DT-Sec'!AA133 -> 586915479 | J24: ='Rate DT-Sec'!AE133 -> 48597252 | L24: 8.280111 | N24: =IF(ABS(J24/$J$49*100)<0.005,"- ",ROUND(J24/$J$49*100,2)) -> 11.64 | P24: ='Rate DT-Sec'!AM133 -> 3500951 | R24: =J24+P24 -> 52098203 | T24: 11.81
A25: 6 | C25: EH | D25: ELEC SPACE HEATING | F25: ='Rate EH'!Y91 -> 743 | H25: ='Rate EH'!AA91 -> 17406492.09 | J25: ='Rate EH'!AE91 -> 1370118 | L25: 7.871305 | N25: =IF(ABS(J25/$J$49*100)<0.005,"- ",ROUND(J25/$J$49*100,2)) -> 0.33 | P25: ='Rate EH'!AM91 -> 103830 | R25: ='Rate EH'!AO91 -> 1473948 | T25: 0.33
A26: 7 | C26: SP | D26: SPORTS SERV | F26: ='Rate SP GSFL'!Y101 -> 156 | H26: ='Rate SP GSFL'!AA101 -> 158164 | J26: ='Rate SP GSFL'!AE101 -> 21461 | L26: 13.568827 | N26: 0.01 | P26: ='Rate SP GSFL'!AM101 -> 943 | R26: ='Rate SP GSFL'!AO101 -> 22404 | T26: 0.01
A27: 8 | C27: GSFL | D27: SMALL FIXED LOADS | F27: ='Rate SP GSFL'!Y120 -> 1500 | H27: ='Rate SP GSFL'!AA120 -> 6344104.066 | J27: ='Rate SP GSFL'!AE120 -> 741245 | L27: 11.683998 | N27: 0.18 | P27: ='Rate SP GSFL'!AM120 -> 37843 | R27: =J27+P27 -> 779088 | T27: 0.18
A28: 9 | C28: DP | D28: PRIMARY VOLTAGE | F28: ='Rate DP'!Y98 -> 217 | H28: ='Rate DP'!AA98 -> 11731579.43 | J28: ='Rate DP'!AE98 -> 1057188 | L28: 9.011472 | N28: 0.25 | P28: ='Rate DP'!AM98 -> 69979 | R28: ='Rate DP'!AO98 -> 1127167 | T28: 0.26
A29: 10 | C29: TT | D29: TIME OF DAY | F29: ='Rate TT'!Y120 -> 156 | H29: ='Rate TT'!AA120 -> 173032651.2 | J29: ='Rate TT'!AE120 -> 12320823 | L29: 7.120519 | N29: 2.95 | P29: ='Rate TT'!AM120 -> 1032140 | R29: ='Rate TT'!AO120 -> 13352963 | T29: 3.03
A30: 11 | C30: DT-RTP PRI | D30: REAL TIME PRICING | F30: ='Rate DT RTP-P'!Y82 -> 0 | H30: ='Rate DT RTP-P'!AA82 -> 0 | J30: ='Rate DT RTP-P'!AE82 -> 0 | L30: =IF(H30=0,"-",ROUND(J30/H30*100,6)) -> - | N30: - | P30: ='Rate DT RTP-P'!AM82 -> 0 | R30: ='Rate DT RTP-P'!AO82 -> 0 | T30: -
A31: 12 | C31: DT-RTP SEC | D31: REAL TIME PRICING | F31: ='Rate DT RTP-S'!Y83 -> 12 | H31: ='Rate DT RTP-S'!AA83 -> 3584923 | J31: ='Rate DT RTP-S'!AE83 -> 313011 | L31: 8.731317 | N31: 0.07 | P31: ='Rate DT RTP-S'!AM83 -> 0 | R31: ='Rate DT RTP-S'!AO83 -> 313011 | T31: 0.07
A32: 13 | C32: DS-RTP | D32: REAL TIME PRICING | F32: ='Rate DS RTP'!Y83 -> 24 | H32: ='Rate DS RTP'!AA83 -> 514069 | J32: ='Rate DS RTP'!AE83 -> 68594 | L32: 13.343345 | N32: 0.02 | P32: ='Rate DS RTP'!AM83 -> 0 | R32: ='Rate DS RTP'!AO83 -> 68594 | T32: 0.02
A33: 14 | C33: TT-RTP | D33: REAL TIME PRICING | F33: ='Rate TT RTP'!Y85 -> 24 | H33: ='Rate TT RTP'!AA85 -> 13504531 | J33: ='Rate TT RTP'!AE85 -> 790860 | L33: 5.856257 | N33: 0.19 | P33: ='Rate TT RTP'!AM85 -> 0 | R33: ='Rate TT RTP'!AO85 -> 790860 | T33: 0.18
A34: 15 | C34: SL | D34: STREET LIGHTING | F34: ='Rate SL'!Y429 -> 101040 | H34: ='Rate SL'!AA429 -> 7825127 | J34: ='Rate SL'!AE429 -> 1206931 | L34: 15.423788 | N34: 0.29 | P34: ='Rate SL'!AM429 -> 46677 | R34: ='Rate SL'!AO429 -> 1253606 | T34: 0.28
A35: 16 | C35: TL | D35: TRAFFIC LIGHTING | F35: ='Rate TL'!Y98 -> 106140 | H35: ='Rate TL'!AA98 -> 1442664 | J35: ='Rate TL'!AE98 -> 91280 | L35: 6.327184 | N35: 0.02 | P35: ='Rate TL'!AM98 -> 8605 | R35: ='Rate TL'!AO98 -> 99885 | T35: 0.02
A36: 17 | C36: UOLS | D36: UNMTRD OUTDR LIGHT | F36: ='Rate UOLS'!Y63 -> 109668 | H36: ='Rate UOLS'!AA63 -> 4869387 | J36: ='Rate UOLS'!AE63 -> 243427 | L36: 4.99913 | N36: 0.06 | P36: ='Rate UOLS'!AM63 -> 29046 | R36: ='Rate UOLS'!AO63 -> 272473 | T36: 0.06
A37: 18 | C37: NSU | D37: NON STD STREET LIGHT | F37: ='Rate NSU'!Y95 -> 8172 | H37: ='Rate NSU'!AA95 -> 399755 | J37: ='Rate NSU'!AE95 -> 73903 | L37: 18.487073 | N37: 0.02 | P37: ='Rate NSU'!AM95 -> 2385 | R37: ='Rate NSU'!AO95 -> 76288 | T37: 0.02
A38: 19 | C38: SC | D38: CUST OWNED STREET LIGHTING | F38: ='Rate SC'!Y145 -> 2064 | H38: ='Rate SC'!AA145 -> 91284 | J38: ='Rate SC'!AE145 -> 4563 | L38: 4.998685 | N38: - | P38: ='Rate SC'!AM145 -> 545 | R38: ='Rate SC'!AO145 -> 5108 | T38: -
A39: 20 | C39: SE | D39: OVR HD EQUIV STREET LIGHTING | F39: ='Rate SE'!Y108 -> 23664 | H39: ='Rate SE'!AA108 -> 1408744 | J39: ='Rate SE'!AE108 -> 225030 | L39: 15.973804 | N39: 0.05 | P39: ='Rate SE'!AM108 -> 8404 | R39: ='Rate SE'!AO108 -> 233433 | T39: 0.05
A40: 21 | C40: LED | D40: LED OUTDOOR LIGHT | F40: ='Rate LED'!Y467 -> 1152 | H40: ='Rate LED'!AA467 -> 27312 | J40: ='Rate LED'!AE467 -> 19487 | L40: 71.34959 | N40: - | P40: ='Rate LED'!AM467 -> 163 | R40: ='Rate LED'!AO467 -> 19650 | T40: -
A41: 22 | C41: ID01 | D41: INTERDEPARTMENTAL | F41: ='SCH M-2.2'!F57 -> 12 | H41: ='SCH M-2.2'!H57 -> 1204983 | J41: ='SCH M-2.2'!L57 -> 113326 | L41: 9.40478 | N41: 0.03 | P41: ='SCH M-2.2'!T57 -> 7188 | R41: ='SCH M-2.2'!V57 -> 120514 | T41: 0.03
A42: 23 | C42: IS | D42: PJM AND TRANSMISSION | F42: ='SCH M-2.2'!F58 -> 0 | H42: ='SCH M-2.2'!H58 -> 0 | J42: ='SCH M-2.2'!L58 -> 33614037 | L42: =IF(H42=0,"-",ROUND(J42/H42*100,6)) -> - | N42: 8.05 | P42: ='SCH M-2.2'!T58 -> 0 | R42: ='SCH M-2.2'!V58 -> 33614037 | T42: 7.62
A43: 24 | D43: BAD CHECK CHARGES | F43: ='SCH M-2.2'!F59 -> 0 | H43: ='SCH M-2.2'!H59 -> 0 | J43: ='SCH M-2.2'!L59 -> 65319 | L43: - | N43: =IF(ABS(J43/$J$49*100)<0.005,"- ",ROUND(J43/$J$49*100,2)) -> 0.02 | P43: ='SCH M-2.2'!T59 -> 0 | R43: ='SCH M-2.2'!V59 -> 65319 | T43: 0.01
A44: 25 | D44: RECONNECTION CHGS | F44: ='SCH M-2.2'!F60 -> 0 | H44: ='SCH M-2.2'!H60 -> 0 | J44: ='SCH M-2.2'!L60 -> 85642 | L44: - | N44: 0.02 | P44: ='SCH M-2.2'!T60 -> 0 | R44: ='SCH M-2.2'!V60 -> 85642 | T44: 0.02
A45: 26 | D45: POLE AND LINE ATTACHMENTS | F45: ='SCH M-2.2'!F61 -> 0 | H45: ='SCH M-2.2'!H61 -> 0 | J45: ='SCH M-2.2'!L61 -> 108668 | L45: =IF(H45=0,"-",ROUND(J45/H45*100,6)) -> - | N45: 0.03 | P45: ='SCH M-2.2'!T61 -> 0 | R45: ='SCH M-2.2'!V61 -> 108668 | T45: =IF(ABS(R45/$R$49*100)<0.005,"- ",ROUND(R45/$R$49*100,2)) -> 0.02
A46: 27 | D46: RENTS | F46: ='SCH M-2.2'!F62 -> 0 | H46: ='SCH M-2.2'!H62 -> 0 | J46: ='SCH M-2.2'!L62 -> 1123843 | L46: - | N46: 0.27 | P46: ='SCH M-2.2'!T62 -> 0 | R46: ='SCH M-2.2'!V62 -> 1123843 | T46: =IF(ABS(R46/$R$49*100)<0.005,"- ",ROUND(R46/$R$49*100,2)) -> 0.25
A47: 28 | C47: WS | D47: SPECIAL CONTRACTS | F47: ='SCH M-2.2'!F63 -> 12 | H47: ='SCH M-2.2'!H63 -> 13477848 | J47: ='SCH M-2.2'!L63 -> 767914 | L47: 5.697601 | N47: =IF(ABS(J47/$J$49*100)<0.005,"- ",ROUND(J47/$J$49*100,2)) -> 0.18 | P47: ='SCH M-2.2'!T63 -> 80395 | R47: ='SCH M-2.2'!V63 -> 848309 | T47: =IF(ABS(R47/$R$49*100)<0.005,"- ",ROUND(R47/$R$49*100,2)) -> 0.19
A48: 29 | D48: OTHER MISC | F48: ='SCH M-2.2'!F64 -> 0 | H48: ='SCH M-2.2'!H64 -> 0 | J48: ='SCH M-2.2'!L64 -> -2354153 | L48: - | N48: -0.56 | P48: ='SCH M-2.2'!T64 -> 0 | R48: ='SCH M-2.2'!V64 -> -2354153 | T48: =IF(ABS(R48/$R$49*100)<0.005,"- ",ROUND(R48/$R$49*100,2)) -> -0.53
A49: 30 | C49: TOTAL | F49: =SUM(F20:F48) -> 2127955 | H49: =SUM(H20:H48) -> 3965380023 | J49: =SUM(J20:J48) -> 417518614 | L49: 10.529095 | N49: 100 | P49: =SUM(P20:P48) -> 23548489 | R49: =SUM(R20:R48) -> 441067100 | T49: 100
C51: NOTE: DETAIL CONTAINED ON SCHEDULES M-2.2 AND M-2.3.

Sheet SCH M-2.2
A1: =NAME -> DUKE ENERGY KENTUCKY, INC.
A2: =CASE_NO -> CASE NO. 2022-00372
A3: =TITLE -> ANNUALIZED BASE YEAR REVENUES AT PROPOSED VS. MOST CURRENT RATES
A4: =DATE -> FOR THE TWELVE MONTHS ENDED February 28, 2023
A5: =SERVICE -> (ELECTRIC SERVICE)
A6: =DATA_PERIOD -> DATA: __X__ BASE PERIOD ____FORECASTED PERIOD | V6: SCHEDULE M-2.2
A7: =TYPE -> TYPE OF FILING: _X_ ORIGINAL ___UPDATED ___ REVISED | V7: ="PAGE 1 OF "&TEXT(Page_Num_2.2,"00") -> PAGE 1 OF 23
A8: WORK PAPER REFERENCE NO(S).: | V8: WITNESS:
A9: =TIME -> 6 Months Actual and 6 Months Projected with Riders | V9: =WIT -> B. L. SAILERS
A10: =INPUT!B5 -> 6 Months Actual Ending August 31, 2022
A11: CURRENT ANNUALIZED
L13: CURRENT | N13: % OF REV TO | P13: REVENUE | R13: % INCR IN | V13: CURRENT | X13: TOTAL
J14: MOST | L14: REVENUE LESS | N14: TOTAL LESS | P14: INCR LESS | R14: REV LESS | V14: TOTAL | X14: REVENUE
A15: LINE | C15: RATE | D15: CLASS / | F15: CUSTOMER | J15: CURRENT | L15: FUEL COST | N15: FUEL COST | P15: FUEL COST REV | R15: FUEL COST REV | T15: FUEL COST | V15: REVENUE | X15: % INCREASE
A16: NO. | C16: CODE | D16: DESCRIPTION | F16: BILLS | H16: SALES | J16: RATES | L16: REVENUE | N16: REVENUE | P16: (F - K) | R16: (M / K) | T16: REVENUE | V16: (K + H) | X16: (M / K1)
C17: (A) | D17: (B) | F17: (C) | H17: (D) | J17: (J) | L17: (K) | N17: (L) | P17: (M) | R17: (N) | T17: (H) | V17: (K1) | X17: (O)
H19: (KWH) | J19: (¢/KWH) | L19: ($) | N19: (%) | P19: ($) | R19: (%) | T19: ($) | V19: ($) | X19: (%)
C20: RESIDENTIAL
A21: 1 | C21: RS | D21: RESIDENTIAL SERV | F21: ='Rate RS'!X79 -> 1610445 | H21: ='Rate RS'!Z79 -> 1506840514 | J21: =IF(H21=0,"-",ROUND((L21/H21)*100,6)) -> 11.197767 | L21: ='Rate RS'!AD79 -> 168732484 | N21: =ROUND((L21/L$23)*100,2) -> 100 | P21: ='Rate RS'!AH79 -> 40474494 | R21: =ROUND((P21/L21)*100,1) -> 24 | T21: ='Rate RS'!AL79 -> 8988304 | V21: ='Rate RS'!AN79 -> 177720788 | X21: =ROUND((P21/V21)*100,1) -> 22.8
A22: 2 | C22: RS-TOU-CPP | D22: RESIDENTIAL TOU CPP | F22: 0 | H22: 0 | J22: 0 | L22: 0 | N22: 0 | P22: 0 | R22: 0 | T22: 0 | V22: 0 | X22: 0
A23: 3 | C23: TOTAL RESIDENTIAL | F23: =F21 -> 1610445 | H23: =H21 -> 1506840514 | J23: =IF(H23=0,"-",ROUND((L23/H23)*100,6)) -> 11.197767 | L23: =L21 -> 168732484 | N23: =ROUND((L23/L$67)*100,2) -> 40.41 | P23: =P21 -> 40474494 | R23: =ROUND((P23/L23)*100,1) -> 24 | T23: =T21 -> 8988304 | V23: =V21 -> 177720788 | X23: =ROUND((P23/V23)*100,1) -> 22.8
C25: DISTRIBUTION
A26: 4 | C26: DS | D26: DISTRIBUTION SERV | F26: ='Rate DS'!Y105 -> 160852 | H26: ='Rate DS'!AA105 -> 1132686407 | J26: =IF(H26=0,"-",ROUND((L26/H26)*100,6)) -> 9.732768 | L26: ='Rate DS'!AE105 -> 110241740 | N26: =ROUND((L26/L$33)*100,2) -> 55.15 | P26: ='Rate DS'!AI105 -> 20596857 | R26: =ROUND((P26/L26)*100,1) -> 18.7 | T26: ='Rate DS'!AM105 -> 6756474 | V26: ='Rate DS'!AO105 -> 116998214 | X26: =ROUND((P26/V26)*100,1) -> 17.6
A27: 5 | C27: DT-PRI | D27: TIME OF DAY | F27: ='Rate DT-Pri'!Y137 -> 499 | H27: ='Rate DT-Pri'!AA137 -> 481914004.7 | J27: 7.859207 | L27: ='Rate DT-Pri'!AE137 -> 37874621 | N27: 18.95 | P27: ='Rate DT-Pri'!AI137 -> 7134588 | R27: 18.8 | T27: ='Rate DT-Pri'!AM137 -> 2874617 | V27: ='Rate DT-Pri'!AO137 -> 40749238 | X27: 17.5
A28: 6 | C28: DT-SEC | D28: TIME OF DAY | F28: ='Rate DT-Sec'!Y133 -> 1403 | H28: ='Rate DT-Sec'!AA133 -> 586915479 | J28: 8.280111 | L28: ='Rate DT-Sec'!AE133 -> 48597252 | N28: 24.31 | P28: ='Rate DT-Sec'!AI133 -> 9222541 | R28: 19 | T28: ='Rate DT-Sec'!AM133 -> 3500951 | V28: ='Rate DT-Sec'!AO133 -> 52098203 | X28: =ROUND((P28/V28)*100,1) -> 17.7
A29: 7 | C29: EH | D29: ELEC SPACE HEATING | F29: ='Rate EH'!Y91 -> 743 | H29: ='Rate EH'!AA91 -> 17406492.09 | J29: 7.871305 | L29: ='Rate EH'!AE91 -> 1370118 | N29: 0.69 | P29: ='Rate EH'!AI91 -> 255841 | R29: =ROUND((P29/L29)*100,1) -> 18.7 | T29: ='Rate EH'!AM91 -> 103830 | V29: ='Rate EH'!AO91 -> 1473948 | X29: =ROUND((P29/V29)*100,1) -> 17.4
A30: 8 | C30: SP | D30: SPORTS SERV | F30: ='Rate SP GSFL'!Y101 -> 156 | H30: ='Rate SP GSFL'!AA101 -> 158164 | J30: 13.568827 | L30: ='Rate SP GSFL'!AE101 -> 21461 | N30: 0.01 | P30: ='Rate SP GSFL'!AI101 -> 3957 | R30: =ROUND((P30/L30)*100,1) -> 18.4 | T30: ='Rate SP GSFL'!AM101 -> 943 | V30: ='Rate SP GSFL'!AO101 -> 22404 | X30: =ROUND((P30/V30)*100,1) -> 17.7
A31: 9 | C31: GSFL | D31: SMALL FIXED LOADS | F31: ='Rate SP GSFL'!Y120 -> 1500 | H31: ='Rate SP GSFL'!AA120 -> 6344104.066 | J31: 11.683998 | L31: ='Rate SP GSFL'!AE120 -> 741245 | N31: 0.37 | P31: ='Rate SP GSFL'!AI120 -> 139501 | R31: =ROUND((P31/L31)*100,1) -> 18.8 | T31: ='Rate SP GSFL'!AM120 -> 37843 | V31: ='Rate SP GSFL'!AO120 -> 779088 | X31: =ROUND((P31/V31)*100,1) -> 17.9
A32: 10 | C32: DP | D32: PRIMARY VOLTAGE | F32: ='Rate DP'!Y98 -> 217 | H32: ='Rate DP'!AA98 -> 11731579.43 | J32: 9.011472 | L32: ='Rate DP'!AE98 -> 1057188 | N32: =ROUND((L32/L$33)*100,2) -> 0.53 | P32: ='Rate DP'!AI98 -> 167944 | R32: 15.9 | T32: ='Rate DP'!AM98 -> 69979 | V32: ='Rate DP'!AO98 -> 1127167 | X32: 14.9
A33: 11 | C33: TOTAL DISTRIBUTION | F33: =SUM(F26:F32) -> 165370 | H33: =SUM(H26:H32) -> 2237156230 | J33: =IF(H33=0,"-",ROUND((L33/H33)*100,6)) -> 8.935613 | L33: =SUM(L26:L32) -> 199903625 | N33: =ROUND((L33/L$67)*100,2) -> 47.88 | P33: =SUM(P26:P32) -> 37521229 | R33: =ROUND((P33/L33)*100,1) -> 18.8 | T33: =SUM(T26:T32) -> 13344637 | V33: =SUM(V26:V32) -> 213248262 | X33: =ROUND((P33/V33)*100,1) -> 17.6
C35: TRANSMISSION
A36: 12 | C36: TT | D36: TIME OF DAY | F36: ='Rate TT'!Y120 -> 156 | H36: ='Rate TT'!AA120 -> 173032651.2 | J36: =IF(H36=0,"-",ROUND((L36/H36)*100,6)) -> 7.120519 | L36: ='Rate TT'!AE120 -> 12320823 | N36: =ROUND((L36/L$37)*100,2) -> 100 | P36: ='Rate TT'!AI120 -> 1561072 | R36: =ROUND((P36/L36)*100,1) -> 12.7 | T36: ='Rate TT'!AM120 -> 1032140 | V36: ='Rate TT'!AO120 -> 13352963 | X36: ='Rate TT'!AQ120 -> 11.7
A37: 13 | C37: TOTAL TRANSMISSION | F37: =F36 -> 156 | H37: =H36 -> 173032651.2 | J37: =IF(H37=0,"-",ROUND((L37/H37)*100,6)) -> 7.120519 | L37: =L36 -> 12320823 | N37: =ROUND((L37/L$67)*100,2) -> 2.95 | P37: =P36 -> 1561072 | R37: =ROUND((P37/L37)*100,1) -> 12.7 | T37: =T36 -> 1032140 | V37: =V36 -> 13352963 | X37: =ROUND((P37/V37)*100,1) -> 11.7
C39: REAL TIME PRICING
A40: 14 | C40: DT-RTP PRI | D40: REAL TIME PRICING | F40: ='Rate DT RTP-P'!Y82 -> 0 | H40: ='Rate DT RTP-P'!AA82 -> 0 | J40: =IF(H40=0,"-",ROUND((L40/H40)*100,6)) -> - | L40: ='Rate DT RTP-P'!AE82 -> 0 | N40: =IFERROR(ROUND((L40/L$44)*100,2),0) -> 0 | P40: ='Rate DT RTP-P'!AI82 -> 0 | R40: =IFERROR(ROUND((P40/L40)*100,1),0) -> 0 | T40: ='Rate DT RTP-P'!AM82 -> 0 | V40: ='Rate DT RTP-P'!AO82 -> 0 | X40: =IFERROR(ROUND((P40/V40)*100,1),0) -> 0
A41: 15 | C41: DT-RTP SEC | D41: REAL TIME PRICING | F41: ='Rate DT RTP-S'!Y83 -> 12 | H41: ='Rate DT RTP-S'!AA83 -> 3584923 | J41: 8.731317 | L41: ='Rate DT RTP-S'!AE83 -> 313011 | N41: =ROUND((L41/L$44)*100,2) -> 26.7 | P41: ='Rate DT RTP-S'!AI83 -> 23983 | R41: =ROUND((P41/L41)*100,1) -> 7.7 | T41: ='Rate DT RTP-S'!AM83 -> 0 | V41: ='Rate DT RTP-S'!AO83 -> 313011 | X41: =ROUND((P41/V41)*100,1) -> 7.7
A42: 16 | C42: DS-RTP | D42: REAL TIME PRICING | F42: ='Rate DS RTP'!Y83 -> 24 | H42: ='Rate DS RTP'!AA83 -> 514069 | J42: 13.343345 | L42: ='Rate DS RTP'!AE83 -> 68594 | N42: =ROUND((L42/L$44)*100,2) -> 5.85 | P42: ='Rate DS RTP'!AI83 -> 3440 | R42: =ROUND((P42/L42)*100,1) -> 5 | T42: ='Rate DS RTP'!AM83 -> 0 | V42: ='Rate DS RTP'!AO83 -> 68594 | X42: =ROUND((P42/V42)*100,1) -> 5
A43: 17 | C43: TT-RTP | D43: REAL TIME PRICING | F43: ='Rate TT RTP'!Y85 -> 24 | H43: ='Rate TT RTP'!AA85 -> 13504531 | J43: 5.856257 | L43: ='Rate TT RTP'!AE85 -> 790860 | N43: =ROUND((L43/L$44)*100,2) -> 67.45 | P43: ='Rate TT RTP'!AI85 -> 21121 | R43: =ROUND((P43/L43)*100,1) -> 2.7 | T43: ='Rate TT RTP'!AM85 -> 0 | V43: ='Rate TT RTP'!AO85 -> 790860 | X43: =ROUND((P43/V43)*100,1) -> 2.7
A44: 18 | C44: TOTAL REAL TIME PRICING | F44: =SUM(F40:F43) -> 60 | H44: =SUM(H40:H43) -> 17603523 | J44: =IF(H44=0,"-",ROUND((L44/H44)*100,6)) -> 6.6604 | L44: =SUM(L40:L43) -> 1172465 | N44: =ROUND((L44/L$67)*100,2) -> 0.28 | P44: =SUM(P40:P43) -> 48544 | R44: =ROUND((P44/L44)*100,1) -> 4.1 | T44: =SUM(T40:T43) -> 0 | V44: =SUM(V40:V43) -> 1172465 | X44: =ROUND((P44/V44)*100,1) -> 4.1
C46: LIGHTING
A47: 19 | C47: SL | D47: STREET LIGHTING | F47: ='Rate SL'!Y429 -> 101040 | H47: ='Rate SL'!AA429 -> 7825127 | J47: =IF(H47=0,"-",ROUND((L47/H47)*100,6)) -> 15.423788 | L47: ='Rate SL'!AE429 -> 1206931 | N47: =ROUND((L47/L$54)*100,2) -> 64.73 | P47: ='Rate SL'!AI429 -> 450101 | R47: =ROUND((P47/L47)*100,1) -> 37.3 | T47: ='Rate SL'!AM429 -> 46677 | V47: ='Rate SL'!AO429 -> 1253606 | X47: =ROUND((P47/V47)*100,1) -> 35.9
A48: 20 | C48: TL | D48: TRAFFIC LIGHTING | F48: ='Rate TL'!Y98 -> 106140 | H48: ='Rate TL'!AA98 -> 1442664 | J48: 6.327184 | L48: ='Rate TL'!AE98 -> 91280 | N48: 4.9 | P48: ='Rate TL'!AI98 -> 9287 | R48: 10.2 | T48: ='Rate TL'!AM98 -> 8605 | V48: ='Rate TL'!AO98 -> 99885 | X48: 9.3
A49: 21 | C49: UOLS | D49: UNMTRD OUTDR LIGHT | F49: ='Rate UOLS'!Y63 -> 109668 | H49: ='Rate UOLS'!AA63 -> 4869387 | J49: 4.99913 | L49: ='Rate UOLS'!AE63 -> 243427 | N49: 13.06 | P49: ='Rate UOLS'!AI63 -> 86353 | R49: =IF(L49=0,"0.0 ",ROUND((P49/L49)*100,1)) -> 35.5 | T49: ='Rate UOLS'!AM63 -> 29046 | V49: ='Rate UOLS'!AO63 -> 272473 | X49: =IF(V49=0,"0.0 ",ROUND((P49/V49)*100,1)) -> 31.7
A50: 22 | C50: NSU | D50: NON STD STREET LIGHT | F50: ='Rate NSU'!Y95 -> 8172 | H50: ='Rate NSU'!AA95 -> 399755 | J50: 18.487073 | L50: ='Rate NSU'!AE95 -> 73903 | N50: 3.96 | P50: ='Rate NSU'!AI95 -> 27647 | R50: 37.4 | T50: ='Rate NSU'!AM95 -> 2385 | V50: ='Rate NSU'!AO95 -> 76288 | X50: 36.2
A51: 23 | C51: SC | D51: CUST OWNED STREET LIGHTING | F51: ='Rate SC'!Y145 -> 2064 | H51: ='Rate SC'!AA145 -> 91284 | J51: 4.998685 | L51: ='Rate SC'!AE145 -> 4563 | N51: 0.24 | P51: ='Rate SC'!AI145 -> 1619 | R51: 35.5 | T51: ='Rate SC'!AM145 -> 545 | V51: ='Rate SC'!AO145 -> 5108 | X51: 31.7
A52: 24 | C52: SE | D52: OVR HD EQUIV STREET LIGHTING | F52: ='Rate SE'!Y108 -> 23664 | H52: ='Rate SE'!AA108 -> 1408744 | J52: 15.973804 | L52: ='Rate SE'!AE108 -> 225030 | N52: 12.07 | P52: ='Rate SE'!AI108 -> 83903 | R52: 37.3 | T52: ='Rate SE'!AM108 -> 8404 | V52: ='Rate SE'!AO108 -> 233433 | X52: 35.9
A53: 25 | B53: LED | D53: LED OUTDOOR LIGHT | F53: ='Rate LED'!Y467 -> 1152 | H53: ='Rate LED'!AA467 -> 27312 | J53: 71.34959 | L53: ='Rate LED'!AE467 -> 19487 | N53: 1.05 | P53: ='Rate LED'!AI467 -> -6478.886576 | R53: =IFERROR(ROUND((P53/L53)*100,1),0) -> -33.2 | T53: ='Rate LED'!AM467 -> 163 | V53: ='Rate LED'!AO467 -> 19650 | X53: =IFERROR(ROUND((P53/V53)*100,1),0) -> -33
A54: 26 | C54: TOTAL LIGHTING | F54: =SUM(F47:F53) -> 351900 | H54: =SUM(H47:H53) -> 16064273 | J54: =IF(H54=0,"-",ROUND((L54/H54)*100,6)) -> 11.607254 | L54: =SUM(L47:L53) -> 1864621 | N54: =ROUND((L54/L$67)*100,2) -> 0.45 | P54: =SUM(P47:P53) -> 652431.1134 | R54: 35 | T54: =SUM(T47:T53) -> 95825 | V54: =SUM(V47:V53) -> 1960443 | X54: 33.3
C56: OTHER MISC REVENUE
A57: 27 | C57: ID01 | D57: INTERDEPARTMENTAL | F57: 12 | H57: 1204983 | J57: =IF(H57=0,"-",ROUND((L57/H57)*100,6)) -> 9.40478 | L57: =V57-T57 -> 113326 | N57: =ROUND((L57/L$65)*100,2) -> 0.34 | P57: ='SCH M-2.3'!L57-'SCH M-2.2'!L57 -> 19491.30288 | R57: =ROUND((P57/L57)*100,1) -> 17.2 | T57: =ROUND(H57*CUR_FAC,0) -> 7188 | V57: 120514 | X57: =ROUND((P57/V57)*100,1) -> 16.2
A58: 28 | D58: PJM AND TRANSMISSION | F58: 0 | H58: 0 | J58: =IF(H58=0,"-",ROUND((L58/H58)*100,6)) -> - | L58: =3916119+1881498+27816420 -> 33614037 | N58: =ROUND((L58/L$65)*100,2) -> 100.27 | P58: ='SCH M-2.3'!L58-'SCH M-2.2'!L58 -> 0 | R58: =IF(L58=0,0,ROUND((P58/L58)*100,1)) -> 0 | T58: 0 | V58: =L58+T58 -> 33614037 | X58: =IF(V58=0,0,ROUND((P58/V58)*100,1)) -> 0
A59: 29 | D59: BAD CHECK CHARGES | F59: 0 | H59: 0 | J59: =IF(H59=0,"-",ROUND((L59/H59)*100,6)) -> - | L59: 65319 | N59: 0.19 | P59: ='SCH M-2.3'!L59-'SCH M-2.2'!L59 -> 0 | R59: 0 | T59: 0 | V59: 65319 | X59: 0
A60: 30 | D60: RECONNECTION CHGS | F60: 0 | H60: 0 | J60: - | L60: 85642 | N60: 0.26 | P60: ='SCH M-2.3'!L60-'SCH M-2.2'!L60 -> -4078 | R60: -4.8 | T60: 0 | V60: 85642 | X60: -4.8
A61: 31 | D61: POLE AND LINE ATTACHMENTS | F61: 0 | H61: 0 | J61: =IF(H61=0,"-",ROUND((L61/H61)*100,6)) -> - | L61: 108668 | N61: =ROUND((L61/L$65)*100,2) -> 0.32 | P61: ='SCH M-2.3'!L61-'SCH M-2.2'!L61 -> 18959 | R61: =ROUND((P61/L61)*100,1) -> 17.4 | T61: 0 | V61: =L61+T61 -> 108668 | X61: =ROUND((P61/V61)*100,1) -> 17.4
A62: 32 | D62: RENTS | F62: 0 | H62: 0 | J62: - | L62: 1123843 | N62: 3.35 | P62: ='SCH M-2.3'!L62-'SCH M-2.2'!L62 -> 0 | R62: 0 | T62: 0 | V62: 1123843 | X62: 0
A63: 33 | C63: WS | D63: SPECIAL CONTRACTS | F63: 12 | H63: 13477848 | J63: =INPUT!C204 -> 0.062941 | L63: 767914 | N63: 2.29 | P63: ='SCH M-2.3'!L63-'SCH M-2.2'!L63 -> 135101.816 | R63: 17.6 | T63: =ROUND(H63*CUR_FAC,0) -> 80395 | V63: =ROUND(H63*J63,0) -> 848309 | X63: 15.9
A64: 34 | D64: OTHER MISC | F64: 0 | H64: 0 | J64: =IF(H64=0,"-",ROUND((L64/H64)*100,6)) -> - | L64: -2354153 | N64: =ROUND((L64/L$65)*100,2) -> -7.02 | P64: ='SCH M-2.3'!L64-'SCH M-2.2'!L64 -> 0 | R64: 0 | T64: 0 | V64: -2354153 | X64: 0
A65: 35 | C65: TOTAL MISC REVENUE | F65: =SUM(F57:F64) -> 24 | H65: =SUM(H57:H64) -> 14682831 | L65: =SUM(L57:L64) -> 33524596 | N65: =ROUND((L65/L$67)*100,2) -> 8.03 | P65: =SUM(P57:P64) -> 169474.1189 | R65: 0.5 | T65: =SUM(T57:T64) -> 87583 | V65: =SUM(V57:V64) -> 33612179 | X65: 0.5
A67: 36 | C67: TOTAL | F67: =F65+F54+F44+F37+F33+F23 -> 2127955 | H67: =H65+H54+H44+H37+H33+H23 -> 3965380023 | J67: =IF(H67=0,"-",ROUND((L67/H67)*100,6)) -> 10.529095 | L67: =L65+L54+L44+L37+L33+L23 -> 417518614 | N67: 100 | P67: =P65+P54+P44+P37+P33+P23 -> 80427244.23 | R67: =ROUND((P67/L67)*100,1) -> 19.3 | T67: =T65+T54+T44+T37+T33+T23 -> 23548489 | V67: =V65+V54+V44+V37+V33+V23 -> 441067100 | X67: =ROUND((P67/V67)*100,1) -> 18.2
C69: NOTE: DETAIL CONTAINED ON SCHEDULES M-2.2 PAGES 2 THROUGH 23.

Sheet SCH M-2.3
A1: =NAME -> DUKE ENERGY KENTUCKY, INC.
A2: =CASE_NO -> CASE NO. 2022-00372
A3: =TITLE -> ANNUALIZED BASE YEAR REVENUES AT PROPOSED VS. MOST CURRENT RATES
A4: =DATE -> FOR THE TWELVE MONTHS ENDED February 28, 2023
A5: =SERVICE -> (ELECTRIC SERVICE)
A6: =DATA_PERIOD -> DATA: __X__ BASE PERIOD ____FORECASTED PERIOD | R6: SCHEDULE M-2.3
A7: =TYPE -> TYPE OF FILING: _X_ ORIGINAL ___UPDATED ___ REVISED | R7: ="PAGE 1 OF "&TEXT(Page_Num_2.3,"00") -> PAGE 1 OF 24
A8: WORK PAPER REFERENCE NO(S).: | R8: WITNESS:
A9: =TIME -> 6 Months Actual and 6 Months Projected with Riders | R9: =WIT -> B. L. SAILERS
A10: =INPUT!B5 -> 6 Months Actual Ending August 31, 2022
A11: PROPOSED ANNUALIZED
L13: PROPOSED | N13: % OF REV TO | R13: PROPOSED
L14: REVENUE LESS | N14: TOTAL LESS | R14: TOTAL
A15: LINE | C15: RATE | D15: CLASS / | F15: CUSTOMER | J15: PROPOSED | L15: FUEL COST | N15: FUEL COST | P15: FUEL COST | R15: REVENUE
A16: NO. | C16: CODE | D16: DESCRIPTION | F16: BILLS | H16: SALES | J16: RATES | L16: REVENUE | N16: REVENUE | P16: REVENUE | R16: (F + H)
C17: (A) | D17: (B) | F17: (C) | H17: (D) | J17: (E) | L17: (F) | N17: (G) | P17: (H) | R17: (I)
H19: (KWH) | J19: (¢/KWH) | L19: ($) | N19: (%) | P19: ($) | R19: ($)
C20: RESIDENTIAL
A21: 1 | C21: RS | D21: RESIDENTIAL SERV | F21: ='Rate RS'!F38 -> 1610445 | H21: ='Rate RS'!H38 -> 1506840514 | J21: =IF(H21=0,"-",ROUND((L21/H21)*100,6)) -> 13.883817 | L21: ='Rate RS'!L38 -> 209206978 | N21: =ROUND((L21/L$23)*100,2) -> 100 | P21: ='Rate RS'!P38 -> 8988304 | R21: ='Rate RS'!R38 -> 218195282
A22: 2 | C22: RS-TOU-CPP | D22: RESIDENTIAL TOU CPP | F22: 0 | H22: 0 | J22: 0 | L22: 0 | N22: 0 | P22: 0 | R22: 0
A23: 3 | C23: TOTAL RESIDENTIAL | F23: =F21 -> 1610445 | H23: =H21 -> 1506840514 | J23: =IF(H23=0,"-",ROUND((L23/H23)*100,6)) -> 13.883817 | L23: =L21 -> 209206978 | N23: =ROUND((L23/L$67)*100,2) -> 42.01 | P23: =P21 -> 8988304 | R23: =R21 -> 218195282
C25: DISTRIBUTION
A26: 4 | C26: DS | D26: DISTRIBUTION SERV | F26: ='Rate DS'!F50 -> 160852 | H26: ='Rate DS'!H50 -> 1132686407 | J26: =IF(H26=0,"-",ROUND((L26/H26)*100,6)) -> 11.551176 | L26: ='Rate DS'!L50 -> 130838597 | N26: =ROUND((L26/L$33)*100,2) -> 55.11 | P26: ='Rate DS'!P50 -> 6756474 | R26: ='Rate DS'!R50 -> 137595071
A27: 5 | C27: DT-PRI | D27: TIME OF DAY | F27: ='Rate DT-Pri'!F65 -> 499 | H27: ='Rate DT-Pri'!H65 -> 481914004.7 | J27: 9.339676 | L27: ='Rate DT-Pri'!L65 -> 45009209 | N27: 18.96 | P27: ='Rate DT-Pri'!P65 -> 2874617 | R27: ='Rate DT-Pri'!R65 -> 47883826
A28: 6 | C28: DT-SEC | D28: TIME OF DAY | F28: ='Rate DT-Sec'!F63 -> 1403 | H28: ='Rate DT-Sec'!H63 -> 586915479 | J28: 9.851468 | L28: ='Rate DT-Sec'!L63 -> 57819793 | N28: 24.35 | P28: ='Rate DT-Sec'!P63 -> 3500951 | R28: ='Rate DT-Sec'!R63 -> 61320744
A29: 7 | C29: EH | D29: ELEC SPACE HEATING | F29: ='Rate EH'!F43 -> 743 | H29: ='Rate EH'!H43 -> 17406492.09 | J29: 9.341107 | L29: ='Rate EH'!L43 -> 1625959 | N29: 0.68 | P29: ='Rate EH'!P43 -> 103830 | R29: ='Rate EH'!R43 -> 1729789
A30: 8 | C30: SP | D30: SPORTS SERV | F30: ='Rate SP GSFL'!F38 -> 156 | H30: ='Rate SP GSFL'!H38 -> 158164 | J30: 16.070661 | L30: ='Rate SP GSFL'!L38 -> 25418 | N30: 0.01 | P30: ='Rate SP GSFL'!P38 -> 943 | R30: ='Rate SP GSFL'!R38 -> 26361
A31: 9 | C31: GSFL | D31: SMALL FIXED LOADS | F31: ='Rate SP GSFL'!F57 -> 1500 | H31: ='Rate SP GSFL'!H57 -> 6344104.066 | J31: 13.882906 | L31: ='Rate SP GSFL'!L57 -> 880746 | N31: 0.37 | P31: ='Rate SP GSFL'!P57 -> 37843 | R31: ='Rate SP GSFL'!R57 -> 918589
A32: 10 | C32: DP | D32: PRIMARY VOLTAGE | F32: ='Rate DP'!F46 -> 217 | H32: ='Rate DP'!H46 -> 11731579.43 | J32: 10.443027 | L32: ='Rate DP'!L46 -> 1225132 | N32: =ROUND((L32/L$33)*100,2) -> 0.52 | P32: ='Rate DP'!P46 -> 69979 | R32: ='Rate DP'!R46 -> 1295111
A33: 11 | C33: TOTAL DISTRIBUTION | F33: =SUM(F26:F32) -> 165370 | H33: =SUM(H26:H32) -> 2237156230 | J33: 10.612797 | L33: =SUM(L26:L32) -> 237424854 | N33: =ROUND((L33/L$67)*100,2) -> 47.68 | P33: =SUM(P26:P32) -> 13344637 | R33: =SUM(R26:R32) -> 250769491
C35: TRANSMISSION
A36: 12 | C36: TT | D36: TIME OF DAY | F36: ='Rate TT'!F56 -> 156 | H36: ='Rate TT'!H56 -> 173032651.2 | J36: =IF(H36=0,"-",ROUND((L36/H36)*100,6)) -> 8.022703 | L36: ='Rate TT'!L56 -> 13881895 | N36: =ROUND((L36/L$37)*100,2) -> 100 | P36: ='Rate TT'!P56 -> 1032140 | R36: ='Rate TT'!R56 -> 14914035
A37: 13 | C37: TOTAL TRANSMISSION | F37: =F36 -> 156 | H37: =H36 -> 173032651.2 | J37: 8.022703 | L37: =L36 -> 13881895 | N37: =ROUND((L37/L$67)*100,2) -> 2.79 | P37: =P36 -> 1032140 | R37: =R36 -> 14914035
C39: REAL TIME PRICING
A40: 14 | C40: DT-RTP PRI | D40: REAL TIME PRICING | F40: ='Rate DT RTP-P'!F38 -> 0 | H40: ='Rate DT RTP-P'!H38 -> 0 | J40: =IF(H40=0,"-",ROUND((L40/H40)*100,6)) -> - | L40: ='Rate DT RTP-P'!L38 -> 0 | N40: =IFERROR(ROUND((L40/L$44)*100,2),0) -> 0 | P40: ='Rate DT RTP-P'!P38 -> 0 | R40: ='Rate DT RTP-P'!R38 -> 0
A41: 15 | C41: DT-RTP SEC | D41: REAL TIME PRICING | F41: ='Rate DT RTP-S'!F39 -> 12 | H41: ='Rate DT RTP-S'!H39 -> 3584923 | J41: 9.400313 | L41: ='Rate DT RTP-S'!L39 -> 336994 | N41: =IFERROR(ROUND((L41/L$44)*100,2),0) -> 27.6 | P41: ='Rate DT RTP-S'!P39 -> 0 | R41: ='Rate DT RTP-S'!R39 -> 336994
A42: 16 | C42: DS-RTP | D42: REAL TIME PRICING | F42: ='Rate DS RTP'!F39 -> 24 | H42: ='Rate DS RTP'!H39 -> 514069 | J42: 14.012516 | L42: ='Rate DS RTP'!L39 -> 72034 | N42: 5.9 | P42: ='Rate DS RTP'!P39 -> 0 | R42: ='Rate DS RTP'!R39 -> 72034
A43: 17 | C43: TT-RTP | D43: REAL TIME PRICING | F43: ='Rate TT RTP'!F39 -> 24 | H43: ='Rate TT RTP'!H39 -> 13504531 | J43: 6.012656 | L43: ='Rate TT RTP'!L39 -> 811981 | N43: 66.5 | P43: ='Rate TT RTP'!P39 -> 0 | R43: ='Rate TT RTP'!R39 -> 811981
A44: 18 | C44: TOTAL REAL TIME PRICING | F44: =SUM(F40:F43) -> 60 | H44: =SUM(H40:H43) -> 17603523 | J44: 6.936163 | L44: =SUM(L40:L43) -> 1221009 | N44: =ROUND((L44/L$67)*100,2) -> 0.25 | P44: =SUM(P40:P43) -> 0 | R44: =SUM(R40:R43) -> 1221009
C46: LIGHTING
A47: 19 | C47: SL | D47: STREET LIGHTING | F47: ='Rate SL'!F209 -> 101040 | H47: ='Rate SL'!H209 -> 7825127 | J47: =IF(H47=0,"-",ROUND((L47/H47)*100,6)) -> 21.175784 | L47: ='Rate SL'!L209 -> 1657032 | N47: =ROUND((L47/L$54)*100,2) -> 65.83 | P47: ='Rate SL'!P209 -> 46677 | R47: ='Rate SL'!R209 -> 1703708
A48: 20 | C48: TL | D48: TRAFFIC LIGHTING | F48: ='Rate TL'!F47 -> 106140 | H48: ='Rate TL'!H47 -> 1442664 | J48: 6.970923 | L48: ='Rate TL'!L47 -> 100567 | N48: =ROUND((L48/L$54)*100,2) -> 4 | P48: ='Rate TL'!P47 -> 8605 | R48: ='Rate TL'!R47 -> 109172
A49: 21 | C49: UOLS | D49: UNMTRD OUTDR LIGHT | F49: ='Rate UOLS'!F28 -> 109668 | H49: ='Rate UOLS'!H28 -> 4869387 | J49: 6.772516 | L49: ='Rate UOLS'!L28 -> 329780 | N49: 13.1 | P49: ='Rate UOLS'!P28 -> 29046 | R49: ='Rate UOLS'!R28 -> 358826
A50: 22 | C50: NSU | D50: NON STD STREET LIGHT | F50: ='Rate NSU'!F45 -> 8172 | H50: ='Rate NSU'!H45 -> 399755 | J50: 25.403059 | L50: ='Rate NSU'!L45 -> 101550 | N50: 4.03 | P50: ='Rate NSU'!P45 -> 2385 | R50: ='Rate NSU'!R45 -> 103935
A51: 23 | C51: SC | D51: CUST OWNED STREET LIGHTING | F51: ='Rate SC'!F72 -> 2064 | H51: ='Rate SC'!H72 -> 91284 | J51: 6.772271 | L51: ='Rate SC'!L72 -> 6182 | N51: 0.25 | P51: ='Rate SC'!P72 -> 545 | R51: ='Rate SC'!R72 -> 6727
A52: 24 | C52: SE | D52: OVR HD EQUIV STREET LIGHTING | F52: ='Rate SE'!F52 -> 23664 | H52: ='Rate SE'!H52 -> 1408744 | J52: 21.929676 | L52: ='Rate SE'!L52 -> 308933 | N52: 12.27 | P52: ='Rate SE'!P52 -> 8404 | R52: ='Rate SE'!R52 -> 317336
A53: 25 | C53: LED | D53: LED OUTDOOR LIGHT | F53: ='Rate LED'!F252 -> 1152 | H53: ='Rate LED'!H252 -> 27312 | J53: 47.627832 | L53: ='Rate LED'!L252 -> 13008.11342 | N53: 0.52 | P53: ='Rate LED'!P252 -> 163 | R53: ='Rate LED'!R252 -> 13171.11342
A54: 26 | C54: TOTAL LIGHTING | F54: =SUM(F47:F53) -> 351900 | H54: =SUM(H47:H53) -> 16064273 | J54: 15.668634 | L54: =SUM(L47:L53) -> 2517052.113 | N54: =ROUND((L54/L$67)*100,2) -> 0.51 | P54: =SUM(P47:P53) -> 95825 | R54: =SUM(R47:R53) -> 2612875.113
C56: OTHER MISC REVENUE
A57: 27 | C57: ID01 | D57: INTERDEPARTMENTAL | F57: ='SCH M-2.2'!F57 -> 12 | H57: ='SCH M-2.2'!H57 -> 1204983 | J57: =IF(H57=0,"-",ROUND((L57/H57)*100,2)) -> 11.02 | L57: 132817.3029 | N57: =ROUND((L57/L$65)*100,2) -> 0.39 | P57: ='SCH M-2.2'!T57 -> 7188 | R57: =L57+P57 -> 140005.3029
A58: 28 | D58: PJM AND TRANSMISSION | F58: ='SCH M-2.2'!F58 -> 0 | H58: ='SCH M-2.2'!H58 -> 0 | J58: - | L58: ='SCH M-2.2'!L58 -> 33614037 | N58: 99.76 | P58: ='SCH M-2.2'!T58 -> 0 | R58: =L58+P58 -> 33614037
A59: 29 | D59: BAD CHECK CHARGES | F59: ='SCH M-2.2'!F59 -> 0 | H59: ='SCH M-2.2'!H59 -> 0 | J59: - | L59: ='SCH M-2.2'!L59 -> 65319 | N59: 0.19 | P59: ='SCH M-2.2'!T59 -> 0 | R59: 65319
A60: 30 | D60: RECONNECTION CHGS | F60: ='SCH M-2.2'!F60 -> 0 | H60: ='SCH M-2.2'!H60 -> 0 | J60: - | L60: =ROUND('SCH M-2.2'!L60*(5.6/5.88),0) -> 81564 | N60: 0.24 | P60: ='SCH M-2.2'!T60 -> 0 | R60: 81564
A61: 31 | D61: POLE AND LINE ATTACHMENTS | F61: ='SCH M-2.2'!F61 -> 0 | H61: ='SCH M-2.2'!H61 -> 0 | J61: =IF(H61=0,"-",ROUND((L61/H61)*100,2)) -> - | L61: 127627 | N61: =ROUND((L61/L$65)*100,2) -> 0.38 | P61: ='SCH M-2.2'!T61 -> 0 | R61: =L61+P61 -> 127627
A62: 32 | D62: RENTS | F62: ='SCH M-2.2'!F62 -> 0 | H62: ='SCH M-2.2'!H62 -> 0 | J62: - | L62: ='SCH M-2.2'!L62 -> 1123843 | N62: 3.34 | P62: ='SCH M-2.2'!T62 -> 0 | R62: 1123843
A63: 33 | C63: WS | D63: SPECIAL CONTRACTS | F63: ='SCH M-2.2'!F63 -> 12 | H63: ='SCH M-2.2'!H63 -> 13477848 | J63: 6.7 | L63: =R63-P63 -> 903015.816 | N63: 2.68 | P63: ='SCH M-2.2'!T63 -> 80395 | R63: =H63*INPUT!D204+P63 -> 983410.816
A64: 34 | D64: OTHER MISC | F64: ='SCH M-2.2'!F64 -> 0 | H64: ='SCH M-2.2'!H64 -> 0 | J64: - | L64: ='SCH M-2.2'!L64 -> -2354153 | N64: =ROUND((L64/L$65)*100,2) -> -6.99 | P64: ='SCH M-2.2'!T64 -> 0 | R64: -2354153
A65: 35 | C65: TOTAL MISC REVENUE | F65: =SUM(F57:F64) -> 24 | H65: =SUM(H57:H64) -> 14682831 | J65: 229.48 | L65: =SUM(L57:L64) -> 33694070.12 | N65: =ROUND((L65/L$67)*100,2) -> 6.77 | P65: =SUM(P57:P64) -> 87583 | R65: =SUM(R57:R64) -> 33781653.12
A67: 36 | C67: TOTAL | F67: =F65+F54+F44+F37+F33+F23 -> 2127955 | H67: =H65+H54+H44+H37+H33+H23 -> 3965380023 | J67: 12.56 | L67: =L65+L54+L44+L37+L33+L23 -> 497945858.2 | N67: 100 | P67: =P65+P54+P44+P37+P33+P23 -> 23548489 | R67: =R65+R54+R44+R37+R33+R23 -> 521494345.2
C68: (1) DETAIL CONTAINED ON SCHEDULES M-2.3 PAGES 2 THROUGH 24.

Sheet Rate RS
A1: =NAME -> DUKE ENERGY KENTUCKY, INC.
A2: =CASE_NO -> CASE NO. 2022-00372
A3: =TITLE -> ANNUALIZED BASE YEAR REVENUES AT PROPOSED VS. MOST CURRENT RATES
A4: =DATE -> FOR THE TWELVE MONTHS ENDED February 28, 2023
A5: =SERVICE -> (ELECTRIC SERVICE)
A6: =DATA_PERIOD -> DATA: __X__ BASE PERIOD ____FORECASTED PERIOD | R6: SCHEDULE M-2.3
A7: =TYPE -> TYPE OF FILING: _X_ ORIGINAL ___UPDATED ___ REVISED | R7: ="PAGE 2 OF "&TEXT(Page_Num_2.3,"00") -> PAGE 2 OF 24
A8: WORK PAPER REFERENCE NO(S).: | R8: WITNESS:
A9: =TIME -> 6 Months Actual and 6 Months Projected with Riders | R9: =WIT -> B. L. SAILERS
A10: =INPUT!B5 -> 6 Months Actual Ending August 31, 2022
A11: PROPOSED ANNUALIZED
L13: PROPOSED | N13: % OF REV TO | R13: PROPOSED
L14: REVENUE LESS | N14: TOTAL LESS | R14: TOTAL
A15: LINE | C15: RATE | D15: CLASS / | F15: CUSTOMER | J15: PROPOSED | L15: FUEL COST | N15: FUEL COST | P15: FUEL COST | R15: REVENUE
A16: NO. | C16: CODE | D16: DESCRIPTION | F16: BILLS(1) | H16: SALES | J16: RATES | L16: REVENUE | N16: REVENUE | P16: REVENUE (2) | R16: (F + H)
C17: (A) | D17: (B) | F17: (C) | H17: (D) | J17: (E) | L17: (F) | N17: (G) | P17: (H) | R17: (I)
H19: (KWH) | J19: ($/KWH) | L19: ($) | N19: (%) | P19: ($) | R19: ($)
A20: 1 | C20: RS | D20: RESIDENTIAL
A22: 2 | C22: CUSTOMER CHARGE:
A23: 3 | C23: BILLS | F23: 1610445 | J23: =INPUT!D43 -> 13 | L23: =ROUND(F23*J23,0) -> 20935785 | N23: =ROUND((L23/$L$38)*100,1) -> 10 | R23: =L23+P23 -> 20935785
A25: 4 | C25: ENERGY CHARGE (3):
A26: 5 | C26: ALL KWH | H26: 1506840514 | J26: =INPUT!D44 -> 0.107428 | L26: =ROUND(H26*J26,0) -> 161876863 | N26: =ROUND((L26/$L$38)*100,1) -> 77.4 | R26: =L26+P26 -> 161876863
A28: 6 | C28: TOTAL RATE RS EXCLUDING RIDERS | F28: =F23 -> 1610445 | H28: =H26 -> 1506840514 | L28: =SUM(L23:L26) -> 182812648 | N28: =ROUND((L28/$L$38)*100,1) -> 87.4 | R28: =SUM(R23:R26) -> 182812648
A30: 7 | C30: RIDERS:
A31: 8 | C31: =HEA_Name -> HOME ENERGY ASSISTANCE (HEA) | J31: =DSM_RS_CUST -> 0.3 | L31: =ROUND(F23*J31,0) -> 483134 | N31: =ROUND((L31/$L$38)*100,1) -> 0.2 | R31: =L31+P31 -> 483134
A32: 9 | C32: =DSMR_Name -> DEMAND SIDE MANAGEMENT RIDER (DSMR) | J32: =PRO_DSM_RES -> 0.006975 | L32: =ROUND(H26*J32,0) -> 10510213 | N32: 5 | R32: =L32+P32 -> 10510213
A33: 10 | C33: =ESM_Name -> ENVIRONMENTAL SURCHARGE MECHANISM RIDER (ESM) | L33: =AD74 -> 8278148 | N33: 4 | R33: =L33+P33 -> 8278148
A34: 11 | C34: =FAC_Name -> FUEL ADJUSTMENT CLAUSE (FAC) | J34: =PRO_FAC -> 0.005965 | N34: 0 | P34: =ROUND($H$26*PRO_FAC,0) -> 8988304 | R34: =L34+P34 -> 8988304
A35: 12 | C35: =PSM_Name -> PROFIT SHARING MECHANISM (PSM) | J35: =PRO_PSM -> 0.004727 | L35: =ROUND(H26*J35,0) -> 7122835 | N35: 3.4 | R35: =L35+P35 -> 7122835
A36: 13 | C36: TOTAL RIDERS | L36: =SUM(L31:L35) -> 26394330 | N36: 12.6 | P36: =SUM(P31:P35) -> 8988304 | R36: =SUM(R31:R35) -> 35382634
A38: 14 | C38: TOTAL RATE RS INCLUDING RIDERS | F38: =F23 -> 1610445 | H38: =H26 -> 1506840514 | L38: =L28+L36 -> 209206978 | N38: 100 | P38: =P36 -> 8988304 | R38: =R28+R36 -> 218195282
C40: (1) BILLS THAT TERMINATE IN RESPECTIVE RATE STEPS.
C41: ="(2) REFLECTS FUEL ADJUSTMENT CLAUSE (FAC) OF "&TEXT(PRO_FAC,"$0.000000;($0.000000)")&" PER KWH." -> (2) REFLECTS FUEL ADJUSTMENT CLAUSE (FAC) OF $0.005965 PER KWH.
C42: ="(3) REFLECTS FUEL COST RECOVERY INCLUDED IN BASE RATES OF "&TEXT(PRO_BASE_FUEL,"$0.000000;($0.000000)")&" PER KWH." -> (3) REFLECTS FUEL COST RECOVERY INCLUDED IN BASE RATES OF $0.025401 PER KWH. | T42: =NAME -> DUKE ENERGY KENTUCKY, INC.
T43: =CASE_NO -> CASE NO. 2022-00372
T44: =TITLE -> ANNUALIZED BASE YEAR REVENUES AT PROPOSED VS. MOST CURRENT RATES
T45: =DATE -> FOR THE TWELVE MONTHS ENDED February 28, 2023
T46: =SERVICE -> (ELECTRIC SERVICE)
T47: =DATA_PERIOD -> DATA: __X__ BASE PERIOD ____FORECASTED PERIOD | AN47: SCHEDULE M-2.2
T48: =TYPE -> TYPE OF FILING: _X_ ORIGINAL ___UPDATED ___ REVISED | AN48: ="PAGE 2 OF "&TEXT(Page_Num_2.2,"00") -> PAGE 2 OF 23
T49: WORK PAPER REFERENCE NO(S).: | AN49: WITNESS:
T50: =TIME -> 6 Months Actual and 6 Months Projected with Riders | AN50: =WIT -> B. L. SAILERS
T51: =INPUT!B5 -> 6 Months Actual Ending August 31, 2022
AD52: CURRENT ANNUALIZED
AD54: CURRENT | AF54: % OF REV TO | AH54: REVENUE | AJ54: % INCR IN | AN54: CURRENT | AP54: TOTAL
AB55: MOST | AD55: REVENUE LESS | AF55: TOTAL LESS | AH55: INCR LESS | AJ55: REV LESS | AN55: TOTAL | AP55: REVENUE
T56: LINE | V56: RATE | W56: CLASS / | X56: CUSTOMER | AB56: CURRENT | AD56: FUEL COST | AF56: FUEL COST | AH56: FUEL COST REV | AJ56: FUEL COST REV | AL56: FUEL COST | AN56: REVENUE | AP56: % INCREASE
T57: NO. | V57: CODE | W57: DESCRIPTION | X57: BILLS(1) | Z57: SALES | AB57: RATES | AD57: REVENUE | AF57: REVENUE | AH57: (F - K) | AJ57: (M / K) | AL57: REVENUE (2) | AN57: (K + H) | AP57: (M / K1)
V58: (A) | W58: (B) | X58: (C) | Z58: (D) | AB58: (J) | AD58: (K) | AF58: (L) | AH58: (M) | AJ58: (N) | AL58: (H) | AN58: (K1) | AP58: (O)
Z60: (KWH) | AB60: ($/KWH) | AD60: ($) | AF60: (%) | AH60: ($) | AJ60: (%) | AL60: ($) | AN60: ($) | AP60: (%)
T61: 1 | V61: RS | W61: RESIDENTIAL
T63: 2 | V63: CUSTOMER CHARGE:
T64: 3 | V64: BILLS | X64: =F23 -> 1610445 | AB64: =INPUT!C43 -> 12.6 | AD64: =ROUND(X64*AB64,0) -> 20291607 | AF64: =ROUND((AD64/$AD$79)*100,1) -> 12 | AH64: =L23-AD64 -> 644178 | AJ64: =ROUND((AH64/AD64)*100,1) -> 3.2 | AN64: =AD64+AL64 -> 20291607 | AP64: =ROUND((AH64/AN64)*100,1) -> 3.2
T66: 4 | V66: ENERGY CHARGE (3):
T67: 5 | V67: ALL KWH | Z67: =H26 -> 1506840514 | AB67: =INPUT!C44 -> 0.080995 | AD67: =ROUND((Z67*AB67),0) -> 122046547 | AF67: =ROUND((AD67/$AD$79)*100,1) -> 72.3 | AH67: =L26-AD67 -> 39830316 | AJ67: =ROUND((AH67/AD67)*100,1) -> 32.6 | AN67: =AD67+AL67 -> 122046547 | AP67: =ROUND((AH67/AN67)*100,1) -> 32.6
T69: 6 | V69: TOTAL RATE RS EXCLUDING RIDERS | X69: =X64 -> 1610445 | Z69: =Z67 -> 1506840514 | AD69: =SUM(AD64:AD67) -> 142338154 | AF69: =ROUND((AD69/$AD$79)*100,1) -> 84.4 | AH69: =SUM(AH64:AH67) -> 40474494 | AJ69: =ROUND((AH69/AD69)*100,1) -> 28.4 | AN69: =SUM(AN64:AN67) -> 142338154 | AP69: =ROUND((AH69/AN69)*100,1) -> 28.4
T71: 7 | V71: RIDERS:
T72: =A31 -> 8 | V72: =C31 -> HOME ENERGY ASSISTANCE (HEA) | AB72: =DSM_RS_CUST -> 0.3 | AD72: =ROUND(X64*AB72,0) -> 483134 | AF72: =ROUND((AD72/$AD$79)*100,1) -> 0.3 | AH72: =L31-AD72 -> 0 | AJ72: =ROUND((AH72/AD72)*100,1) -> 0 | AN72: =AD72+AL72 -> 483134 | AP72: =ROUND((AH72/AN72)*100,1) -> 0
T73: 9 | V73: =C32 -> DEMAND SIDE MANAGEMENT RIDER (DSMR) | AB73: =DSM_RES -> 0.006975 | AD73: =ROUND(Z67*AB73,0) -> 10510213 | AF73: =ROUND((AD73/$AD$79)*100,1) -> 6.2 | AH73: =L32-AD73 -> 0 | AJ73: 0 | AN73: 10510213 | AP73: 0
T74: 10 | V74: =C33 -> ENVIRONMENTAL SURCHARGE MECHANISM RIDER (ESM) | AB74: =CUR_ESM -> 0.04885516338 | AD74: =ROUND((AN69+AN72+AN73+AN75+AN76)*AB74,0) -> 8278148 | AF74: =ROUND((AD74/$AD$79)*100,1) -> 4.9 | AH74: =L33-AD74 -> 0 | AJ74: =IFERROR(ROUND((AH74/AD74)*100,1),0) -> 0 | AN74: 8278148 | AP74: =IFERROR(ROUND((AH74/AN74)*100,1),0) -> 0
T75: 11 | V75: =C34 -> FUEL ADJUSTMENT CLAUSE (FAC) | AB75: =CUR_FAC -> 0.005965 | AL75: =ROUND(Z67*CUR_FAC,0) -> 8988304 | AN75: 8988304 | AP75: =ROUND(((R34-AN75)/AN75)*100,1) -> 0
T76: 12 | V76: =C35 -> PROFIT SHARING MECHANISM (PSM) | AB76: =RS_PSM -> 0.004727 | AD76: =ROUND(Z67*AB76,0) -> 7122835 | AF76: =ROUND((AD76/$AD$79)*100,1) -> 4.2 | AH76: =L35-AD76 -> 0 | AJ76: 0 | AN76: 7122835 | AP76: 0
T77: 13 | V77: TOTAL RIDERS | AD77: =SUM(AD72:AD76) -> 26394330 | AF77: =ROUND((AD77/$AD$79)*100,1) -> 15.6 | AH77: =SUM(AH72:AH76) -> 0 | AJ77: 0 | AL77: =SUM(AL72:AL76) -> 8988304 | AN77: =SUM(AN72:AN76) -> 35382634 | AP77: =ROUND((AH77/AN77)*100,1) -> 0
T79: =A38 -> 14 | V79: TOTAL RATE RS INCLUDING RIDERS | X79: =X64 -> 1610445 | Z79: =Z67 -> 1506840514 | AD79: =AD69+AD77 -> 168732484 | AF79: 100 | AH79: =AH69+AH77 -> 40474494 | AJ79: =ROUND((AH79/AD79)*100,1) -> 24 | AL79: =AL69+AL77 -> 8988304 | AN79: =AN69+AN77 -> 177720788 | AP79: =ROUND((AH79/AN79)*100,1) -> 22.8
V81: (1) BILLS THAT TERMINATE IN RESPECTIVE RATE STEPS.
V82: ="(2) REFLECTS FUEL ADJUSTMENT CLAUSE (FAC) OF "&TEXT(CUR_FAC,"$0.000000;($0.000000)")&" PER KWH." -> (2) REFLECTS FUEL ADJUSTMENT CLAUSE (FAC) OF $0.005965 PER KWH.
V83: ="(3) REFLECTS FUEL COST RECOVERY INCLUDED IN BASE RATES OF "&TEXT(CUR_BASE_FUEL,"$0.000000;($0.000000)")&" PER KWH." -> (3) REFLECTS FUEL COST RECOVERY INCLUDED IN BASE RATES OF $0.025401 PER KWH.

Sheet Rate RSTOUCPP
A1: DUKE ENERGY KENTUCKY, INC.
A2: CASE NO. 2022-00372
A3: ANNUALIZED TEST YEAR REVENUES AT PROPOSED VS. MOST CURRENT RATES
A4: FOR THE TWELVE MONTHS ENDED June 30, 2024
A5: (ELECTRIC SERVICE)
A6: =INPUT!B13 -> DATA: __X__ BASE PERIOD ____FORECASTED PERIOD | R6: SCHEDULE M-2.3
A7: TYPE OF FILING: _X_ ORIGINAL ___UPDATED ___ REVISED | R7: PAGE 24 OF 24
A8: WORK PAPER REFERENCE NO(S).: | R8: WITNESS:
A9: =INPUT!B6 -> 6 Months Actual and 6 Months Projected with Riders | R9: B. L. Sailers
A11: PROPOSED ANNUALIZED
L13: PROPOSED | N13: % OF REV TO | R13: PROPOSED
L14: REVENUE LESS | N14: TOTAL LESS | R14: TOTAL
A15: LINE | C15: RATE | D15: CLASS / | F15: CUSTOMER | J15: PROPOSED | L15: FAC | N15: FAC | P15: FAC | R15: REVENUE
A16: NO. | C16: CODE | D16: DESCRIPTION | F16: BILLS(1) | H16: SALES | J16: RATES | L16: REVENUE | N16: REVENUE | P16: REVENUE (2) | R16: (F + H)
C17: (A) | D17: (B) | F17: (C) | H17: (D) | J17: (E) | L17: (F) | N17: (G) | P17: (H) | R17: (I)
H19: (KWH) | J19: ($/KWH) | L19: ($) | N19: (%) | P19: ($) | R19: ($)
A20: 1 | C20: RS-TOU-CPP | D20: TIME OF USE - CRITICAL PEAK PRICING
A21: 2 | C21: SUMMER:
A22: 3 | C22: CUSTOMER CHARGE:
A23: 4 | C23: BILLS | F23: 0 | J23: 0 | L23: =ROUND(+F23*J23,0) -> 0 | N23: 0 | P23: 0 | R23: =L23+P23 -> 0
A24: 6 | C24: TOTAL CUSTOMER CHARGE | F24: 0 | L24: =SUM(L23:L23) -> 0 | N24: 0 | P24: 0 | R24: =SUM(R23:R23) -> 0
A26: 11 | C26: ENERGY CHARGE (3):
C27: CRITICAL PEAK KWH | H27: 0 | J27: 0 | L27: 0 | N27: 0 | P27: 0 | R27: 0
A28: 12 | C28: ON PEAK KWH | H28: 0 | J28: 0 | L28: 0 | N28: 0 | P28: 0 | R28: 0
A29: 13 | C29: OFF PEAK KWH | H29: 0 | J29: 0 | L29: 0 | N29: 0 | P29: 0 | R29: 0
C30: DISCOUNT KWH | H30: 0 | J30: 0 | L30: 0 | N30: 0 | P30: 0 | R30: 0
A31: 14 | C31: TOTAL SUMMER | F31: 0 | H31: 0 | L31: 0 | N31: 0 | P31: 0 | R31: 0
A33: 15 | C33: WINTER:
A34: 16 | C34: CUSTOMER CHARGE:
A35: 17 | C35: BILLS | F35: 0 | J35: 0 | L35: =ROUND(+F35*J35,0) -> 0 | N35: 0 | P35: 0 | R35: =L35+P35 -> 0
A36: 18 | C36: TOTAL CUSTOMER CHARGE | F36: 0 | L36: =SUM(L35:L35) -> 0 | N36: 0 | P36: 0 | R36: =SUM(R35:R35) -> 0
A37: 19
C38: ENERGY CHARGE (3):
A39: 20 | C39: CRITICAL PEAK KWH | H39: 0 | J39: 0 | L39: 0 | N39: 0 | P39: 0 | R39: 0
A40: 21 | C40: ON PEAK KWH | H40: 0 | J40: 0 | L40: 0 | N40: 0 | P40: 0 | R40: 0
A41: 22 | C41: OFF PEAK KWH | H41: 0 | J41: 0 | L41: 0 | N41: 0 | P41: 0 | R41: 0
A42: 23 | C42: DISCOUNT KWH | H42: 0 | J42: 0 | L42: 0 | N42: 0 | P42: 0 | R42: 0
C43: TOTAL WINTER | F43: 0 | H43: 0 | L43: 0 | N43: 0 | P43: 0 | R43: 0
A44: 28 | C44: TOTAL RATE RS-TOU-CPP EXCLUDING RIDERS | F44: 0 | H44: 0 | J44: 0 | L44: 0 | N44: 0 | P44: 0 | R44: 0
A46: 29 | C46: RIDERS:
A47: 30 | C47: DEMAND SIDE MANAGEMENT RIDER (DSMR) | J47: -0.000718 | L47: 0 | N47: 0 | P47: 0 | R47: 0
A48: 31 | C48: ENVIRONMENTAL SURCHARGE MECHANISM RIDER (ESM) | J48: 0.02653842 | L48: 0 | N48: 0 | P48: 0 | R48: 0
A49: 32 | C49: FUEL ADJUSTMENT CLAUSE (FAC) | J49: 0.005965 | L49: 0 | N49: 0 | P49: 0 | R49: 0
A50: 33 | C50: PROFIT SHARING MECHANISM (PSM) | J50: 0.004727 | L50: 0 | N50: 0 | P50: 0 | R50: 0
A51: 34 | C51: TOTAL RIDERS | L51: 0 | N51: 0 | P51: 0 | R51: 0
A53: 35 | C53: TOTAL RATE RS-TOU-CPP INCLUDING RIDERS | F53: 0 | H53: 0 | L53: 0 | N53: 0 | P53: 0 | R53: 0
C55: (1) BILLS THAT TERMINATE IN RESPECTIVE RATE STEPS.
C56: (2) REFLECTS FUEL COMPONENT OF $0.005965 PER KWH.
C57: (3) REFLECTS FUEL COST RECOVERY INCLUDED IN BASE RATES OF $0.025401 PER KWH.

Sheet Rate DS
A1: =NAME -> DUKE ENERGY KENTUCKY, INC.
A2: =CASE_NO -> CASE NO. 2022-00372
A3: =TITLE -> ANNUALIZED BASE YEAR REVENUES AT PROPOSED VS. MOST CURRENT RATES
A4: =DATE -> FOR THE TWELVE MONTHS ENDED February 28, 2023
A5: =SERVICE -> (ELECTRIC SERVICE)
A6: =DATA_PERIOD -> DATA: __X__ BASE PERIOD ____FORECASTED PERIOD | R6: SCHEDULE M-2.3
A7: =TYPE -> TYPE OF FILING: _X_ ORIGINAL ___UPDATED ___ REVISED | R7: ="PAGE 3 OF "&TEXT(Page_Num_2.3,"00") -> PAGE 3 OF 24
A8: WORK PAPER REFERENCE NO(S).: | R8: WITNESS:
A9: =TIME -> 6 Months Actual and 6 Months Projected with Riders | R9: =WIT -> B. L. SAILERS
A10: =INPUT!B5 -> 6 Months Actual Ending August 31, 2022
A11: PROPOSED ANNUALIZED
L13: PROPOSED | N13: % OF REV TO | R13: PROPOSED
L14: REVENUE LESS | N14: TOTAL LESS | R14: TOTAL
A15: LINE | C15: RATE | D15: CLASS / | F15: CUSTOMER | J15: PROPOSED | L15: FUEL COST | N15: FUEL COST | P15: FUEL COST | R15: REVENUE
A16: NO. | C16: CODE | D16: DESCRIPTION | F16: BILLS(1) | H16: SALES | J16: RATES | L16: REVENUE | N16: REVENUE | P16: REVENUE (2) | R16: (F + H)
C17: (A) | D17: (B) | F17: (C) | H17: (D) | J17: (E) | L17: (F) | N17: (G) | P17: (H) | R17: (I)
H19: (KW/KWH) | J19: ($/KWH)/ | L19: ($) | N19: (%) | P19: ($) | R19: ($)
A20: 1 | C20: DS | D20: SERVICE AT SECONDARY | J20: ($/KW)
A21: 2 | D21: DISTRIBUTION VOLTAGE
A23: 3 | C23: CUSTOMER CHARGE:
A24: 4 | C24: LOAD MANAGEMENT RIDER | F24: 1793 | J24: =INPUT!D63 -> 5 | L24: =ROUND(F24*J24,0) -> 8965 | N24: =ROUND((L24/L$50)*100,1) -> 0 | R24: =L24+P24 -> 8965
A25: 5 | C25: SINGLE PHASE | F25: 86684 | J25: =INPUT!D48 -> 15 | L25: =ROUND(F25*J25,0) -> 1300260 | N25: =ROUND((L25/L$50)*100,1) -> 1 | R25: =L25+P25 -> 1300260
A26: 6 | C26: THREE PHASE | F26: 74168 | J26: =INPUT!D49 -> 30 | L26: =ROUND(F26*J26,0) -> 2225040 | N26: =ROUND((L26/L$50)*100,1) -> 1.7 | R26: =L26+P26 -> 2225040
A27: 7 | C27: TOTAL CUSTOMER CHARGE | F27: =SUM(F25:F26) -> 160852 | L27: =SUM(L24:L26) -> 3534265 | N27: =ROUND((L27/L$50)*100,1) -> 2.7 | R27: =SUM(R24:R26) -> 3534265
A29: 8 | C29: DEMAND CHARGE:
A30: 9 | C30: FIRST 15 KW | H30: 1392041 | J30: =INPUT!D55 -> 0 | L30: =ROUND(H30*J30,0) -> 0 | N30: =ROUND((L30/L$50)*100,1) -> 0 | R30: =L30+P30 -> 0 | W30: Adjustment for Rider LM Change
A31: 10 | C31: ADDITIONAL KW | H31: 2387910 | J31: =INPUT!D56 -> 10.94 | L31: =ROUND((H31+W31)*J31,0) -> 26124031 | N31: =ROUND((L31/L$50)*100,1) -> 20 | R31: =L31+P31 -> 26124031 | W31: 27
A32: 11 | C32: TOTAL DEMAND | H32: =SUM(H30:H31) -> 3779951 | L32: =SUM(L30:L31) -> 26124031 | N32: =ROUND((L32/L$50)*100,1) -> 20 | R32: =SUM(R30:R31) -> 26124031
A34: 12 | C34: ENERGY CHARGE (3):
A35: 13 | C35: FIRST 6000 KWH | H35: 371280227 | J35: =INPUT!D51 -> 0.108384 | L35: =ROUND(H35*J35,0) -> 40240836 | N35: =ROUND((L35/L$50)*100,1) -> 30.8 | R35: =L35+P35 -> 40240836
A36: 14 | C36: NEXT 300KWH/KW | H36: 631129058 | J36: =INPUT!D52 -> 0.067267 | L36: =ROUND(H36*J36,0) -> 42454158 | N36: =ROUND((L36/L$50)*100,1)-0.1 -> 32.3 | R36: 42454158
A37: 15 | C37: ADDITIONAL KWH | H37: 129635619 | J37: =INPUT!D53 -> 0.055431 | L37: 7185832 | N37: =ROUND((L37/L$50)*100,1) -> 5.5 | R37: 7185832
A38: 16 | C38: NON-CHURCH "CAP" RATE | H38: 377840 | J38: =INPUT!D58 -> 0.314556 | L38: 118852 | N38: =ROUND((L38/L$50)*100,1) -> 0.1 | R38: 118852
A39: 17 | C39: CHURCH CAP RATE | H39: 263663 | J39: =INPUT!D59 -> 0.193108 | L39: 50915 | N39: =ROUND((L39/L$50)*100,1) -> 0 | R39: 50915
A40: 18 | C40: TOTAL ENERGY | H40: =SUM(H35:H39) -> 1132686407 | L40: =SUM(L35:L39) -> 90050593 | N40: =ROUND((L40/L$50)*100,1) -> 68.8 | R40: =SUM(R35:R39) -> 90050593
A41: 19 | C41: TOTAL RATE DS EXCLUDING RIDERS | F41: =F27 -> 160852 | H41: =H40 -> 1132686407 | L41: =L27+L32+L40 -> 119708889 | N41: =ROUND((L41/L$50)*100,1) -> 91.5 | R41: =R27+R32+R40 -> 119708889
A43: 20 | C43: RIDERS:
A44: 21 | C44: =DSMR_Name -> DEMAND SIDE MANAGEMENT RIDER (DSMR) | J44: =PRO_DSM_DIST -> -0.000718 | L44: =ROUND($H$41*J44,0) -> -813269 | N44: =ROUND((L44/L$50)*100,1) -> -0.6 | R44: =L44+P44 -> -813269
A45: 22 | C45: =ESM_Name -> ENVIRONMENTAL SURCHARGE MECHANISM RIDER (ESM) | L45: =AE100 -> 6588768 | N45: =ROUND((L45/L$50)*100,1) -> 5 | R45: 6588768
A46: 23 | C46: =FAC_Name -> FUEL ADJUSTMENT CLAUSE (FAC) | J46: =PRO_FAC -> 0.005965 | P46: =ROUND(H40*J46,0) -> 6756474 | R46: 6756474
A47: 24 | C47: =PSM_Name -> PROFIT SHARING MECHANISM (PSM) | J47: =PRO_PSM -> 0.004727 | L47: =ROUND(H41*J47,0) -> 5354209 | N47: =ROUND((L47/L$50)*100,1) -> 4.1 | R47: 5354209
A48: 25 | C48: TOTAL RIDERS | L48: =SUM(L44:L47) -> 11129708 | N48: =ROUND((L48/L$50)*100,1) -> 8.5 | P48: =SUM(P44:P47) -> 6756474 | R48: =SUM(R44:R47) -> 17886182
A50: 26 | C50: TOTAL RATE DS INCLUDING RIDERS | F50: =F41 -> 160852 | H50: =H41 -> 1132686407 | L50: =L41+L48 -> 130838597 | N50: 100 | P50: =P48 -> 6756474 | R50: =R41+R48 -> 137595071
C52: (1) BILLS THAT TERMINATE IN RESPECTIVE RATE STEPS.
C53: ="(2) REFLECTS FUEL ADJUSTMENT CLAUSE OF "&TEXT(PRO_FAC,"$0.000000;($0.000000)")&" PER KWH." -> (2) REFLECTS FUEL ADJUSTMENT CLAUSE OF $0.005965 PER KWH.
C54: ="(3) REFLECTS FUEL COST RECOVERY INCLUDED IN BASE RATES OF "&TEXT(PRO_BASE_FUEL,"$0.000000;($0.000000)")&" PER KWH." -> (3) REFLECTS FUEL COST RECOVERY INCLUDED IN BASE RATES OF $0.025401 PER KWH.
T56: =NAME -> DUKE ENERGY KENTUCKY, INC.
T57: =CASE_NO -> CASE NO. 2022-00372
T58: =TITLE -> ANNUALIZED BASE YEAR REVENUES AT PROPOSED VS. MOST CURRENT RATES
T59: =DATE -> FOR THE TWELVE MONTHS ENDED February 28, 2023
T60: =SERVICE -> (ELECTRIC SERVICE)
T61: =DATA_PERIOD -> DATA: __X__ BASE PERIOD ____FORECASTED PERIOD | AO61: SCHEDULE M-2.2
T62: =TYPE -> TYPE OF FILING: _X_ ORIGINAL ___UPDATED ___ REVISED | AO62: ="PAGE 3 OF "&TEXT(Page_Num_2.2,"00") -> PAGE 3 OF 23
T63: WORK PAPER REFERENCE NO(S).: | AO63: WITNESS:
T64: =TIME -> 6 Months Actual and 6 Months Projected with Riders | AO64: =WIT -> B. L. SAILERS
T65: =INPUT!B5 -> 6 Months Actual Ending August 31, 2022
T66: CURRENT ANNUALIZED
AE68: CURRENT | AG68: % OF REV TO | AI68: REVENUE | AK68: % INCR IN | AO68: CURRENT | AQ68: TOTAL
AC69: MOST | AE69: REVENUE LESS | AG69: TOTAL LESS | AI69: INCR LESS | AK69: REV LESS | AO69: TOTAL | AQ69: REVENUE
T70: LINE | V70: RATE | W70: CLASS / | Y70: CUSTOMER | AC70: CURRENT | AE70: FUEL COST | AG70: FUEL COST | AI70: FUEL COST REV | AK70: FUEL COST REV | AM70: FUEL COST | AO70: REVENUE | AQ70: % INCREASE
T71: NO. | V71: CODE | W71: DESCRIPTION | Y71: BILLS(1) | AA71: SALES | AC71: RATES | AE71: REVENUE | AG71: REVENUE | AI71: (F - K) | AK71: (M / K) | AM71: REVENUE (2) | AO71: (K + H) | AQ71: (M / K1)
V72: (A) | W72: (B) | Y72: (C) | AA72: (D) | AC72: (J) | AE72: (K) | AG72: (L) | AI72: (M) | AK72: (N) | AM72: (H) | AO72: (K1) | AQ72: (O)
AA74: (KW/KWH) | AC74: ($/KWH)/ | AE74: ($) | AG74: (%) | AI74: ($) | AK74: (%) | AM74: ($) | AO74: ($) | AQ74: (%)
T75: =A20 -> 1 | V75: DS | W75: SERVICE AT | AC75: ($/KW)
T76: 2 | W76: DISTRIBUTION VOLTAGE
T78: 3 | V78: CUSTOMER CHARGE:
T79: 4 | V79: LOAD MANAGEMENT RIDER | Y79: =F24 -> 1793 | AC79: =INPUT!C63 -> 5 | AE79: =ROUND(Y79*AC79,0) -> 8965 | AG79: =ROUND((AE79/AE$105)*100,1) -> 0 | AI79: =L24-AE79 -> 0 | AK79: =ROUND((AI79/AE79)*100,1) -> 0 | AO79: =AE79+AM79 -> 8965 | AQ79: =IF(AO79=0,"0.0 ",ROUND((AI79/AO79)*100,1)) -> 0
T80: 5 | V80: SINGLE PHASE | Y80: =F25 -> 86684 | AC80: =INPUT!C48 -> 15 | AE80: =ROUND(Y80*AC80,0) -> 1300260 | AG80: =ROUND((AE80/AE$105)*100,1) -> 1.2 | AI80: =L25-AE80 -> 0 | AK80: =ROUND((AI80/AE80)*100,1) -> 0 | AO80: =AE80+AM80 -> 1300260 | AQ80: =IF(AO80=0,"0.0 ",ROUND((AI80/AO80)*100,1)) -> 0
T81: 6 | V81: THREE PHASE | Y81: =F26 -> 74168 | AC81: =INPUT!C49 -> 30 | AE81: =ROUND(Y81*AC81,0) -> 2225040 | AG81: =ROUND((AE81/AE$105)*100,1) -> 2 | AI81: =L26-AE81 -> 0 | AK81: =ROUND((AI81/AE81)*100,1) -> 0 | AO81: =AE81+AM81 -> 2225040 | AQ81: =IF(AO81=0,"0.0 ",ROUND((AI81/AO81)*100,1)) -> 0
T82: 7 | V82: TOTAL CUSTOMER CHARGE | Y82: =F27 -> 160852 | AE82: =SUM(AE79:AE81) -> 3534265 | AG82: =ROUND((AE82/AE$105)*100,1) -> 3.2 | AI82: =SUM(AI79:AI81) -> 0 | AK82: =ROUND((AI82/AE82)*100,1) -> 0 | AO82: =SUM(AO79:AO81) -> 3534265 | AQ82: =IF(AO82=0,"0.0 ",ROUND((AI82/AO82)*100,1)) -> 0
T84: 8 | V84: DEMAND CHARGE:
T85: 9 | V85: FIRST 15 KW | AA85: =H30 -> 1392041 | AC85: =INPUT!C55 -> 0 | AE85: =ROUND(AA85*AC85,0) -> 0 | AG85: =ROUND((AE85/AE$105)*100,1) -> 0 | AI85: =L30-AE85 -> 0 | AK85: 0 | AO85: =AE85+AM85 -> 0 | AQ85: =IF(AO85=0,"0.0 ",ROUND((AI85/AO85)*100,1)) -> 0.0
T86: 10 | V86: ADDITIONAL KW | AA86: =H31 -> 2387910 | AC86: =INPUT!C56 -> 9 | AE86: =ROUND(AA86*AC86,0) -> 21491190 | AG86: =ROUND((AE86/AE$105)*100,1) -> 19.5 | AI86: =L31-AE86 -> 4632841 | AK86: =ROUND((AI86/AE86)*100,1) -> 21.6 | AO86: =AE86+AM86 -> 21491190 | AQ86: =IF(AO86=0,"0.0 ",ROUND((AI86/AO86)*100,1)) -> 21.6
T87: 11 | V87: TOTAL DEMAND | AA87: =H32 -> 3779951 | AE87: =SUM(AE85:AE86) -> 21491190 | AG87: =ROUND((AE87/AE$105)*100,1) -> 19.5 | AI87: =SUM(AI85:AI86) -> 4632841 | AK87: =ROUND((AI87/AE87)*100,1) -> 21.6 | AO87: =SUM(AO85:AO86) -> 21491190 | AQ87: =IF(AO87=0,"0.0 ",ROUND((AI87/AO87)*100,1)) -> 21.6 | AT87: =1-AT95 -> 0.2248555357
T89: 12 | V89: ENERGY CHARGE (3):
T90: 13 | V90: FIRST 6000 KWH | AA90: =H35 -> 371280227 | AC90: =INPUT!C51 -> 0.08917 | AE90: =ROUND((AA90*AC90),0) -> 33107058 | AG90: =ROUND((AE90/AE$105)*100,1) -> 30 | AI90: =L35-AE90 -> 7133778 | AK90: =ROUND((AI90/AE90)*100,1) -> 21.5 | AO90: =AE90+AM90 -> 33107058 | AQ90: =IF(AO90=0,"0.0 ",ROUND((AI90/AO90)*100,1)) -> 21.5 | AT90: =AO90/SUM($AO$90:$AO$94) -> 0.4468698561
T91: 14 | V91: NEXT 300KWH/KW | AA91: 631129058 | AC91: =INPUT!C52 -> 0.055342 | AE91: =ROUND((AA91*AC91),0) -> 34927944 | AG91: 31.7 | AI91: =L36-AE91 -> 7526214 | AK91: 21.5 | AO91: =AE91+AM91 -> 34927944 | AQ91: 21.5 | AT91: =AO91/SUM($AO$90:$AO$94) -> 0.4714476686
T92: 15 | V92: ADDITIONAL KWH | AA92: 129635619 | AC92: =INPUT!C53 -> 0.045604 | AE92: =ROUND((AA92*AC92),0) -> 5911903 | AG92: 5.4 | AI92: =L37-AE92 -> 1273929 | AK92: 21.5 | AO92: =AE92+AM92 -> 5911903 | AQ92: 21.5 | AT92: =AO92/SUM($AO$90:$AO$94) -> 0.07979722157
T93: 16 | V93: NON-CHURCH "CAP" RATE | AA93: 377840 | AC93: =INPUT!C58 -> 0.258792 | AE93: =ROUND((AA93*AC93),0) -> 97782 | AG93: 0.1 | AI93: =L38-AE93 -> 21070 | AK93: 21.5 | AO93: =AE93+AM93 -> 97782 | AQ93: 21.5 | AT93: =AO93/SUM($AO$90:$AO$94) -> 0.001319834226
T94: 17 | V94: CHURCH CAP RATE | AA94: 263663 | AC94: =INPUT!C59 -> 0.158876 | AE94: =ROUND((AA94*AC94),0) -> 41890 | AG94: 0 | AI94: =L39-AE94 -> 9025 | AK94: 21.5 | AO94: =AE94+AM94 -> 41890 | AQ94: 21.5 | AT94: =AO94/SUM($AO$90:$AO$94) -> 0.0005654195631
T95: 18 | V95: TOTAL ENERGY | AA95: 1132686407 | AE95: =SUM(AE90:AE94) -> 74086577 | AG95: 67.2 | AI95: =SUM(AI90:AI94) -> 15964016 | AK95: 21.5 | AO95: =SUM(AO90:AO94) -> 74086577 | AQ95: 21.5 | AT95: =AO95/(AO95+AO87) -> 0.7751444643
T96: 19 | V96: TOTAL RATE DS EXCLUDING RIDERS | Y96: =Y82 -> 160852 | AA96: =AA95 -> 1132686407 | AE96: =AE82+AE87+AE95 -> 99112032 | AG96: 89.9 | AI96: =L41-AE96 -> 20596857 | AK96: 20.8 | AO96: =AO82+AO87+AO95 -> 99112032 | AQ96: 20.8
T98: =A43 -> 20 | V98: RIDERS:
T99: 21 | V99: =C44 -> DEMAND SIDE MANAGEMENT RIDER (DSMR) | AC99: =DSM_DIST -> -0.000718 | AE99: =ROUND($AA$95*AC99,0) -> -813269 | AG99: =ROUND((AE99/AE$105)*100,1) -> -0.7 | AI99: =L44-AE99 -> 0 | AK99: 0 | AO99: =AE99+AM99 -> -813269 | AQ99: 0
T100: 22 | V100: =C45 -> ENVIRONMENTAL SURCHARGE MECHANISM RIDER (ESM) | AC100: =CUR_ESM_NONRES -> 0.08798914629 | AE100: =ROUND((AO96-(CUR_BASE_FUEL*AA96)+AO99+AO102)*AC100,0) -> 6588768 | AG100: =ROUND((AE100/AE$105)*100,1) -> 6 | AI100: =L45-AE100 -> 0 | AK100: =IFERROR(ROUND((AI100/AE100)*100,1),0) -> 0 | AO100: 6588768 | AQ100: =IF(AO100=0,"0.0 ",ROUND((AI100/AO100)*100,1)) -> 0
T101: 23 | V101: =C46 -> FUEL ADJUSTMENT CLAUSE (FAC) | AC101: =CUR_FAC -> 0.005965 | AM101: =ROUND(AA95*CUR_FAC,0) -> 6756474 | AO101: 6756474 | AQ101: =IF(AO101=0,"0.0 ",ROUND(((R46-AO101)/AO101)*100,1)) -> 0
T102: 24 | V102: =C47 -> PROFIT SHARING MECHANISM (PSM) | AC102: =RS_PSM -> 0.004727 | AE102: =ROUND(AA95*AC102,0) -> 5354209 | AG102: =ROUND((AE102/AE$105)*100,1) -> 4.9 | AI102: =L47-AE102 -> 0 | AK102: 0 | AO102: 5354209 | AQ102: 0
T103: 25 | V103: TOTAL RIDERS | AE103: =SUM(AE99:AE102) -> 11129708 | AG103: =ROUND((AE103/AE$105)*100,1) -> 10.1 | AI103: =SUM(AI99:AI102) -> 0 | AK103: 0 | AM103: =AM101 -> 6756474 | AO103: =SUM(AO99:AO102) -> 17886182 | AQ103: 0
T105: =A50 -> 26 | V105: TOTAL RATE DS INCLUDING RIDERS | Y105: =F50 -> 160852 | AA105: =H50 -> 1132686407 | AE105: =AE96+AE103 -> 110241740 | AG105: 100 | AI105: =AI96+AI103 -> 20596857 | AK105: =ROUND((AI105/AE105)*100,1) -> 18.7 | AM105: =AM103 -> 6756474 | AO105: =AO96+AO103 -> 116998214 | AQ105: =IF(AO105=0,"0.0 ",ROUND((AI105/AO105)*100,1)) -> 17.6
V107: (1) BILLS THAT TERMINATE IN RESPECTIVE RATE STEPS.
V108: ="(2) REFLECTS FUEL ADJUSTMENT CLAUSE OF "&TEXT(CUR_FAC,"$0.000000;($0.000000)")&" PER KWH." -> (2) REFLECTS FUEL ADJUSTMENT CLAUSE OF $0.005965 PER KWH.
V109: ="(3) REFLECTS FUEL COST RECOVERY INCLUDED IN BASE RATES OF "&TEXT(CUR_BASE_FUEL,"$0.000000;($0.000000)")&" PER KWH." -> (3) REFLECTS FUEL COST RECOVERY INCLUDED IN BASE RATES OF $0.025401 PER KWH.

Sheet Rate DT-Pri
A1: =NAME -> DUKE ENERGY KENTUCKY, INC.
A2: =CASE_NO -> CASE NO. 2022-00372
A3: =TITLE -> ANNUALIZED BASE YEAR REVENUES AT PROPOSED VS. MOST CURRENT RATES
A4: =DATE -> FOR THE TWELVE MONTHS ENDED February 28, 2023
A5: =SERVICE -> (ELECTRIC SERVICE)
A6: =DATA_PERIOD -> DATA: __X__ BASE PERIOD ____FORECASTED PERIOD | R6: SCHEDULE M-2.3
A7: =TYPE -> TYPE OF FILING: _X_ ORIGINAL ___UPDATED ___ REVISED | R7: ="PAGE 4 OF "&TEXT(Page_Num_2.3,"00") -> PAGE 4 OF 24
A8: WORK PAPER REFERENCE NO(S).: | R8: WITNESS:
A9: =TIME -> 6 Months Actual and 6 Months Projected with Riders | R9: =WIT -> B. L. SAILERS
A10: =INPUT!B5 -> 6 Months Actual Ending August 31, 2022
A11: PROPOSED ANNUALIZED
L13: PROPOSED | N13: % OF REV TO | R13: PROPOSED
L14: REVENUE LESS | N14: TOTAL LESS | R14: TOTAL
A15: LINE | C15: RATE | D15: CLASS / | F15: CUSTOMER | J15: PROPOSED | L15: FUEL COST | N15: FUEL COST | P15: FUEL COST | R15: REVENUE
A16: NO. | C16: CODE | D16: DESCRIPTION | F16: BILLS(1) | H16: SALES | J16: RATES | L16: REVENUE | N16: REVENUE | P16: REVENUE (2) | R16: (F + H)
C17: (A) | D17: (B) | F17: (C) | H17: (D) | J17: (E) | L17: (F) | N17: (G) | P17: (H) | R17: (I)
H19: (KW/KWH) | J19: ($/KWH)/ | L19: ($) | N19: (%) | P19: ($) | R19: ($)
A20: 1 | C20: DT-PRI | D20: TIME OF DAY PRIMARY | J20: ($/KW)
A21: 2 | C21: SUMMER:
A22: 3 | C22: CUSTOMER CHARGE:
A23: 4 | C23: PRIMARY VOLTAGE | F23: 159 | J23: =INPUT!D70 -> 138 | L23: =ROUND(+F23*J23,0) -> 21942 | N23: =ROUND((+L23/$L$65)*100,1) -> 0 | R23: =L23+P23 -> 21942
A24: 5 | C24: TOTAL CUSTOMER CHARGE | F24: =SUM(F23:F23) -> 159 | L24: =SUM(L23:L23) -> 21942 | N24: =ROUND((+L24/$L$65)*100,1) -> 0 | R24: =SUM(R23:R23) -> 21942
A25: 6 | C25: DEMAND CHARGE:
A26: 7 | C26: ON PEAK KW | H26: 349169.979 | J26: =INPUT!D76 -> 15.2 | L26: =ROUND(+H26*J26,0) -> 5307384 | N26: =ROUND((+L26/$L$65)*100,1) -> 11.8 | R26: =L26+P26 -> 5307384
A27: 8 | C27: OFF PEAK KW | H27: 6581.492 | J27: =INPUT!D77 -> 1.37 | L27: =ROUND(+H27*J27,0) -> 9017 | N27: =ROUND((+L27/$L$65)*100,1) -> 0 | R27: =L27+P27 -> 9017
A28: 9 | C28: DISTRIBUTION | H28: =H26+H27 -> 355751.471 | J28: =INPUT!$D$82 -> 6.23 | L28: =ROUND(+H28*J28,0) -> 2216332 | N28: =ROUND((+L28/$L$65)*100,1) -> 4.9 | R28: =L28+P28 -> 2216332
A29: 10 | C29: SUB-TOTAL | H29: =SUM(H26:H27) -> 355751.471 | L29: =SUM(L26:L28) -> 7532733 | N29: =ROUND((+L29/$L$65)*100,1) -> 16.7 | R29: =SUM(R26:R28) -> 7532733
A30: 11 | C30: PRIMARY SERV. DIS.
A31: 12 | C31: FIRST 1000 KW | H31: 124305.409 | J31: =INPUT!D80 -> -0.77 | L31: =ROUND(+H31*J31,0) -> -95715 | N31: =ROUND((+L31/$L$65)*100,1) -> -0.2 | R31: =L31+P31 -> -95715
A32: 13 | C32: ADDITIONAL KW | H32: 231445.061 | J32: =INPUT!D81 -> -0.59 | L32: =ROUND(+H32*J32,0) -> -136553 | N32: =ROUND((+L32/$L$65)*100,1) -> -0.3 | R32: =L32+P32 -> -136553
A33: 14 | C33: TOTAL DEMAND | H33: =SUM(H31:H32) -> 355750.47 | L33: =L29+L31+L32 -> 7300465 | N33: =ROUND((+L33/$L$65)*100,1) -> 16.2 | R33: =R29+R31+R32 -> 7300465
A34: 15 | C34: ENERGY CHARGE (3):
A35: 16 | C35: ON PEAK KWH | H35: 54766944 | J35: =INPUT!D72 -> 0.049516 | L35: =ROUND((+H35*J35),0) -> 2711840 | N35: =ROUND((+L35/$L$65)*100,1) -> 6 | R35: =L35+P35 -> 2711840
A36: 17 | C36: OFF PEAK KWH | H36: 139808163 | J36: =INPUT!D74 -> 0.040836 | L36: =ROUND((+H36*J36),0) -> 5709206 | N36: =ROUND((+L36/$L$65)*100,1) -> 12.7 | R36: =L36+P36 -> 5709206
A37: 18 | C37: TOTAL SUMMER | F37: =F24 -> 159 | H37: =H35+H36 -> 194575107 | L37: =L24+L33+L35+L36 -> 15743453 | N37: =ROUND((+L37/$L$65)*100,1) -> 35 | R37: =R24+R33+R35+R36 -> 15743453
A39: 19 | C39: WINTER: | H39: =185857814-185857934 -> -120
A40: 20 | C40: CUSTOMER CHARGE:
A41: 21 | C41: PRIMARY VOLTAGE | F41: 340 | J41: =J23 -> 138 | L41: =ROUND(+F41*J41,0) -> 46920 | N41: =ROUND((+L41/$L$65)*100,1) -> 0.1 | R41: =L41+P41 -> 46920
A42: 22 | C42: TOTAL CUSTOMER CHARGE | F42: =SUM(F41:F41) -> 340 | L42: =SUM(L41:L41) -> 46920 | N42: =ROUND((+L42/$L$65)*100,1) -> 0.1 | R42: =SUM(R41:R41) -> 46920
A43: 23 | C43: DEMAND CHARGE:
A44: 24 | C44: ON PEAK KW | H44: 643117.7 | J44: =INPUT!D78 -> 14.38 | L44: =ROUND(+H44*J44,0) -> 9248033 | N44: =ROUND((+L44/$L$65)*100,1) -> 20.5 | R44: =L44+P44 -> 9248033
A45: 25 | C45: OFF PEAK KW | H45: 19382 | J45: =INPUT!D79 -> 1.37 | L45: =ROUND(+H45*J45,0) -> 26553 | N45: =ROUND((+L45/$L$65)*100,1) -> 0.1 | R45: =L45+P45 -> 26553
C46: DISTRIBUTION | H46: =H44+H45 -> 662499.7 | J46: =INPUT!$D$82 -> 6.23 | L46: =ROUND(+H46*J46,0) -> 4127373 | N46: =ROUND((+L46/$L$65)*100,1) -> 9.2 | R46: =L46+P46 -> 4127373
A47: 26 | C47: SUB-TOTAL | H47: =SUM(H44:H45) -> 662499.7 | L47: =SUM(L44:L46) -> 13401959 | N47: =ROUND((+L47/$L$65)*100,1) -> 29.8 | R47: =SUM(R44:R46) -> 13401959
A48: 27 | C48: PRIMARY SERV. DIS.
A49: 28 | C49: FIRST 1000 KW | H49: 228677.2 | J49: =J31 -> -0.77 | L49: =ROUND(+H49*J49,0) -> -176081 | N49: =ROUND((+L49/$L$65)*100,1) -> -0.4 | R49: =L49+P49 -> -176081
A50: 29 | C50: ADDITIONAL KW | H50: 433824.5 | J50: =J32 -> -0.59 | L50: =ROUND(+H50*J50,0) -> -255956 | N50: =ROUND((+L50/$L$65)*100,1) -> -0.6 | R50: =L50+P50 -> -255956
A51: 30 | C51: TOTAL DEMAND | H51: =SUM(H49:H50) -> 662501.7 | L51: =L47+L49+L50 -> 12969922 | N51: =ROUND((+L51/$L$65)*100,1) -> 28.8 | R51: =R47+R49+R50 -> 12969922
A52: 31 | C52: ENERGY CHARGE (3):
A53: 32 | C53: ON PEAK KWH | H53: 78450227 | J53: =INPUT!D73 -> 0.047338 | L53: =ROUND((+H53*J53),0) -> 3713677 | N53: =ROUND((+L53/$L$65)*100,1) -> 8.3 | R53: =L53+P53 -> 3713677
A54: 33 | C54: OFF PEAK KWH | H54: 208888670.7 | J54: =J36 -> 0.040836 | L54: =ROUND((+H54*J54),0) -> 8530178 | N54: =ROUND((+L54/$L$65)*100,1) -> 19 | R54: =L54+P54 -> 8530178
A55: 34 | C55: TOTAL WINTER | F55: =F42 -> 340 | H55: =H53+H54 -> 287338897.7 | L55: =L42+L51+L53+L54 -> 25260697 | N55: =ROUND((+L55/$L$65)*100,1) -> 56.1 | R55: =R42+R51+R53+R54 -> 25260697
A56: 35 | C56: TOTAL RATE DT PRIMARY EXCLUDING RIDERS | F56: =F37+F55 -> 499 | H56: =H37+H55 -> 481914004.7 | L56: =L37+L55 -> 41004150 | N56: =ROUND((+L56/$L$65)*100,1) -> 91.1 | R56: =L56+P56 -> 41004150
A58: 36 | C58: RIDERS:
A59: 37 | C59: =DSMR_Name -> DEMAND SIDE MANAGEMENT RIDER (DSMR) | J59: =PRO_DSM_DIST -> -0.000718 | L59: =ROUND($H$56*J59,0) -> -346014 | N59: =ROUND((+L59/$L$65)*100,1) -> -0.8 | R59: =L59+P59 -> -346014
A60: 38 | C60: =ESM_Name -> ENVIRONMENTAL SURCHARGE MECHANISM RIDER (ESM) | L60: =AE132 -> 2073065 | N60: =ROUND((+L60/$L$65)*100,1) -> 4.6 | R60: 2073065
A61: 39 | C61: =FAC_Name -> FUEL ADJUSTMENT CLAUSE (FAC) | J61: =PRO_FAC -> 0.005965 | P61: =ROUND(H56*PRO_FAC,0) -> 2874617 | R61: 2874617
A62: 40 | C62: =PSM_Name -> PROFIT SHARING MECHANISM (PSM) | J62: =PRO_PSM -> 0.004727 | L62: =ROUND(H56*PRO_PSM,0) -> 2278008 | N62: =ROUND((+L62/$L$65)*100,1) -> 5.1 | R62: 2278008
A63: 41 | C63: TOTAL RIDERS | L63: =SUM(L59:L62) -> 4005059 | N63: =ROUND((+L63/$L$65)*100,1) -> 8.9 | P63: =SUM(P59:P62) -> 2874617 | R63: =SUM(R59:R62) -> 6879676
A65: 42 | C65: TOTAL RATE DT PRIMARY INCLUDING RIDERS | F65: =F56 -> 499 | H65: =H56 -> 481914004.7 | L65: =L56+L63 -> 45009209 | N65: 100 | P65: =P63 -> 2874617 | R65: =R56+R63 -> 47883826
C67: (1) BILLS THAT TERMINATE IN RESPECTIVE RATE STEPS.
C68: ="(2) REFLECTS FUEL COMPONENT OF "&TEXT(PRO_FAC,"$0.000000;($0.000000)")&" PER KWH." -> (2) REFLECTS FUEL COMPONENT OF $0.005965 PER KWH.
C69: ="(3) REFLECTS FUEL COST RECOVERY INCLUDED IN BASE RATES OF "&TEXT(PRO_BASE_FUEL,"$0.000000;($0.000000)")&" PER KWH." -> (3) REFLECTS FUEL COST RECOVERY INCLUDED IN BASE RATES OF $0.025401 PER KWH.
T73: =NAME -> DUKE ENERGY KENTUCKY, INC.
T74: =CASE_NO -> CASE NO. 2022-00372
T75: =TITLE -> ANNUALIZED BASE YEAR REVENUES AT PROPOSED VS. MOST CURRENT RATES
T76: =DATE -> FOR THE TWELVE MONTHS ENDED February 28, 2023
T77: =SERVICE -> (ELECTRIC SERVICE)
T78: =DATA_PERIOD -> DATA: __X__ BASE PERIOD ____FORECASTED PERIOD | AO78: SCHEDULE M-2.2
T79: =TYPE -> TYPE OF FILING: _X_ ORIGINAL ___UPDATED ___ REVISED | AO79: ="PAGE 4 OF "&TEXT(Page_Num_2.2,"00") -> PAGE 4 OF 23
T80: WORK PAPER REFERENCE NO(S).: | AO80: WITNESS:
T81: =TIME -> 6 Months Actual and 6 Months Projected with Riders | AO81: =WIT -> B. L. SAILERS
T82: =INPUT!B5 -> 6 Months Actual Ending August 31, 2022
T83: CURRENT ANNUALIZED
AE85: CURRENT | AG85: % OF REV TO | AI85: REVENUE | AK85: % INCR IN | AO85: CURRENT | AQ85: TOTAL
AC86: MOST | AE86: REVENUE LESS | AG86: TOTAL LESS | AI86: INCR LESS | AK86: REV LESS | AO86: TOTAL | AQ86: REVENUE
T87: LINE | V87: RATE | W87: CLASS / | Y87: CUSTOMER | AC87: CURRENT | AE87: FUEL COST | AG87: FUEL COST | AI87: FUEL COST REV | AK87: FUEL COST REV | AM87: FUEL COST | AO87: REVENUE | AQ87: % INCREASE
T88: NO. | V88: CODE | W88: DESCRIPTION | Y88: BILLS(1) | AA88: SALES | AC88: RATES | AE88: REVENUE | AG88: REVENUE | AI88: (F - K) | AK88: (M / K) | AM88: REVENUE (2) | AO88: (K + H) | AQ88: (M / K1)
V89: (A) | W89: (B) | Y89: (C) | AA89: (D) | AC89: (J) | AE89: (K) | AG89: (L) | AI89: (M) | AK89: (N) | AM89: (H) | AO89: (K1) | AQ89: (O)
AA91: (KW/KWH) | AC91: ($/KWH)/ | AE91: ($) | AG91: (%) | AI91: ($) | AK91: (%) | AM91: ($) | AO91: ($) | AQ91: (%)
T92: =A20 -> 1 | V92: DT-PRI | W92: TIME OF DAY PRIMARY | AC92: ($/KW)
T93: =A21 -> 2 | V93: SUMMER:
T94: 3 | V94: CUSTOMER CHARGE:
T95: 4 | V95: PRIMARY VOLTAGE | Y95: =F23 -> 159 | AC95: =INPUT!C70 -> 138 | AE95: =ROUND(+Y95*AC95,0) -> 21942 | AG95: =ROUND((+AE95/$AE$137)*100,1) -> 0.1 | AI95: =L23-AE95 -> 0 | AK95: =IF(AE95=0,0,ROUND((AI95/AE95)*100,1)) -> 0 | AO95: =AE95+AM95 -> 21942 | AQ95: =ROUND((+AI95/AO95)*100,1) -> 0
T96: 5 | V96: TOTAL CUSTOMER CHARGE | Y96: =F24 -> 159 | AE96: =SUM(AE95:AE95) -> 21942 | AG96: =ROUND((+AE96/$AE$137)*100,1) -> 0.1 | AI96: =SUM(AI95:AI95) -> 0 | AK96: =IF(AE96=0,0,ROUND((AI96/AE96)*100,1)) -> 0 | AO96: =SUM(AO95:AO95) -> 21942 | AQ96: =ROUND((+AI96/AO96)*100,1) -> 0
T97: 6 | V97: DEMAND CHARGE:
T98: 7 | V98: ON PEAK KW | AA98: =H26 -> 349169.979 | AC98: =INPUT!C76 -> 14.85 | AE98: =ROUND(+AA98*AC98,0) -> 5185174 | AG98: =ROUND((+AE98/$AE$137)*100,1) -> 13.7 | AI98: =L26-AE98 -> 122210 | AK98: =IF(AE98=0,0,ROUND((AI98/AE98)*100,1)) -> 2.4 | AO98: =AE98+AM98 -> 5185174 | AQ98: 0
T99: 8 | V99: OFF PEAK KW | AA99: =H27 -> 6581.492 | AC99: =INPUT!C77 -> 1.34 | AE99: =ROUND(+AA99*AC99,0) -> 8819 | AG99: =ROUND((+AE99/$AE$137)*100,1) -> 0 | AI99: =L27-AE99 -> 198 | AK99: 2.2 | AO99: =AE99+AM99 -> 8819 | AQ99: =ROUND((+AI99/AO99)*100,1) -> 2.2
T100: 9 | V100: DISTRIBUTION | AA100: =AA98+AA99 -> 355751.471 | AC100: 0 | AE100: =ROUND(+AA100*AC100,0) -> 0 | AG100: =ROUND((+AE100/$AE$137)*100,1) -> 0 | AI100: =L28-AE100 -> 2216332 | AK100: =IF(AE100=0,0,ROUND((AI100/AE100)*100,1)) -> 0 | AO100: =AE100+AM100 -> 0
T101: 10 | V101: SUB-TOTAL | AA101: =H29 -> 355751.471 | AE101: =SUM(AE98:AE100) -> 5193993 | AG101: =ROUND((+AE101/$AE$137)*100,1) -> 13.7 | AI101: =SUM(AI98:AI100) -> 2338740 | AK101: 45 | AO101: =SUM(AO98:AO99) -> 5193993 | AQ101: =ROUND((+AI101/AO101)*100,1) -> 45
T102: 11 | V102: PRIMARY SERV. DIS.
T103: 12 | V103: FIRST 1000 KW | AA103: =H31 -> 124305.409 | AC103: =INPUT!C80 -> -0.75 | AE103: =ROUND(+AA103*AC103,0) -> -93229 | AG103: =ROUND((+AE103/$AE$137)*100,1) -> -0.2 | AI103: =L31-AE103 -> -2486 | AK103: 2.7 | AO103: =AE103+AM103 -> -93229 | AQ103: =ROUND((+AI103/AO103)*100,1) -> 2.7
T104: 13 | V104: ADDITIONAL KW | AA104: =H32 -> 231445.061 | AC104: =INPUT!C81 -> -0.58 | AE104: =ROUND(+AA104*AC104,0) -> -134238 | AG104: =ROUND((+AE104/$AE$137)*100,1) -> -0.4 | AI104: =L32-AE104 -> -2315 | AK104: 1.7 | AO104: =AE104+AM104 -> -134238 | AQ104: =ROUND((+AI104/AO104)*100,1) -> 1.7
T105: 14 | V105: TOTAL DEMAND | AA105: =H33 -> 355750.47 | AE105: =AE101+AE103+AE104 -> 4966526 | AG105: =ROUND((+AE105/$AE$137)*100,1) -> 13.1 | AI105: =AI101+AI103+AI104 -> 2333939 | AK105: 47 | AO105: =AO101+AO103+AO104 -> 4966526 | AQ105: =ROUND((+AI105/AO105)*100,1) -> 47
T106: 15 | V106: ENERGY CHARGE (3):
T107: 16 | V107: ON PEAK KWH | AA107: =H35 -> 54766944 | AC107: =INPUT!C72 -> 0.048389 | AE107: =ROUND((+AA107*AC107),0) -> 2650118 | AG107: =ROUND((+AE107/$AE$137)*100,1) -> 7 | AI107: =L35-AE107 -> 61722 | AK107: =IF(AE107=0,0,ROUND((AI107/AE107)*100,1)) -> 2.3 | AO107: =AE107+AM107 -> 2650118 | AQ107: =ROUND((+AI107/AO107)*100,1) -> 2.3
T108: 17 | V108: OFF PEAK KWH | AA108: =H36 -> 139808163 | AC108: =INPUT!C74 -> 0.039909 | AE108: =ROUND((+AA108*AC108),0) -> 5579604 | AG108: =ROUND((+AE108/$AE$137)*100,1) -> 14.7 | AI108: =L36-AE108 -> 129602 | AK108: 2.3 | AO108: =AE108+AM108 -> 5579604 | AQ108: =ROUND((+AI108/AO108)*100,1) -> 2.3
T109: 18 | V109: TOTAL SUMMER | Y109: =F37 -> 159 | AA109: =H37 -> 194575107 | AE109: =AE96+AE105+AE107+AE108 -> 13218190 | AG109: =ROUND((+AE109/$AE$137)*100,1) -> 34.9 | AI109: =AI96+AI105+AI107+AI108 -> 2525263 | AK109: 19.1 | AO109: =AO96+AO105+AO107+AO108 -> 13218190 | AQ109: =ROUND((+AI109/AO109)*100,1) -> 19.1
T111: =A39 -> 19 | V111: WINTER:
T112: 20 | V112: CUSTOMER CHARGE:
T113: 21 | V113: PRIMARY VOLTAGE | Y113: =F41 -> 340 | AC113: =AC95 -> 138 | AE113: =ROUND(+Y113*AC113,0) -> 46920 | AG113: =ROUND((+AE113/$AE$137)*100,1) -> 0.1 | AI113: =L41-AE113 -> 0 | AK113: =IF(AE113=0,0,ROUND((AI113/AE113)*100,1)) -> 0 | AO113: =AE113+AM113 -> 46920 | AQ113: =ROUND((+AI113/AO113)*100,1) -> 0
T114: 22 | V114: TOTAL CUSTOMER CHARGE | Y114: =F42 -> 340 | AE114: =SUM(AE113:AE113) -> 46920 | AG114: =ROUND((+AE114/$AE$137)*100,1) -> 0.1 | AI114: =SUM(AI113:AI113) -> 0 | AK114: =IF(AE114=0,0,ROUND((AI114/AE114)*100,1)) -> 0 | AO114: =SUM(AO113:AO113) -> 46920 | AQ114: =ROUND((+AI114/AO114)*100,1) -> 0
T115: 23 | V115: DEMAND CHARGE:
T116: 24 | V116: ON PEAK KW | AA116: =H44 -> 643117.7 | AC116: =INPUT!C78 -> 14.05 | AE116: =ROUND(+AA116*AC116,0) -> 9035804 | AG116: =ROUND((+AE116/$AE$137)*100,1) -> 23.9 | AI116: =L44-AE116 -> 212229 | AK116: =IF(AE116=0,0,ROUND((AI116/AE116)*100,1)) -> 2.3 | AO116: =AE116+AM116 -> 9035804 | AQ116: 0
T117: 25 | V117: OFF PEAK KW | AA117: =H45 -> 19382 | AC117: =INPUT!C79 -> 1.34 | AE117: =ROUND(+AA117*AC117,0) -> 25972 | AG117: =ROUND((+AE117/$AE$137)*100,1) -> 0.1 | AI117: =L45-AE117 -> 581 | AK117: =IF(AE117=0,0,ROUND((AI117/AE117)*100,1)) -> 2.2 | AO117: =AE117+AM117 -> 25972 | AQ117: =ROUND((+AI117/AO117)*100,1) -> 2.2
V118: DISTRIBUTION | AA118: =AA116+AA117 -> 662499.7 | AC118: 0 | AE118: =ROUND(+AA118*AC118,0) -> 0 | AG118: =ROUND((+AE118/$AE$137)*100,1) -> 0 | AI118: =L46-AE118 -> 4127373 | AK118: =IF(AE118=0,0,ROUND((AI118/AE118)*100,1)) -> 0 | AO118: =AE118+AM118 -> 0
T119: =A47 -> 26 | V119: SUB-TOTAL | AA119: =H47 -> 662499.7 | AE119: =SUM(AE116:AE118) -> 9061776 | AG119: =ROUND((+AE119/$AE$137)*100,1) -> 23.9 | AI119: =SUM(AI116:AI118) -> 4340183 | AK119: =IF(AE119=0,0,ROUND((AI119/AE119)*100,1)) -> 47.9 | AO119: =SUM(AO116:AO117) -> 9061776 | AQ119: =ROUND((+AI119/AO119)*100,1) -> 47.9
T120: 27 | V120: PRIMARY SERV. DIS.
T121: 28 | V121: FIRST 1000 KW | AA121: =H49 -> 228677.2 | AC121: =AC103 -> -0.75 | AE121: =ROUND(+AA121*AC121,0) -> -171508 | AG121: =ROUND((+AE121/$AE$137)*100,1) -> -0.5 | AI121: =L49-AE121 -> -4573 | AK121: =IF(AE121=0,0,ROUND((AI121/AE121)*100,1)) -> 2.7 | AO121: =AE121+AM121 -> -171508 | AQ121: =ROUND((+AI121/AO121)*100,1) -> 2.7
T122: 29 | V122: ADDITIONAL KW | AA122: =H50 -> 433824.5 | AC122: =AC104 -> -0.58 | AE122: =ROUND(+AA122*AC122,0) -> -251618 | AG122: =ROUND((+AE122/$AE$137)*100,1) -> -0.7 | AI122: =L50-AE122 -> -4338 | AK122: =IF(AE122=0,0,ROUND((AI122/AE122)*100,1)) -> 1.7 | AO122: =AE122+AM122 -> -251618 | AQ122: =ROUND((+AI122/AO122)*100,1) -> 1.7
T123: 30 | V123: TOTAL DEMAND | AA123: =H51 -> 662501.7 | AE123: =AE119+AE121+AE122 -> 8638650 | AG123: =ROUND((+AE123/$AE$137)*100,1) -> 22.8 | AI123: =AI119+AI121+AI122 -> 4331272 | AK123: =IF(AE123=0,0,ROUND((AI123/AE123)*100,1)) -> 50.1 | AO123: =AO119+AO121+AO122 -> 8638650 | AQ123: =ROUND((+AI123/AO123)*100,1) -> 50.1
T124: 31 | V124: ENERGY CHARGE (3):
T125: 32 | V125: ON PEAK KWH | AA125: =H53 -> 78450227 | AC125: =INPUT!C73 -> 0.046262 | AE125: =ROUND((+AA125*AC125),0) -> 3629264 | AG125: =ROUND((+AE125/$AE$137)*100,1) -> 9.6 | AI125: =L53-AE125 -> 84413 | AK125: =IF(AE125=0,0,ROUND((AI125/AE125)*100,1)) -> 2.3 | AO125: =AE125+AM125 -> 3629264 | AQ125: =ROUND((+AI125/AO125)*100,1) -> 2.3
T126: 33 | V126: OFF PEAK KWH | AA126: =H54 -> 208888670.7 | AC126: =AC108 -> 0.039909 | AE126: =ROUND((+AA126*AC126),0) -> 8336538 | AG126: =ROUND((+AE126/$AE$137)*100,1) -> 22 | AI126: =L54-AE126 -> 193640 | AK126: =IF(AE126=0,0,ROUND((AI126/AE126)*100,1)) -> 2.3 | AO126: =AE126+AM126 -> 8336538 | AQ126: =ROUND((+AI126/AO126)*100,1) -> 2.3
T127: 34 | V127: TOTAL WINTER | Y127: =F55 -> 340 | AA127: =H55 -> 287338897.7 | AE127: =AE114+AE123+AE125+AE126 -> 20651372 | AG127: =ROUND((+AE127/$AE$137)*100,1) -> 54.5 | AI127: =AI114+AI123+AI125+AI126 -> 4609325 | AK127: =IF(AE127=0,0,ROUND((AI127/AE127)*100,1)) -> 22.3 | AO127: =AO114+AO123+AO125+AO126 -> 20651372 | AQ127: =ROUND((+AI127/AO127)*100,1) -> 22.3
T128: 35 | V128: TOTAL RATE DT PRIMARY EXCLUDING RIDERS | Y128: =Y109+Y127 -> 499 | AA128: =AA109+AA127 -> 481914004.7 | AE128: =AE127+AE109 -> 33869562 | AG128: =ROUND((+AE128/$AE$137)*100,1) -> 89.4 | AI128: =AI127+AI109 -> 7134588 | AK128: =IF(AE128=0,0,ROUND((AI128/AE128)*100,1)) -> 21.1 | AM128: =AM127+AM109 -> 0 | AO128: =AO127+AO109 -> 33869562 | AQ128: =ROUND((+AI128/AO128)*100,1) -> 21.1
T130: =A58 -> 36 | V130: RIDERS:
T131: 37 | V131: =C59 -> DEMAND SIDE MANAGEMENT RIDER (DSMR) | AC131: =DSM_DIST -> -0.000718 | AE131: =ROUND($AA$128*AC131,0) -> -346014 | AG131: =ROUND((+AE131/$AE$137)*100,1) -> -0.9 | AI131: =L59-AE131 -> 0 | AK131: =IF(AE131=0,0,ROUND((AI131/AE131)*100,1)) -> 0 | AO131: =AE131+AM131 -> -346014 | AQ131: =ROUND((+AI131/AO131)*100,1) -> 0
T132: 38 | V132: =C60 -> ENVIRONMENTAL SURCHARGE MECHANISM RIDER (ESM) | AC132: =CUR_ESM_NONRES -> 0.08798914629 | AE132: =ROUND((AO128-(CUR_BASE_FUEL*AA128)+AO131+AO134)*AC132,0) -> 2073065 | AG132: =ROUND((+AE132/$AE$137)*100,1) -> 5.5 | AI132: =L60-AE132 -> 0 | AK132: 0 | AO132: 2073065 | AQ132: =IF(AO132=0,0,ROUND((+AI132/AO132)*100,1)) -> 0
T133: 39 | V133: =C61 -> FUEL ADJUSTMENT CLAUSE (FAC) | AC133: =CUR_FAC -> 0.005965 | AM133: =ROUND(AA128*CUR_FAC,0) -> 2874617 | AO133: 2874617 | AQ133: =ROUND(((R61-AO133)/AO133)*100,1) -> 0
T134: 40 | V134: =C62 -> PROFIT SHARING MECHANISM (PSM) | AC134: =RS_PSM -> 0.004727 | AE134: =ROUND(AA128*RS_PSM,0) -> 2278008 | AG134: =ROUND((+AE134/$AE$137)*100,1) -> 6 | AI134: =L62-AE134 -> 0 | AK134: 0 | AO134: 2278008 | AQ134: 0
T135: 41 | V135: TOTAL RIDERS | AE135: =SUM(AE131:AE134) -> 4005059 | AG135: =ROUND((+AE135/$AE$137)*100,1) -> 10.6 | AI135: =SUM(AI131:AI134) -> 0 | AK135: 0 | AM135: =AM133 -> 2874617 | AO135: =SUM(AO131:AO134) -> 6879676 | AQ135: 0
T137: =A65 -> 42 | V137: TOTAL RATE DT PRIMARY INCLUDING RIDERS | Y137: =F65 -> 499 | AA137: =H65 -> 481914004.7 | AE137: =AE128+AE135 -> 37874621 | AG137: 100 | AI137: =AI128+AI135 -> 7134588 | AK137: =IF(AE137=0,0,ROUND((AI137/AE137)*100,1)) -> 18.8 | AM137: =AM128+AM135 -> 2874617 | AO137: =AO128+AO135 -> 40749238 | AQ137: =ROUND((+AI137/AO137)*100,1) -> 17.5
V139: (1) BILLS THAT TERMINATE IN RESPECTIVE RATE STEPS.
V140: ="(2) REFLECTS FUEL COMPONENT OF "&TEXT(CUR_FAC,"$0.000000;($0.000000)")&" PER KWH." -> (2) REFLECTS FUEL COMPONENT OF $0.005965 PER KWH.
V141: ="(3) REFLECTS FUEL COST RECOVERY INCLUDED IN BASE RATES OF "&TEXT(CUR_BASE_FUEL,"$0.000000;($0.000000)")&" PER KWH." -> (3) REFLECTS FUEL COST RECOVERY INCLUDED IN BASE RATES OF $0.025401 PER KWH.

Sheet Rate DT-Sec
A1: =NAME -> DUKE ENERGY KENTUCKY, INC.
A2: =CASE_NO -> CASE NO. 2022-00372
A3: =TITLE -> ANNUALIZED BASE YEAR REVENUES AT PROPOSED VS. MOST CURRENT RATES
A4: =DATE -> FOR THE TWELVE MONTHS ENDED February 28, 2023
A5: =SERVICE -> (ELECTRIC SERVICE)
A6: =DATA_PERIOD -> DATA: __X__ BASE PERIOD ____FORECASTED PERIOD | R6: SCHEDULE M-2.3
A7: =TYPE -> TYPE OF FILING: _X_ ORIGINAL ___UPDATED ___ REVISED | R7: ="PAGE 5 OF "&TEXT(Page_Num_2.3,"00") -> PAGE 5 OF 24
A8: WORK PAPER REFERENCE NO(S).: | R8: WITNESS:
A9: =TIME -> 6 Months Actual and 6 Months Projected with Riders | R9: =WIT -> B. L. SAILERS
A10: =INPUT!B5 -> 6 Months Actual Ending August 31, 2022
A11: PROPOSED ANNUALIZED
L13: PROPOSED | N13: % OF REV TO | R13: PROPOSED
L14: REVENUE LESS | N14: TOTAL LESS | R14: TOTAL
A15: LINE | C15: RATE | D15: CLASS / | F15: CUSTOMER | J15: PROPOSED | L15: FUEL COST | N15: FUEL COST | P15: FUEL COST | R15: REVENUE
A16: NO. | C16: CODE | D16: DESCRIPTION | F16: BILLS(1) | H16: SALES | J16: RATES | L16: REVENUE | N16: REVENUE | P16: REVENUE (2) | R16: (F + H)
C17: (A) | D17: (B) | F17: (C) | H17: (D) | J17: (E) | L17: (F) | N17: (G) | P17: (H) | R17: (I)
H19: (KW/KWH) | J19: ($/KWH)/ | L19: ($) | N19: (%) | P19: ($) | R19: ($)
A20: 1 | C20: DT-SEC | D20: TIME OF DAY SECONDARY | J20: ($/KW)
A21: 2 | C21: SUMMER:
A22: 3 | C22: CUSTOMER CHARGE:
A23: 4 | C23: SINGLE PHASE | F23: 0 | J23: =INPUT!D68 -> 63.5 | L23: =ROUND(+F23*J23,0) -> 0 | N23: =ROUND((+L23/$L$63)*100,1) -> 0 | R23: =L23+P23 -> 0
A24: 5 | C24: THREE PHASE | F24: 419 | J24: =INPUT!D69 -> 127 | L24: =ROUND(+F24*J24,0) -> 53213 | N24: =ROUND((+L24/$L$63)*100,1) -> 0.1 | R24: =L24+P24 -> 53213
A25: 6 | C25: TOTAL CUSTOMER CHARGE | F25: =SUM(F23:F24) -> 419 | L25: =SUM(L23:L24) -> 53213 | N25: =ROUND((+L25/$L$63)*100,1) -> 0.1 | R25: =SUM(R23:R24) -> 53213
A27: 7 | C27: DEMAND CHARGE:
A28: 8 | C28: ON PEAK KW | H28: 436809.765 | J28: =PRO_DT_SUM_PEAK -> 15.2 | L28: =ROUND(+H28*J28,0) -> 6639508 | N28: =ROUND((+L28/$L$63)*100,1) -> 11.5 | R28: =L28+P28 -> 6639508
A29: 9 | C29: OFF PEAK KW | H29: 4642.599 | J29: =PRO_DT_SUM_PK_OFF -> 1.37 | L29: =ROUND(+H29*J29,0) -> 6360 | N29: =ROUND((+L29/$L$63)*100,1) -> 0 | R29: =L29+P29 -> 6360
A30: 10 | C30: DISTRIBUTION | H30: =H28+H29 -> 441452.364 | J30: =INPUT!$D$82 -> 6.23 | L30: =ROUND(+H30*J30,0) -> 2750248 | N30: =ROUND((+L30/$L$63)*100,1) -> 4.8 | R30: =L30+P30 -> 2750248
A31: 11 | C31: TOTAL DEMAND | H31: =SUM(H28:H29) -> 441452.364 | L31: =SUM(L28:L30) -> 9396116 | N31: =ROUND((+L31/$L$63)*100,1) -> 16.3 | R31: =SUM(R28:R30) -> 9396116
A33: 12 | C33: ENERGY CHARGE (3):
A34: 13 | C34: ON PEAK KWH | H34: 69839864 | J34: =PRO_DT_SUM_E_ON -> 0.049516 | L34: =ROUND((+H34*J34),0) -> 3458191 | N34: =ROUND((+L34/$L$63)*100,1) -> 6 | R34: =L34+P34 -> 3458191
A35: 14 | C35: OFF PEAK KWH | H35: 163424672 | J35: =PRO_DT_SUM_E_OFF -> 0.040836 | L35: =ROUND((+H35*J35),0) -> 6673610 | N35: =ROUND((+L35/$L$63)*100,1) -> 11.5 | R35: =L35+P35 -> 6673610
A36: 15 | C36: TOTAL SUMMER | F36: =F25 -> 419 | H36: =H34+H35 -> 233264536 | L36: =L25+L31+L34+L35 -> 19581130 | N36: =ROUND((+L36/$L$63)*100,1) -> 33.9 | R36: =R25+R31+R34+R35 -> 19581130
A38: 16 | C38: WINTER: | H38: =185857814-185857934 -> -120
A39: 17 | C39: CUSTOMER CHARGE:
A40: 18 | C40: SINGLE PHASE | F40: =F23 -> 0 | J40: =J23 -> 63.5 | L40: =ROUND(+F40*J40,0) -> 0 | N40: =ROUND((+L40/$L$63)*100,1) -> 0 | R40: =L40+P40 -> 0
A41: 19 | C41: THREE PHASE | F41: 984 | J41: =J24 -> 127 | L41: =ROUND(+F41*J41,0) -> 124968 | N41: =ROUND((+L41/$L$63)*100,1) -> 0.2 | R41: =L41+P41 -> 124968
A42: 20 | C42: TOTAL CUSTOMER CHARGE | F42: =SUM(F40:F41) -> 984 | L42: =SUM(L40:L41) -> 124968 | N42: =ROUND((+L42/$L$63)*100,1) -> 0.2 | R42: =SUM(R40:R41) -> 124968
A44: 21 | C44: DEMAND CHARGE:
A45: 22 | C45: ON PEAK KW | H45: 865090.3 | J45: =PRO_DT_WIN_PEAK -> 14.38 | L45: =ROUND(+H45*J45,0) -> 12439999 | N45: =ROUND((+L45/$L$63)*100,1) -> 21.5 | R45: =L45+P45 -> 12439999
A46: 23 | C46: OFF PEAK KW | H46: 11290 | J46: =PRO_DT_WIN_PK_OFF -> 1.37 | L46: =ROUND(+H46*J46,0) -> 15467 | N46: =ROUND((+L46/$L$63)*100,1) -> 0 | R46: =L46+P46 -> 15467
A47: 24 | C47: DISTRIBUTION | H47: =H45+H46 -> 876380.3 | J47: =INPUT!$D$82 -> 6.23 | L47: =ROUND(+H47*J47,0) -> 5459849 | N47: =ROUND((+L47/$L$63)*100,1) -> 9.4 | R47: =L47+P47 -> 5459849
A48: 25 | C48: TOTAL DEMAND | H48: =SUM(H45:H46) -> 876380.3 | L48: =SUM(L45:L47) -> 17915315 | N48: =ROUND((+L48/$L$63)*100,1)-0.1 -> 30.9 | R48: =SUM(R45:R47) -> 17915315
A50: 26 | C50: ENERGY CHARGE (3):
A51: 27 | C51: ON PEAK KWH | H51: 104461436 | J51: =PRO_DT_WIN_E_ON -> 0.047338 | L51: =ROUND((+H51*J51),0) -> 4944995 | N51: =ROUND((+L51/$L$63)*100,1) -> 8.6 | R51: =L51+P51 -> 4944995
A52: 28 | C52: OFF PEAK KWH | H52: 249189507 | J52: =PRO_DT_WIN_E_OFF -> 0.040836 | L52: =ROUND((+H52*J52),0) -> 10175903 | N52: =ROUND((+L52/$L$63)*100,1) -> 17.6 | R52: =L52+P52 -> 10175903
A53: 29 | C53: TOTAL WINTER | F53: =F42 -> 984 | H53: =H51+H52 -> 353650943 | L53: =L42+L48+L51+L52 -> 33161181 | N53: =ROUND((+L53/$L$63)*100,1) -> 57.4 | R53: =R42+R48+R51+R52 -> 33161181
A54: 30 | C54: TOTAL RATE DT SECONDARY EXCLUDING RIDERS | F54: =F36+F53 -> 1403 | H54: =H53+H36 -> 586915479 | L54: =L36+L53 -> 52742311 | N54: =ROUND((+L54/$L$63)*100,1) -> 91.2 | R54: =R36+R53 -> 52742311
A56: 31 | C56: RIDERS:
A57: 32 | C57: =DSMR_Name -> DEMAND SIDE MANAGEMENT RIDER (DSMR) | J57: =PRO_DSM_DIST -> -0.000718 | L57: =ROUND($H$54*J57,0) -> -421405 | N57: =ROUND((+L57/$L$63)*100,1) -> -0.7 | R57: =L57+P57 -> -421405
A58: 33 | C58: =ESM_Name -> ENVIRONMENTAL SURCHARGE MECHANISM RIDER (ESM) | L58: =AE128 -> 2724538 | N58: =ROUND((+L58/$L$63)*100,1) -> 4.7 | R58: 2724538
A59: 34 | C59: =FAC_Name -> FUEL ADJUSTMENT CLAUSE (FAC) | J59: =PRO_FAC -> 0.005965 | P59: =ROUND(H54*PRO_FAC,0) -> 3500951 | R59: 3500951
A60: 35 | C60: =PSM_Name -> PROFIT SHARING MECHANISM (PSM) | J60: =PRO_PSM -> 0.004727 | L60: =ROUND(H54*PRO_PSM,0) -> 2774349 | N60: =ROUND((+L60/$L$63)*100,1) -> 4.8 | R60: 2774349
A61: 36 | C61: TOTAL RIDERS | L61: =SUM(L57:L60) -> 5077482 | N61: =ROUND((+L61/$L$63)*100,1) -> 8.8 | P61: =SUM(P57:P60) -> 3500951 | R61: =SUM(R57:R60) -> 8578433
A63: 37 | C63: TOTAL RATE DT SECONDARY INCLUDING RIDERS | F63: =F36+F53 -> 1403 | H63: =H36+H53 -> 586915479 | L63: =L61+L54 -> 57819793 | N63: 100 | P63: =P61+P54 -> 3500951 | R63: =R61+R54 -> 61320744
C65: (1) BILLS THAT TERMINATE IN RESPECTIVE RATE STEPS.
C66: ="(2) REFLECTS FUEL COMPONENT OF "&TEXT(PRO_FAC,"$0.000000;($0.000000)")&" PER KWH." -> (2) REFLECTS FUEL COMPONENT OF $0.005965 PER KWH.
C67: ="(3) REFLECTS FUEL COST RECOVERY INCLUDED IN BASE RATES OF "&TEXT(PRO_BASE_FUEL,"$0.000000;($0.000000)")&" PER KWH." -> (3) REFLECTS FUEL COST RECOVERY INCLUDED IN BASE RATES OF $0.025401 PER KWH.
T71: =NAME -> DUKE ENERGY KENTUCKY, INC.
T72: =CASE_NO -> CASE NO. 2022-00372
T73: =TITLE -> ANNUALIZED BASE YEAR REVENUES AT PROPOSED VS. MOST CURRENT RATES
T74: =DATE -> FOR THE TWELVE MONTHS ENDED February 28, 2023
T75: =SERVICE -> (ELECTRIC SERVICE)
T76: =DATA_PERIOD -> DATA: __X__ BASE PERIOD ____FORECASTED PERIOD | AO76: SCHEDULE M-2.2
T77: =TYPE -> TYPE OF FILING: _X_ ORIGINAL ___UPDATED ___ REVISED | AO77: ="PAGE 5 OF "&TEXT(Page_Num_2.2,"00") -> PAGE 5 OF 23
T78: WORK PAPER REFERENCE NO(S).: | AO78: WITNESS:
T79: =TIME -> 6 Months Actual and 6 Months Projected with Riders | AO79: =WIT -> B. L. SAILERS
T80: =INPUT!B5 -> 6 Months Actual Ending August 31, 2022
T81: CURRENT ANNUALIZED
AE83: CURRENT | AG83: % OF REV TO | AI83: REVENUE | AK83: % INCR IN | AO83: CURRENT | AQ83: TOTAL
AC84: MOST | AE84: REVENUE LESS | AG84: TOTAL LESS | AI84: INCR LESS | AK84: REV LESS | AO84: TOTAL | AQ84: REVENUE
T85: LINE | V85: RATE | W85: CLASS / | Y85: CUSTOMER | AC85: CURRENT | AE85: FUEL COST | AG85: FUEL COST | AI85: FUEL COST REV | AK85: FUEL COST REV | AM85: FUEL COST | AO85: REVENUE | AQ85: % INCREASE
T86: NO. | V86: CODE | W86: DESCRIPTION | Y86: BILLS(1) | AA86: SALES | AC86: RATES | AE86: REVENUE | AG86: REVENUE | AI86: (F - K) | AK86: (M / K) | AM86: REVENUE (2) | AO86: (K + H) | AQ86: (M / K1)
V87: (A) | W87: (B) | Y87: (C) | AA87: (D) | AC87: (J) | AE87: (K) | AG87: (L) | AI87: (M) | AK87: (N) | AM87: (H) | AO87: (K1) | AQ87: (O)
AA89: (KW/KWH) | AC89: ($/KWH)/ | AE89: ($) | AG89: (%) | AI89: ($) | AK89: (%) | AM89: ($) | AO89: ($) | AQ89: (%)
T90: =A20 -> 1 | V90: DT-SEC | W90: TIME OF DAY SECONDARY | AC90: ($/KW)
T91: 2 | V91: SUMMER:
T92: 3 | V92: CUSTOMER CHARGE:
T93: 4 | V93: SINGLE PHASE | Y93: =F23 -> 0 | AC93: =INPUT!C68 -> 63.5 | AE93: =ROUND(+Y93*AC93,0) -> 0 | AG93: =ROUND((+AE93/$AE$133)*100,1) -> 0 | AI93: =L23-AE93 -> 0 | AK93: =IF(AE93=0,0,ROUND((AI93/AE93)*100,1)) -> 0 | AO93: =AE93+AM93 -> 0 | AQ93: 0
T94: 5 | V94: THREE PHASE | Y94: =F24 -> 419 | AC94: =INPUT!C69 -> 127 | AE94: =ROUND(+Y94*AC94,0) -> 53213 | AG94: =ROUND((+AE94/$AE$133)*100,1) -> 0.1 | AI94: =L24-AE94 -> 0 | AK94: =IF(AE94=0,0,ROUND((AI94/AE94)*100,1)) -> 0 | AO94: =AE94+AM94 -> 53213 | AQ94: =ROUND((+AI94/AO94)*100,1) -> 0
T95: 6 | V95: TOTAL CUSTOMER CHARGE | Y95: =F25 -> 419 | AE95: =SUM(AE93:AE94) -> 53213 | AG95: =ROUND((+AE95/$AE$133)*100,1) -> 0.1 | AI95: =SUM(AI93:AI94) -> 0 | AK95: =IF(AE95=0,0,ROUND((AI95/AE95)*100,1)) -> 0 | AO95: =SUM(AO93:AO94) -> 53213 | AQ95: =ROUND((+AI95/AO95)*100,1) -> 0
T97: =A27 -> 7 | V97: DEMAND CHARGE:
T98: 8 | V98: ON PEAK KW | AA98: =H28 -> 436809.765 | AC98: =CUR_DT_SUM_PEAK_ON -> 14.85 | AE98: =ROUND(+AA98*AC98,0) -> 6486625 | AG98: =ROUND((+AE98/$AE$133)*100,1) -> 13.3 | AI98: =L28-AE98 -> 152883 | AK98: =IF(AE98=0,0,ROUND((AI98/AE98)*100,1)) -> 2.4 | AO98: =AE98+AM98 -> 6486625 | AQ98: 0
T99: 9 | V99: OFF PEAK KW | AA99: =H29 -> 4642.599 | AC99: =CUR_DT_SUM_PK_OFF -> 1.34 | AE99: =ROUND(+AA99*AC99,0) -> 6221 | AG99: =ROUND((+AE99/$AE$133)*100,1) -> 0 | AI99: =L29-AE99 -> 139 | AK99: =IF(AE99=0,0,ROUND((AI99/AE99)*100,1)) -> 2.2 | AO99: =AE99+AM99 -> 6221 | AQ99: =ROUND((+AI99/AO99)*100,1) -> 2.2
T100: 10 | V100: DISTRIBUTION | AA100: =AA98+AA99 -> 441452.364 | AC100: 0 | AE100: =ROUND(+AA100*AC100,0) -> 0 | AG100: =ROUND((+AE100/$AE$133)*100,1) -> 0 | AI100: =L30-AE100 -> 2750248 | AK100: =IF(AE100=0,0,ROUND((AI100/AE100)*100,1)) -> 0 | AO100: =AE100+AM100 -> 0
T101: 11 | V101: TOTAL DEMAND | AA101: =H31 -> 441452.364 | AE101: =SUM(AE98:AE100) -> 6492846 | AG101: =ROUND((+AE101/$AE$133)*100,1) -> 13.4 | AI101: =SUM(AI98:AI100) -> 2903270 | AK101: =IF(AE101=0,0,ROUND((AI101/AE101)*100,1)) -> 44.7 | AO101: =SUM(AO98:AO100) -> 6492846 | AQ101: =ROUND((+AI101/AO101)*100,1) -> 44.7
T103: =A33 -> 12 | V103: ENERGY CHARGE (3):
T104: 13 | V104: ON PEAK KWH | AA104: =H34 -> 69839864 | AC104: =CUR_DT_SUM_E_ON -> 0.048389 | AE104: =ROUND((+AA104*AC104),0) -> 3379481 | AG104: =ROUND((+AE104/$AE$133)*100,1) -> 7 | AI104: =L34-AE104 -> 78710 | AK104: =IF(AE104=0,0,ROUND((AI104/AE104)*100,1)) -> 2.3 | AO104: =AE104+AM104 -> 3379481 | AQ104: =ROUND((+AI104/AO104)*100,1) -> 2.3
T105: 14 | V105: OFF PEAK KWH | AA105: =H35 -> 163424672 | AC105: =CUR_DT_SUM_E_OFF -> 0.039909 | AE105: =ROUND((+AA105*AC105),0) -> 6522115 | AG105: =ROUND((+AE105/$AE$133)*100,1) -> 13.4 | AI105: =L35-AE105 -> 151495 | AK105: =IF(AE105=0,0,ROUND((AI105/AE105)*100,1)) -> 2.3 | AO105: =AE105+AM105 -> 6522115 | AQ105: =ROUND((+AI105/AO105)*100,1) -> 2.3
T106: 15 | V106: TOTAL SUMMER | Y106: =F36 -> 419 | AA106: =H36 -> 233264536 | AE106: =AE95+AE101+AE104+AE105 -> 16447655 | AG106: =ROUND((+AE106/$AE$133)*100,1) -> 33.8 | AI106: =AI95+AI101+AI104+AI105 -> 3133475 | AK106: =IF(AE106=0,0,ROUND((AI106/AE106)*100,1)) -> 19.1 | AO106: =AO95+AO101+AO104+AO105 -> 16447655 | AQ106: =ROUND((+AI106/AO106)*100,1) -> 19.1
T108: =A38 -> 16 | V108: WINTER:
T109: 17 | V109: CUSTOMER CHARGE:
T110: 18 | V110: SINGLE PHASE | Y110: =F40 -> 0 | AC110: =AC93 -> 63.5 | AE110: =ROUND(+Y110*AC110,0) -> 0 | AG110: =ROUND((+AE110/$AE$133)*100,1) -> 0 | AI110: =L40-AE110 -> 0 | AK110: =IF(AE110=0,0,ROUND((AI110/AE110)*100,1)) -> 0 | AO110: =AE110+AM110 -> 0 | AQ110: 0
T111: 19 | V111: THREE PHASE | Y111: =F41 -> 984 | AC111: =AC94 -> 127 | AE111: =ROUND(+Y111*AC111,0) -> 124968 | AG111: =ROUND((+AE111/$AE$133)*100,1) -> 0.3 | AI111: =L41-AE111 -> 0 | AK111: =IF(AE111=0,0,ROUND((AI111/AE111)*100,1)) -> 0 | AO111: =AE111+AM111 -> 124968 | AQ111: =ROUND((+AI111/AO111)*100,1) -> 0
T112: 20 | V112: TOTAL CUSTOMER CHARGE | Y112: =F42 -> 984 | AE112: =SUM(AE110:AE111) -> 124968 | AG112: =ROUND((+AE112/$AE$133)*100,1) -> 0.3 | AI112: =SUM(AI110:AI111) -> 0 | AK112: =IF(AE112=0,0,ROUND((AI112/AE112)*100,1)) -> 0 | AO112: =SUM(AO110:AO111) -> 124968 | AQ112: =ROUND((+AI112/AO112)*100,1) -> 0
T114: =A44 -> 21 | V114: DEMAND CHARGE:
T115: 22 | V115: ON PEAK KW | AA115: =H45 -> 865090.3 | AC115: =CUR_DT_WIN_PEAK_ON -> 14.05 | AE115: =ROUND(+AA115*AC115,0) -> 12154519 | AG115: =ROUND((+AE115/$AE$133)*100,1) -> 25 | AI115: =L45-AE115 -> 285480 | AK115: =IF(AE115=0,0,ROUND((AI115/AE115)*100,1)) -> 2.3 | AO115: =AE115+AM115 -> 12154519 | AQ115: 0
T116: 23 | V116: OFF PEAK KW | AA116: =H46 -> 11290 | AC116: =CUR_DT_WIN_PK_OFF -> 1.34 | AE116: =ROUND(+AA116*AC116,0) -> 15129 | AG116: =ROUND((+AE116/$AE$133)*100,1) -> 0 | AI116: =L46-AE116 -> 338 | AK116: =IF(AE116=0,0,ROUND((AI116/AE116)*100,1)) -> 2.2 | AO116: =AE116+AM116 -> 15129 | AQ116: =ROUND((+AI116/AO116)*100,1) -> 2.2
T117: 24 | V117: DISTRIBUTION | AA117: =AA115+AA116 -> 876380.3 | AC117: 0 | AE117: =ROUND(+AA117*AC117,0) -> 0 | AG117: =ROUND((+AE117/$AE$133)*100,1) -> 0 | AI117: =L47-AE117 -> 5459849 | AK117: =IF(AE117=0,0,ROUND((AI117/AE117)*100,1)) -> 0 | AO117: =AE117+AM117 -> 0
T118: =A48 -> 25 | V118: TOTAL DEMAND | AA118: =H48 -> 876380.3 | AE118: =SUM(AE115:AE117) -> 12169648 | AG118: =ROUND((+AE118/$AE$133)*100,1) -> 25 | AI118: =SUM(AI115:AI117) -> 5745667 | AK118: =IF(AE118=0,0,ROUND((AI118/AE118)*100,1)) -> 47.2 | AO118: =SUM(AO115:AO117) -> 12169648 | AQ118: =ROUND((+AI118/AO118)*100,1) -> 47.2
T120: =A50 -> 26 | V120: ENERGY CHARGE (3):
T121: 27 | V121: ON PEAK KWH | AA121: =H51 -> 104461436 | AC121: =CUR_DT_WIN_E_ON -> 0.046262 | AE121: =ROUND((+AA121*AC121),0) -> 4832595 | AG121: =ROUND((+AE121/$AE$133)*100,1) -> 9.9 | AI121: =L51-AE121 -> 112400 | AK121: =IF(AE121=0,0,ROUND((AI121/AE121)*100,1)) -> 2.3 | AO121: =AE121+AM121 -> 4832595 | AQ121: =ROUND((+AI121/AO121)*100,1) -> 2.3
T122: 28 | V122: OFF PEAK KWH | AA122: =H52 -> 249189507 | AC122: ='Rate DT-Pri'!AC126 -> 0.039909 | AE122: =ROUND((+AA122*AC122),0) -> 9944904 | AG122: =ROUND((+AE122/$AE$133)*100,1) -> 20.5 | AI122: =L52-AE122 -> 230999 | AK122: =IF(AE122=0,0,ROUND((AI122/AE122)*100,1)) -> 2.3 | AO122: =AE122+AM122 -> 9944904 | AQ122: =ROUND((+AI122/AO122)*100,1) -> 2.3
T123: 29 | V123: TOTAL WINTER | Y123: =F53 -> 984 | AA123: =H53 -> 353650943 | AE123: =AE112+AE118+AE121+AE122 -> 27072115 | AG123: =ROUND((+AE123/$AE$133)*100,1) -> 55.7 | AI123: =AI112+AI118+AI121+AI122 -> 6089066 | AK123: =IF(AE123=0,0,ROUND((AI123/AE123)*100,1)) -> 22.5 | AO123: =AO112+AO118+AO121+AO122 -> 27072115 | AQ123: =ROUND((+AI123/AO123)*100,1) -> 22.5
T124: 30 | V124: TOTAL RATE DT SECONDARY EXCLUDING RIDERS | Y124: =Y106+Y123 -> 1403 | AA124: =AA123+AA106 -> 586915479 | AE124: =AE123+AE106 -> 43519770 | AG124: =ROUND((+AE124/$AE$133)*100,1) -> 89.6 | AI124: =AI123+AI106 -> 9222541 | AK124: =IF(AE124=0,0,ROUND((AI124/AE124)*100,1)) -> 21.2 | AO124: =AO123+AO106 -> 43519770 | AQ124: 0
T126: =A56 -> 31 | V126: RIDERS:
T127: 32 | V127: =C57 -> DEMAND SIDE MANAGEMENT RIDER (DSMR) | AC127: =DSM_DIST -> -0.000718 | AE127: =ROUND($AA$124*AC127,0) -> -421405 | AG127: =ROUND((+AE127/$AE$133)*100,1) -> -0.9 | AI127: =L57-AE127 -> 0 | AK127: =IF(AE127=0,0,ROUND((AI127/AE127)*100,1)) -> 0 | AO127: =AE127+AM127 -> -421405 | AQ127: =IF(AO127=0,0,ROUND((+AI127/AO127)*100,1)) -> 0
T128: 33 | V128: =C58 -> ENVIRONMENTAL SURCHARGE MECHANISM RIDER (ESM) | AC128: =CUR_ESM_NONRES -> 0.08798914629 | AE128: =ROUND((AO124-(CUR_BASE_FUEL*AA124)+AO127+AO130)*AC128,0) -> 2724538 | AG128: =ROUND((+AE128/$AE$133)*100,1) -> 5.6 | AI128: =L58-AE128 -> 0 | AK128: 0 | AO128: =AE128+AM128 -> 2724538 | AQ128: =IF(AO128=0,0,ROUND((+AI128/AO128)*100,1)) -> 0
T129: 34 | V129: =C59 -> FUEL ADJUSTMENT CLAUSE (FAC) | AC129: =CUR_FAC -> 0.005965 | AM129: =ROUND(AA124*CUR_FAC,0) -> 3500951 | AO129: 3500951 | AQ129: =IF(AO129=0,0,ROUND(((R59-AO129)/AO129)*100,1)) -> 0
T130: 35 | V130: =C60 -> PROFIT SHARING MECHANISM (PSM) | AC130: =RS_PSM -> 0.004727 | AE130: =ROUND(AA124*RS_PSM,0) -> 2774349 | AG130: =ROUND((+AE130/$AE$133)*100,1) -> 5.7 | AI130: =L60-AE130 -> 0 | AK130: 0 | AO130: 2774349 | AQ130: =IF(AO130=0,0,ROUND((+AI130/AO130)*100,1)) -> 0
T131: 36 | V131: TOTAL RIDERS | AE131: =SUM(AE127:AE130) -> 5077482 | AG131: =ROUND((+AE131/$AE$133)*100,1) -> 10.4 | AI131: =SUM(AI127:AI130) -> 0 | AK131: 0 | AM131: =SUM(AM127:AM130) -> 3500951 | AO131: =SUM(AO127:AO130) -> 8578433 | AQ131: =ROUND((+AI131/AO131)*100,1) -> 0
T133: =A63 -> 37 | V133: TOTAL RATE DT SECONDARY INCLUDING RIDERS | Y133: =Y124 -> 1403 | AA133: =AA124 -> 586915479 | AE133: =AE131+AE124 -> 48597252 | AG133: 100 | AI133: =AI131+AI124 -> 9222541 | AK133: =IF(AE133=0,0,ROUND((AI133/AE133)*100,1)) -> 19 | AM133: =AM131+AM124 -> 3500951 | AO133: =AO131+AO124 -> 52098203 | AQ133: =ROUND((+AI133/AO133)*100,1) -> 17.7
V135: (1) BILLS THAT TERMINATE IN RESPECTIVE RATE STEPS.
V136: ="(2) REFLECTS FUEL COMPONENT OF "&TEXT(CUR_FAC,"$0.000000;($0.000000)")&" PER KWH." -> (2) REFLECTS FUEL COMPONENT OF $0.005965 PER KWH.
V137: ="(3) REFLECTS FUEL COST RECOVERY INCLUDED IN BASE RATES OF "&TEXT(CUR_BASE_FUEL,"$0.000000;($0.000000)")&" PER KWH." -> (3) REFLECTS FUEL COST RECOVERY INCLUDED IN BASE RATES OF $0.025401 PER KWH.

Sheet Rate EH
A1: =NAME -> DUKE ENERGY KENTUCKY, INC.
A2: =CASE_NO -> CASE NO. 2022-00372
A3: =TITLE -> ANNUALIZED BASE YEAR REVENUES AT PROPOSED VS. MOST CURRENT RATES
A4: =DATE -> FOR THE TWELVE MONTHS ENDED February 28, 2023
A5: =SERVICE -> (ELECTRIC SERVICE)
A6: =DATA_PERIOD -> DATA: __X__ BASE PERIOD ____FORECASTED PERIOD | R6: SCHEDULE M-2.3
A7: =TYPE -> TYPE OF FILING: _X_ ORIGINAL ___UPDATED ___ REVISED | R7: ="PAGE 6 OF "&TEXT(Page_Num_2.3,"00") -> PAGE 6 OF 24
A8: WORK PAPER REFERENCE NO(S).: | R8: WITNESS:
A9: =TIME -> 6 Months Actual and 6 Months Projected with Riders | R9: =WIT -> B. L. SAILERS
A10: =INPUT!B5 -> 6 Months Actual Ending August 31, 2022
A11: PROPOSED ANNUALIZED
L13: PROPOSED | N13: % OF REV TO | R13: PROPOSED
L14: REVENUE LESS | N14: TOTAL LESS | R14: TOTAL
A15: LINE | C15: RATE | D15: CLASS / | F15: CUSTOMER | J15: PROPOSED | L15: FUEL COST | N15: FUEL COST | P15: FUEL COST | R15: REVENUE
A16: NO. | C16: CODE | D16: DESCRIPTION | F16: BILLS(1) | H16: SALES | J16: RATES | L16: REVENUE | N16: REVENUE | P16: REVENUE (2) | R16: (F + H)
C17: (A) | D17: (B) | F17: (C) | H17: (D) | J17: (E) | L17: (F) | N17: (G) | P17: (H) | R17: (I)
H19: (KW/KWH) | J19: ($/KWH) | L19: ($) | N19: (%) | P19: ($) | R19: ($)
A20: 1 | C20: EH | D20: OPTIONAL RATE FOR | J20: ($/KW)
A21: 2 | D21: ELEC. SPACE HEATING
A23: 3 | C23: CUSTOMER CHARGE:
A24: 4 | C24: SINGLE PHASE | F24: 181 | J24: =INPUT!D86 -> 15 | L24: =ROUND(F24*J24,0) -> 2715 | N24: =ROUND((L24/L$43)*100,1) -> 0.2 | R24: =L24+P24 -> 2715
A25: 5 | C25: THREE PHASE | F25: 562 | J25: =INPUT!D87 -> 30 | L25: =ROUND(F25*J25,0) -> 16860 | N25: =ROUND((L25/L$43)*100,1) -> 1 | R25: =L25+P25 -> 16860
A26: 6 | C26: PRIMARY VOLTAGE | F26: 0 | J26: =INPUT!D88 -> 117 | L26: =ROUND(F26*J26,0) -> 0 | N26: =ROUND((L26/L$43)*100,1) -> 0 | R26: =L26+P26 -> 0
A27: 7 | C27: TOTAL CUSTOMER CHARGE | F27: =SUM(F24:F26) -> 743 | L27: =SUM(L24:L26) -> 19575 | N27: =ROUND((L27/L$43)*100,1) -> 1.2 | R27: =SUM(R24:R26) -> 19575
A29: 8 | C29: DEMAND CHARGE:
A30: 9
A32: 10 | C32: ENERGY CHARGE (3):
A33: 11 | C33: ALL KWH | H33: 17406492.09 | J33: =INPUT!D90 -> 0.083966 | L33: =ROUND((H33*J33),0) -> 1461554 | N33: =ROUND((L33/L$43)*100,1) -> 89.9 | R33: =L33+P33 -> 1461554
A34: 12 | C34: TOTAL RATE EH EXCLUDING RIDERS | F34: =F27 -> 743 | H34: =H33 -> 17406492.09 | L34: =L27+L30+L33 -> 1481129 | N34: =ROUND((L34/L$43)*100,1) -> 91.1 | R34: =R33+R30+R27 -> 1481129
A36: 13 | C36: RIDERS:
A37: 14 | C37: =DSMR_Name -> DEMAND SIDE MANAGEMENT RIDER (DSMR) | J37: =PRO_DSM_DIST -> -0.000718 | L37: =ROUND($H$34*J37,0) -> -12498 | N37: =ROUND((L37/L$43)*100,1) -> -0.8 | R37: =L37+P37 -> -12498
A38: 15 | C38: =ESM_Name -> ENVIRONMENTAL SURCHARGE MECHANISM RIDER (ESM) | L38: =AE86 -> 75048 | N38: =ROUND((L38/L$43)*100,1) -> 4.6 | R38: 75048
A39: 16 | C39: =FAC_Name -> FUEL ADJUSTMENT CLAUSE (FAC) | J39: =PRO_FAC -> 0.005965 | N39: =ROUND((L39/L$43)*100,1) -> 0 | P39: =ROUND(H34*PRO_FAC,0) -> 103830 | R39: 103830
A40: 17 | C40: =PSM_Name -> PROFIT SHARING MECHANISM (PSM) | J40: =PRO_PSM -> 0.004727 | L40: =ROUND(H34*PRO_PSM,0) -> 82280 | N40: =ROUND((L40/L$43)*100,1) -> 5.1 | R40: 82280
A41: 18 | C41: TOTAL RIDERS | L41: =SUM(L37:L40) -> 144830 | N41: =ROUND((L41/L$43)*100,1) -> 8.9 | P41: =SUM(P37:P40) -> 103830 | R41: =SUM(R37:R40) -> 248660
A43: 19 | C43: TOTAL RATE EH INCLUDING RIDERS | F43: =F34 -> 743 | H43: =H34 -> 17406492.09 | L43: =L34+L41 -> 1625959 | N43: 100 | P43: =P41+P34 -> 103830 | R43: =R41+R34 -> 1729789
C45: (1) BILLS THAT TERMINATE IN RESPECTIVE RATE STEPS.
C46: ="(2) REFLECTS FUEL COMPONENT OF "&TEXT(PRO_FAC,"$0.000000;($0.000000)")&" PER KWH." -> (2) REFLECTS FUEL COMPONENT OF $0.005965 PER KWH.
C47: ="(3) REFLECTS FUEL COST RECOVERY INCLUDED IN BASE RATES OF "&TEXT(PRO_BASE_FUEL,"$0.000000;($0.000000)")&" PER KWH." -> (3) REFLECTS FUEL COST RECOVERY INCLUDED IN BASE RATES OF $0.025401 PER KWH.
T49: =NAME -> DUKE ENERGY KENTUCKY, INC.
T50: =CASE_NO -> CASE NO. 2022-00372
T51: =TITLE -> ANNUALIZED BASE YEAR REVENUES AT PROPOSED VS. MOST CURRENT RATES
T52: =DATE -> FOR THE TWELVE MONTHS ENDED February 28, 2023
T53: =SERVICE -> (ELECTRIC SERVICE)
T54: =DATA_PERIOD -> DATA: __X__ BASE PERIOD ____FORECASTED PERIOD | AO54: SCHEDULE M-2.2
T55: =TYPE -> TYPE OF FILING: _X_ ORIGINAL ___UPDATED ___ REVISED | AO55: ="PAGE 6 OF "&TEXT(Page_Num_2.2,"00") -> PAGE 6 OF 23
T56: WORK PAPER REFERENCE NO(S).: | AO56: WITNESS:
T57: =TIME -> 6 Months Actual and 6 Months Projected with Riders | AO57: =WIT -> B. L. SAILERS
T58: =INPUT!B5 -> 6 Months Actual Ending August 31, 2022
T59: CURRENT ANNUALIZED
AE61: CURRENT | AG61: % OF REV TO | AI61: REVENUE | AK61: % INCR IN | AO61: CURRENT | AQ61: TOTAL
AC62: MOST | AE62: REVENUE LESS | AG62: TOTAL LESS | AI62: INCR LESS | AK62: REV LESS | AO62: TOTAL | AQ62: REVENUE
T63: LINE | V63: RATE | W63: CLASS / | Y63: CUSTOMER | AC63: CURRENT | AE63: FUEL COST | AG63: FUEL COST | AI63: FUEL COST REV | AK63: FUEL COST REV | AM63: FUEL COST | AO63: REVENUE | AQ63: % INCREASE
T64: NO. | V64: CODE | W64: DESCRIPTION | Y64: BILLS(1) | AA64: SALES | AC64: RATES | AE64: REVENUE | AG64: REVENUE | AI64: (F - K) | AK64: (M / K) | AM64: REVENUE (2) | AO64: (K + H) | AQ64: (M / K1)
V65: (A) | W65: (B) | Y65: (C) | AA65: (D) | AC65: (J) | AE65: (K) | AG65: (L) | AI65: (M) | AK65: (N) | AM65: (H) | AO65: (K1) | AQ65: (O)
AA67: (KW/KWH) | AC67: ($/KWH)/ | AE67: ($) | AG67: (%) | AI67: ($) | AK67: (%) | AM67: ($) | AO67: ($) | AQ67: (%)
T68: 1 | V68: EH | W68: OPTIONAL RATE FOR | AC68: ($/KW)
T69: 2 | W69: ELEC. SPACE HEATING
T71: 3 | V71: CUSTOMER CHARGE:
T72: 4 | V72: SINGLE PHASE | Y72: =F24 -> 181 | AC72: =INPUT!C86 -> 15 | AE72: =ROUND(Y72*AC72,0) -> 2715 | AG72: =ROUND((AE72/AE$91)*100,1) -> 0.2 | AI72: =L24-AE72 -> 0 | AK72: =IF(AE72=0,"0.0 ",ROUND((AI72/AE72)*100,1)) -> 0 | AO72: =AE72+AM72 -> 2715 | AQ72: =IF(AO72=0,"0.0 ",ROUND((AI72/AO72)*100,1)) -> 0
T73: 5 | V73: THREE PHASE | Y73: =F25 -> 562 | AC73: =INPUT!C87 -> 30 | AE73: =ROUND(Y73*AC73,0) -> 16860 | AG73: =ROUND((AE73/AE$91)*100,1) -> 1.2 | AI73: =L25-AE73 -> 0 | AK73: =IF(AE73=0,"0.0 ",ROUND((AI73/AE73)*100,1)) -> 0 | AO73: =AE73+AM73 -> 16860 | AQ73: =IF(AO73=0,"0.0 ",ROUND((AI73/AO73)*100,1)) -> 0
T74: 6 | V74: PRIMARY VOLTAGE | Y74: =F26 -> 0 | AC74: =INPUT!C88 -> 117 | AE74: =ROUND(Y74*AC74,0) -> 0 | AG74: =ROUND((AE74/AE$91)*100,1) -> 0 | AI74: =L26-AE74 -> 0 | AK74: =IF(AE74=0,"0.0 ",ROUND((AI74/AE74)*100,1)) -> 0.0 | AO74: =AE74+AM74 -> 0 | AQ74: =IF(AO74=0,"0.0 ",ROUND((AI74/AO74)*100,1)) -> 0.0
T75: 7 | V75: TOTAL CUSTOMER CHARGE | Y75: =F27 -> 743 | AE75: =SUM(AE72:AE74) -> 19575 | AG75: =ROUND((AE75/AE$91)*100,1) -> 1.4 | AI75: =SUM(AI72:AI74) -> 0 | AK75: =IF(AE75=0,"0.0 ",ROUND((AI75/AE75)*100,1)) -> 0 | AO75: =SUM(AO72:AO74) -> 19575 | AQ75: =IF(AO75=0,"0.0 ",ROUND((AI75/AO75)*100,1)) -> 0
T77: 8 | V77: DEMAND CHARGE:
T78: 9 | V78: ALL KW | AA78: =H30 -> 0 | AC78: =INPUT!C92 -> 0 | AE78: =ROUND(Y78*AC78,0) -> 0 | AG78: =ROUND((AE78/AE$91)*100,1) -> 0 | AI78: =L30-AE78 -> 0 | AK78: =IF(AE78=0,"0.0 ",ROUND((AI78/AE78)*100,1)) -> 0.0 | AO78: =AE78+AM78 -> 0 | AQ78: =IF(AO78=0,"0.0 ",ROUND((AI78/AO78)*100,1)) -> 0.0
T80: 10 | V80: ENERGY CHARGE (3):
T81: 11 | V81: ALL CONSUMPTION | AA81: =H33 -> 17406492.09 | AC81: =INPUT!C90 -> 0.069268 | AE81: =ROUND((AA81*AC81),0) -> 1205713 | AG81: =ROUND((AE81/AE$91)*100,1) -> 88 | AI81: =L33-AE81 -> 255841 | AK81: =IF(AE81=0,"0.0 ",ROUND((AI81/AE81)*100,1)) -> 21.2 | AO81: =AE81+AM81 -> 1205713 | AQ81: =IF(AO81=0,"0.0 ",ROUND((AI81/AO81)*100,1)) -> 21.2
T82: 12 | V82: TOTAL RATE EH EXCLUDING RIDERS | Y82: =Y75 -> 743 | AA82: =AA81 -> 17406492.09 | AE82: =AE75+AE78+AE81 -> 1225288 | AG82: =ROUND((AE82/AE$91)*100,1) -> 89.4 | AI82: =AI75+AI78+AI81 -> 255841 | AK82: =IF(AE82=0,"0.0 ",ROUND((AI82/AE82)*100,1)) -> 20.9 | AO82: =AO75+AO78+AO81 -> 1225288 | AQ82: =IF(AO82=0,"0.0 ",ROUND((AI82/AO82)*100,1)) -> 20.9
T84: =A36 -> 13 | V84: RIDERS:
T85: 14 | V85: =C37 -> DEMAND SIDE MANAGEMENT RIDER (DSMR) | AC85: =DSM_DIST -> -0.000718 | AE85: =ROUND($AA$82*AC85,0) -> -12498 | AG85: =ROUND((AE85/AE$91)*100,1) -> -0.9 | AI85: =L37-AE85 -> 0 | AK85: =IF(AE85=0,"0.0 ",ROUND((AI85/AE85)*100,1)) -> 0 | AO85: =AE85+AM85 -> -12498 | AQ85: =IF(AO85=0,"0.0 ",ROUND((AI85/AO85)*100,1)) -> 0
T86: 15 | V86: =C38 -> ENVIRONMENTAL SURCHARGE MECHANISM RIDER (ESM) | AC86: =CUR_ESM_NONRES -> 0.08798914629 | AE86: =ROUND((AO82-(CUR_BASE_FUEL*AA82)+AO85+AO88)*AC86,0) -> 75048 | AG86: =ROUND((AE86/AE$91)*100,1) -> 5.5 | AI86: =L38-AE86 -> 0 | AK86: 0 | AO86: =AE86+AM86 -> 75048 | AQ86: =IF(AO86=0,"0.0 ",ROUND((AI86/AO86)*100,1)) -> 0
T87: 16 | V87: =C39 -> FUEL ADJUSTMENT CLAUSE (FAC) | AC87: =CUR_FAC -> 0.005965 | AM87: =ROUND(AA82*CUR_FAC,0) -> 103830 | AO87: 103830 | AQ87: =IF(AO87=0,"0.0 ",ROUND(((R39-AO87)/AO87)*100,1)) -> 0
T88: 17 | V88: =C40 -> PROFIT SHARING MECHANISM (PSM) | AC88: =RS_PSM -> 0.004727 | AE88: =ROUND(AA82*RS_PSM,0) -> 82280 | AG88: =ROUND((AE88/AE$91)*100,1) -> 6 | AI88: =L40-AE88 -> 0 | AK88: 0 | AO88: 82280 | AQ88: 0
T89: 18 | V89: TOTAL RIDERS | AE89: =SUM(AE85:AE88) -> 144830 | AG89: =ROUND((AE89/AE$91)*100,1) -> 10.6 | AI89: =SUM(AI85:AI88) -> 0 | AK89: 0 | AM89: =SUM(AM85:AM88) -> 103830 | AO89: =SUM(AO85:AO88) -> 248660 | AQ89: 0
T91: =A43 -> 19 | V91: TOTAL RATE EH INCLUDING RIDERS | Y91: =Y82 -> 743 | AA91: =AA82 -> 17406492.09 | AE91: =AE89+AE82 -> 1370118 | AG91: 100 | AI91: =AI89+AI82 -> 255841 | AK91: =IF(AE91=0,"0.0 ",ROUND((AI91/AE91)*100,1)) -> 18.7 | AM91: =AM89+AM82 -> 103830 | AO91: =AO89+AO82 -> 1473948 | AQ91: =IF(AO91=0,"0.0 ",ROUND((AI91/AO91)*100,1)) -> 17.4
V93: (1) BILLS THAT TERMINATE IN RESPECTIVE RATE STEPS.
V94: ="(2) REFLECTS FUEL COMPONENT OF "&TEXT(CUR_FAC,"$0.000000;($0.000000)")&" PER KWH." -> (2) REFLECTS FUEL COMPONENT OF $0.005965 PER KWH.
V95: ="(3) REFLECTS FUEL COST RECOVERY INCLUDED IN BASE RATES OF "&TEXT(CUR_BASE_FUEL,"$0.000000;($0.000000)")&" PER KWH." -> (3) REFLECTS FUEL COST RECOVERY INCLUDED IN BASE RATES OF $0.025401 PER KWH.

Sheet Rate SP GSFL
A1: =NAME -> DUKE ENERGY KENTUCKY, INC.
A2: =CASE_NO -> CASE NO. 2022-00372
A3: =TITLE -> ANNUALIZED BASE YEAR REVENUES AT PROPOSED VS. MOST CURRENT RATES
A4: =DATE -> FOR THE TWELVE MONTHS ENDED February 28, 2023
A5: =SERVICE -> (ELECTRIC SERVICE)
A6: =DATA_PERIOD -> DATA: __X__ BASE PERIOD ____FORECASTED PERIOD | R6: SCHEDULE M-2.3
A7: =TYPE -> TYPE OF FILING: _X_ ORIGINAL ___UPDATED ___ REVISED | R7: ="PAGE 7 OF "&TEXT(Page_Num_2.3,"00") -> PAGE 7 OF 24
A8: WORK PAPER REFERENCE NO(S).: | R8: WITNESS:
A9: =TIME -> 6 Months Actual and 6 Months Projected with Riders | R9: =WIT -> B. L. SAILERS
A10: =INPUT!B5 -> 6 Months Actual Ending August 31, 2022
A11: PROPOSED ANNUALIZED
L13: PROPOSED | N13: % OF REV TO | R13: PROPOSED
L14: REVENUE LESS | N14: TOTAL LESS | R14: TOTAL
A15: LINE | C15: RATE | D15: CLASS / | F15: CUSTOMER | J15: PROPOSED | L15: FUEL COST | N15: FUEL COST | P15: FUEL COST | R15: REVENUE
A16: NO. | C16: CODE | D16: DESCRIPTION | F16: BILLS(1) | H16: SALES | J16: RATES | L16: REVENUE | N16: REVENUE | P16: REVENUE (2) | R16: (F + H)
C17: (A) | D17: (B) | F17: (C) | H17: (D) | J17: (E) | L17: (F) | N17: (G) | P17: (H) | R17: (I)
H19: (KWH) | J19: ($/KWH) | L19: ($) | N19: (%) | P19: ($) | R19: ($)
A21: 1 | C21: SP | D21: SEASONAL SPORTS SERVICE
A23: 2 | C23: MINIMUM BILLS (4) | F23: 0 | L23: 0 | N23: =ROUND((L23/L$38)*100,1) -> 0 | R23: =L23+P23 -> 0
A25: 3 | C25: CUSTOMER CHARGE | F25: 156 | J25: =INPUT!D96 -> 15 | L25: =ROUND(F25*J25,0) -> 2340 | N25: =ROUND((L25/L$38)*100,1) -> 9.2 | R25: =L25+P25 -> 2340
A27: 4 | C27: ENERGY CHARGE (3):
A28: 5 | C28: ALL CONSUMPTION | H28: 158164 | J28: =INPUT!D98 -> 0.132982 | L28: =ROUND((H28*(J28)),0) -> 21033 | N28: =ROUND((L28/L$38)*100,1) -> 82.7 | R28: =L28+P28 -> 21033
A29: 6 | C29: TOTAL RATE SP EXCLUDING RIDERS | F29: =F25 -> 156 | H29: =H28 -> 158164 | L29: =L23+L25+L28 -> 23373 | N29: =ROUND((L29/L$38)*100,1) -> 92 | R29: =R23+R25+R28 -> 23373
A31: 7 | C31: RIDERS:
A32: 8 | C32: =DSMR_Name -> DEMAND SIDE MANAGEMENT RIDER (DSMR) | J32: =PRO_DSM_DIST -> -0.000718 | L32: =ROUND($H$29*J32,0) -> -114 | N32: =ROUND((L32/L$38)*100,1) -> -0.4 | R32: =L32+P32 -> -114
A33: 9 | C33: =ESM_Name -> ENVIRONMENTAL SURCHARGE MECHANISM RIDER (ESM) | L33: =AE96 -> 1411 | N33: =ROUND((L33/L$38)*100,1) -> 5.6 | R33: =L33+P33 -> 1411
A34: 10 | C34: =FAC_Name -> FUEL ADJUSTMENT CLAUSE (FAC) | J34: =PRO_FAC -> 0.005965 | P34: =ROUND(H29*PRO_FAC,0) -> 943 | R34: 943
A35: 11 | C35: =PSM_Name -> PROFIT SHARING MECHANISM (PSM) | J35: =PRO_PSM -> 0.004727 | L35: =ROUND(H29*PRO_PSM,0) -> 748 | N35: =ROUND((L35/L$38)*100,1) -> 2.9 | R35: 748
A36: 12 | C36: TOTAL RIDERS | L36: =SUM(L32:L35) -> 2045 | N36: =ROUND((L36/L$38)*100,1) -> 8 | P36: =SUM(P32:P35) -> 943 | R36: =SUM(R32:R35) -> 2988
A38: 13 | C38: TOTAL RATE SP INCLUDING RIDERS | F38: =F23+F25 -> 156 | H38: =H28 -> 158164 | L38: =L29+L36 -> 25418 | N38: 100 | P38: =P36+P29 -> 943 | R38: =R29+R36 -> 26361
A41: 14 | C41: GS-FL | D41: SMALL FIXED LOADS
A43: 15 | C43: MINIMUM BILLS | F43: 1500 | J43: =INPUT!D104 -> 3.9 | L43: =ROUND(F43*J43,0) -> 5850 | N43: =ROUND((L43/L$57)*100,1) -> 0.7 | R43: =L43+P43 -> 5850
A45: 16 | C45: BASE RATE (3):
A46: 17 | C46: LOAD RANGE 540 TO 720 HRS | H46: 12420 | J46: =INPUT!D106 -> 0.110107 | L46: =ROUND((H46*J46),0) -> 1368 | N46: =ROUND((L46/L$57)*100,1) -> 0.2 | R46: =L46+P46 -> 1368
A47: 18 | C47: LOAD RANGE LESS THAN 540 HRS | H47: 6331684.066 | J47: =INPUT!D107 -> 0.126535 | L47: =ROUND((H47*J47),0) -> 801180 | N47: =ROUND((L47/L$57)*100,1) -> 91 | R47: =L47+P47 -> 801180
A48: 19 | C48: TOTAL RATE GS-FL EXCLUDING RIDERS | F48: =SUM(F43:F47) -> 1500 | H48: =SUM(H46:H47) -> 6344104.066 | L48: =SUM(L43:L47) -> 808398 | N48: =ROUND((L48/L$57)*100,1) -> 91.8 | R48: =SUM(R43:R47) -> 808398
A50: 20 | C50: RIDERS:
A51: 21 | C51: =DSMR_Name -> DEMAND SIDE MANAGEMENT RIDER (DSMR) | J51: =PRO_DSM_DIST -> -0.000718 | L51: =ROUND($H$48*J51,0) -> -4555 | N51: =ROUND((L51/L$57)*100,1) -> -0.5 | R51: =L51+P51 -> -4555
A52: 22 | C52: =ESM_Name -> ENVIRONMENTAL SURCHARGE MECHANISM RIDER (ESM) | L52: =AE115 -> 46914 | N52: =ROUND((L52/L$57)*100,1) -> 5.3 | R52: =L52+P52 -> 46914
A53: 23 | C53: =FAC_Name -> FUEL ADJUSTMENT CLAUSE (FAC) | J53: =PRO_FAC -> 0.005965 | P53: =ROUND(H48*PRO_FAC,0) -> 37843 | R53: 37843
A54: 24 | C54: =PSM_Name -> PROFIT SHARING MECHANISM (PSM) | J54: =PRO_PSM -> 0.004727 | L54: =ROUND($H$48*J54,0) -> 29989 | N54: =ROUND((L54/L$57)*100,1) -> 3.4 | R54: 29989
A55: 25 | C55: TOTAL RIDERS | L55: =SUM(L51:L54) -> 72348 | N55: =ROUND((L55/L$57)*100,1) -> 8.2 | P55: =SUM(P51:P54) -> 37843 | R55: =SUM(R51:R54) -> 110191
A57: 26 | C57: TOTAL RATE GS-FL INCLUDING RIDERS | F57: =SUM(F43:F47) -> 1500 | H57: =SUM(H43:H47) -> 6344104.066 | L57: =L48+L55 -> 880746 | N57: 100 | P57: =P48+P55 -> 37843 | R57: =R48+R55 -> 918589
C59: (1) BILLS THAT TERMINATE IN RESPECTIVE RATE STEPS.
C60: ="(2) REFLECTS FUEL COMPONENT OF "&TEXT(PRO_FAC,"$0.000000;($0.000000)")&" PER KWH." -> (2) REFLECTS FUEL COMPONENT OF $0.005965 PER KWH.
C61: ="(3) REFLECTS FUEL COST RECOVERY INCLUDED IN BASE RATES OF "&TEXT(PRO_BASE_FUEL,"$0.000000;($0.000000)")&" PER KWH." -> (3) REFLECTS FUEL COST RECOVERY INCLUDED IN BASE RATES OF $0.025401 PER KWH.
C62: (4) 1.5% OF INSTALLED TRANSFORMER AMD METERING COSTS BUT NOT LESS THAN CUSTOMER CHARGE WHETHER SERVICE IS ON OR DISCONNECTED.
T65: =NAME -> DUKE ENERGY KENTUCKY, INC.
T66: =CASE_NO -> CASE NO. 2022-00372
T67: =TITLE -> ANNUALIZED BASE YEAR REVENUES AT PROPOSED VS. MOST CURRENT RATES
T68: =DATE -> FOR THE TWELVE MONTHS ENDED February 28, 2023
T69: =SERVICE -> (ELECTRIC SERVICE)
T70: =DATA_PERIOD -> DATA: __X__ BASE PERIOD ____FORECASTED PERIOD | AO70: SCHEDULE M-2.2
T71: =TYPE -> TYPE OF FILING: _X_ ORIGINAL ___UPDATED ___ REVISED | AO71: ="PAGE 7 OF "&TEXT(Page_Num_2.2,"00") -> PAGE 7 OF 23
T72: WORK PAPER REFERENCE NO(S).: | AO72: WITNESS:
T73: =TIME -> 6 Months Actual and 6 Months Projected with Riders | AO73: =WIT -> B. L. SAILERS
T74: =INPUT!B5 -> 6 Months Actual Ending August 31, 2022
T75: CURRENT ANNUALIZED
AE77: CURRENT | AG77: % OF REV TO | AI77: REVENUE | AK77: % INCR IN | AO77: CURRENT | AQ77: TOTAL
AC78: MOST | AE78: REVENUE LESS | AG78: TOTAL LESS | AI78: INCR LESS | AK78: REV LESS | AO78: TOTAL | AQ78: REVENUE
T79: LINE | V79: RATE | W79: CLASS / | Y79: CUSTOMER | AC79: CURRENT | AE79: FUEL COST | AG79: FUEL COST | AI79: FUEL COST REV | AK79: FUEL COST REV | AM79: FUEL COST | AO79: REVENUE | AQ79: % INCREASE
T80: NO. | V80: CODE | W80: DESCRIPTION | Y80: BILLS(1) | AA80: SALES | AC80: RATES | AE80: REVENUE | AG80: REVENUE | AI80: (F - K) | AK80: (M / K) | AM80: REVENUE (2) | AO80: (K + H) | AQ80: (M / K1)
V81: (A) | W81: (B) | Y81: (C) | AA81: (D) | AC81: (J) | AE81: (K) | AG81: (L) | AI81: (M) | AK81: (N) | AM81: (H) | AO81: (K1) | AQ81: (O)
AA83: (KWH) | AC83: ($/KWH) | AE83: ($) | AG83: (%) | AI83: ($) | AK83: (%) | AM83: ($) | AO83: ($) | AQ83: (%)
T84: 1 | V84: SP | W84: SEASONAL SPORTS SERVICE
T86: 2 | V86: MINIMUM BILLS (4) | Y86: =F23 -> 0 | AE86: =L23 -> 0 | AG86: =ROUND((AE86/AE$101)*100,1) -> 0 | AI86: =L23-AE86 -> 0 | AK86: 0 | AO86: =AE86+AM86 -> 0 | AQ86: =IF(AO86=0,"0.0 ",ROUND((AI86/AO86)*100,1)) -> 0.0
T88: 3 | V88: CUSTOMER CHARGE | Y88: =F25 -> 156 | AC88: =INPUT!C96 -> 15 | AE88: =ROUND(Y88*AC88,0) -> 2340 | AG88: =ROUND((AE88/AE$101)*100,1) -> 10.9 | AI88: =L25-AE88 -> 0 | AK88: =ROUND((AI88/AE88)*100,1) -> 0 | AO88: =AE88+AM88 -> 2340 | AQ88: =IF(AO88=0,"0.0 ",ROUND((AI88/AO88)*100,1)) -> 0
T90: 4 | V90: ENERGY CHARGE (3):
T91: 5 | V91: ALL CONSUMPTION | AA91: =H28 -> 158164 | AC91: =INPUT!C98 -> 0.107965 | AE91: =ROUND((AA91*AC91),0) -> 17076 | AG91: =ROUND((AE91/AE$101)*100,1) -> 79.6 | AI91: =L28-AE91 -> 3957 | AK91: =ROUND((AI91/AE91)*100,1) -> 23.2 | AO91: =AE91+AM91 -> 17076 | AQ91: =IF(AO91=0,"0.0 ",ROUND((AI91/AO91)*100,1)) -> 23.2
T92: 6 | V92: TOTAL RATE SP EXCLUDING RIDERS | Y92: =Y88 -> 156 | AA92: =AA91 -> 158164 | AE92: =SUM(AE86:AE91) -> 19416 | AG92: =ROUND((AE92/AE$101)*100,1) -> 90.5 | AI92: =SUM(AI86:AI91) -> 3957 | AK92: =ROUND((AI92/AE92)*100,1) -> 20.4 | AO92: =SUM(AO86:AO91) -> 19416 | AQ92: =IF(AO92=0,"0.0 ",ROUND((AI92/AO92)*100,1)) -> 20.4
T94: 7 | V94: RIDERS:
T95: =A32 -> 8 | V95: =C32 -> DEMAND SIDE MANAGEMENT RIDER (DSMR) | AC95: =DSM_DIST -> -0.000718 | AE95: =ROUND(AA92*AC95,0) -> -114 | AG95: =ROUND((AE95/AE$101)*100,1) -> -0.5 | AI95: =L32-AE95 -> 0 | AK95: =ROUND((AI95/AE95)*100,1) -> 0 | AO95: =AE95+AM95 -> -114 | AQ95: =IF(AO95=0,"0.0 ",ROUND((AI95/AO95)*100,1)) -> 0
T96: =A33 -> 9 | V96: =C33 -> ENVIRONMENTAL SURCHARGE MECHANISM RIDER (ESM) | AC96: =CUR_ESM_NONRES -> 0.08798914629 | AE96: =ROUND((AO92-(CUR_BASE_FUEL*AA92)+AO95+AO98)*AC96,0) -> 1411 | AG96: =ROUND((AE96/AE$101)*100,1) -> 6.6 | AI96: =L33-AE96 -> 0 | AK96: =IF(AE96=0,0,ROUND((AI96/AE96)*100,1)) -> 0 | AO96: =AE96+AM96 -> 1411 | AQ96: =IF(AO96=0,"0.0 ",ROUND((AI96/AO96)*100,1)) -> 0
T97: =A34 -> 10 | V97: =C34 -> FUEL ADJUSTMENT CLAUSE (FAC) | AC97: =CUR_FAC -> 0.005965 | AM97: =ROUND(AA92*CUR_FAC,0) -> 943 | AO97: 943 | AQ97: =IF(AO97=0,0,ROUND(((R34-AO97)/AO97)*100,1)) -> 0
T98: =A35 -> 11 | V98: =C35 -> PROFIT SHARING MECHANISM (PSM) | AC98: =RS_PSM -> 0.004727 | AE98: =ROUND(AA92*AC98,0) -> 748 | AG98: =ROUND((AE98/AE$101)*100,1) -> 3.5 | AI98: =L35-AE98 -> 0 | AK98: 0 | AO98: 748 | AQ98: 0
T99: =A36 -> 12 | V99: TOTAL RIDERS | AE99: =SUM(AE95:AE98) -> 2045 | AG99: =ROUND((AE99/AE$101)*100,1) -> 9.5 | AI99: =SUM(AI95:AI98) -> 0 | AK99: =ROUND((AI99/AE99)*100,1) -> 0 | AM99: =SUM(AM95:AM98) -> 943 | AO99: =SUM(AO95:AO98) -> 2988 | AQ99: 0
T101: =A38 -> 13 | V101: TOTAL RATE SP INCLUDING RIDERS | Y101: =F38 -> 156 | AA101: =H38 -> 158164 | AE101: =AE92+AE99 -> 21461 | AG101: 100 | AI101: =AI92+AI99 -> 3957 | AK101: =ROUND((AI101/AE101)*100,1) -> 18.4 | AM101: =AM99+AM92 -> 943 | AO101: =AO99+AO92 -> 22404 | AQ101: =IF(AO101=0,"0.0 ",ROUND((AI101/AO101)*100,1)) -> 17.7
T104: =A41 -> 14 | V104: GS-FL | W104: SMALL FIXED LOADS
T106: =A43 -> 15 | V106: MINIMUM BILLS | Y106: =F43 -> 1500 | AC106: =INPUT!C104 -> 3.23 | AE106: =ROUND(Y106*AC106,0) -> 4845 | AG106: =ROUND((AE106/AE$120)*100,1) -> 0.7 | AI106: =L43-AE106 -> 1005 | AK106: =IF(AE106=0,"0.0 ",ROUND((AI106/AE106)*100,1)) -> 20.7 | AO106: =AE106+AM106 -> 4845 | AQ106: =IF(AO106=0,"0.0 ",ROUND((AI106/AO106)*100,1)) -> 20.7
T108: =A45 -> 16 | V108: BASE RATE (3):
T109: =A46 -> 17 | V109: LOAD RANGE 540 TO 720 HRS | Y109: =F46 -> 0 | AA109: =H46 -> 12420 | AC109: =INPUT!C106 -> 0.091069 | AE109: =ROUND((AA109*AC109),0) -> 1131 | AG109: =ROUND((AE109/AE$120)*100,1) -> 0.2 | AI109: =L46-AE109 -> 237 | AK109: =IF(AE109=0,"0.0 ",ROUND((AI109/AE109)*100,1)) -> 21 | AO109: =AE109+AM109 -> 1131 | AQ109: =IF(AO109=0,"0.0 ",ROUND((AI109/AO109)*100,1)) -> 21
T110: =A47 -> 18 | V110: LOAD RANGE LESS THAN 540 HRS | Y110: =F47 -> 0 | AA110: =H47 -> 6331684.066 | AC110: =INPUT!C107 -> 0.104699 | AE110: =ROUND((AA110*AC110),0) -> 662921 | AG110: =ROUND((AE110/AE$120)*100,1) -> 89.4 | AI110: =L47-AE110 -> 138259 | AK110: =IF(AE110=0,"0.0 ",ROUND((AI110/AE110)*100,1)) -> 20.9 | AO110: =AE110+AM110 -> 662921 | AQ110: =IF(AO110=0,"0.0 ",ROUND((AI110/AO110)*100,1)) -> 20.9
T111: =A48 -> 19 | V111: TOTAL RATE GS-FL EXCLUDING RIDERS | Y111: =SUM(Y106:Y110) -> 1500 | AA111: =SUM(AA106:AA110) -> 6344104.066 | AE111: =SUM(AE106:AE110) -> 668897 | AG111: =ROUND((AE111/AE$120)*100,1) -> 90.2 | AI111: =SUM(AI106:AI110) -> 139501 | AK111: =IF(AE111=0,"0.0 ",ROUND((AI111/AE111)*100,1)) -> 20.9 | AO111: =SUM(AO106:AO110) -> 668897 | AQ111: =IF(AO111=0,"0.0 ",ROUND((AI111/AO111)*100,1)) -> 20.9
T113: =A50 -> 20 | V113: RIDERS:
T114: 21 | V114: =C51 -> DEMAND SIDE MANAGEMENT RIDER (DSMR) | AC114: =DSM_DIST -> -0.000718 | AE114: =ROUND($AA$111*AC114,0) -> -4555 | AG114: =ROUND((AE114/AE$120)*100,1) -> -0.6 | AI114: =L51-AE114 -> 0 | AK114: =IF(AE114=0,"0.0 ",ROUND((AI114/AE114)*100,1)) -> 0 | AO114: =AE114+AM114 -> -4555 | AQ114: =IF(AO114=0,"0.0 ",ROUND((AI114/AO114)*100,1)) -> 0
T115: 22 | V115: =C52 -> ENVIRONMENTAL SURCHARGE MECHANISM RIDER (ESM) | AC115: =CUR_ESM_NONRES -> 0.08798914629 | AE115: =ROUND((AO111-(CUR_BASE_FUEL*AA111)+AO114+AO117)*AC115,0) -> 46914 | AG115: =ROUND((AE115/AE$120)*100,1) -> 6.3 | AI115: =L52-AE115 -> 0 | AK115: =IF(AE115=0,"0.0 ",ROUND((AI115/AE115)*100,1)) -> 0 | AO115: =AE115+AM115 -> 46914 | AQ115: =IF(AO115=0,"0.0 ",ROUND((AI115/AO115)*100,1)) -> 0
T116: 23 | V116: =C53 -> FUEL ADJUSTMENT CLAUSE (FAC) | AC116: =CUR_FAC -> 0.005965 | AM116: =ROUND(AA111*CUR_FAC,0) -> 37843 | AO116: 37843 | AQ116: =IF(AO116=0,0,ROUND(((R53-AO116)/AO116)*100,1)) -> 0
T117: 24 | V117: =C54 -> PROFIT SHARING MECHANISM (PSM) | AC117: =RS_PSM -> 0.004727 | AE117: =ROUND(AA111*RS_PSM,0) -> 29989 | AG117: =ROUND((AE117/AE$120)*100,1) -> 4 | AI117: =L54-AE117 -> 0 | AK117: 0 | AO117: 29989 | AQ117: 0
T118: 25 | V118: TOTAL RIDERS | AE118: =SUM(AE114:AE117) -> 72348 | AG118: =ROUND((AE118/AE$120)*100,1) -> 9.8 | AI118: =SUM(AI114:AI117) -> 0 | AK118: =IF(AE118=0,"0.0 ",ROUND((AI118/AE118)*100,1)) -> 0 | AM118: =SUM(AM114:AM117) -> 37843 | AO118: =SUM(AO114:AO117) -> 110191 | AQ118: 0
T120: =A57 -> 26 | V120: TOTAL RATE GS-FL INCLUDING RIDERS | Y120: =F57 -> 1500 | AA120: =H57 -> 6344104.066 | AE120: =AE111+AE118 -> 741245 | AG120: 100 | AI120: =AI111+AI118 -> 139501 | AK120: =IF(AE120=0,"0.0 ",ROUND((AI120/AE120)*100,1)) -> 18.8 | AM120: =AM111+AM118 -> 37843 | AO120: =AO111+AO118 -> 779088 | AQ120: =IF(AO120=0,"0.0 ",ROUND((AI120/AO120)*100,1)) -> 17.9
V122: (1) BILLS THAT TERMINATE IN RESPECTIVE RATE STEPS.
V123: ="(2) REFLECTS FUEL COMPONENT OF "&TEXT(CUR_FAC,"$0.000000;($0.000000)")&" PER KWH." -> (2) REFLECTS FUEL COMPONENT OF $0.005965 PER KWH.
V124: ="(3) REFLECTS FUEL COST RECOVERY INCLUDED IN BASE RATES OF "&TEXT(CUR_BASE_FUEL,"$0.000000;($0.000000)")&" PER KWH." -> (3) REFLECTS FUEL COST RECOVERY INCLUDED IN BASE RATES OF $0.025401 PER KWH.
V125: (4) 1.5% OF INSTALLED TRANSFORMER AMD METERING COSTS BUT NOT LESS THAN CUSTOMER CHARGE WHETHER SERVICE IS ON OR DISCONNECTED.

Sheet Rate DP
A1: =NAME -> DUKE ENERGY KENTUCKY, INC.
A2: =CASE_NO -> CASE NO. 2022-00372
A3: =TITLE -> ANNUALIZED BASE YEAR REVENUES AT PROPOSED VS. MOST CURRENT RATES
A4: =DATE -> FOR THE TWELVE MONTHS ENDED February 28, 2023
A5: =SERVICE -> (ELECTRIC SERVICE)
A6: =DATA_PERIOD -> DATA: __X__ BASE PERIOD ____FORECASTED PERIOD | R6: SCHEDULE M-2.3
A7: =TYPE -> TYPE OF FILING: _X_ ORIGINAL ___UPDATED ___ REVISED | R7: ="PAGE 8 OF "&TEXT(Page_Num_2.3,"00") -> PAGE 8 OF 24
A8: WORK PAPER REFERENCE NO(S).: | R8: WITNESS:
A9: =TIME -> 6 Months Actual and 6 Months Projected with Riders | R9: =WIT -> B. L. SAILERS
A10: =INPUT!B5 -> 6 Months Actual Ending August 31, 2022
A11: PROPOSED ANNUALIZED
L13: PROPOSED | N13: % OF REV TO | R13: PROPOSED
L14: REVENUE LESS | N14: TOTAL LESS | R14: TOTAL
A15: LINE | C15: RATE | D15: CLASS / | F15: CUSTOMER | J15: PROPOSED | L15: FUEL COST | N15: FUEL COST | P15: FUEL COST | R15: REVENUE
A16: NO. | C16: CODE | D16: DESCRIPTION | F16: BILLS(1) | H16: SALES | J16: RATES | L16: REVENUE | N16: REVENUE | P16: REVENUE (2) | R16: (F + H)
C17: (A) | D17: (B) | F17: (C) | H17: (D) | J17: (E) | L17: (F) | N17: (G) | P17: (H) | R17: (I)
H19: (KW/KWH) | J19: ($/KWH) | L19: ($) | N19: (%) | P19: ($) | R19: ($)
A20: 1 | C20: DP | D20: SERVICE AT PRIMARY | J20: ($/KW)
A21: 2 | D21: DISTRIBUTION VOLTAGE
A23: 3 | C23: CUSTOMER CHARGE:
A24: 4 | C24: LOAD MANAGEMENT RIDER | F24: 36 | J24: =INPUT!D64 -> 5 | L24: =ROUND(F24*J24,0) -> 180 | N24: =ROUND((L24/$L$46)*100,1) -> 0 | R24: =L24+P24 -> 180
A25: 5 | C25: PRIMARY VOLTAGE | F25: 217 | J25: =INPUT!D113 -> 117 | L25: =ROUND(F25*J25,0) -> 25389 | N25: =ROUND((L25/$L$46)*100,1) -> 2.1 | R25: =L25+P25 -> 25389
A26: 6 | C26: TOTAL CUSTOMER CHARGE | F26: =F25 -> 217 | L26: =SUM(L24:L25) -> 25569 | N26: =ROUND((L26/$L$46)*100,1) -> 2.1 | R26: =SUM(R24:R25) -> 25569
A28: 7 | C28: DEMAND CHARGE:
A29: 8 | C29: ALL KW | H29: 33141 | J29: =INPUT!D119 -> 10.16 | L29: =ROUND(H29*J29,0) -> 336713 | N29: =ROUND((L29/$L$46)*100,1) -> 27.5 | R29: =L29+P29 -> 336713
A30: 9 | C30: TOTAL DEMAND | H30: =SUM(H29) -> 33141 | L30: =SUM(L29) -> 336713 | N30: =ROUND((L30/$L$46)*100,1) -> 27.5 | R30: =SUM(R29) -> 336713
A32: 10 | C32: ENERGY CHARGE (3):
A33: 11 | C33: FIRST 300KWH/KW | H33: 8098232.434 | J33: =INPUT!D115 -> 0.067432 | L33: =ROUND((H33*J33),0) -> 546080 | N33: =ROUND((L33/$L$46)*100,1) -> 44.6 | R33: =L33+P33 -> 546080
A34: 12 | C34: ADDITIONAL KWH | H34: 3633347 | J34: =INPUT!D116 -> 0.057341 | L34: =ROUND((H34*J34),0) -> 208340 | N34: =ROUND((L34/$L$46)*100,1) -> 17 | R34: =L34+P34 -> 208340
A35: 13 | C35: CAP RATE KWH | H35: 0 | J35: =INPUT!D117 -> 0.309795 | L35: =ROUND((H35*J35),0) -> 0 | N35: =ROUND((L35/$L$46)*100,1) -> 0 | R35: =L35+P35 -> 0
A36: 14 | C36: TOTAL ENERGY | H36: =SUM(H33:H35) -> 11731579.43 | L36: =SUM(L33:L35) -> 754420 | N36: =ROUND((L36/$L$46)*100,1) -> 61.6 | R36: =L36+P36 -> 754420
A37: 15 | C37: TOTAL RATE DP EXCLUDING RIDERS | F37: =F26 -> 217 | H37: =H36 -> 11731579.43 | L37: =L36+L30+L26 -> 1116702 | N37: =ROUND((L37/$L$46)*100,1) -> 91.1 | R37: =R26+R30+R36 -> 1116702
A39: 16 | C39: RIDERS:
A40: 17 | C40: =DSMR_Name -> DEMAND SIDE MANAGEMENT RIDER (DSMR) | J40: =PRO_DSM_DIST -> -0.000718 | L40: =ROUND($H$37*J40,0) -> -8423 | N40: =ROUND((L40/$L$46)*100,1) -> -0.7 | R40: =L40+P40 -> -8423
A41: 18 | C41: =ESM_Name -> ENVIRONMENTAL SURCHARGE MECHANISM RIDER (ESM) | L41: =AE93 -> 61398 | N41: =ROUND((L41/$L$46)*100,1) -> 5 | R41: =L41+P41 -> 61398
A42: 20 | C42: =FAC_Name -> FUEL ADJUSTMENT CLAUSE (FAC) | J42: =PRO_FAC -> 0.005965 | P42: =ROUND(H37*PRO_FAC,0) -> 69979 | R42: 69979
A43: 22 | C43: =PSM_Name -> PROFIT SHARING MECHANISM (PSM) | J43: =PRO_PSM -> 0.004727 | L43: =ROUND(H37*PRO_PSM,0) -> 55455 | N43: =ROUND((L43/$L$46)*100,1) -> 4.5 | R43: 55455
A44: 23 | C44: TOTAL RIDERS | L44: =SUM(L40:L43) -> 108430 | N44: =ROUND((L44/$L$46)*100,1) -> 8.9 | P44: =SUM(P40:P43) -> 69979 | R44: =SUM(R40:R43) -> 178409
A46: 24 | C46: TOTAL RATE DP INCLUDING RIDERS | F46: =F26 -> 217 | H46: =H36 -> 11731579.43 | L46: =L37+L44 -> 1225132 | N46: 100 | P46: =P44+P37 -> 69979 | R46: =R44+R37 -> 1295111
C48: (1) BILLS THAT TERMINATE IN RESPECTIVE RATE STEPS.
C49: ="(2) REFLECTS FUEL COMPONENT OF "&TEXT(PRO_FAC,"$0.000000;($0.000000)")&" PER KWH." -> (2) REFLECTS FUEL COMPONENT OF $0.005965 PER KWH.
C50: ="(3) REFLECTS FUEL COST RECOVERY INCLUDED IN BASE RATES OF "&TEXT(PRO_BASE_FUEL,"$0.000000;($0.000000)")&" PER KWH." -> (3) REFLECTS FUEL COST RECOVERY INCLUDED IN BASE RATES OF $0.025401 PER KWH.
T53: =NAME -> DUKE ENERGY KENTUCKY, INC.
T54: =CASE_NO -> CASE NO. 2022-00372
T55: =TITLE -> ANNUALIZED BASE YEAR REVENUES AT PROPOSED VS. MOST CURRENT RATES
T56: =DATE -> FOR THE TWELVE MONTHS ENDED February 28, 2023
T57: =SERVICE -> (ELECTRIC SERVICE)
T58: =DATA_PERIOD -> DATA: __X__ BASE PERIOD ____FORECASTED PERIOD | AO58: SCHEDULE M-2.2
T59: =TYPE -> TYPE OF FILING: _X_ ORIGINAL ___UPDATED ___ REVISED | AO59: ="PAGE 8 OF "&TEXT(Page_Num_2.2,"00") -> PAGE 8 OF 23
T60: WORK PAPER REFERENCE NO(S).: | AO60: WITNESS:
T61: =TIME -> 6 Months Actual and 6 Months Projected with Riders | AO61: =WIT -> B. L. SAILERS
T62: =INPUT!B5 -> 6 Months Actual Ending August 31, 2022
T63: CURRENT ANNUALIZED
AE65: CURRENT | AG65: % OF REV TO | AI65: REVENUE | AK65: % INCR IN | AO65: CURRENT | AQ65: TOTAL
AC66: MOST | AE66: REVENUE LESS | AG66: TOTAL LESS | AI66: INCR LESS | AK66: REV LESS | AO66: TOTAL | AQ66: REVENUE
T67: LINE | V67: RATE | W67: CLASS / | Y67: CUSTOMER | AC67: CURRENT | AE67: FUEL COST | AG67: FUEL COST | AI67: FUEL COST REV | AK67: FUEL COST REV | AM67: FUEL COST | AO67: REVENUE | AQ67: % INCREASE
T68: NO. | V68: CODE | W68: DESCRIPTION | Y68: BILLS(1) | AA68: SALES | AC68: RATES | AE68: REVENUE | AG68: REVENUE | AI68: (F - K) | AK68: (M / K) | AM68: REVENUE (2) | AO68: (K + H) | AQ68: (M / K1)
V69: (A) | W69: (B) | Y69: (C) | AA69: (D) | AC69: (J) | AE69: (K) | AG69: (L) | AI69: (M) | AK69: (N) | AM69: (H) | AO69: (K1) | AQ69: (O)
AA71: (KW/KWH) | AC71: ($/KWH)/ | AE71: ($) | AG71: (%) | AI71: ($) | AK71: (%) | AM71: ($) | AO71: ($) | AQ71: (%)
T72: 1 | V72: DP | W72: SERVICE AT PRIMARY | AC72: ($/KW)
T73: 2 | W73: DISTRIBUTION VOLTAGE
T75: 3 | V75: CUSTOMER CHARGE:
T76: 4 | V76: LOAD MANAGEMENT RIDER | Y76: =F24 -> 36 | AC76: =INPUT!C64 -> 5 | AE76: =ROUND(Y76*AC76,0) -> 180 | AG76: =ROUND((AE76/$AE$98)*100,1) -> 0 | AI76: =L24-AE76 -> 0 | AK76: =ROUND((AI76/AE76)*100,1) -> 0 | AO76: =AE76+AM76 -> 180 | AQ76: =ROUND((AI76/AO76)*100,1) -> 0
T77: 5 | V77: PRIMARY VOLTAGE | Y77: =F25 -> 217 | AC77: =INPUT!C113 -> 117 | AE77: =ROUND(Y77*AC77,0) -> 25389 | AG77: =ROUND((AE77/$AE$98)*100,1) -> 2.4 | AI77: =L25-AE77 -> 0 | AK77: =ROUND((AI77/AE77)*100,1) -> 0 | AO77: =AE77+AM77 -> 25389 | AQ77: =ROUND((AI77/AO77)*100,1) -> 0
T78: 6 | V78: TOTAL CUSTOMER CHARGE | Y78: =F26 -> 217 | AE78: =SUM(AE76:AE77) -> 25569 | AG78: =ROUND((AE78/$AE$98)*100,1) -> 2.4 | AI78: =SUM(AI76:AI77) -> 0 | AK78: =SUM(AK76:AK77) -> 0 | AO78: =SUM(AO76:AO77) -> 25569 | AQ78: =ROUND((AI78/AO78)*100,1) -> 0
T80: 7 | V80: DEMAND CHARGE:
T81: 8 | V81: ALL KW | AA81: =H29 -> 33141 | AC81: =INPUT!C119 -> 8.6 | AE81: =ROUND(AA81*AC81,0) -> 285013 | AG81: =ROUND((AE81/$AE$98)*100,1) -> 27 | AI81: =L29-AE81 -> 51700 | AK81: =ROUND((AI81/AE81)*100,1) -> 18.1 | AO81: =AE81+AM81 -> 285013 | AQ81: =ROUND((AI81/AO81)*100,1) -> 18.1
T82: 9 | V82: TOTAL DEMAND | AA82: =H30 -> 33141 | AE82: =SUM(AE81) -> 285013 | AG82: =ROUND((AE82/$AE$98)*100,1) -> 27 | AI82: =SUM(AI81) -> 51700 | AK82: =ROUND((AI82/AE82)*100,1) -> 18.1 | AO82: =SUM(AO81) -> 285013 | AQ82: =ROUND((AI82/AO82)*100,1) -> 18.1
T84: 10 | V84: ENERGY CHARGE (3):
T85: 11 | V85: FIRST 300KWH/KW | AA85: =H33 -> 8098232.434 | AC85: =INPUT!C115 -> 0.057053 | AE85: =ROUND((AA85*AC85),0) -> 462028 | AG85: =ROUND((AE85/$AE$98)*100,1) -> 43.7 | AI85: =L33-AE85 -> 84052 | AK85: =ROUND((AI85/AE85)*100,1) -> 18.2 | AO85: =AE85+AM85 -> 462028 | AQ85: =ROUND((AI85/AO85)*100,1) -> 18.2
T86: 12 | V86: ADDITIONAL KWH | AA86: =H34 -> 3633347 | AC86: =INPUT!C116 -> 0.048481 | AE86: =ROUND((AA86*AC86),0) -> 176148 | AG86: =ROUND((AE86/$AE$98)*100,1) -> 16.7 | AI86: =L34-AE86 -> 32192 | AK86: =ROUND((AI86/AE86)*100,1) -> 18.3 | AO86: =AE86+AM86 -> 176148 | AQ86: =ROUND((AI86/AO86)*100,1) -> 18.3
T87: 13 | V87: CAP RATE KWH | AA87: =H35 -> 0 | AC87: =INPUT!C117 -> 0.26202 | AE87: =ROUND((AA87*AC87),0) -> 0 | AG87: =ROUND((AE87/$AE$98)*100,1) -> 0 | AI87: =L35-AE87 -> 0 | AK87: =ROUND((AI87/AE87)*100,1) ->  | AO87: =AE87+AM87 -> 0 | AQ87: =ROUND((AI87/AO87)*100,1) -> 
T88: 14 | V88: TOTAL ENERGY | AA88: =H36 -> 11731579.43 | AE88: =SUM(AE85:AE87) -> 638176 | AG88: =ROUND((AE88/$AE$98)*100,1) -> 60.4 | AI88: =SUM(AI85:AI87) -> 116244 | AK88: =ROUND((AI88/AE88)*100,1) -> 18.2 | AO88: =SUM(AO85:AO87) -> 638176 | AQ88: =ROUND((AI88/AO88)*100,1) -> 18.2
T89: 15 | V89: TOTAL RATE DP EXCLUDING RIDERS | Y89: =Y78 -> 217 | AA89: =AA88 -> 11731579.43 | AE89: =AE78+AE82+AE88 -> 948758 | AG89: =ROUND((AE89/$AE$98)*100,1) -> 89.7 | AI89: =AI78+AI82+AI88 -> 167944 | AK89: =ROUND((AI89/AE89)*100,1) -> 17.7 | AO89: =AO78+AO82+AO88 -> 948758 | AQ89: =ROUND((AI89/AO89)*100,1) -> 17.7
T91: =A39 -> 16 | V91: RIDERS:
T92: 17 | V92: =C40 -> DEMAND SIDE MANAGEMENT RIDER (DSMR) | AC92: =DSM_DIST -> -0.000718 | AE92: =ROUND($AA$89*AC92,0) -> -8423 | AG92: =ROUND((AE92/$AE$98)*100,1) -> -0.8 | AI92: =L40-AE92 -> 0 | AK92: =ROUND((AI92/AE92)*100,1) -> 0 | AO92: =AE92+AM92 -> -8423 | AQ92: =IF(AO92=0,0,ROUND((AI92/AO92)*100,1)) -> 0
T93: 18 | V93: =C41 -> ENVIRONMENTAL SURCHARGE MECHANISM RIDER (ESM) | AC93: =CUR_ESM_NONRES -> 0.08798914629 | AE93: =ROUND((AO89-(CUR_BASE_FUEL*AA89)+AO92+AO95)*AC93,0) -> 61398 | AG93: =ROUND((AE93/$AE$98)*100,1) -> 5.8 | AI93: =L41-AE93 -> 0 | AK93: =IF(AE93=0,0,ROUND((AI93/AE93)*100,1)) -> 0 | AO93: =AE93+AM93 -> 61398 | AQ93: =IF(AO93=0,0,ROUND((AI93/AO93)*100,1)) -> 0
T94: 20 | V94: =C42 -> FUEL ADJUSTMENT CLAUSE (FAC) | AC94: =CUR_FAC -> 0.005965 | AM94: =ROUND(AA89*CUR_FAC,0) -> 69979 | AO94: 69979 | AQ94: =IF(AO94=0,0,ROUND(((R42-AO94)/AO94)*100,1)) -> 0
T95: 22 | V95: =C43 -> PROFIT SHARING MECHANISM (PSM) | AC95: =RS_PSM -> 0.004727 | AE95: =ROUND(AA89*RS_PSM,0) -> 55455 | AG95: =ROUND((AE95/$AE$98)*100,1) -> 5.2 | AI95: =L43-AE95 -> 0 | AK95: 0 | AO95: 55455 | AQ95: =ROUND((AI95/AO95)*100,1) -> 0
T96: 23 | V96: TOTAL RIDERS | AE96: =SUM(AE92:AE95) -> 108430 | AG96: =ROUND((AE96/$AE$98)*100,1) -> 10.3 | AI96: =SUM(AI92:AI95) -> 0 | AK96: =ROUND((AI96/AE96)*100,1) -> 0 | AM96: =SUM(AM92:AM95) -> 69979 | AO96: =SUM(AO92:AO95) -> 178409 | AQ96: 0
T98: =A46 -> 24 | V98: TOTAL RATE DP INCLUDING RIDERS | Y98: =F46 -> 217 | AA98: =H46 -> 11731579.43 | AE98: =AE96+AE89 -> 1057188 | AG98: 100 | AI98: =AI96+AI89 -> 167944 | AK98: =ROUND((AI98/AE98)*100,1) -> 15.9 | AM98: =AM96+AM89 -> 69979 | AO98: =AO96+AO89 -> 1127167 | AQ98: =ROUND((AI98/AO98)*100,1) -> 14.9
V100: (1) BILLS THAT TERMINATE IN RESPECTIVE RATE STEPS.
V101: ="(2) REFLECTS FUEL COMPONENT OF "&TEXT(CUR_FAC,"$0.000000;($0.000000)")&" PER KWH." -> (2) REFLECTS FUEL COMPONENT OF $0.005965 PER KWH.
V102: ="(3) REFLECTS FUEL COST RECOVERY INCLUDED IN BASE RATES OF "&TEXT(CUR_BASE_FUEL,"$0.000000;($0.000000)")&" PER KWH." -> (3) REFLECTS FUEL COST RECOVERY INCLUDED IN BASE RATES OF $0.025401 PER KWH.

Sheet Rate TT
A1: =NAME -> DUKE ENERGY KENTUCKY, INC.
A2: =CASE_NO -> CASE NO. 2022-00372
A3: =TITLE -> ANNUALIZED BASE YEAR REVENUES AT PROPOSED VS. MOST CURRENT RATES
A4: =DATE -> FOR THE TWELVE MONTHS ENDED February 28, 2023
A5: =SERVICE -> (ELECTRIC SERVICE)
A6: =DATA_PERIOD -> DATA: __X__ BASE PERIOD ____FORECASTED PERIOD | R6: SCHEDULE M-2.3
A7: =TYPE -> TYPE OF FILING: _X_ ORIGINAL ___UPDATED ___ REVISED | R7: ="PAGE 9 OF "&TEXT(Page_Num_2.3,"00") -> PAGE 9 OF 24
A8: WORK PAPER REFERENCE NO(S).: | R8: WITNESS:
A9: =TIME -> 6 Months Actual and 6 Months Projected with Riders | R9: =WIT -> B. L. SAILERS
A10: =INPUT!B5 -> 6 Months Actual Ending August 31, 2022
A11: PROPOSED ANNUALIZED
L13: PROPOSED | N13: % OF REV TO | R13: PROPOSED
L14: REVENUE LESS | N14: TOTAL LESS | R14: TOTAL
A15: LINE | C15: RATE | D15: CLASS / | F15: CUSTOMER | J15: PROPOSED | L15: FUEL COST | N15: FUEL COST | P15: FUEL COST | R15: REVENUE
A16: NO. | C16: CODE | D16: DESCRIPTION | F16: BILLS(1) | H16: SALES | J16: RATES | L16: REVENUE | N16: REVENUE | P16: REVENUE (2) | R16: (F + H)
C17: (A) | D17: (B) | F17: (C) | H17: (D) | J17: (E) | L17: (F) | N17: (G) | P17: (H) | R17: (I)
H18: (KW/KWH) | J18: ($/KWH)/ | L18: ($) | N18: (%) | P18: ($) | R18: ($)
A19: 1 | C19: TT | D19: TIME OF DAY | J19: ($/KW)
A20: 2 | C20: SUMMER:
A21: 3 | C21: CUSTOMER CHARGE | F21: 52 | J21: =INPUT!D123 -> 500 | L21: =ROUND(F21*J21,0) -> 26000 | N21: =ROUND((L21/$L$56)*100,1) -> 0.2 | R21: =L21+P21 -> 26000
A23: 4 | C23: DEMAND CHARGE:
A24: 5 | C24: ON PEAK KW | H24: 134403 | J24: =INPUT!D129 -> 9.74 | L24: =ROUND(H24*J24,0) -> 1309085 | N24: =ROUND((L24/$L$56)*100,1) -> 9.4 | R24: =L24+P24 -> 1309085
A25: 6 | C25: OFF PEAK KW | H25: 6709 | J25: =INPUT!D130 -> 1.48 | L25: =ROUND(H25*J25,0) -> 9929 | N25: =ROUND((L25/$L$56)*100,1) -> 0.1 | R25: =L25+P25 -> 9929
A26: 7 | C26: TOTAL DEMAND | H26: =SUM(H24:H25) -> 141112 | L26: =SUM(L24:L25) -> 1319014 | N26: =ROUND((L26/$L$56)*100,1) -> 9.5 | R26: =SUM(R24:R25) -> 1319014
A28: 8 | C28: ENERGY CHARGE (3):
A29: 9 | C29: ON PEAK KWH | H29: 20185918 | J29: =PRO_SUM_TT_ON_KWH -> 0.061035 | L29: =ROUND((H29*J29),0) -> 1232048 | N29: =ROUND((L29/$L$56)*100,1) -> 8.9 | R29: =L29+P29 -> 1232048
A30: 10 | C30: OFF PEAK KWH | H30: 50665989.16 | J30: =PRO_TT_OFF -> 0.050307 | L30: =ROUND((H30*J30),0) -> 2548854 | N30: =ROUND((L30/$L$56)*100,1) -> 18.4 | R30: =L30+P30 -> 2548854
A31: 11 | C31: TOTAL ENERGY | H31: =SUM(H29:H30) -> 70851907.16 | L31: =SUM(L29:L30) -> 3780902 | N31: =ROUND((L31/$L$56)*100,1) -> 27.2 | R31: =SUM(R29:R30) -> 3780902
A32: 12 | C32: TOTAL SUMMER | F32: =F21 -> 52 | H32: =H31 -> 70851907.16 | L32: =L21+L26+L31 -> 5125916 | N32: =ROUND((L32/$L$56)*100,1) -> 36.9 | R32: =R21+R26+R31 -> 5125916
A34: 13 | C34: WINTER:
A35: 14 | C35: CUSTOMER CHARGE | F35: 104 | J35: =J21 -> 500 | L35: =ROUND(F35*J35,0) -> 52000 | N35: =ROUND((L35/L$56)*100,1) -> 0.4 | R35: =L35+P35 -> 52000
A37: 15 | C37: DEMAND CHARGE:
A38: 16 | C38: ON PEAK KW | H38: 225690 | J38: =INPUT!D131 -> 7.99 | L38: =ROUND(H38*J38,0) -> 1803263 | N38: =ROUND((L38/$L$56)*100,1) -> 13 | R38: =L38+P38 -> 1803263
A39: 17 | C39: OFF PEAK KW | H39: 7187 | J39: =INPUT!D132 -> 1.48 | L39: =ROUND(H39*J39,0) -> 10637 | N39: =ROUND((L39/$L$56)*100,1) -> 0.1 | R39: =L39+P39 -> 10637
A40: 18 | C40: TOTAL DEMAND | H40: =SUM(H38:H39) -> 232877 | L40: =L38+L39 -> 1813900 | N40: =ROUND((L40/$L$56)*100,1) -> 13.1 | R40: =L40+P40 -> 1813900
A42: 19 | C42: ENERGY CHARGE (3):
A43: 20 | C43: ON PEAK KWH | H43: 34741660 | J43: =PRO_WIN_TT_ON_KWH -> 0.058348 | L43: =ROUND((H43*J43),0) -> 2027106 | N43: =ROUND((L43/$L$56)*100,1) -> 14.6 | R43: =L43+P43 -> 2027106
A44: 21 | C44: OFF PEAK KWH | H44: 67439084.07 | J44: =PRO_TT_OFF -> 0.050307 | L44: =ROUND((H44*J44),0) -> 3392658 | N44: =ROUND((L44/$L$56)*100,1) -> 24.4 | R44: =L44+P44 -> 3392658
A45: 22 | C45: TOTAL ENERGY | H45: =SUM(H43:H44) -> 102180744.1 | L45: =SUM(L43:L44) -> 5419764 | N45: =ROUND((L45/$L$56)*100,1) -> 39 | R45: =SUM(R43:R44) -> 5419764
A46: 23 | C46: TOTAL WINTER | F46: =F35 -> 104 | H46: =H45 -> 102180744.1 | L46: =L35+L40+L45 -> 7285664 | N46: =ROUND((L46/$L$56)*100,1) -> 52.5 | R46: =R35+R40+R45 -> 7285664
A47: 24 | C47: TOTAL RATE TT EXCLUDING RIDERS | F47: =F32+F46 -> 156 | H47: =H46+H32 -> 173032651.2 | L47: =L46+L32 -> 12411580 | N47: =ROUND((L47/L$56)*100,1) -> 89.4 | R47: =R46+R32 -> 12411580
A49: 25 | C49: RIDERS:
A50: 26 | C50: =DSMR_Name -> DEMAND SIDE MANAGEMENT RIDER (DSMR) | J50: =PRO_DSM_TRANS -> 6.6e-05 | L50: =ROUND($H$47*J50,0) -> 11420 | N50: =ROUND((L50/L$56)*100,1) -> 0.1 | R50: =L50+P50 -> 11420
A51: 27 | C51: =ESM_Name -> ENVIRONMENTAL SURCHARGE MECHANISM RIDER (ESM) | L51: =AE115 -> 640970 | N51: =ROUND((L51/L$56)*100,1) -> 4.6 | R51: =L51+P51 -> 640970
A52: 28 | C52: =FAC_Name -> FUEL ADJUSTMENT CLAUSE (FAC) | J52: =PRO_FAC -> 0.005965 | P52: =ROUND(H47*PRO_FAC,0) -> 1032140 | R52: =L52+P52 -> 1032140
A53: 30 | C53: =PSM_Name -> PROFIT SHARING MECHANISM (PSM) | J53: =PRO_PSM -> 0.004727 | L53: =ROUND(H47*PRO_PSM,0) -> 817925 | N53: =ROUND((L53/L$56)*100,1) -> 5.9 | R53: 817925
A54: 31 | C54: TOTAL RIDERS | L54: =SUM(L50:L53) -> 1470315 | N54: =ROUND((L54/L$56)*100,1) -> 10.6 | P54: =SUM(P50:P53) -> 1032140 | R54: =SUM(R50:R53) -> 2502455
A56: 32 | C56: TOTAL RATE TT INCLUDING RIDERS | F56: =F32+F46 -> 156 | H56: =H32+H46 -> 173032651.2 | L56: =L54+L47 -> 13881895 | N56: 100 | P56: =P54+P47 -> 1032140 | R56: =R54+R47 -> 14914035
C58: (1) BILLS THAT TERMINATE IN RESPECTIVE RATE STEPS.
C59: ="(2) REFLECTS FUEL COMPONENT OF "&TEXT(PRO_FAC,"$0.000000;($0.000000)")&" PER KWH." -> (2) REFLECTS FUEL COMPONENT OF $0.005965 PER KWH.
C60: ="(3) REFLECTS FUEL COST RECOVERY INCLUDED IN BASE RATES OF "&TEXT(PRO_BASE_FUEL,"$0.000000;($0.000000)")&" PER KWH." -> (3) REFLECTS FUEL COST RECOVERY INCLUDED IN BASE RATES OF $0.025401 PER KWH.
T65: =NAME -> DUKE ENERGY KENTUCKY, INC.
T66: =CASE_NO -> CASE NO. 2022-00372
T67: =TITLE -> ANNUALIZED BASE YEAR REVENUES AT PROPOSED VS. MOST CURRENT RATES
T68: =DATE -> FOR THE TWELVE MONTHS ENDED February 28, 2023
T69: =SERVICE -> (ELECTRIC SERVICE)
T70: =DATA_PERIOD -> DATA: __X__ BASE PERIOD ____FORECASTED PERIOD | AO70: SCHEDULE M-2.2
T71: =TYPE -> TYPE OF FILING: _X_ ORIGINAL ___UPDATED ___ REVISED | AO71: ="PAGE 9 OF "&TEXT(Page_Num_2.2,"00") -> PAGE 9 OF 23
T72: WORK PAPER REFERENCE NO(S).: | AO72: WITNESS:
T73: =TIME -> 6 Months Actual and 6 Months Projected with Riders | AO73: =WIT -> B. L. SAILERS
T74: =INPUT!B5 -> 6 Months Actual Ending August 31, 2022
T75: CURRENT ANNUALIZED
AE77: CURRENT | AG77: % OF REV TO | AI77: REVENUE | AK77: % INCR IN | AO77: CURRENT | AQ77: TOTAL
AC78: MOST | AE78: REVENUE LESS | AG78: TOTAL LESS | AI78: INCR LESS | AK78: REV LESS | AO78: TOTAL | AQ78: REVENUE
T79: LINE | V79: RATE | W79: CLASS / | Y79: CUSTOMER | AC79: CURRENT | AE79: FUEL COST | AG79: FUEL COST | AI79: FUEL COST REV | AK79: FUEL COST REV | AM79: FUEL COST | AO79: REVENUE | AQ79: % INCREASE
T80: NO. | V80: CODE | W80: DESCRIPTION | Y80: BILLS(1) | AA80: SALES | AC80: RATES | AE80: REVENUE | AG80: REVENUE | AI80: (F - K) | AK80: (M / K) | AM80: REVENUE (2) | AO80: (K + H) | AQ80: (M / K1)
V81: (A) | W81: (B) | Y81: (C) | AA81: (D) | AC81: (J) | AE81: (K) | AG81: (L) | AI81: (M) | AK81: (N) | AM81: (H) | AO81: (K1) | AQ81: (O)
AA82: (KW/KWH) | AC82: ($/KWH)/ | AE82: ($) | AG82: (%) | AI82: ($) | AK82: (%) | AM82: ($) | AO82: ($) | AQ82: (%)
T83: =A19 -> 1 | V83: TT | W83: TIME OF DAY | AC83: ($/KW)
T84: =A20 -> 2 | V84: SUMMER:
T85: =A21 -> 3 | V85: CUSTOMER CHARGE | Y85: =F21 -> 52 | AC85: =INPUT!C123 -> 500 | AE85: =ROUND(Y85*AC85,0) -> 26000 | AG85: =ROUND((AE85/AE$120)*100,1) -> 0.2 | AI85: =L21-AE85 -> 0 | AK85: =IF(AE85=0,"0.0 ",ROUND((AI85/AE85)*100,1)) -> 0 | AO85: =AE85+AM85 -> 26000 | AQ85: =IF(AO85=0,"0.0 ",ROUND((AI85/AO85)*100,1)) -> 0
T87: =A23 -> 4 | V87: DEMAND CHARGE:
T88: =A24 -> 5 | V88: ON PEAK KW | AA88: =H24 -> 134403 | AC88: =INPUT!C129 -> 8.51 | AE88: =ROUND(AA88*AC88,0) -> 1143770 | AG88: =ROUND((AE88/AE$120)*100,1) -> 9.3 | AI88: =L24-AE88 -> 165315 | AK88: =IF(AE88=0,"0.0 ",ROUND((AI88/AE88)*100,1)) -> 14.5 | AO88: =AE88+AM88 -> 1143770 | AQ88: =IF(AO88=0,"0.0 ",ROUND((AI88/AO88)*100,1)) -> 14.5
T89: =A25 -> 6 | V89: OFF PEAK KW | AA89: =H25 -> 6709 | AC89: =INPUT!C130 -> 1.29 | AE89: =ROUND(AA89*AC89,0) -> 8655 | AG89: =ROUND((AE89/AE$120)*100,1) -> 0.1 | AI89: =L25-AE89 -> 1274 | AK89: =IF(AE89=0,"0.0 ",ROUND((AI89/AE89)*100,1)) -> 14.7 | AO89: =AE89+AM89 -> 8655 | AQ89: =IF(AO89=0,"0.0 ",ROUND((AI89/AO89)*100,1)) -> 14.7
T90: =A26 -> 7 | V90: TOTAL DEMAND | AA90: =H26 -> 141112 | AE90: =AE88+AE89 -> 1152425 | AG90: =ROUND((AE90/AE$120)*100,1) -> 9.4 | AI90: =SUM(AI88:AI89) -> 166589 | AK90: =IF(AE90=0,"0.0 ",ROUND((AI90/AE90)*100,1)) -> 14.5 | AO90: =AO88+AO89 -> 1152425 | AQ90: =IF(AO90=0,"0.0 ",ROUND((AI90/AO90)*100,1)) -> 14.5
T92: =A28 -> 8 | V92: ENERGY CHARGE (3):
T93: =A29 -> 9 | V93: ON PEAK KWH | AA93: =H29 -> 20185918 | AC93: 0.053306 | AE93: =ROUND((AA93*AC93),0) -> 1076031 | AG93: =ROUND((AE93/AE$120)*100,1) -> 8.7 | AI93: =L29-AE93 -> 156017 | AK93: =IF(AE93=0,"0.0 ",ROUND((AI93/AE93)*100,1)) -> 14.5 | AO93: =AE93+AM93 -> 1076031 | AQ93: =IF(AO93=0,"0.0 ",ROUND((AI93/AO93)*100,1)) -> 14.5
T94: =A30 -> 10 | V94: OFF PEAK KWH | AA94: =H30 -> 50665989.16 | AC94: =INPUT!C127 -> 0.043936 | AE94: =ROUND((AA94*AC94),0) -> 2226061 | AG94: =ROUND((AE94/AE$120)*100,1) -> 18.1 | AI94: =L30-AE94 -> 322793 | AK94: =IF(AE94=0,"0.0 ",ROUND((AI94/AE94)*100,1)) -> 14.5 | AO94: =AE94+AM94 -> 2226061 | AQ94: =IF(AO94=0,"0.0 ",ROUND((AI94/AO94)*100,1)) -> 14.5
T95: =A31 -> 11 | V95: TOTAL ENERGY | AA95: =H31 -> 70851907.16 | AE95: =AE93+AE94 -> 3302092 | AG95: =ROUND((AE95/AE$120)*100,1) -> 26.8 | AI95: =SUM(AI93:AI94) -> 478810 | AK95: =IF(AE95=0,"0.0 ",ROUND((AI95/AE95)*100,1)) -> 14.5 | AO95: =AO93+AO94 -> 3302092 | AQ95: =IF(AO95=0,"0.0 ",ROUND((AI95/AO95)*100,1)) -> 14.5
T96: =A32 -> 12 | V96: TOTAL SUMMER | Y96: =F32 -> 52 | AA96: =H32 -> 70851907.16 | AE96: =AE85+AE90+AE95 -> 4480517 | AG96: =ROUND((AE96/AE$120)*100,1) -> 36.4 | AI96: =AI85+AI90+AI95 -> 645399 | AK96: =IF(AE96=0,"0.0 ",ROUND((AI96/AE96)*100,1)) -> 14.4 | AO96: =AO85+AO90+AO95 -> 4480517 | AQ96: =IF(AO96=0,"0.0 ",ROUND((AI96/AO96)*100,1)) -> 14.4
T98: =A34 -> 13 | V98: WINTER:
T99: =A35 -> 14 | V99: CUSTOMER CHARGE | Y99: =F35 -> 104 | AC99: =AC85 -> 500 | AE99: =ROUND(Y99*AC99,0) -> 52000 | AG99: =ROUND((AE99/AE$120)*100,1) -> 0.4 | AI99: =L35-AE99 -> 0 | AK99: =IF(AE99=0,"0.0 ",ROUND((AI99/AE99)*100,1)) -> 0 | AO99: =AE99+AM99 -> 52000 | AQ99: =IF(AO99=0,"0.0 ",ROUND((AI99/AO99)*100,1)) -> 0
T101: =A37 -> 15 | V101: DEMAND CHARGE:
T102: =A38 -> 16 | V102: ON PEAK KW | AA102: =H38 -> 225690 | AC102: =INPUT!C131 -> 6.98 | AE102: =ROUND(AA102*AC102,0) -> 1575316 | AG102: =ROUND((AE102/AE$120)*100,1) -> 12.8 | AI102: =L38-AE102 -> 227947 | AK102: =IF(AE102=0,"0.0 ",ROUND((AI102/AE102)*100,1)) -> 14.5 | AO102: =AE102+AM102 -> 1575316 | AQ102: =IF(AO102=0,"0.0 ",ROUND((AI102/AO102)*100,1)) -> 14.5
T103: =A39 -> 17 | V103: OFF PEAK KW | AA103: =H39 -> 7187 | AC103: =INPUT!C132 -> 1.29 | AE103: =ROUND(AA103*AC103,0) -> 9271 | AG103: =ROUND((AE103/AE$120)*100,1) -> 0.1 | AI103: =L39-AE103 -> 1366 | AK103: =IF(AE103=0,"0.0 ",ROUND((AI103/AE103)*100,1)) -> 14.7 | AO103: =AE103+AM103 -> 9271 | AQ103: =IF(AO103=0,"0.0 ",ROUND((AI103/AO103)*100,1)) -> 14.7
T104: =A40 -> 18 | V104: TOTAL DEMAND | AA104: =H40 -> 232877 | AE104: =AE102+AE103 -> 1584587 | AG104: =ROUND((AE104/AE$120)*100,1) -> 12.9 | AI104: =SUM(AI102:AI103) -> 229313 | AK104: =IF(AE104=0,"0.0 ",ROUND((AI104/AE104)*100,1)) -> 14.5 | AO104: =AO102+AO103 -> 1584587 | AQ104: =IF(AO104=0,"0.0 ",ROUND((AI104/AO104)*100,1)) -> 14.5
T106: =A42 -> 19 | V106: ENERGY CHARGE (3):
T107: 20 | V107: ON PEAK KWH | AA107: =H43 -> 34741660 | AC107: =INPUT!C126 -> 0.050959 | AE107: =ROUND((AA107*AC107),0) -> 1770400 | AG107: =ROUND((AE107/AE$120)*100,1) -> 14.4 | AI107: =L43-AE107 -> 256706 | AK107: =IF(AE107=0,"0.0 ",ROUND((AI107/AE107)*100,1)) -> 14.5 | AO107: =AE107+AM107 -> 1770400 | AQ107: =IF(AO107=0,"0.0 ",ROUND((AI107/AO107)*100,1)) -> 14.5
T108: 21 | V108: OFF PEAK KWH | AA108: =H44 -> 67439084.07 | AC108: =INPUT!C127 -> 0.043936 | AE108: =ROUND((AA108*AC108),0) -> 2963004 | AG108: =ROUND((AE108/AE$120)*100,1) -> 24 | AI108: =L44-AE108 -> 429654 | AK108: =IF(AE108=0,"0.0 ",ROUND((AI108/AE108)*100,1)) -> 14.5 | AO108: =AE108+AM108 -> 2963004 | AQ108: =IF(AO108=0,"0.0 ",ROUND((AI108/AO108)*100,1)) -> 14.5
T109: 22 | V109: TOTAL ENERGY | AA109: =H45 -> 102180744.1 | AE109: =AE107+AE108 -> 4733404 | AG109: =ROUND((AE109/AE$120)*100,1) -> 38.4 | AI109: =SUM(AI107:AI108) -> 686360 | AK109: =IF(AE109=0,"0.0 ",ROUND((AI109/AE109)*100,1)) -> 14.5 | AO109: =AO107+AO108 -> 4733404 | AQ109: =IF(AO109=0,"0.0 ",ROUND((AI109/AO109)*100,1)) -> 14.5
T110: 23 | V110: TOTAL WINTER | Y110: =F46 -> 104 | AA110: =H46 -> 102180744.1 | AE110: =AE99+AE104+AE109 -> 6369991 | AG110: =ROUND((AE110/AE$120)*100,1) -> 51.7 | AI110: =AI99+AI104+AI109 -> 915673 | AK110: =IF(AE110=0,"0.0 ",ROUND((AI110/AE110)*100,1)) -> 14.4 | AO110: =AO99+AO104+AO109 -> 6369991 | AQ110: =IF(AO110=0,"0.0 ",ROUND((AI110/AO110)*100,1)) -> 14.4
T111: 24 | V111: TOTAL RATE TT EXCLUDING RIDERS | Y111: =Y96+Y110 -> 156 | AA111: =AA96+AA110 -> 173032651.2 | AE111: =AE96+AE110 -> 10850508 | AG111: =ROUND((AE111/AE$120)*100,1) -> 88.1 | AI111: =AI110+AI96 -> 1561072 | AK111: =IF(AE111=0,"0.0 ",ROUND((AI111/AE111)*100,1)) -> 14.4 | AO111: =AO110+AO96 -> 10850508 | AQ111: =IF(AO111=0,"0.0 ",ROUND((AI111/AO111)*100,1)) -> 14.4
T113: =A49 -> 25 | V113: RIDERS:
T114: 26 | V114: =C50 -> DEMAND SIDE MANAGEMENT RIDER (DSMR) | AC114: =DSM_TRANS -> 6.6e-05 | AE114: =ROUND($AA$111*AC114,0) -> 11420 | AG114: =ROUND((AE114/AE$120)*100,1) -> 0.1 | AI114: =L50-AE114 -> 0 | AK114: =IF(AE114=0,"0.0 ",ROUND((AI114/AE114)*100,1)) -> 0 | AO114: =AE114+AM114 -> 11420 | AQ114: =IF(AO114=0,"0.0 ",ROUND((AI114/AO114)*100,1)) -> 0
T115: 27 | V115: =C51 -> ENVIRONMENTAL SURCHARGE MECHANISM RIDER (ESM) | AC115: =CUR_ESM_NONRES -> 0.08798914629 | AE115: =ROUND((AO111-(CUR_BASE_FUEL*AA111)+AO114+AO117)*AC115,0) -> 640970 | AG115: =ROUND((AE115/AE$120)*100,1) -> 5.2 | AI115: =L51-AE115 -> 0 | AK115: =IF(AE115=0,"0.0 ",ROUND((AI115/AE115)*100,1)) -> 0 | AO115: =AE115+AM115 -> 640970 | AQ115: =IF(AO115=0,"0.0 ",ROUND((AI115/AO115)*100,1)) -> 0
T116: 28 | V116: =C52 -> FUEL ADJUSTMENT CLAUSE (FAC) | AC116: =CUR_FAC -> 0.005965 | AM116: =ROUND(AA111*CUR_FAC,0) -> 1032140 | AO116: 1032140 | AQ116: =IF(AO116=0,"0.0 ",ROUND(((R52-AO116)/AO116)*100,1)) -> 0
T117: 30 | V117: =C53 -> PROFIT SHARING MECHANISM (PSM) | AC117: =RS_PSM -> 0.004727 | AE117: =ROUND(AA111*RS_PSM,0) -> 817925 | AG117: =ROUND((AE117/AE$120)*100,1) -> 6.6 | AI117: =L53-AE117 -> 0 | AK117: 0 | AO117: 817925 | AQ117: 0
T118: 31 | V118: TOTAL RIDERS | AE118: =SUM(AE114:AE117) -> 1470315 | AG118: =ROUND((AE118/AE$120)*100,1) -> 11.9 | AI118: =SUM(AI114:AI117) -> 0 | AK118: 0 | AM118: =SUM(AM114:AM117) -> 1032140 | AO118: =SUM(AO114:AO117) -> 2502455 | AQ118: 0
T120: =A56 -> 32 | V120: TOTAL RATE TT INCLUDING RIDERS | Y120: =Y111 -> 156 | AA120: =AA111 -> 173032651.2 | AE120: =AE111+AE118 -> 12320823 | AG120: 100 | AI120: =AI111+AI118 -> 1561072 | AK120: =IF(AE120=0,"0.0 ",ROUND((AI120/AE120)*100,1)) -> 12.7 | AM120: =AM111+AM118 -> 1032140 | AO120: =AO111+AO118 -> 13352963 | AQ120: =IF(AO120=0,"0.0 ",ROUND((AI120/AO120)*100,1)) -> 11.7
V122: (1) BILLS THAT TERMINATE IN RESPECTIVE RATE STEPS.
V123: ="(2) REFLECTS FUEL COMPONENT OF "&TEXT(CUR_FAC,"$0.000000;($0.000000)")&" PER KWH." -> (2) REFLECTS FUEL COMPONENT OF $0.005965 PER KWH.
V124: ="(3) REFLECTS FUEL COST RECOVERY INCLUDED IN BASE RATES OF "&TEXT(CUR_BASE_FUEL,"$0.000000;($0.000000)")&" PER KWH." -> (3) REFLECTS FUEL COST RECOVERY INCLUDED IN BASE RATES OF $0.025401 PER KWH.

Sheet Rate DT RTP-P
A1: =NAME -> DUKE ENERGY KENTUCKY, INC.
A2: =CASE_NO -> CASE NO. 2022-00372
A3: =TITLE -> ANNUALIZED BASE YEAR REVENUES AT PROPOSED VS. MOST CURRENT RATES
A4: =DATE -> FOR THE TWELVE MONTHS ENDED February 28, 2023
A5: =SERVICE -> (ELECTRIC SERVICE)
A6: =DATA_PERIOD -> DATA: __X__ BASE PERIOD ____FORECASTED PERIOD | R6: SCHEDULE M-2.3
A7: =TYPE -> TYPE OF FILING: _X_ ORIGINAL ___UPDATED ___ REVISED | R7: PAGE xx OF 20
A8: WORK PAPER REFERENCE NO(S).: | R8: WITNESS:
A9: =TIME -> 6 Months Actual and 6 Months Projected with Riders | R9: =WIT -> B. L. SAILERS
A10: =INPUT!B5 -> 6 Months Actual Ending August 31, 2022
A11: PROPOSED ANNUALIZED
L13: PROPOSED | N13: % OF REV TO | R13: PROPOSED
L14: REVENUE LESS | N14: TOTAL LESS | R14: TOTAL
A15: LINE | C15: RATE | D15: CLASS / | F15: CUSTOMER | J15: PROPOSED | L15: FUEL COST | N15: FUEL COST | P15: FUEL COST | R15: REVENUE
A16: NO. | C16: CODE | D16: DESCRIPTION | F16: BILLS(1) | H16: SALES | J16: RATES | L16: REVENUE | N16: REVENUE | P16: REVENUE | R16: (F + H)
C17: (A) | D17: (B) | F17: (C) | H17: (D) | J17: (E) | L17: (F) | N17: (G) | P17: (H) | R17: (I)
H19: (KWH) | J19: ($/KWH) | L19: ($) | N19: (%) | P19: ($) | R19: ($)
A20: 1 | C20: DT RTP | D20: TIME OF DAY SERVICE AT PRIMARY
A21: 2 | D21: DISTRIBUTION VOLTAGE
A23: 3 | C23: CUSTOMER CHARGE:
A24: 4 | C24: BILLS (Real-Time Pricing) | F24: 0 | J24: =INPUT!D154 -> 183 | L24: =ROUND(+F24*J24,0) -> 0 | N24: 0 | R24: =L24+P24 -> 0
A25: 5 | C25: TOTAL CUSTOMER CHARGE | L25: =SUM(L24:L24) -> 0 | N25: 0 | R25: =SUM(R24:R24) -> 0
A27: 6 | C27: ENERGY CHARGE (3):
A28: 7 | C28: ALL KWH | H28: 0 | J28: =INPUT!D157 -> 0.020898 | L28: =ROUND((H28*J28),0) -> 0 | N28: 0 | R28: =L28+P28 -> 0
A29: 8 | C29: COMMODITY CHARGES | H29: =H28 -> 0 | J29: =INPUT!D161 -> 0.064166 | L29: =ROUND((H29*J29),0) -> 0 | N29: 0 | P29: =ROUND(-H29*(CUR_FAC+CUR_BASE_FUEL),0) -> 0 | R29: =L29+P29 -> 0
A30: 9 | C30: TOTAL ENERGY | H30: =H28 -> 0 | L30: =SUM(L28:L29) -> 0 | N30: 0 | P30: =P29 -> 0 | R30: =SUM(R28:R29) -> 0
A31: 10 | C31: TOTAL RATE DT RTP PRIMARY EXCLUDING RIDERS | F31: =F24 -> 0 | H31: =H30 -> 0 | L31: =L30+L25 -> 0 | N31: 0 | P31: =P30 -> 0 | R31: =R25+R30 -> 0
A33: 11 | C33: RIDERS:
A34: 12 | C34: DEMAND SIDE MANAGEMENT RIDER (DSMR) | J34: =PRO_DSM_DIST -> -0.000718 | L34: =ROUND(H31*PRO_DSM_DIST,0) -> 0 | N34: 0 | R34: =L34+P34 -> 0
A35: 13 | C35: PROFIT SHARING MECHANISM (PSM) | J35: =PRO_PSM -> 0.004727 | L35: =ROUND(H31*PRO_PSM,0) -> 0 | N35: 0 | R35: 0
A36: 14 | C36: TOTAL RIDERS | L36: =SUM(L34:L35) -> 0 | N36: 0 | P36: =SUM(P34:P35) -> 0 | R36: =SUM(R34:R35) -> 0
A38: 15 | C38: TOTAL RATE DT RTP PRIMARY INCLUDING RIDERS | F38: =F31 -> 0 | H38: =H31 -> 0 | L38: =L36+L31 -> 0 | N38: 100 | P38: =P36+P31 -> 0 | R38: =R36+R31 -> 0
C40: (1) BILLS THAT TERMINATE IN RESPECTIVE RATE STEPS.
F41: 0 | H41: 0
T45: =NAME -> DUKE ENERGY KENTUCKY, INC.
T46: =CASE_NO -> CASE NO. 2022-00372
T47: =TITLE -> ANNUALIZED BASE YEAR REVENUES AT PROPOSED VS. MOST CURRENT RATES
T48: =DATE -> FOR THE TWELVE MONTHS ENDED February 28, 2023
T49: =SERVICE -> (ELECTRIC SERVICE)
T50: =DATA_PERIOD -> DATA: __X__ BASE PERIOD ____FORECASTED PERIOD | AO50: SCHEDULE M-2.2
T51: =TYPE -> TYPE OF FILING: _X_ ORIGINAL ___UPDATED ___ REVISED | AO51: =R7 -> PAGE xx OF 20
T52: WORK PAPER REFERENCE NO(S).: | AO52: WITNESS:
T53: =TIME -> 6 Months Actual and 6 Months Projected with Riders | AO53: =WIT -> B. L. SAILERS
T54: =INPUT!B5 -> 6 Months Actual Ending August 31, 2022
T55: CURRENT ANNUALIZED
AE57: CURRENT | AG57: % OF REV TO | AI57: REVENUE | AK57: % INCR IN | AO57: CURRENT | AQ57: TOTAL
AC58: MOST | AE58: REVENUE LESS | AG58: TOTAL LESS | AI58: INCR LESS | AK58: REV LESS | AO58: TOTAL | AQ58: REVENUE
T59: LINE | V59: RATE | W59: CLASS / | Y59: CUSTOMER | AC59: CURRENT | AE59: FUEL COST | AG59: FUEL COST | AI59: FUEL COST REV | AK59: FUEL COST REV | AM59: FUEL COST | AO59: REVENUE | AQ59: % INCREASE
T60: NO. | V60: CODE | W60: DESCRIPTION | Y60: BILLS(1) | AA60: SALES | AC60: RATES | AE60: REVENUE | AG60: REVENUE | AI60: (F - K) | AK60: (M / K) | AM60: REVENUE | AO60: (K + H) | AQ60: (M / K1)
V61: (A) | W61: (B) | Y61: (C) | AA61: (D) | AC61: (J) | AE61: (K) | AG61: (L) | AI61: (M) | AK61: (N) | AM61: (H) | AO61: (K1) | AQ61: (O)
AA63: (KWH) | AC63: ($/KWH) | AE63: ($) | AG63: (%) | AI63: ($) | AK63: (%) | AM63: ($) | AO63: ($) | AQ63: (%)
T64: =A20 -> 1 | V64: DT RTP | W64: TIME OF DAY SERVICE AT PRIMARY
T65: =A21 -> 2 | W65: DISTRIBUTION VOLTAGE
T67: 3 | V67: CUSTOMER CHARGE:
T68: 4 | V68: BILLS (Real-Time Pricing) | Y68: =F24 -> 0 | AC68: =INPUT!C154 -> 183 | AE68: =ROUND(+Y68*AC68,0) -> 0 | AG68: 0 | AI68: =L24-AE68 -> 0 | AK68: =IF(AE68=0,0,ROUND((AI68/AE68)*100,1)) -> 0 | AO68: =AE68+AM68 -> 0 | AQ68: 0
T69: 5 | V69: TOTAL CUSTOMER CHARGE | AE69: =SUM(AE68:AE68) -> 0 | AG69: 0 | AI69: =SUM(AI68:AI68) -> 0 | AK69: =IF(AE69=0,0,ROUND((AI69/AE69)*100,1)) -> 0 | AO69: =SUM(AO68:AO68) -> 0 | AQ69: 0
T71: 6 | V71: ENERGY CHARGE:
T72: 7 | V72: ALL KWH | AA72: =H28 -> 0 | AC72: =INPUT!C157 -> 0.014956 | AE72: =ROUND((+AA72*AC72),0) -> 0 | AG72: 0 | AI72: =L28-AE72 -> 0 | AK72: =IF(AE72=0,0,ROUND((AI72/AE72)*100,1)) -> 0 | AO72: =AE72+AM72 -> 0 | AQ72: 0
T73: 8 | V73: COMMODITY CHARGES | AA73: =H29 -> 0 | AC73: =INPUT!C161 -> 0.064166 | AE73: =ROUND((+AA73*AC73),0) -> 0 | AG73: 0 | AI73: =L29-AE73 -> 0 | AK73: =IF(AE73=0,0,ROUND((AI73/AE73)*100,1)) -> 0 | AM73: =ROUND(-AA73*(CUR_FAC+CUR_BASE_FUEL),0) -> 0 | AO73: =AE73+AM73 -> 0 | AQ73: 0
T74: 9 | V74: TOTAL ENERGY | AA74: =H30 -> 0 | AE74: =SUM(AE72:AE73) -> 0 | AG74: 0 | AI74: =SUM(AI72:AI73) -> 0 | AK74: =IF(AE74=0,0,ROUND((AI74/AE74)*100,1)) -> 0 | AM74: =AM73 -> 0 | AO74: =SUM(AO72:AO73) -> 0 | AQ74: 0
T75: 10 | V75: TOTAL RATE DT RTP PRIMARY EXCLUDING RIDERS | Y75: =Y68 -> 0 | AA75: =AA74 -> 0 | AE75: =AE69+AE74 -> 0 | AG75: 0 | AI75: =AI69+AI74 -> 0 | AK75: =IF(AE75=0,0,ROUND((AI75/AE75)*100,1)) -> 0 | AM75: =AM74+AM69 -> 0 | AO75: =AO74+AO69 -> 0 | AQ75: 0
T77: 11 | V77: RIDERS:
T78: 12 | V78: DEMAND SIDE MANAGEMENT RIDER (DSMR) | AC78: =DSM_DIST -> -0.000718 | AE78: =ROUND(AA75*DSM_DIST,0) -> 0 | AG78: 0 | AI78: =L34-AE78 -> 0 | AK78: =IF(AE78=0,0,ROUND((AI78/AE78)*100,1)) -> 0 | AO78: =AE78+AM78 -> 0 | AQ78: 0
T79: 13 | V79: PROFIT SHARING MECHANISM (PSM) | AC79: =RS_PSM -> 0.004727 | AE79: =ROUND(AA75*RS_PSM,0) -> 0 | AG79: 0 | AI79: =L35-AE79 -> 0 | AK79: 0 | AO79: 0 | AQ79: 0
T80: 14 | V80: TOTAL RIDERS | AE80: =SUM(AE78:AE79) -> 0 | AG80: 0 | AI80: =SUM(AI78:AI79) -> 0 | AK80: 0 | AO80: =SUM(AO78:AO79) -> 0 | AQ80: 0
T82: 15 | V82: TOTAL RATE DT RTP PRIMARY INCLUDING RIDERS | Y82: =F38 -> 0 | AA82: =H38 -> 0 | AE82: =AE80+AE75 -> 0 | AG82: 100 | AI82: =AI80+AI75 -> 0 | AK82: =IF(AE82=0,0,ROUND((AI82/AE82)*100,1)) -> 0 | AM82: =AM80+AM75 -> 0 | AO82: =AO69+AO74 -> 0 | AQ82: 0
V84: (1) BILLS THAT TERMINATE IN RESPECTIVE RATE STEPS.

Sheet Rate DT RTP-S
A1: =NAME -> DUKE ENERGY KENTUCKY, INC.
A2: =CASE_NO -> CASE NO. 2022-00372
A3: =TITLE -> ANNUALIZED BASE YEAR REVENUES AT PROPOSED VS. MOST CURRENT RATES
A4: =DATE -> FOR THE TWELVE MONTHS ENDED February 28, 2023
A5: =SERVICE -> (ELECTRIC SERVICE)
A6: =DATA_PERIOD -> DATA: __X__ BASE PERIOD ____FORECASTED PERIOD | R6: SCHEDULE M-2.3
A7: =TYPE -> TYPE OF FILING: _X_ ORIGINAL ___UPDATED ___ REVISED | R7: ="PAGE 10 OF "&TEXT(Page_Num_2.3,"00") -> PAGE 10 OF 24
A8: WORK PAPER REFERENCE NO(S).: | R8: WITNESS:
A9: =TIME -> 6 Months Actual and 6 Months Projected with Riders | R9: =WIT -> B. L. SAILERS
A10: =INPUT!B5 -> 6 Months Actual Ending August 31, 2022
A11: PROPOSED ANNUALIZED
L13: PROPOSED | N13: % OF REV TO | R13: PROPOSED
L14: REVENUE LESS | N14: TOTAL LESS | R14: TOTAL
A15: LINE | C15: RATE | D15: CLASS / | F15: CUSTOMER | J15: PROPOSED | L15: FUEL COST | N15: FUEL COST | P15: FUEL COST | R15: REVENUE
A16: NO. | C16: CODE | D16: DESCRIPTION | F16: BILLS(1) | H16: SALES | J16: RATES | L16: REVENUE | N16: REVENUE | P16: REVENUE | R16: (F + H)
C17: (A) | D17: (B) | F17: (C) | H17: (D) | J17: (E) | L17: (F) | N17: (G) | P17: (H) | R17: (I)
H19: (KWH) | J19: ($/KWH) | L19: ($) | N19: (%) | P19: ($) | R19: ($)
A20: 1 | C20: DT RTP | D20: TIME OF DAY SERVICE AT SECONDARY
A21: 2 | D21: DISTRIBUTION VOLTAGE
A23: 3 | C23: CUSTOMER CHARGE:
A24: 4 | C24: BILLS (Real-Time Pricing) | F24: 12 | J24: =INPUT!D154 -> 183 | L24: =ROUND(F24*J24,0) -> 2196 | N24: =ROUND((L24/$L$39)*100,1) -> 0.7 | R24: =L24+P24 -> 2196
A25: 5 | C25: TOTAL CUSTOMER CHARGE | L25: =SUM(L24) -> 2196 | N25: =ROUND((L25/$L$39)*100,1) -> 0.7 | R25: =SUM(R24) -> 2196
A27: 6 | C27: ENERGY CHARGE:
A28: 7 | C28: ALL KWH | H28: 3584923 | J28: =INPUT!D156 -> 0.024809 | L28: =ROUND((H28*J28),0) -> 88938 | N28: =ROUND((L28/$L$39)*100,1) -> 26.4 | R28: =L28+P28 -> 88938
A29: 8 | C29: COMMODITY CHARGES | H29: =H28 -> 3584923 | J29: =INPUT!D161 -> 0.064166 | L29: =ROUND((H29*J29),0) -> 230030 | N29: =ROUND((L29/$L$39)*100,1) -> 68.3 | P29: 0 | R29: =L29+P29 -> 230030
A30: 9 | C30: TOTAL ENERGY | H30: =H28 -> 3584923 | L30: =SUM(L28:L29) -> 318968 | N30: =ROUND((L30/$L$39)*100,1) -> 94.7 | P30: =P29 -> 0 | R30: =SUM(R28:R29) -> 318968
A31: 10 | C31: TOTAL RATE DT RTP SECONDARY EXCLUDING RIDERS | F31: =F24 -> 12 | H31: =H30 -> 3584923 | L31: =L30+L25 -> 321164 | N31: =ROUND((L31/$L$39)*100,1) -> 95.3 | P31: =P30+P25 -> 0 | R31: =R30+R25 -> 321164
A33: 11 | C33: RIDERS:
A34: 12 | C34: =DSMR_Name -> DEMAND SIDE MANAGEMENT RIDER (DSMR) | J34: =PRO_DSM_DIST -> -0.000718 | L34: =ROUND(H31*PRO_DSM_DIST,0) -> -2574 | M34: =ROUND((K34/$L$39)*100,1) -> 0 | N34: =ROUND((L34/$L$39)*100,1) -> -0.8 | Q34: =K34+O34 -> 0 | R34: =L34+P34 -> -2574
A35: 13 | C35: =ESM_Name -> ENVIRONMENTAL SURCHARGE MECHANISM RIDER (ESM) | L35: =AE79 -> 1458 | N35: =ROUND((L35/$L$39)*100,1) -> 0.4 | R35: 1458
A36: 14 | C36: =PSM_Name -> PROFIT SHARING MECHANISM (PSM) | J36: =PRO_PSM -> 0.004727 | L36: =ROUND(H31*PRO_PSM,0) -> 16946 | N36: =ROUND((L36/$L$39)*100,1) -> 5 | R36: 16946
A37: 15 | C37: TOTAL RIDERS | L37: =SUM(L34:L36) -> 15830 | N37: =ROUND((L37/$L$39)*100,1) -> 4.7 | P37: =SUM(P34:P36) -> 0 | R37: =SUM(R34:R36) -> 15830
A39: 16 | C39: TOTAL RATE DT RTP SECONDARY INCLUDING RIDERS | F39: =F31 -> 12 | H39: =H31 -> 3584923 | L39: =L37+L31 -> 336994 | N39: 100 | P39: =P37+P31 -> 0 | R39: =R37+R31 -> 336994
C41: (1) BILLS THAT TERMINATE IN RESPECTIVE RATE STEPS.
T45: =NAME -> DUKE ENERGY KENTUCKY, INC.
T46: =CASE_NO -> CASE NO. 2022-00372
T47: =TITLE -> ANNUALIZED BASE YEAR REVENUES AT PROPOSED VS. MOST CURRENT RATES
T48: =DATE -> FOR THE TWELVE MONTHS ENDED February 28, 2023
T49: =SERVICE -> (ELECTRIC SERVICE)
T50: =DATA_PERIOD -> DATA: __X__ BASE PERIOD ____FORECASTED PERIOD | AO50: SCHEDULE M-2.2
T51: =TYPE -> TYPE OF FILING: _X_ ORIGINAL ___UPDATED ___ REVISED | AO51: ="PAGE 10 OF "&TEXT(Page_Num_2.2,"00") -> PAGE 10 OF 23
T52: WORK PAPER REFERENCE NO(S).: | AO52: WITNESS:
T53: =TIME -> 6 Months Actual and 6 Months Projected with Riders | AO53: =WIT -> B. L. SAILERS
T54: =INPUT!B5 -> 6 Months Actual Ending August 31, 2022
T55: CURRENT ANNUALIZED
AE57: CURRENT | AG57: % OF REV TO | AI57: REVENUE | AK57: % INCR IN | AO57: CURRENT | AQ57: TOTAL
AC58: MOST | AE58: REVENUE LESS | AG58: TOTAL LESS | AI58: INCR LESS | AK58: REV LESS | AO58: TOTAL | AQ58: REVENUE
T59: LINE | V59: RATE | W59: CLASS / | Y59: CUSTOMER | AC59: CURRENT | AE59: FUEL COST | AG59: FUEL COST | AI59: FUEL COST REV | AK59: FUEL COST REV | AM59: FUEL COST | AO59: REVENUE | AQ59: % INCREASE
T60: NO. | V60: CODE | W60: DESCRIPTION | Y60: BILLS(1) | AA60: SALES | AC60: RATES | AE60: REVENUE | AG60: REVENUE | AI60: (F - K) | AK60: (M / K) | AM60: REVENUE | AO60: (K + H) | AQ60: (M / K1)
V61: (A) | W61: (B) | Y61: (C) | AA61: (D) | AC61: (J) | AE61: (K) | AG61: (L) | AI61: (M) | AK61: (N) | AM61: (H) | AO61: (K1) | AQ61: (O)
AA63: (KWH) | AC63: ($/KWH) | AE63: ($) | AG63: (%) | AI63: ($) | AK63: (%) | AM63: ($) | AO63: ($) | AQ63: (%)
T64: =A20 -> 1 | V64: DT RTP | W64: TIME OF DAY SERVICE AT SECONDARY
T65: 2 | W65: DISTRIBUTION VOLTAGE
T67: 3 | V67: CUSTOMER CHARGE:
T68: 4 | V68: BILLS (Real-Time Pricing) | Y68: =F24 -> 12 | AC68: =INPUT!C154 -> 183 | AE68: =ROUND(Y68*AC68,0) -> 2196 | AG68: =ROUND((AE68/$AE$83)*100,1) -> 0.7 | AI68: =L24-AE68 -> 0 | AK68: =ROUND((AI68/AE68)*100,1) -> 0 | AO68: =AE68+AM68 -> 2196 | AQ68: =ROUND((AI68/AO68)*100,1) -> 0
T69: 5 | V69: TOTAL CUSTOMER CHARGE | AE69: =SUM(AE68) -> 2196 | AG69: =ROUND((AE69/$AE$83)*100,1) -> 0.7 | AI69: =SUM(AI68) -> 0 | AK69: =ROUND((AI69/AE69)*100,1) -> 0 | AO69: =SUM(AO68) -> 2196 | AQ69: =ROUND((AI69/AO69)*100,1) -> 0
T71: 6 | V71: ENERGY CHARGE:
T72: 7 | V72: ALL KWH | AA72: =H28 -> 3584923 | AC72: =INPUT!C156 -> 0.018119 | AE72: =ROUND((AA72*AC72),0) -> 64955 | AG72: =ROUND((AE72/$AE$83)*100,1) -> 20.8 | AI72: =L28-AE72 -> 23983 | AK72: =ROUND((AI72/AE72)*100,1) -> 36.9 | AO72: =AE72+AM72 -> 64955 | AQ72: =ROUND((AI72/AO72)*100,1) -> 36.9
T73: 8 | V73: COMMODITY CHARGES | AA73: =H29 -> 3584923 | AC73: =INPUT!C161 -> 0.064166 | AE73: =ROUND((AA73*AC73),0) -> 230030 | AG73: =ROUND((AE73/$AE$83)*100,1) -> 73.5 | AI73: =L29-AE73 -> 0 | AK73: =ROUND((AI73/AE73)*100,1) -> 0 | AM73: 0 | AO73: =AE73+AM73 -> 230030 | AQ73: =ROUND((AI73/AO73)*100,1) -> 0
T74: 9 | V74: TOTAL ENERGY | AA74: =H30 -> 3584923 | AE74: =SUM(AE72:AE73) -> 294985 | AG74: =ROUND((AE74/$AE$83)*100,1) -> 94.2 | AI74: =SUM(AI72:AI73) -> 23983 | AK74: =ROUND((AI74/AE74)*100,1) -> 8.1 | AM74: =AM73 -> 0 | AO74: =SUM(AO72:AO73) -> 294985 | AQ74: =ROUND((AI74/AO74)*100,1) -> 8.1
T75: 10 | V75: TOTAL RATE DT RTP SECONDARY EXCLUDING RIDERS | Y75: =Y68 -> 12 | AA75: =AA74 -> 3584923 | AE75: =AE74+AE69 -> 297181 | AG75: =ROUND((AE75/$AE$83)*100,1) -> 94.9 | AI75: =AI74+AI69 -> 23983 | AK75: =ROUND((AI75/AE75)*100,1) -> 8.1 | AM75: =AM74+AM69 -> 0 | AO75: =AO74+AO69 -> 297181 | AQ75: =ROUND((AI75/AO75)*100,1) -> 8.1
T77: =A33 -> 11 | V77: RIDERS:
T78: =A34 -> 12 | V78: =C34 -> DEMAND SIDE MANAGEMENT RIDER (DSMR) | AC78: =DSM_DIST -> -0.000718 | AE78: =ROUND(AA75*DSM_DIST,0) -> -2574 | AG78: =ROUND((AE78/$AE$83)*100,1) -> -0.8 | AI78: =L34-AE78 -> 0 | AK78: =IF(AE78=0,0,ROUND((AI78/AE78)*100,1)) -> 0 | AO78: =AE78+AM78 -> -2574 | AQ78: =IF(AO78=0,0,ROUND((AI78/AO78)*100,1)) -> 0
T79: =A35 -> 13 | V79: =C35 -> ENVIRONMENTAL SURCHARGE MECHANISM RIDER (ESM) | AC79: =CUR_ESM_NONRES -> 0.08798914629 | AE79: =ROUND((AO69+AO78+AO80)*AC79,0) -> 1458 | AG79: =ROUND((AE79/$AE$83)*100,1) -> 0.5 | AI79: =L35-AE79 -> 0 | AK79: =IF(AE79=0,0,ROUND((AI79/AE79)*100,1)) -> 0 | AO79: =AE79+AM79 -> 1458 | AQ79: =IF(AO79=0,0,ROUND((AI79/AO79)*100,1)) -> 0
T80: =A36 -> 14 | V80: =C36 -> PROFIT SHARING MECHANISM (PSM) | AC80: =RS_PSM -> 0.004727 | AE80: =ROUND(AA75*RS_PSM,0) -> 16946 | AG80: =ROUND((AE80/$AE$83)*100,1) -> 5.4 | AI80: =L36-AE80 -> 0 | AK80: =IF(AE80=0,0,ROUND((AI80/AE80)*100,1)) -> 0 | AO80: 16946 | AQ80: =IF(AO80=0,0,ROUND((AI80/AO80)*100,1)) -> 0
T81: =A37 -> 15 | V81: TOTAL RIDERS | AE81: =SUM(AE78:AE80) -> 15830 | AG81: =ROUND((AE81/$AE$83)*100,1) -> 5.1 | AI81: =SUM(AI78:AI80) -> 0 | AK81: =IF(AE81=0,0,ROUND((AI81/AE81)*100,1)) -> 0 | AM81: =SUM(AM78:AM80) -> 0 | AO81: =SUM(AO78:AO80) -> 15830 | AQ81: 0
T83: =A39 -> 16 | V83: TOTAL RATE DT RTP SECONDARY INCLUDING RIDERS | Y83: =F39 -> 12 | AA83: =H39 -> 3584923 | AE83: =AE81+AE75 -> 313011 | AG83: 100 | AI83: =AI81+AI75 -> 23983 | AK83: =ROUND((AI83/AE83)*100,1) -> 7.7 | AM83: =AM81+AM75 -> 0 | AO83: =AO81+AO75 -> 313011 | AQ83: =ROUND((AI83/AO83)*100,1) -> 7.7
V85: (1) BILLS THAT TERMINATE IN RESPECTIVE RATE STEPS.

Sheet Rate DS RTP
A1: =NAME -> DUKE ENERGY KENTUCKY, INC.
A2: =CASE_NO -> CASE NO. 2022-00372
A3: =TITLE -> ANNUALIZED BASE YEAR REVENUES AT PROPOSED VS. MOST CURRENT RATES
A4: =DATE -> FOR THE TWELVE MONTHS ENDED February 28, 2023
A5: =SERVICE -> (ELECTRIC SERVICE)
A6: =DATA_PERIOD -> DATA: __X__ BASE PERIOD ____FORECASTED PERIOD | R6: SCHEDULE M-2.3
A7: =TYPE -> TYPE OF FILING: _X_ ORIGINAL ___UPDATED ___ REVISED | R7: ="PAGE 11 OF "&TEXT(Page_Num_2.3,"00") -> PAGE 11 OF 24
A8: WORK PAPER REFERENCE NO(S).: | R8: WITNESS:
A9: =TIME -> 6 Months Actual and 6 Months Projected with Riders | R9: =WIT -> B. L. SAILERS
A10: =INPUT!B5 -> 6 Months Actual Ending August 31, 2022
A11: PROPOSED ANNUALIZED
L13: PROPOSED | N13: % OF REV TO | R13: PROPOSED
L14: REVENUE LESS | N14: TOTAL LESS | R14: TOTAL
A15: LINE | C15: RATE | D15: CLASS / | F15: CUSTOMER | J15: PROPOSED | L15: FUEL COST | N15: FUEL COST | P15: FUEL COST | R15: REVENUE
A16: NO. | C16: CODE | D16: DESCRIPTION | F16: BILLS(1) | H16: SALES | J16: RATES | L16: REVENUE | N16: REVENUE | P16: REVENUE | R16: (F + H)
C17: (A) | D17: (B) | F17: (C) | H17: (D) | J17: (E) | L17: (F) | N17: (G) | P17: (H) | R17: (I)
H19: (KWH) | J19: ($/KWH) | L19: ($) | N19: (%) | P19: ($) | R19: ($)
A20: 1 | C20: DS RTP | D20: SERVICE AT SECONDARY
A21: 2 | D21: DISTRIBUTION VOLTAGE
A23: 3 | C23: CUSTOMER CHARGE:
A24: 4 | C24: BILLS (Real-Time Pricing) | F24: 24 | J24: =INPUT!D154 -> 183 | L24: =ROUND(F24*J24,0) -> 4392 | N24: =ROUND((L24/L$39)*100,1) -> 6.1 | R24: =L24+P24 -> 4392
A25: 5 | C25: TOTAL CUSTOMER CHARGE | L25: =SUM(L24:L24) -> 4392 | N25: =ROUND((L25/L$39)*100,1) -> 6.1 | R25: =SUM(R24:R24) -> 4392
A27: 6 | C27: ENERGY CHARGE:
A28: 7 | C28: ALL KWH | H28: 514069 | J28: =INPUT!D156 -> 0.024809 | L28: =ROUND((H28*J28),0) -> 12754 | N28: =ROUND((L28/L$39)*100,1) -> 17.7 | R28: =L28+P28 -> 12754
A29: 8 | C29: COMMODITY CHARGES | H29: =H28 -> 514069 | J29: =INPUT!D160 -> 0.101658 | L29: =ROUND((H29*J29),0) -> 52259 | N29: =ROUND((L29/L$39)*100,1) -> 72.5 | P29: 0 | R29: =L29+P29 -> 52259
A30: 9 | C30: TOTAL ENERGY | H30: =H28 -> 514069 | L30: =SUM(L28:L29) -> 65013 | N30: =ROUND((L30/L$39)*100,1) -> 90.3 | P30: =P29 -> 0 | R30: =SUM(R28:R29) -> 65013
A31: 10 | C31: TOTAL RATE DS RTP EXCLUDING RIDERS | F31: =F24 -> 24 | H31: =H30 -> 514069 | L31: =L30+L25 -> 69405 | N31: =ROUND((L31/L$39)*100,1) -> 96.4 | P31: =P30+P25 -> 0 | R31: =R30+R25 -> 69405
A33: 11 | C33: RIDERS:
A34: 12 | C34: =DSMR_Name -> DEMAND SIDE MANAGEMENT RIDER (DSMR) | J34: =PRO_DSM_DIST -> -0.000718 | L34: =ROUND($H$31*J34,0) -> -369 | N34: =ROUND((L34/L$39)*100,1) -> -0.5 | R34: =L34+P34 -> -369
A35: 13 | C35: =ESM_Name -> ENVIRONMENTAL SURCHARGE MECHANISM RIDER (ESM) | L35: =AE79 -> 568 | N35: =ROUND((L35/L$39)*100,1) -> 0.8 | R35: =L35+P35 -> 568
A36: 14 | C36: =PSM_Name -> PROFIT SHARING MECHANISM (PSM) | J36: =PRO_PSM -> 0.004727 | L36: =ROUND(H31*PRO_PSM,0) -> 2430 | N36: =ROUND((L36/L$39)*100,1) -> 3.4 | R36: 2430
A37: 15 | C37: TOTAL RIDERS | L37: =SUM(L34:L36) -> 2629 | N37: =ROUND((L37/L$39)*100,1) -> 3.6 | P37: =SUM(P34:P36) -> 0 | R37: =SUM(R34:R36) -> 2629
A39: 16 | C39: TOTAL RATE DS RTP INCLUDING RIDERS | F39: =F31 -> 24 | H39: =H31 -> 514069 | L39: =L37+L31 -> 72034 | N39: 100 | P39: =P37+P31 -> 0 | R39: =R37+R31 -> 72034
C41: (1) BILLS THAT TERMINATE IN RESPECTIVE RATE STEPS.
T45: =NAME -> DUKE ENERGY KENTUCKY, INC.
T46: =CASE_NO -> CASE NO. 2022-00372
T47: =TITLE -> ANNUALIZED BASE YEAR REVENUES AT PROPOSED VS. MOST CURRENT RATES
T48: =DATE -> FOR THE TWELVE MONTHS ENDED February 28, 2023
T49: =SERVICE -> (ELECTRIC SERVICE)
T50: =DATA_PERIOD -> DATA: __X__ BASE PERIOD ____FORECASTED PERIOD | AO50: SCHEDULE M-2.2
T51: =TYPE -> TYPE OF FILING: _X_ ORIGINAL ___UPDATED ___ REVISED | AO51: ="PAGE 11 OF "&TEXT(Page_Num_2.2,"00") -> PAGE 11 OF 23
T52: WORK PAPER REFERENCE NO(S).: | AO52: WITNESS:
T53: =TIME -> 6 Months Actual and 6 Months Projected with Riders | AO53: =WIT -> B. L. SAILERS
T54: =INPUT!B5 -> 6 Months Actual Ending August 31, 2022
T55: CURRENT ANNUALIZED
AE57: CURRENT | AG57: % OF REV TO | AI57: REVENUE | AK57: % INCR IN | AO57: CURRENT | AQ57: TOTAL
AC58: MOST | AE58: REVENUE LESS | AG58: TOTAL LESS | AI58: INCR LESS | AK58: REV LESS | AO58: TOTAL | AQ58: REVENUE
T59: LINE | V59: RATE | W59: CLASS / | Y59: CUSTOMER | AC59: CURRENT | AE59: FUEL COST | AG59: FUEL COST | AI59: FUEL COST REV | AK59: FUEL COST REV | AM59: FUEL COST | AO59: REVENUE | AQ59: % INCREASE
T60: NO. | V60: CODE | W60: DESCRIPTION | Y60: BILLS(1) | AA60: SALES | AC60: RATES | AE60: REVENUE | AG60: REVENUE | AI60: (F - K) | AK60: (M / K) | AM60: REVENUE | AO60: (K + H) | AQ60: (M / K1)
V61: (A) | W61: (B) | Y61: (C) | AA61: (D) | AC61: (J) | AE61: (K) | AG61: (L) | AI61: (M) | AK61: (N) | AM61: (H) | AO61: (K1) | AQ61: (O)
AA63: (KWH) | AC63: ($/KWH) | AE63: ($) | AG63: (%) | AI63: ($) | AK63: (%) | AM63: ($) | AO63: ($) | AQ63: (%)
T64: =A20 -> 1 | V64: DS RTP | W64: SERVICE AT SECONDARY
T65: 2 | W65: DISTRIBUTION VOLTAGE
T67: 3 | V67: CUSTOMER CHARGE:
T68: 4 | V68: BILLS (Real-Time Pricing) | Y68: =F24 -> 24 | AC68: =INPUT!C154 -> 183 | AE68: =ROUND(Y68*AC68,0) -> 4392 | AG68: =ROUND((AE68/AE$83)*100,1) -> 6.4 | AI68: =L24-AE68 -> 0 | AK68: =ROUND((AI68/AE68)*100,1) -> 0 | AO68: =AE68+AM68 -> 4392 | AQ68: =IF(AO68=0,"0.0 ",ROUND((AI68/AO68)*100,1)) -> 0
T69: 5 | V69: TOTAL CUSTOMER CHARGE | AE69: =SUM(AE68:AE68) -> 4392 | AG69: =ROUND((AE69/AE$83)*100,1) -> 6.4 | AI69: =SUM(AI68:AI68) -> 0 | AK69: =ROUND((AI69/AE69)*100,1) -> 0 | AO69: =SUM(AO68:AO68) -> 4392 | AQ69: =IF(AO69=0,"0.0 ",ROUND((AI69/AO69)*100,1)) -> 0
T71: 6 | V71: ENERGY CHARGE:
T72: 7 | V72: ALL KWH | AA72: =H28 -> 514069 | AC72: =INPUT!C156 -> 0.018119 | AE72: =ROUND((AA72*AC72),0) -> 9314 | AG72: =ROUND((AE72/AE$83)*100,1) -> 13.6 | AI72: =L28-AE72 -> 3440 | AK72: =ROUND((AI72/AE72)*100,1) -> 36.9 | AO72: =AE72+AM72 -> 9314 | AQ72: =IF(AO72=0,"0.0 ",ROUND((AI72/AO72)*100,1)) -> 36.9
T73: 8 | V73: COMMODITY CHARGES | AA73: =H29 -> 514069 | AC73: =INPUT!C160 -> 0.101658 | AE73: =ROUND((AA73*AC73),0) -> 52259 | AG73: =ROUND((AE73/AE$83)*100,1) -> 76.2 | AI73: =L29-AE73 -> 0 | AK73: =IF(AE73=0,0,ROUND((AI73/AE73)*100,1)) -> 0 | AM73: 0 | AO73: =AE73+AM73 -> 52259 | AQ73: =IF(AO73=0,"0.0 ",ROUND((AI73/AO73)*100,1)) -> 0
T74: 9 | V74: TOTAL ENERGY | AA74: =H30 -> 514069 | AE74: =SUM(AE72:AE73) -> 61573 | AG74: =ROUND((AE74/AE$83)*100,1) -> 89.8 | AI74: =SUM(AI72:AI73) -> 3440 | AK74: =ROUND((AI74/AE74)*100,1) -> 5.6 | AM74: =AM73 -> 0 | AO74: =SUM(AO72:AO73) -> 61573 | AQ74: =IF(AO74=0,"0.0 ",ROUND((AI74/AO74)*100,1)) -> 5.6
T75: 10 | V75: TOTAL RATE DS RTP EXCLUDING RIDERS | Y75: =Y68 -> 24 | AA75: =AA74 -> 514069 | AE75: =AE74+AE69 -> 65965 | AG75: =ROUND((AE75/AE$83)*100,1) -> 96.2 | AI75: =AI74+AI69 -> 3440 | AK75: =ROUND((AI75/AE75)*100,1) -> 5.2 | AM75: =AM74+AM69 -> 0 | AO75: =AO74+AO69 -> 65965 | AQ75: =IF(AO75=0,"0.0 ",ROUND((AI75/AO75)*100,1)) -> 5.2
T77: =A33 -> 11 | V77: RIDERS:
T78: =A34 -> 12 | V78: =C34 -> DEMAND SIDE MANAGEMENT RIDER (DSMR) | AC78: =DSM_DIST -> -0.000718 | AE78: =ROUND($AA$75*AC78,0) -> -369 | AG78: =ROUND((AE78/AE$83)*100,1) -> -0.5 | AI78: =L34-AE78 -> 0 | AK78: =IF(AE78=0,0,ROUND((AI78/AE78)*100,1)) -> 0 | AO78: =AE78+AM78 -> -369 | AQ78: =IF(AO78=0,"0.0 ",ROUND((AI78/AO78)*100,1)) -> 0
T79: =A35 -> 13 | V79: =C35 -> ENVIRONMENTAL SURCHARGE MECHANISM RIDER (ESM) | AC79: =CUR_ESM_NONRES -> 0.08798914629 | AE79: =ROUND((AO69+AO78+AO80)*AC79,0) -> 568 | AG79: =ROUND((AE79/AE$83)*100,1) -> 0.8 | AI79: =L35-AE79 -> 0 | AK79: =IF(AE79=0,0,ROUND((AI79/AE79)*100,1)) -> 0 | AO79: =AE79+AM79 -> 568 | AQ79: 0
T80: =A36 -> 14 | V80: =C36 -> PROFIT SHARING MECHANISM (PSM) | AC80: =RS_PSM -> 0.004727 | AE80: =ROUND(AA75*RS_PSM,0) -> 2430 | AG80: =ROUND((AE80/AE$83)*100,1) -> 3.5 | AI80: =L36-AE80 -> 0 | AK80: 0 | AO80: 2430 | AQ80: 0
T81: =A37 -> 15 | V81: TOTAL RIDERS | AE81: =SUM(AE78:AE80) -> 2629 | AG81: =ROUND((AE81/AE$83)*100,1) -> 3.8 | AI81: =SUM(AI78:AI80) -> 0 | AK81: =ROUND((AI81/AE81)*100,1) -> 0 | AM81: =SUM(AM78:AM80) -> 0 | AO81: =SUM(AO78:AO80) -> 2629 | AQ81: 0
T83: =A39 -> 16 | V83: TOTAL RATE DS RTP INCLUDING RIDERS | Y83: =Y75 -> 24 | AA83: =AA75 -> 514069 | AE83: =AE81+AE75 -> 68594 | AG83: 100 | AI83: =AI81+AI75 -> 3440 | AK83: =ROUND((AI83/AE83)*100,1) -> 5 | AM83: =AM81+AM75 -> 0 | AO83: =AO81+AO75 -> 68594 | AQ83: =IF(AO83=0,"0.0 ",ROUND((AI83/AO83)*100,1)) -> 5
V85: (1) BILLS THAT TERMINATE IN RESPECTIVE RATE STEPS.

Sheet Rate TT RTP
A1: =NAME -> DUKE ENERGY KENTUCKY, INC.
A2: =CASE_NO -> CASE NO. 2022-00372
A3: =TITLE -> ANNUALIZED BASE YEAR REVENUES AT PROPOSED VS. MOST CURRENT RATES
A4: =DATE -> FOR THE TWELVE MONTHS ENDED February 28, 2023
A5: =SERVICE -> (ELECTRIC SERVICE)
A6: =DATA_PERIOD -> DATA: __X__ BASE PERIOD ____FORECASTED PERIOD | R6: SCHEDULE M-2.3
A7: =TYPE -> TYPE OF FILING: _X_ ORIGINAL ___UPDATED ___ REVISED | R7: ="PAGE 12 OF "&TEXT(Page_Num_2.3,"00") -> PAGE 12 OF 24
A8: WORK PAPER REFERENCE NO(S).: | R8: WITNESS:
A9: =TIME -> 6 Months Actual and 6 Months Projected with Riders | R9: =WIT -> B. L. SAILERS
A10: =INPUT!B5 -> 6 Months Actual Ending August 31, 2022
A11: PROPOSED ANNUALIZED
L13: PROPOSED | N13: % OF REV TO | R13: PROPOSED
L14: REVENUE LESS | N14: TOTAL LESS | R14: TOTAL
A15: LINE | C15: RATE | D15: CLASS / | F15: CUSTOMER | J15: PROPOSED | L15: FUEL COST | N15: FUEL COST | P15: FUEL COST | R15: REVENUE
A16: NO. | C16: CODE | D16: DESCRIPTION | F16: BILLS(1) | H16: SALES | J16: RATES | L16: REVENUE | N16: REVENUE | P16: REVENUE | R16: (F + H)
C17: (A) | D17: (B) | F17: (C) | H17: (D) | J17: (E) | L17: (F) | N17: (G) | P17: (H) | R17: (I)
H19: (KWH) | J19: ($/KWH) | L19: ($) | N19: (%) | P19: ($) | R19: ($)
A20: 1 | C20: TT RTP | D20: TIME OF DAY SERVICE AT
A21: 2 | D21: TRANSMISSION VOLTAGE
A23: 3 | C23: CUSTOMER CHARGE:
A24: 4 | C24: BILLS (Real-Time Pricing) | F24: 24 | J24: =INPUT!D154 -> 183 | L24: =ROUND(F24*J24,0) -> 4392 | N24: =ROUND((L24/$L$39)*100,1) -> 0.5 | R24: =L24+P24 -> 4392
A25: 5 | C25: TOTAL CUSTOMER CHARGE | L25: =SUM(L24) -> 4392 | N25: =ROUND((L25/$L$39)*100,1) -> 0.5 | R25: =SUM(R24) -> 4392
A27: 6 | C27: ENERGY CHARGE:
A28: 7 | C28: ALL KWH | H28: 13504531 | J28: =INPUT!D158 -> 0.008139 | L28: =ROUND((H28*J28),0) -> 109913 | N28: =ROUND((L28/$L$39)*100,1) -> 13.5 | R28: =L28+P28 -> 109913
A29: 8 | C29: COMMODITY CHARGES | H29: =H28 -> 13504531 | J29: =INPUT!D162 -> 0.046419 | L29: =ROUND((H29*J29),0) -> 626867 | N29: =ROUND((L29/$L$39)*100,1) -> 77.2 | P29: 0 | R29: =L29+P29 -> 626867
A30: 9 | C30: TOTAL ENERGY | H30: =H28 -> 13504531 | L30: =SUM(L28:L29) -> 736780 | N30: =ROUND((L30/$L$39)*100,1) -> 90.7 | P30: =P29 -> 0 | R30: =SUM(R28:R29) -> 736780
A31: 10 | C31: TOTAL RATE TT RTP EXCLUDING RIDERS | F31: =F24 -> 24 | H31: =H30 -> 13504531 | L31: =L30+L25 -> 741172 | N31: =ROUND((L31/$L$39)*100,1) -> 91.3 | P31: =SUM(P30+P25) -> 0 | R31: =R30+R25 -> 741172
A33: 11 | C33: RIDERS:
A34: 12 | C34: =DSMR_Name -> DEMAND SIDE MANAGEMENT RIDER (DSMR) | J34: =PRO_DSM_TRANS -> 6.6e-05 | L34: =ROUND($H$31*J34,0) -> 891 | N34: =ROUND((L34/$L$39)*100,1) -> 0.1 | R34: =L34+P34 -> 891
A35: 13 | C35: =ESM_Name -> ENVIRONMENTAL SURCHARGE MECHANISM RIDER (ESM) | L35: =AE81 -> 6082 | N35: =ROUND((L35/$L$39)*100,1) -> 0.7 | R35: =L35+P35 -> 6082
A36: 14 | C36: =PSM_Name -> PROFIT SHARING MECHANISM (PSM) | J36: =PRO_PSM -> 0.004727 | L36: =ROUND(H31*PRO_PSM,0) -> 63836 | N36: =ROUND((L36/$L$39)*100,1) -> 7.9 | R36: 63836
A37: 15 | C37: TOTAL RIDERS | L37: =SUM(L34:L36) -> 70809 | N37: =ROUND((L37/$L$39)*100,1) -> 8.7 | R37: =SUM(R34:R36) -> 70809
A39: 16 | C39: TOTAL RATE TT RTP INCLUDING RIDERS | F39: =F31 -> 24 | H39: =H31 -> 13504531 | L39: =L37+L31 -> 811981 | N39: 100 | P39: =P37+P31 -> 0 | R39: =R37+R31 -> 811981
C41: (1) BILLS THAT TERMINATE IN RESPECTIVE RATE STEPS.
T47: =NAME -> DUKE ENERGY KENTUCKY, INC.
T48: =CASE_NO -> CASE NO. 2022-00372
T49: =TITLE -> ANNUALIZED BASE YEAR REVENUES AT PROPOSED VS. MOST CURRENT RATES
T50: =DATE -> FOR THE TWELVE MONTHS ENDED February 28, 2023
T51: =SERVICE -> (ELECTRIC SERVICE)
T52: =DATA_PERIOD -> DATA: __X__ BASE PERIOD ____FORECASTED PERIOD | AO52: SCHEDULE M-2.2
T53: =TYPE -> TYPE OF FILING: _X_ ORIGINAL ___UPDATED ___ REVISED | AO53: ="PAGE 12 OF "&TEXT(Page_Num_2.2,"00") -> PAGE 12 OF 23
T54: WORK PAPER REFERENCE NO(S).: | AO54: WITNESS:
T55: =TIME -> 6 Months Actual and 6 Months Projected with Riders | AO55: =WIT -> B. L. SAILERS
T56: =INPUT!B5 -> 6 Months Actual Ending August 31, 2022
T57: CURRENT ANNUALIZED
AE59: CURRENT | AG59: % OF REV TO | AI59: REVENUE | AK59: % INCR IN | AO59: CURRENT | AQ59: TOTAL
AC60: MOST | AE60: REVENUE LESS | AG60: TOTAL LESS | AI60: INCR LESS | AK60: REV LESS | AO60: TOTAL | AQ60: REVENUE
T61: LINE | V61: RATE | W61: CLASS / | Y61: CUSTOMER | AC61: CURRENT | AE61: FUEL COST | AG61: FUEL COST | AI61: FUEL COST REV | AK61: FUEL COST REV | AM61: FUEL COST | AO61: REVENUE | AQ61: % INCREASE
T62: NO. | V62: CODE | W62: DESCRIPTION | Y62: BILLS(1) | AA62: SALES | AC62: RATES | AE62: REVENUE | AG62: REVENUE | AI62: (F - K) | AK62: (M / K) | AM62: REVENUE | AO62: (K + H) | AQ62: (M / K1)
V63: (A) | W63: (B) | Y63: (C) | AA63: (D) | AC63: (J) | AE63: (K) | AG63: (L) | AI63: (M) | AK63: (N) | AM63: (H) | AO63: (K1) | AQ63: (O)
AA65: (KWH) | AC65: ($/KWH) | AE65: ($) | AG65: (%) | AI65: ($) | AK65: (%) | AM65: ($) | AO65: ($) | AQ65: (%)
T66: =A20 -> 1 | V66: TT RTP | W66: TIME OF DAY SERVICE AT
T67: 2 | W67: TRANSMISSION VOLTAGE
T69: 3 | V69: CUSTOMER CHARGE:
T70: 4 | V70: BILLS (Real-Time Pricing) | Y70: =F24 -> 24 | AC70: =INPUT!C154 -> 183 | AE70: =ROUND(Y70*AC70,0) -> 4392 | AG70: =ROUND((AE70/AE$85)*100,1) -> 0.6 | AI70: =L24-AE70 -> 0 | AK70: =IF(AE70=0,"0.0 ",ROUND((AI70/AE70)*100,1)) -> 0 | AO70: =AE70+AM70 -> 4392 | AQ70: =IF(AO70=0,"0.0 ",ROUND((AI70/AO70)*100,1)) -> 0
T71: 5 | V71: TOTAL CUSTOMER CHARGE | AE71: =SUM(AE70) -> 4392 | AG71: =ROUND((AE71/AE$85)*100,1) -> 0.6 | AI71: =L25-AE71 -> 0 | AK71: =IF(AE71=0,"0.0 ",ROUND((AI71/AE71)*100,1)) -> 0 | AO71: =AE71+AM71 -> 4392 | AQ71: =IF(AO71=0,"0.0 ",ROUND((AI71/AO71)*100,1)) -> 0
T73: 6 | V73: ENERGY CHARGE:
T74: 7 | V74: ALL KWH | AA74: =H28 -> 13504531 | AC74: =INPUT!C158 -> 0.006575 | AE74: =ROUND((AA74*AC74),0) -> 88792 | AG74: =ROUND((AE74/AE$85)*100,1) -> 11.2 | AI74: =L28-AE74 -> 21121 | AK74: =IF(AE74=0,"0.0 ",ROUND((AI74/AE74)*100,1)) -> 23.8 | AO74: =AE74+AM74 -> 88792 | AQ74: =IF(AO74=0,"0.0 ",ROUND((AI74/AO74)*100,1)) -> 23.8
T75: 8 | V75: COMMODITY CHARGES | AA75: =H29 -> 13504531 | AC75: =INPUT!C162 -> 0.046419 | AE75: =ROUND((AA75*AC75),0) -> 626867 | AG75: =ROUND((AE75/AE$85)*100,1) -> 79.3 | AI75: =L29-AE75 -> 0 | AK75: =IF(AE75=0,"0.0 ",ROUND((AI75/AE75)*100,1)) -> 0 | AM75: 0 | AO75: =AE75+AM75 -> 626867 | AQ75: =IF(AO75=0,"0.0 ",ROUND((AI75/AO75)*100,1)) -> 0
T76: 9 | V76: TOTAL ENERGY | AA76: =H30 -> 13504531 | AE76: =SUM(AE74:AE75) -> 715659 | AG76: =ROUND((AE76/AE$85)*100,1) -> 90.5 | AI76: =SUM(AI74:AI75) -> 21121 | AK76: =IF(AE76=0,"0.0 ",ROUND((AI76/AE76)*100,1)) -> 3 | AM76: =AM75 -> 0 | AO76: =SUM(AO74:AO75) -> 715659 | AQ76: =IF(AO76=0,"0.0 ",ROUND((AI76/AO76)*100,1)) -> 3
T77: 10 | V77: TOTAL RATE TT RTP EXCLUDING RIDERS | Y77: =Y70 -> 24 | AA77: =AA76 -> 13504531 | AE77: =AE76+AE71 -> 720051 | AG77: =ROUND((AE77/AE$85)*100,1) -> 91 | AI77: =AI76+AI71 -> 21121 | AK77: =IF(AE77=0,"0.0 ",ROUND((AI77/AE77)*100,1)) -> 2.9 | AM77: =AM76+AM71 -> 0 | AO77: =AO76+AO71 -> 720051 | AQ77: =IF(AO77=0,"0.0 ",ROUND((AI77/AO77)*100,1)) -> 2.9
T79: =A33 -> 11 | V79: RIDERS:
T80: =A34 -> 12 | V80: =C34 -> DEMAND SIDE MANAGEMENT RIDER (DSMR) | AC80: =DSM_TRANS -> 6.6e-05 | AE80: =ROUND($AA$77*AC80,0) -> 891 | AG80: =ROUND((AE80/AE$85)*100,1) -> 0.1 | AI80: =L34-AE80 -> 0 | AK80: =IF(AE80=0,"0.0 ",ROUND((AI80/AE80)*100,1)) -> 0 | AO80: =AE80+AM80 -> 891 | AQ80: =IF(AO80=0,"0.0 ",ROUND((AI80/AO80)*100,1)) -> 0
T81: =A35 -> 13 | V81: =C35 -> ENVIRONMENTAL SURCHARGE MECHANISM RIDER (ESM) | AC81: =CUR_ESM_NONRES -> 0.08798914629 | AE81: =ROUND((AO71+AO80+AO82)*AC81,0) -> 6082 | AG81: =ROUND((AE81/AE$85)*100,1) -> 0.8 | AI81: =L35-AE81 -> 0 | AK81: =IF(AE81=0,"0.0 ",ROUND((AI81/AE81)*100,1)) -> 0 | AO81: =AE81+AM81 -> 6082 | AQ81: =IF(AO81=0,"0.0 ",ROUND((AI81/AO81)*100,1)) -> 0
T82: =A36 -> 14 | V82: =C36 -> PROFIT SHARING MECHANISM (PSM) | AC82: =RS_PSM -> 0.004727 | AE82: =ROUND(AA77*RS_PSM,0) -> 63836 | AG82: =ROUND((AE82/AE$85)*100,1) -> 8.1 | AI82: =L36-AE82 -> 0 | AK82: 0 | AO82: 63836 | AQ82: 0
T83: =A37 -> 15 | V83: TOTAL RIDERS | AE83: =SUM(AE80:AE82) -> 70809 | AG83: =ROUND((AE83/AE$85)*100,1) -> 9 | AI83: =SUM(AI80:AI82) -> 0 | AK83: 0 | AM83: =SUM(AM80:AM82) -> 0 | AO83: =SUM(AO80:AO82) -> 70809 | AQ83: 0
T85: =A39 -> 16 | V85: TOTAL RATE TT RTP INCLUDING RIDERS | Y85: =Y77 -> 24 | AA85: =AA77 -> 13504531 | AE85: =AE83+AE77 -> 790860 | AG85: 100 | AI85: =AI83+AI77 -> 21121 | AK85: =IF(AE85=0,"0.0 ",ROUND((AI85/AE85)*100,1)) -> 2.7 | AM85: =AM83+AM77 -> 0 | AO85: =AO83+AO77 -> 790860 | AQ85: =IF(AO85=0,"0.0 ",ROUND((AI85/AO85)*100,1)) -> 2.7
V87: (1) BILLS THAT TERMINATE IN RESPECTIVE RATE STEPS.

Sheet Rate SL
A1: =NAME -> DUKE ENERGY KENTUCKY, INC. | AA1: Increase in Street Lighting rate SL per COSS: | AG1: 0.414423
A2: =CASE_NO -> CASE NO. 2022-00372
A3: =TITLE -> ANNUALIZED BASE YEAR REVENUES AT PROPOSED VS. MOST CURRENT RATES
A4: =DATE -> FOR THE TWELVE MONTHS ENDED February 28, 2023 | AA4: Pole Rate Increases | AI4: code
A5: =SERVICE -> (ELECTRIC SERVICE) | AA5: w17 | AC5: 4.84 | AE5: =ROUND(AC5*$AG$1,2) -> 2.01 | AG5: =AC5+AE5 -> 6.85 | AI5: 3
A6: =DATA_PERIOD -> DATA: __X__ BASE PERIOD ____FORECASTED PERIOD | R6: SCHEDULE M-2.3 | AA6: w30 | AC6: 4.78 | AE6: 1.98 | AG6: 6.76 | AI6: 4
A7: =TYPE -> TYPE OF FILING: _X_ ORIGINAL ___UPDATED ___ REVISED | R7: ="PAGE 13 OF "&TEXT(Page_Num_2.3,"00") -> PAGE 13 OF 24 | AA7: w35 | AC7: 4.84 | AE7: 2.01 | AG7: 6.85 | AI7: 5
A8: WORK PAPER REFERENCE NO(S).: | R8: WITNESS: | AA8: w40 | AC8: 5.8 | AE8: 2.4 | AG8: 8.2 | AI8: 6
A9: =TIME -> 6 Months Actual and 6 Months Projected with Riders | R9: =WIT -> B. L. SAILERS | AA9: a12 | AC9: 13.16 | AE9: 5.45 | AG9: 18.61 | AI9: 7
A10: PROPOSED ANNUALIZED | AA10: a28 | AC10: 7.63 | AE10: 3.16 | AG10: 10.79 | AI10: 8
AA11: a28h | AC11: 7.71 | AE11: 3.2 | AG11: 10.91 | AI11: 8A
L12: PROPOSED | N12: % OF REV TO | R12: PROPOSED | AA12: a30 | AC12: 15.24 | AE12: 6.32 | AG12: 21.56 | AI12: 9
L13: REVENUE LESS | N13: TOTAL LESS | R13: TOTAL | AA13: f17 | AC13: 4.84 | AE13: 2.01 | AG13: 6.85 | AI13: 10
A14: LINE | C14: RATE | D14: CLASS / | F14: CUSTOMER | J14: PROPOSED | L14: FUEL COST | N14: FUEL COST | P14: FUEL COST | R14: REVENUE | AA14: f12 | AC14: 14.15 | AE14: 5.86 | AG14: 20.01 | AI14: 11
A15: NO. | C15: CODE | D15: DESCRIPTION | F15: BILLS(1) | H15: SALES | J15: RATES(1A) | L15: REVENUE | N15: REVENUE | P15: REVENUE (2) | R15: (F + H) | AA15: f30 | AC15: 9.21 | AE15: 3.82 | AG15: 13.03 | AI15: 12
C16: (A) | D16: (B) | F16: (C) | H16: (D) | J16: (E) | L16: (F) | N16: (G) | P16: (H) | R16: (I) | AA16: f35 | AC16: 9.46 | AE16: 3.92 | AG16: 13.38 | AI16: 13
H17: (KWH) | J17: ($/UNIT) | L17: ($) | N17: (%) | P17: ($) | R17: ($) | AA17: s27 | AC17: 12.44 | AE17: 5.16 | AG17: 17.6 | AI17: 16
A18: 1 | C18: SL | D18: STREET LIGHTING -- CO OWNED & MAINTAINED | AA18: s27h | AC18: 18.36 | AE18: 7.61 | AG18: 25.97 | AI18: 17
A19: 2 | C19: OVERHEAD DISTRIBUTION:
A20: 3 | C20: MERCURY VAPOR : | AC20: Annual kWh / Light | AG20: Counts (March, 2022) | AI20: kWh Factor | AK20: 0.7067729382 | AM20: kWh Factor
A21: 4 | C21: 7,000 LUMEN | F21: =AI21 -> 50801 | H21: =ROUND(F21*AC21/12,0) -> 3399434 | J21: =ROUND(AC241+(AC241*$AG$1),2) -> 11.2 | L21: =ROUND((F21*J21),0) -> 568971 | N21: =ROUND((L21/L$209)*100,1) -> 34.3 | P21: =ROUND($P$209/$H$209*H21,0) -> 20278 | R21: =L21+P21 -> 589249 | AC21: 803 | AG21: 67176 | AI21: =ROUND(AG21*$AK$22,0) -> 50801 | AK21: =1136784/AO429 -> 0.906811231 | AM21: Rev Factor
A22: 5 | C22: 7,000 LUMEN (OPEN) | F22: =AI22 -> 45 | H22: =ROUND(F22*AC22/12,0) -> 3199 | J22: =ROUND(AC242+(AC242*$AG$1),2) -> 9.39 | L22: =ROUND((F22*J22),0) -> 423 | N22: 0 | P22: 19 | R22: =L22+P22 -> 442 | AC22: 853 | AG22: 60 | AI22: 45 | AK22: =101040/SUM(AG21:AG198) -> 0.7562421412 | AM22: Total Lights Factor
A23: 6 | C23: 7,000 LUMEN (4) | F23: 9 | H23: 602 | J23: =$J$21+$AG$6 -> 17.96 | L23: 162 | N23: 0 | P23: 4 | R23: =L23+P23 -> 166 | AC23: 803 | AG23: 12 | AI23: 9
A24: 7 | C24: 7,000 LUMEN (5) | F24: 318 | H24: 21280 | J24: =$J$21+$AG$7 -> 18.05 | L24: 5740 | N24: 0.3 | P24: 127 | R24: 5867 | AC24: 803 | AG24: 420 | AI24: 318 | AK24: I debate about using these numbers, it would
A25: 8 | C25: 7,000 LUMEN (6) | F25: 82 | H25: 5487 | J25: =$J$21+$AG$8 -> 19.4 | L25: 1591 | N25: 0.1 | P25: 33 | R25: =L25+P25 -> 1624 | AC25: 803 | AG25: 108 | AI25: 82 | AK25: create a much lower revenue value. That value would be consistent with the
A26: 9 | C26: 7,000 LUMEN (8A) | F26: 100 | H26: 6692 | J26: =$J$21+$AG$11 -> 22.11 | L26: 2211 | N26: 0.1 | P26: 40 | R26: =L26+P26 -> 2251 | AC26: 803 | AG26: 132 | AI26: 100 | AK26: reports from Kelly and SAP but it would be a radical change from past practice.
A27: 10 | C27: 10,000 LUMEN | F27: 1370 | H27: 130607 | J27: =ROUND(AC247+(AC247*$AG$1),2) -> 12.98 | L27: 17783 | N27: 1.1 | P27: 779 | R27: =L27+P27 -> 18562 | AC27: 1144 | AG27: =1800+12 -> 1812 | AI27: 1370 | AK27: It may indeed cause a large increase in Lighting rates…which is what I would want to avoid.
A28: 11 | C28: 10,000 LUMEN (5) | F28: 0 | H28: 0 | J28: =$J$27+$AG$7 -> 19.83 | L28: 0 | N28: 0 | P28: 0 | R28: 0 | AC28: 1144 | AG28: 0 | AI28: 0 | AK28: Of course the higher kWh here will offset higher kWh in UOLS, TL, and LED since there is less to allocate there.
A29: 12 | C29: 21,000 LUMEN | F29: 6706 | H29: 999753 | J29: =ROUND(AC249+(AC249*$AG$1),2) -> 17.43 | L29: 116886 | N29: 7.1 | P29: 5964 | R29: =L29+P29 -> 122850 | AC29: 1789 | AG29: 8868 | AI29: 6706
A30: 13 | C30: 21,000 LUMEN (5) | F30: 73 | H30: 10883 | J30: =$J$29+$AG$7 -> 24.28 | L30: 1772 | N30: 0.1 | P30: 65 | R30: 1837 | AC30: 1789 | AG30: 96 | AI30: 73 | AK30: After discussion, I will scale the # of lights to match the SAP value provided by Kelly in 2022 Number of Lites.XLSX
A31: 14 | C31: 21,000 LUMEN (6) | F31: 100 | H31: 14908 | J31: =$J$29+$AG$8 -> 25.63 | L31: 2563 | N31: 0.2 | P31: 89 | R31: 2652 | AC31: 1789 | AG31: 132 | AI31: 100 | AK31: This will not result in matching the kWh by schedule but all the kWh has the same $/kWh rate so it doesn't matter
A32: 15 | C32: METAL HALIDE: | AK32: really what schedule it ends up in. The number of lights are the billing determinant and I think that should match
A33: 16 | C33: 14,000 LUMEN | F33: 209 | H33: =ROUND(F33*AC33/12,0) -> 13986 | J33: =ROUND(AC253+(AC253*$AG$1),2) -> 11.2 | L33: 2341 | N33: =ROUND((L33/L$209)*100,1) -> 0.1 | P33: =ROUND($P$209/$H$209*H33,0) -> 83 | R33: =L33+P33 -> 2424 | AC33: 803 | AG33: 276 | AI33: =ROUND(AG33*$AK$22,0) -> 209 | AK33: here. Of course we are using a distribution from CMS which may not be exactly right but SAP cannot provide a line item detail count.
A34: 17 | C34: 14,000 LUMEN (5) | F34: 36 | H34: 2409 | J34: =$J$33+$AG$7 -> 18.05 | L34: 650 | N34: 0 | P34: 14 | R34: =L34+P34 -> 664 | AC34: 803 | AG34: 48 | AI34: 36
A35: 18 | C35: 14,000 LUMEN (6) | F35: 64 | H35: 4283 | J35: =$J$33+$AG$8 -> 19.4 | L35: 1242 | N35: 0.1 | P35: 26 | R35: =L35+P35 -> 1268 | AC35: 803 | AG35: 84 | AI35: 64
A36: 19 | C36: 14,000 LUMEN (10) | F36: 9 | H36: 602 | J36: =$J$33+$AG$13 -> 18.05 | L36: 162 | N36: 0 | P36: 4 | R36: 166 | AC36: 803 | AG36: 12 | AI36: 9
A37: 20 | C37: 20,500 LUMEN | F37: 136 | H37: 12965 | J37: =ROUND(AC257+(AC257*$AG$1),2) -> 12.98 | L37: 1765 | N37: 0.1 | P37: 77 | R37: =L37+P37 -> 1842 | AC37: 1144 | AG37: 180 | AI37: 136
A38: 21 | C38: 20,500 LUMEN (6) | F38: 9 | H38: 858 | J38: =$J$37+$AG$8 -> 21.18 | L38: 191 | N38: 0 | P38: 5 | R38: =L38+P38 -> 196 | AC38: 1144 | AG38: 12 | AI38: 9
A39: 22 | C39: 36,000 LUMEN | F39: 0 | H39: 0 | J39: =ROUND(AC259+(AC259*$AG$1),2) -> 17.43 | L39: 0 | N39: 0 | P39: 0 | R39: =L39+P39 -> 0 | AC39: 1789 | AG39: 0 | AI39: 0
A40: 23 | C40: SODIUM VAPOR:
A41: 24 | C41: 9,500 LUMEN | F41: 14102 | H41: =ROUND(F41*AC41/12,0) -> 572306 | J41: =ROUND(AC261+(AC261*$AG$1),2) -> 12.32 | L41: 173737 | N41: =ROUND((L41/L$209)*100,1) -> 10.5 | P41: =ROUND($P$209/$H$209*H41,0) -> 3414 | R41: =L41+P41 -> 177151 | AC41: 487 | AG41: 18648 | AI41: =ROUND(AG41*$AK$22,0) -> 14102
A42: 25 | C42: 9,500 LUMEN (OPEN) | F42: 91 | H42: 3693 | J42: =ROUND(AC262+(AC262*$AG$1),2) -> 9.28 | L42: 844 | N42: 0.1 | P42: 22 | R42: =L42+P42 -> 866 | AC42: 487 | AG42: 120 | AI42: 91
A43: 26 | C43: 9,500 LUMEN (4) | F43: 36 | H43: 1461 | J43: =$J$41+$AG$6 -> 19.08 | L43: 687 | N43: 0 | P43: 9 | R43: 696 | AC43: 487 | AG43: =24+24 -> 48 | AI43: 36
A44: 27 | C44: 9,500 LUMEN (5) | F44: 481 | H44: 19521 | J44: =$J$41+$AG$7 -> 19.17 | L44: 9221 | N44: 0.6 | P44: 116 | R44: =L44+P44 -> 9337 | AC44: 487 | AG44: 636 | AI44: 481
A45: 28 | C45: 9,500 LUMEN (6) | F45: 463 | H45: 18790 | J45: =$J$41+$AG$8 -> 20.52 | L45: 9501 | N45: 0.6 | P45: 112 | R45: =L45+P45 -> 9613 | AC45: 487 | AG45: 612 | AI45: 463
A46: 29 | C46: 16,000 LUMEN | F46: 191 | H46: 11317 | J46: =ROUND(AC266+(AC266*$AG$1),2) -> 13.48 | L46: 2575 | N46: 0.2 | P46: 68 | R46: 2643 | AC46: 711 | AG46: 252 | AI46: 191
A47: 30 | C47: 16,000 LUMEN (5) | F47: 9 | H47: 533 | J47: =$J$46+$AG$7 -> 20.33 | L47: 183 | N47: 0 | P47: 3 | R47: =L47+P47 -> 186 | AC47: 711 | AG47: 12 | AI47: 9
A48: 31 | C48: 16,000 LUMEN (6) | F48: 82 | H48: 4859 | J48: =$J$46+$AG$8 -> 21.68 | L48: 1778 | N48: 0.1 | P48: 29 | R48: =L48+P48 -> 1807 | AC48: 711 | AG48: 108 | AI48: 82
A49: 32 | C49: 22,000 LUMEN | F49: 3966 | H49: 313314 | J49: =ROUND(AC269+(AC269*$AG$1),2) -> 17.48 | L49: 69326 | N49: 4.2 | P49: 1869 | R49: 71195 | AC49: 948 | AG49: =5232+12 -> 5244 | AI49: 3966
A50: 33 | C50: 22,000 LUMEN (4) | F50: 0 | H50: 0 | J50: =$J$49+$AG$6 -> 24.24 | L50: 0 | N50: 0 | P50: 0 | R50: 0 | AC50: 948 | AG50: 0 | AI50: 0
A51: 34 | C51: 22,000 LUMEN (5) | F51: 100 | H51: 7900 | J51: =$J$49+$AG$7 -> 24.33 | L51: 2433 | N51: 0.1 | P51: 47 | R51: =L51+P51 -> 2480 | AC51: 948 | AG51: 132 | AI51: 100
A52: 35 | C52: 22,000 LUMEN (6) | F52: 54 | H52: 4266 | J52: =$J$49+$AG$8 -> 25.68 | L52: 1387 | N52: 0.1 | P52: 25 | R52: 1412 | AC52: 948 | AG52: 72 | AI52: 54
A53: 36 | C53: 22,000 LUMEN (8) | F53: 9 | H53: 711 | J53: =$J$49+$AG$10 -> 28.27 | L53: 254 | N53: 0 | P53: 4 | R53: 258 | AC53: 948 | AG53: 12 | AI53: 9
A54: 37 | C54: 27,500 LUMEN | F54: 64 | H54: 5056 | J54: =ROUND(AC274+(AC274*$AG$1),2) -> 17.48 | L54: 1119 | N54: 0.1 | P54: 30 | R54: 1149 | AC54: 948 | AG54: 84 | AI54: 64
A55: 38 | C55: 27,500 LUMEN (6) | F55: 9 | H55: 711 | J55: =$J$54+$AG$8 -> 25.68 | L55: 231 | N55: 0 | P55: 4 | R55: 235 | AC55: 948 | AG55: 12 | AI55: 9
A56: 39 | C56: 50,000 LUMEN | F56: 7305 | H56: 1192541 | J56: =ROUND(AC276+(AC276*$AG$1),2) -> 23.64 | L56: 172690 | N56: 10.4 | P56: 7114 | R56: 179804 | AC56: 1959 | AG56: =9648+12 -> 9660 | AI56: 7305
A57: 40 | C57: 50,000 LUMEN (5) | F57: 191 | H57: 31181 | J57: =$J$56+$AG$7 -> 30.49 | L57: 5824 | N57: 0.4 | P57: 186 | R57: 6010 | AC57: 1959 | AG57: 252 | AI57: 191
A58: 41 | C58: 50,000 LUMEN (6) | F58: 436 | H58: 71177 | J58: =$J$56+$AG$8 -> 31.84 | L58: 13882 | N58: 0.8 | P58: 425 | R58: 14307 | AC58: 1959 | AG58: 576 | AI58: 436
A60: (1) THESE FIGURES REPRESENT NUMBER OF UNITS BILLED. | J60: (5) WITH 35' WOOD POLE. | P60: (9) WITH 30' ALUM POLE.
A61: ="(1A) REFLECTS FUEL COST RECOVERY INCLUDED IN BASE RATES OF "&TEXT(CUR_BASE_FUEL,"$0.000000;($0.000000)")&" PER KWH." -> (1A) REFLECTS FUEL COST RECOVERY INCLUDED IN BASE RATES OF $0.025401 PER KWH. | J61: (6) WITH 40' WOOD POLE. | P61: (10) WITH 17' FIBERGLASS POLE.
A62: ="(2) REFLECTS FUEL COMPONENT OF "&TEXT(CUR_FAC,"$0.000000;($0.000000)")&" PER KWH." -> (2) REFLECTS FUEL COMPONENT OF $0.005965 PER KWH. | J62: (7) WITH 12' ALUM POLE. | P62: (11) WITH 12' FIBERGLASS POLE.
A63: (3) WITH 17' WOOD LAMINATED POLE. | J63: (8) WITH 28' ALUM POLE. | P63: (12) WITH 30' FIBERGLASS POLE.
A64: (4) WITH 30' WOOD POLE. | J64: (8A) WITH 28' ALUM POLE HEAVY GAUGE. | P64: (13) WITH 35' FIBERGLASS POLE.
A67: =NAME -> DUKE ENERGY KENTUCKY, INC.
A68: =CASE_NO -> CASE NO. 2022-00372
A69: =TITLE -> ANNUALIZED BASE YEAR REVENUES AT PROPOSED VS. MOST CURRENT RATES
A70: =DATE -> FOR THE TWELVE MONTHS ENDED February 28, 2023
A71: =SERVICE -> (ELECTRIC SERVICE)
A72: =DATA_PERIOD -> DATA: __X__ BASE PERIOD ____FORECASTED PERIOD | R72: SCHEDULE M-2.3
A73: =TYPE -> TYPE OF FILING: _X_ ORIGINAL ___UPDATED ___ REVISED | R73: ="PAGE 14 OF "&TEXT(Page_Num_2.3,"00") -> PAGE 14 OF 24
A74: WORK PAPER REFERENCE NO(S).: | R74: WITNESS:
A75: =TIME -> 6 Months Actual and 6 Months Projected with Riders | R75: =WIT -> B. L. SAILERS
A76: PROPOSED ANNUALIZED
L78: PROPOSED | N78: % OF REV TO | R78: PROPOSED
L79: REVENUE LESS | N79: TOTAL LESS | R79: TOTAL
A80: LINE | C80: RATE | D80: CLASS / | F80: CUSTOMER | J80: PROPOSED | L80: FUEL COST | N80: FUEL COST | P80: FUEL COST | R80: REVENUE
A81: NO. | C81: CODE | D81: DESCRIPTION | F81: BILLS(1) | H81: SALES | J81: RATES(1A) | L81: REVENUE | N81: REVENUE | P81: REVENUE (2) | R81: (F + H)
C82: (A) | D82: (B) | F82: (C) | H82: (D) | J82: (E) | L82: (F) | N82: (G) | P82: (H) | R82: (I)
H83: (KWH) | J83: ($/UNIT) | L83: ($) | N83: (%) | P83: ($) | R83: ($)
A84: 42 | C84: SL | D84: STREET LIGHTING -- CO OWNED & MAINTAINED (CONT'D.)
A85: 43 | C85: OVERHEAD DISTRIBUTION (CONT'D.):
A86: 44 | C86: DECORATIVE SODIUM VAPOR:
A87: 45 | C87: 9,500 LUMEN RECTILINEAR | F87: =AI87 -> 0 | H87: =ROUND(F87*AC87/12,0) -> 0 | J87: =ROUND(AC307+(AC307*$AG$1),2) -> 15.3 | L87: =ROUND((F87*J87),0) -> 0 | N87: =ROUND((L87/L$209)*100,1) -> 0 | P87: =ROUND($P$209/$H$209*H87,0) -> 0 | R87: =L87+P87 -> 0 | AC87: 487 | AG87: 0 | AI87: =ROUND(AG87*$AK$22,0) -> 0
A88: 46 | C88: 22,000 LUMEN RECTILINEAR | F88: 9 | H88: 767 | J88: =ROUND(AC308+(AC308*$AG$1),2) -> 19 | L88: 171 | N88: 0 | P88: 5 | R88: =L88+P88 -> 176 | AC88: 1023 | AG88: 12 | AI88: 9
A89: 47 | C89: 50,000 LUMEN RECTILINEAR | F89: 54 | H89: 8816 | J89: =ROUND(AC309+(AC309*$AG$1),2) -> 25.26 | L89: 1364 | N89: 0.1 | P89: 53 | R89: 1417 | AC89: 1959 | AG89: 72 | AI89: 54
A90: 48 | C90: 50,000 LUMEN RECTILINEAR (5) | F90: 136 | H90: 22202 | J90: =$J$89+$AG$7 -> 32.11 | L90: 4367 | N90: 0.3 | P90: 132 | R90: 4499 | AC90: 1959 | AG90: 180 | AI90: 136
A91: 49 | C91: 50,000 LUMEN RECTILINEAR (6) | F91: 0 | H91: 0 | J91: =$J$89+$AG$8 -> 33.46 | L91: 0 | N91: 0 | P91: 0 | R91: 0 | AC91: 1959 | AG91: 0 | AI91: 0
A92: 50 | C92: 50,000 LUMEN SETBACK | F92: 163 | H92: 26610 | J92: =ROUND(AC312+(AC312*$AG$1),2) -> 37.38 | L92: 6093 | N92: 0.4 | P92: 159 | R92: 6252 | AC92: 1959 | AG92: 216 | AI92: 163
A93: 51 | C93: 50,000 LUMEN SETBACK (6) | F93: 27 | H93: 4408 | J93: =$J$92+$AG$8 -> 45.58 | L93: 1231 | N93: 0.1 | P93: 26 | R93: 1257 | AC93: 1959 | AG93: 36 | AI93: 27
A94: 52 | C94: TOTAL OVERHEAD | F94: =SUM(F21:F93) -> 88045 | H94: =SUM(H21:H93) -> 6950088 | L94: =SUM(L21:L93) -> 1203351 | N94: 72.6 | P94: =ROUND(H94*CUR_FAC,0) -> 41457 | R94: =SUM(R21:R93) -> 1244810
A96: 53 | C96: UNDERGROUND DISTRIBUTION:
A97: 54 | C97: MERCURY VAPOR:
A98: 55 | C98: 7,000 LUMEN | F98: =AI98 -> 45 | H98: =ROUND(F98*AC98/12,0) -> 3278 | J98: =ROUND(AC318+(AC318*$AG$1),2) -> 11.41 | L98: =ROUND((F98*J98),0) -> 513 | N98: =ROUND((L98/L$209)*100,1) -> 0 | P98: =ROUND($P$209/$H$209*H98,0)+1 -> 21 | R98: =L98+P98 -> 534 | AC98: 874 | AG98: 60 | AI98: =ROUND(AG98*$AK$22,0) -> 45
A99: 56 | C99: 7,000 LUMEN (OPEN) | F99: 0 | H99: 0 | J99: =ROUND(AC319+(AC319*$AG$1),2) -> 9.39 | L99: 0 | N99: 0 | P99: =ROUND($P$209/$H$209*H99,0) -> 0 | R99: =L99+P99 -> 0 | AC99: 853 | AG99: 0 | AI99: 0
A100: 57 | C100: 7,000 LUMEN (4) | F100: 145 | H100: 10561 | J100: =$J$98+$AG$6 -> 18.17 | L100: 2635 | N100: 0.2 | P100: 63 | R100: 2698 | AC100: 874 | AG100: 192 | AI100: 145
A101: 58 | C101: 7,000 LUMEN (5) | F101: 0 | H101: 0 | J101: =$J$98+$AG$7 -> 18.26 | L101: 0 | N101: 0 | P101: 0 | R101: 0 | AC101: 874 | AG101: 0 | AI101: 0
A102: 59 | C102: 7,000 LUMEN (8) | F102: 245 | H102: 17844 | J102: =$J$98+$AG$10 -> 22.2 | L102: 5439 | N102: 0.3 | P102: 106 | R102: 5545 | AC102: 874 | AG102: 324 | AI102: 245
A103: 60 | C103: 10,000 LUMEN | F103: 0 | H103: 0 | J103: =ROUND(AC323+(AC323*$AG$1),2) -> 13.22 | L103: 0 | N103: 0 | P103: 0 | R103: 0 | AC103: 1215 | AG103: 0 | AI103: 0
A104: 61 | C104: 10,000 LUMEN (4) | F104: 64 | H104: 6480 | J104: =$J$103+$AG$6 -> 19.98 | L104: 1279 | N104: 0.1 | P104: 39 | R104: 1318 | AC104: 1215 | AG104: 84 | AI104: 64
A105: 62 | C105: 10,000 LUMEN (8) | F105: 45 | H105: 4556 | J105: =$J$103+$AG$10 -> 24.01 | L105: 1080 | N105: 0.1 | P105: 27 | R105: 1107 | AC105: 1215 | AG105: 60 | AI105: 45
A106: 63 | C106: 21,000 LUMEN | F106: 73 | H106: 11644 | J106: =ROUND(AC326+(AC326*$AG$1),2) -> 17.86 | L106: 1304 | N106: 0.1 | P106: 69 | R106: 1373 | AC106: 1914 | AG106: 96 | AI106: 73
A107: 64 | C107: 21,000 LUMEN (8) | F107: 100 | H107: 15950 | J107: =$J$106+$AG$10 -> 28.65 | L107: 2865 | N107: 0.2 | P107: 95 | R107: 2960 | AC107: 1914 | AG107: 132 | AI107: 100
A108: 65 | C108: METAL HALIDE:
A109: 66 | C109: 14,000 LUMEN | F109: 0 | H109: =ROUND(F109*AC109/12,0) -> 0 | J109: =ROUND(AC329+(AC329*$AG$1),2) -> 11.41 | L109: 0 | N109: =ROUND((L109/L$209)*100,1) -> 0 | P109: =ROUND($P$209/$H$209*H109,0) -> 0 | R109: =L109+P109 -> 0 | AC109: 874 | AG109: 0 | AI109: =ROUND(AG109*$AK$22,0) -> 0
A110: 67 | C110: 20,500 LUMEN | F110: 0 | H110: 0 | J110: =ROUND(AC330+(AC330*$AG$1),2) -> 13.22 | L110: 0 | N110: =ROUND((L110/L$209)*100,1) -> 0 | P110: =ROUND($P$209/$H$209*H110,0) -> 0 | R110: =L110+P110 -> 0 | AC110: 1215 | AG110: 0 | AI110: =ROUND(AG110*$AK$22,0) -> 0
A111: 68 | C111: 36,000 LUMEN | F111: 0 | H111: 0 | J111: =ROUND(AC331+(AC331*$AG$1),2) -> 17.86 | L111: 0 | N111: =ROUND((L111/L$209)*100,1) -> 0 | P111: =ROUND($P$209/$H$209*H111,0) -> 0 | R111: =L111+P111 -> 0 | AC111: 1914 | AG111: 0 | AI111: =ROUND(AG111*$AK$22,0) -> 0
A112: 69 | C112: SODIUM VAPOR: | L112: 0
A113: 70 | C113: 9,500 LUMEN | F113: 9 | H113: =ROUND(F113*AC113/12,0) -> 365 | J113: =ROUND(AC333+(AC333*$AG$1),2) -> 12.32 | L113: 111 | N113: =ROUND((L113/L$209)*100,1) -> 0 | P113: =ROUND($P$209/$H$209*H113,0) -> 2 | R113: =L113+P113 -> 113 | AC113: 487 | AG113: 12 | AI113: =ROUND(AG113*$AK$22,0) -> 9
A114: 71 | C114: 9,500 LUMEN (6) | F114: 9 | H114: 365 | J114: =$J$113+$AG$8 -> 20.52 | L114: 185 | N114: 0 | P114: 2 | R114: 187 | AC114: 487 | AG114: 12 | AI114: 9
A115: 72 | C115: 9,500 LUMEN (8) | F115: 427 | H115: 17329 | J115: =$J$113+$AG$10 -> 23.11 | L115: 9868 | N115: 0.6 | P115: 103 | R115: =L115+P115 -> 9971 | AC115: 487 | AG115: 564 | AI115: 427
A116: 73 | C116: 9,500 LUMEN (10) | F116: 18 | H116: 731 | J116: =$J$113+$AG$13 -> 19.17 | L116: 345 | N116: 0 | P116: 4 | R116: =L116+P116 -> 349 | AC116: 487 | AG116: 24 | AI116: 18
A117: 74 | C117: 9,500 LUMEN (13) | F117: 9 | H117: 365 | J117: =$J$113+$AG$16 -> 25.7 | L117: 231 | N117: 0 | P117: 2 | R117: 233 | AC117: 487 | AG117: 12 | AI117: 9
A118: 75 | C118: 9,500 LUMEN (OPEN) | F118: 0 | H118: 0 | J118: =ROUND(AC338+(AC338*$AG$1),2) -> 9.41 | L118: 0 | N118: 0 | P118: 0 | R118: 0 | AC118: 487 | AG118: 0 | AI118: 0
A119: 76 | C119: 16,000 LUMEN | F119: 0 | H119: 0 | J119: =ROUND(AC339+(AC339*$AG$1),2) -> 13.44 | L119: 0 | N119: 0 | P119: 0 | R119: 0 | AC119: 711 | AG119: 0 | AI119: 0
A120: 77 | C120: 16,000 LUMEN (6) | F120: 18 | H120: 1067 | J120: =$J$119+$AG$8 -> 21.64 | L120: 390 | N120: 0 | P120: 6 | R120: =L120+P120 -> 396 | AC120: 711 | AG120: 24 | AI120: 18
A121: 78 | C121: 22,000 LUMEN | F121: 9 | H121: 711 | J121: =ROUND(AC341+(AC341*$AG$1),2) -> 17.48 | L121: 157 | N121: 0 | P121: 4 | R121: 161 | AC121: 948 | AG121: 12 | AI121: 9
A122: 79 | C122: 22,000 LUMEN (5) | F122: 45 | H122: 3555 | J122: =$J$121+$AG$7 -> 24.33 | L122: 1095 | N122: 0.1 | P122: 21 | R122: 1116 | AC122: 948 | AG122: 60 | AI122: 45
A123: 80 | C123: 22,000 LUMEN (8) | F123: 399 | H123: 31521 | J123: =$J$121+$AG$10 -> 28.27 | L123: 11280 | N123: 0.7 | P123: 188 | R123: =L123+P123 -> 11468 | AC123: 948 | AG123: 528 | AI123: 399
A124: 81 | C124: 22,000 LUMEN (8A) | F124: 36 | H124: 2844 | J124: =$J$121+$AG$11 -> 28.39 | L124: 1022 | N124: 0.1 | P124: 17 | R124: =L124+P124 -> 1039 | AC124: 948 | AG124: 48 | AI124: 36
A125: 82 | C125: 27,500 LUMEN | F125: 0 | H125: 0 | J125: =ROUND(AC345+(AC345*$AG$1),2) -> 17.55 | L125: 0 | N125: 0 | P125: 0 | R125: =L125+P125 -> 0 | AC125: 948 | AG125: 0 | AI125: 0
A126: 83 | C126: 27,500 LUMEN (9) | F126: 191 | H126: 15089 | J126: =$J$125+$AG$12 -> 39.11 | L126: 7470 | N126: 0.5 | P126: =ROUND($P$209/$H$209*H126,0) -> 90 | R126: 7560 | AC126: 948 | AG126: 252 | AI126: 191
A127: 84 | C127: 50,000 LUMEN | F127: 218 | H127: 35589 | J127: =ROUND(AC347+(AC347*$AG$1),2) -> 23.64 | L127: 5154 | N127: 0.3 | P127: =ROUND($P$209/$H$209*H127,0) -> 212 | R127: 5366 | AC127: 1959 | AG127: 288 | AI127: 218
A128: 85 | C128: 50,000 LUMEN (8) | F128: 0 | H128: 0 | J128: =$J$127+$AG$10 -> 34.43 | L128: 0 | N128: 0 | P128: =ROUND($P$209/$H$209*H128,0) -> 0 | R128: =L128+P128 -> 0 | AC128: 1959 | AG128: 0 | AI128: 0
A129: 86 | C129: 50,000 LUMEN (9) | F129: 100 | H129: 16325 | J129: =$J$127+$AG$12 -> 45.2 | L129: 4520 | N129: 0.3 | P129: =ROUND($P$209/$H$209*H129,0) -> 97 | R129: =L129+P129 -> 4617 | AC129: 1959 | AG129: 132 | AI129: 100
A130: 87 | C130: DECORATIVE MERCURY VAPOR:
A131: 88 | C131: 7,000 LUMEN TOWN & COUNTRY | F131: 9 | H131: =ROUND(F131*AC131/12,0) -> 640 | J131: =ROUND(AC351+(AC351*$AG$1),2) -> 11.8 | L131: 106 | N131: =ROUND((L131/L$209)*100,1) -> 0 | P131: =ROUND($P$209/$H$209*H131,0) -> 4 | R131: =L131+P131 -> 110 | AC131: 853 | AG131: 12 | AI131: =ROUND(AG131*$AK$22,0) -> 9
A132: 89 | C132: 7,000 LUMEN TOWN & COUNTRY (3) | F132: 163 | H132: 11587 | J132: =$J$131+$AG$5 -> 18.65 | L132: 3040 | N132: 0.2 | P132: 69 | R132: =L132+P132 -> 3109 | AC132: 853 | AG132: 216 | AI132: 163
A133: 90 | C133: 7,000 LUMEN TOWN & COUNTRY (10) | F133: 4410 | H133: 313478 | J133: =$J$131+$AG$13 -> 18.65 | L133: 82247 | N133: 5 | P133: 1870 | R133: 84117 | AC133: 853 | AG133: 5832 | AI133: 4410
A134: 91 | C134: 7,000 LUMEN HOLOPHANE | F134: 18 | H134: 1311 | J134: =ROUND(AC354+(AC354*$AG$1),2) -> 14.78 | L134: 266 | N134: 0 | P134: 8 | R134: 274 | AC134: 874 | AG134: 24 | AI134: 18
A135: 92 | C135: 7,000 LUMEN HOLOPHANE (10) | F135: 1379 | H135: 100437 | J135: =$J$134+$AG$13 -> 21.63 | L135: 29828 | N135: 1.8 | P135: 599 | R135: 30427 | AC135: 874 | AG135: 1824 | AI135: 1379
A136: 93 | C136: 7,000 LUMEN GAS REPLICA (7) | F136: 73 | H136: 5317 | J136: =ROUND(AC356+(AC356*$AG$1),2) -> 52.21 | L136: 3811 | N136: 0.2 | P136: 32 | R136: 3843 | AC136: 874 | AG136: 96 | AI136: 73
A137: 94 | C137: 7,000 LUMEN GRANVILLE | F137: 0 | H137: 0 | J137: =ROUND(AC357+(AC357*$AG$1),2) -> 11.92 | L137: 0 | N137: 0 | P137: 0 | R137: =L137+P137 -> 0 | AC137: 853 | AG137: 0 | AI137: 0
A138: 95 | C138: 7,000 LUMEN GRANVILLE (7) | F138: 0 | H138: 0 | J138: =$J$137+$AG$9 -> 30.53 | L138: 0 | N138: 0 | P138: 0 | R138: =L138+P138 -> 0 | AC138: 853 | AG138: 0 | AI138: 0
A139: 96 | C139: 7,000 LUMEN ASPEN | F139: 18 | H139: 1311 | J139: =ROUND(AC359+(AC359*$AG$1),2) -> 21.33 | L139: 384 | N139: 0 | P139: 8 | R139: 392 | AC139: 874 | AG139: 24 | AI139: 18
A141: (1) THESE FIGURES REPRESENT NUMBER OF UNITS BILLED. | J141: (5) WITH 35' WOOD POLE. | P141: (9) WITH 30' ALUM POLE.
A142: ="(1A) REFLECTS FUEL COST RECOVERY INCLUDED IN BASE RATES OF "&TEXT(CUR_BASE_FUEL,"$0.000000;($0.000000)")&" PER KWH." -> (1A) REFLECTS FUEL COST RECOVERY INCLUDED IN BASE RATES OF $0.025401 PER KWH. | J142: (6) WITH 40' WOOD POLE. | P142: (10) WITH 17' FIBERGLASS POLE.
A143: ="(2) REFLECTS FUEL COMPONENT OF "&TEXT(CUR_FAC,"$0.000000;($0.000000)")&" PER KWH." -> (2) REFLECTS FUEL COMPONENT OF $0.005965 PER KWH. | J143: (7) WITH 12' ALUM POLE. | P143: (11) WITH 12' FIBERGLASS POLE.
A144: (3) WITH 17' WOOD LAMINATED POLE. | J144: (8) WITH 28' ALUM POLE. | P144: (12) WITH 30' FIBERGLASS POLE.
A145: (4) WITH 30' WOOD POLE. | J145: (8A) WITH 28' ALUM POLE HEAVY GAUGE. | P145: (13) WITH 35' FIBERGLASS POLE.
A148: =NAME -> DUKE ENERGY KENTUCKY, INC.
A149: =CASE_NO -> CASE NO. 2022-00372
A150: =TITLE -> ANNUALIZED BASE YEAR REVENUES AT PROPOSED VS. MOST CURRENT RATES
A151: =DATE -> FOR THE TWELVE MONTHS ENDED February 28, 2023
A152: =SERVICE -> (ELECTRIC SERVICE)
A153: =DATA_PERIOD -> DATA: __X__ BASE PERIOD ____FORECASTED PERIOD | R153: SCHEDULE M-2.3
A154: =TYPE -> TYPE OF FILING: _X_ ORIGINAL ___UPDATED ___ REVISED | R154: ="PAGE 15 OF "&TEXT(Page_Num_2.3,"00") -> PAGE 15 OF 24
A155: WORK PAPER REFERENCE NO(S).: | R155: WITNESS:
A156: =TIME -> 6 Months Actual and 6 Months Projected with Riders | R156: =WIT -> B. L. SAILERS
A157: PROPOSED ANNUALIZED
L159: PROPOSED | N159: % OF REV TO | R159: PROPOSED
L160: REVENUE LESS | N160: TOTAL LESS | R160: TOTAL
A161: LINE | C161: RATE | D161: CLASS / | F161: CUSTOMER | J161: PROPOSED | L161: FUEL COST | N161: FUEL COST | P161: FUEL COST | R161: REVENUE
A162: NO. | C162: CODE | D162: DESCRIPTION | F162: BILLS(1) | H162: SALES | J162: RATES(1A) | L162: REVENUE | N162: REVENUE | P162: REVENUE (2) | R162: (F + H)
C163: (A) | D163: (B) | F163: (C) | H163: (D) | J163: (E) | L163: (F) | N163: (G) | P163: (H) | R163: (I)
H164: (KWH) | J164: ($/UNIT) | L164: ($) | N164: (%) | P164: ($) | R164: ($)
A165: 97 | C165: SL | D165: STREET LIGHTING -- CO OWNED & MAINTAINED (CONT'D.)
A166: 98 | C166: UNDERGROUND DISTRIBUTION (CONT'D.):
A167: 99 | C167: DECORATIVE METAL HALIDE:
A168: 100 | C168: 14,000 LUMEN TRADITIONAIRE | F168: =AI168 -> 0 | H168: =ROUND(F168*AC168/12,0) -> 0 | J168: =ROUND(AC388+(AC388*$AG$1),2) -> 11.78 | L168: =ROUND((F168*J168),0) -> 0 | N168: =ROUND((L168/L$209)*100,1) -> 0 | P168: =ROUND($P$209/$H$209*H168,0) -> 0 | R168: =L168+P168 -> 0 | AC168: 853 | AG168: 0 | AI168: =ROUND(AG168*$AK$22,0) -> 0
A169: 101 | C169: 14,000 LUMEN TRADITIONAIRE (7) | F169: 45 | H169: 3199 | J169: =$J$168+$AG$9 -> 30.39 | L169: 1368 | N169: 0.1 | P169: 19 | R169: 1387 | AC169: 853 | AG169: 60 | AI169: 45
A170: 102 | C170: 14,000 LUMEN TRADITIONAIRE (10) | F170: 354 | H170: 25164 | J170: =$J$168+$AG$13 -> 18.63 | L170: 6595 | N170: 0.4 | P170: 150 | R170: 6745 | AC170: 853 | AG170: 468 | AI170: 354
A171: 103 | C171: 14,000 LUMEN GRANVILLE | F171: 0 | H171: 0 | J171: =ROUND(AC391+(AC391*$AG$1),2) -> 21.33 | L171: 0 | N171: 0 | P171: 0 | R171: 0 | AC171: 874 | AG171: 0 | AI171: 0
A172: 104 | C172: 14,000 LUMEN GRANVILLE (11) | F172: 0 | H172: 0 | J172: =$J$171+$AG$14 -> 41.34 | L172: 0 | N172: 0 | P172: 0 | R172: 0 | AC172: 874 | AG172: 0 | AI172: 0
A173: 105 | C173: 14,000 LUMEN GAS REPLICA | F173: 0 | H173: 0 | J173: =ROUND(AC393+(AC393*$AG$1),2) -> 33.71 | L173: 0 | N173: 0 | P173: 0 | R173: 0 | AC173: 874 | AG173: 0 | AI173: 0
A174: 106 | C174: 14,500 LUMEN GAS REPLICA | F174: 0 | H174: 0 | J174: =ROUND(AC394+(AC394*$AG$1),2) -> 33.71 | L174: 0 | N174: 0 | P174: 0 | R174: 0 | AC174: 874 | AG174: 0 | AI174: 0
A175: 107 | C175: 14,500 LUMEN GAS REPLICA (7) | F175: 236 | H175: 17189 | J175: =$J$174+$AG$9 -> 52.32 | L175: 12348 | N175: 0.7 | P175: 103 | R175: 12451 | AC175: 874 | AG175: 312 | AI175: 236
A176: 108 | C176: 14,500 LUMEN GAS REPLICA (10) | F176: 45 | H176: 3278 | J176: =$J$174+$AG$13 -> 40.56 | L176: 1825 | N176: 0.1 | P176: 20 | R176: 1845 | AC176: 874 | AG176: 60 | AI176: 45
A178: 109 | C178: DECORATIVE SODIUM VAPOR:
A179: 110 | C179: 9,500 LUMEN TOWN & COUNTRY | F179: =AI179 -> 73 | H179: =ROUND(F179*AC179/12,0) -> 2963 | J179: =ROUND(AC399+(AC399*$AG$1),2) -> 17.09 | L179: =ROUND((F179*J179),0) -> 1248 | N179: =ROUND((L179/L$209)*100,1) -> 0.1 | P179: =ROUND($P$209/$H$209*H179,0) -> 18 | R179: =L179+P179 -> 1266 | AC179: 487 | AG179: 96 | AI179: =ROUND(AG179*$AK$22,0) -> 73
A180: 111 | C180: 9,500 LUMEN TOWN & COUNTRY (10) | F180: 1434 | H180: 58197 | J180: =$J$179+$AG$13 -> 23.94 | L180: 34330 | N180: 2.1 | P180: 347 | R180: =L180+P180 -> 34677 | AC180: 487 | AG180: 1896 | AI180: 1434
A181: 112 | C181: 9,500 LUMEN HOLOPHANE | F181: 436 | H181: 19329 | J181: =ROUND(AC401+(AC401*$AG$1),2) -> 18.51 | L181: 8070 | N181: 0.5 | P181: 115 | R181: =L181+P181 -> 8185 | AC181: 532 | AG181: 576 | AI181: 436
A182: 113 | C182: 9,500 LUMEN HOLOPHANE (10) | F182: 236 | H182: 10463 | J182: =$J$181+$AG$13 -> 25.36 | L182: 5985 | N182: 0.4 | P182: 62 | R182: 6047 | AC182: 532 | AG182: 312 | AI182: 236
A183: 114 | C183: 9,500 LUMEN GAS REPLICA (7) | F183: 100 | H183: 4433 | J183: =ROUND(AC403+(AC403*$AG$1),2) -> 53.35 | L183: 5335 | N183: 0.3 | P183: 26 | R183: =L183+P183 -> 5361 | AC183: 532 | AG183: 132 | AI183: 100
A184: 115 | C184: 9,500 LUMEN GAS REPLICA (10) | F184: 9 | H184: 399 | J184: =ROUND(AC404+(AC404*$AG$1),2) -> 41.58 | L184: 374 | N184: 0 | P184: 2 | R184: =L184+P184 -> 376 | AC184: 532 | AG184: 12 | AI184: 9
A185: 116 | C185: 9,500 LUMEN GAS REPLICA (11) | F185: 236 | H185: 10463 | J185: =ROUND(AC405+(AC405*$AG$1),2) -> 54.75 | L185: 12921 | N185: 0.8 | P185: 62 | R185: 12983 | AC185: 532 | AG185: 312 | AI185: 236
A186: 117 | C186: 9,500 LUMEN ASPEN (7) | F186: 672 | H186: 29792 | J186: =ROUND(AC406+(AC406*$AG$1),2) -> 21.56 | L186: 14488 | N186: 0.9 | P186: 178 | R186: 14666 | AC186: 532 | AG186: 888 | AI186: 672
A187: 118 | C187: 9,500 LUMEN TRADITIONAIRE | F187: 0 | H187: 0 | J187: =ROUND(AC407+(AC407*$AG$1),2) -> 17.09 | L187: 0 | N187: 0 | P187: 0 | R187: 0 | AC187: 487 | AG187: 0 | AI187: 0
A188: 119 | C188: 9,500 LUMEN TRADITIONAIRE (10) | F188: 554 | H188: 22483 | J188: =$J$187+$AG$13 -> 23.94 | L188: 13263 | N188: 0.8 | P188: 134 | R188: 13397 | AC188: 487 | AG188: 732 | AI188: 554
A189: 120 | C189: 9,500 LUMEN GRANVILLE | F189: 0 | H189: 0 | J189: =ROUND(AC409+(AC409*$AG$1),2) -> 21.56 | L189: 0 | N189: 0 | P189: 0 | R189: 0 | AC189: 532 | AG189: 0 | AI189: 0
A190: 121 | C190: 9,500 LUMEN GRANVILLE (7) | F190: 0 | H190: 0 | J190: =$J$189+$AG$9 -> 40.17 | L190: 0 | N190: 0 | P190: 0 | R190: 0 | AC190: 532 | AG190: 0 | AI190: 0
A191: 122 | C191: 9,500 LUMEN GRANVILLE (10) | F191: 0 | H191: 0 | J191: =$J$189+$AG$13 -> 28.41 | L191: 0 | N191: 0 | P191: 0 | R191: =L191+P191 -> 0 | AC191: 532 | AG191: 0 | AI191: 0
A192: 123 | C192: 9,500 LUMEN GRANVILLE (11) | F192: 0 | H192: 0 | J192: =$J$189+$AG$14 -> 41.57 | L192: 0 | N192: 0 | P192: 0 | R192: 0 | AC192: 532 | AG192: 0 | AI192: 0
A193: 124 | C193: 22,000 LUMEN RECTILINEAR | F193: 0 | H193: 0 | J193: =ROUND(AC413+(AC413*$AG$1),2) -> 19.09 | L193: 0 | N193: 0 | P193: 0 | R193: =L193+P193 -> 0 | AC193: 1023 | AG193: 0 | AI193: 0
A194: 125 | C194: 22,000 LUMEN RECTILINEAR (12) | F194: 127 | H194: 10827 | J194: =$J$193+$AG$15 -> 32.12 | L194: 4079 | N194: 0.2 | P194: 65 | R194: 4144 | AC194: 1023 | AG194: 168 | AI194: 127
A195: 126 | C195: 50,000 LUMEN RECTILINEAR | F195: 0 | H195: 0 | J195: =ROUND(AC415+(AC415*$AG$1),2) -> 25.35 | L195: 0 | N195: 0 | P195: 0 | R195: =L195+P195 -> 0 | AC195: 1959 | AG195: 0 | AI195: 0
A196: 127 | C196: 50,000 LUMEN RECTILINEAR (12) | F196: 27 | H196: 4408 | J196: =$J$195+$AG$15 -> 38.38 | L196: 1036 | N196: 0.1 | P196: 26 | R196: =L196+P196 -> 1062 | AC196: 1959 | AG196: 36 | AI196: 27
A197: 128 | C197: 50,000 LUMEN RECTILINEAR (13) | F197: 136 | H197: 22202 | J197: =$J$195+$AG$16 -> 38.73 | L197: 5267 | N197: 0.3 | P197: 132 | R197: =L197+P197 -> 5399 | AC197: 1959 | AG197: 180 | AI197: 136
A198: 129 | C198: 50,000 LUMEN SETBACK | F198: 0 | H198: 0 | J198: =ROUND(AC418+(AC418*$AG$1),2) -> 37.38 | L198: 0 | N198: 0 | P198: 0 | R198: =L198+P198 -> 0 | AC198: 1959 | AG198: 0 | AI198: 0
A199: 130 | C199: TOTAL UNDERGROUND | F199: =SUM(F98:F198) -> 12995 | H199: =SUM(H98:H198) -> 875039 | L199: =SUM(L98:L198) -> 305157 | N199: 18.4 | P199: =ROUND(H199*CUR_FAC,0) -> 5220 | R199: =SUM(R98:R198) -> 310374
A200: 131 | C200: RIDERS NOT INCLUDED IN RATES ABOVE ($ PER KWH):
A201: 132 | C201: =ESM_Name -> ENVIRONMENTAL SURCHARGE MECHANISM RIDER (ESM) | L201: =AE421 -> 83714 | N201: =ROUND((L201/L$209)*100,1) -> 5.1 | R201: =L201+P201 -> 83714
A202: 133 | C202: =PSM_Name -> PROFIT SHARING MECHANISM (PSM) | J202: =PRO_PSM -> 0.004727 | L202: =ROUND(($H$199+$H$94)*J202,0) -> 36989 | N202: =ROUND((L202/L$209)*100,1) -> 2.2 | R202: =L202+P202 -> 36989
A203: 134 | C203: TOTAL RIDERS NOT INCLUDED IN RATES ABOVE | L203: =SUM(L201:L202) -> 120703 | N203: =ROUND((L203/L$209)*100,1) -> 7.3 | R203: =SUM(R201:R202) -> 120703
A205: 135 | C205: ADD'L FACILITIES CHARGE:
A206: 136 | C206: OVERHEAD | F206: 4932 | J206: =ROUND(AC426+(AC426*$AG$1),2) -> 0.81 | L206: =ROUND((F206*J206),0) -> 3995 | N206: =ROUND((L206/L$209)*100,1) -> 0.2 | R206: =L206+P206 -> 3995
A207: 137 | C207: UNDERGROUND | F207: 20364 | J207: =ROUND(AC427+(AC427*$AG$1),2) -> 1.17 | L207: 23826 | N207: =ROUND((L207/L$209)*100,1) -> 1.4 | R207: =L207+P207 -> 23826
A208: 138 | C208: TOTAL ADD'L FACILITIES CHG | F208: =SUM(F206:F207) -> 25296 | L208: =SUM(L206:L207) -> 27821 | N208: =ROUND((L208/L$209)*100,1) -> 1.7 | P208: 0 | R208: =SUM(R206:R207) -> 27821
A209: 139 | C209: TOTAL RATE SL INCLUDING RIDERS | F209: =F94+F199 -> 101040 | H209: =H94+H199 -> 7825127 | L209: =L94+L199+L203+L208 -> 1657032 | N209: 100 | P209: =ROUND(H209*CUR_FAC,0) -> 46677 | R209: =R94+R199+R203+R208 -> 1703708
A211: (1) THESE FIGURES REPRESENT NUMBER OF UNITS BILLED. | J211: (5) WITH 35' WOOD POLE. | P211: (9) WITH 30' ALUM POLE.
A212: ="(1A) REFLECTS FUEL COST RECOVERY INCLUDED IN BASE RATES OF "&TEXT(CUR_BASE_FUEL,"$0.000000;($0.000000)")&" PER KWH." -> (1A) REFLECTS FUEL COST RECOVERY INCLUDED IN BASE RATES OF $0.025401 PER KWH. | J212: (6) WITH 40' WOOD POLE. | P212: (10) WITH 17' FIBERGLASS POLE.
... 205 more rows

Sheet Rate TL
A1: =NAME -> DUKE ENERGY KENTUCKY, INC.
A2: =CASE_NO -> CASE NO. 2022-00372
A3: =TITLE -> ANNUALIZED BASE YEAR REVENUES AT PROPOSED VS. MOST CURRENT RATES
A4: =DATE -> FOR THE TWELVE MONTHS ENDED February 28, 2023
A5: =SERVICE -> (ELECTRIC SERVICE)
A6: =DATA_PERIOD -> DATA: __X__ BASE PERIOD ____FORECASTED PERIOD | R6: SCHEDULE M-2.3
A7: =TYPE -> TYPE OF FILING: _X_ ORIGINAL ___UPDATED ___ REVISED | R7: ="PAGE 16 OF "&TEXT(Page_Num_2.3,"00") -> PAGE 16 OF 24
A8: WORK PAPER REFERENCE NO(S).: | R8: WITNESS:
A9: =TIME -> 6 Months Actual and 6 Months Projected with Riders | R9: =WIT -> B. L. SAILERS | Y9: Lighting rate on
A10: PROPOSED ANNUALIZED | Y10: Tariff Sheet
Y11: less Base Fuel
L12: PROPOSED | N12: % OF REV TO | R12: PROPOSED
L13: REVENUE LESS | N13: TOTAL LESS | R13: TOTAL
A14: LINE | C14: RATE | D14: CLASS / | F14: CUSTOMER | J14: PROPOSED | L14: FUEL COST | N14: FUEL COST | P14: FUEL COST | R14: REVENUE
A15: NO. | C15: CODE | D15: DESCRIPTION | F15: BILLS(1) | H15: SALES | J15: RATES | L15: REVENUE | N15: REVENUE | P15: REVENUE (2) | R15: (F + H)
C16: (A) | D16: (B) | F16: (C) | H16: (D) | J16: (E) | L16: (F) | N16: (G) | P16: (H) | R16: (I)
H17: (KWH) | J17: ($/KWH) | L17: ($) | N17: (%) | P17: ($) | R17: ($)
A18: 1 | C18: TL | D18: TRAFFIC LIGHTING
A19: 2 | D19: SERVICE
A21: 3 | C21: (A) WHERE COMPANY
A22: 4 | C22: SUPPLIES ENERGY ONLY (3):
A24: 5 | C24: ALL CONSUMPTION | F24: 87060 | H24: =AA24+AA39 -> 1442664 | J24: =ROUND(AC75+(AC75*LT_COS_RATE),6) -> 0.061438 | L24: =ROUND((H24*J24),0) -> 88634 | N24: =ROUND((L24/L$47)*100,1) -> 88.1 | P24: =ROUND($P$47/$H$47*H24,0) -> 8605 | R24: =L24+P24 -> 97239 | Y24: =J24-PRO_BASE_FUEL -> 0.036037 | AA24: 723211
A26: 6 | C26: (B) WHERE COMPANY
A27: 7 | C27: SUPPLIES ENERGY FROM A
A28: 8 | C28: SEPARATELY METERED SOURCE
A29: 9 | C29: AND PROVIDES LIMITED
A30: 10 | C30: MAINTENANCE:
A32: 11 | C32: ALL CONSUMPTION | F32: 0 | H32: 0 | J32: =ROUND(AC83+(AC83*LT_COS_RATE),6) -> 0.032796 | L32: 0 | N32: =ROUND((L32/L$47)*100,1) -> 0 | P32: =ROUND($P$47/$H$47*H32,0) -> 0 | R32: =L32+P32 -> 0
A34: 12 | C34: (C) WHERE COMPANY
A35: 13 | C35: SUPPLIES ENERGY AND
A36: 14 | C36: PROVIDES LIMITED
A37: 15 | C37: MAINTENANCE (3):
A39: 16 | C39: ALL CONSUMPTION | F39: 19080 | H39: 0 | J39: =ROUND(AC90+(AC90*LT_COS_RATE),6) -> 0.094235 | L39: =ROUND((H39*J39),0) -> 0 | N39: =ROUND((L39/L$47)*100,1) -> 0 | P39: =ROUND($P$47/$H$47*H39,0) -> 0 | R39: =L39+P39 -> 0 | Y39: =J39-PRO_BASE_FUEL -> 0.068834 | AA39: 719453
A40: 17 | C40: TOTAL RATE TL EXCLUDING RIDERS | F40: =F39+F32+F24 -> 106140 | H40: =H39+H32+H24 -> 1442664 | L40: =L39+L32+L24 -> 88634 | N40: =ROUND((L40/L$47)*100,1) -> 88.1 | P40: =P39+P32+P24 -> 8605 | R40: =R39+R32+R24 -> 97239
A42: 18 | C42: RIDERS NOT INCLUDED IN RATES ABOVE:
A43: 19 | C43: =ESM_Name -> ENVIRONMENTAL SURCHARGE MECHANISM RIDER (ESM) | L43: =AE94 -> 5114 | N43: =ROUND((L43/L$47)*100,1) -> 5.1 | R43: =L43+P43 -> 5114
A44: 20 | C44: =PSM_Name -> PROFIT SHARING MECHANISM (PSM) | J44: =PRO_PSM -> 0.004727 | L44: =ROUND($H$40*J44,0) -> 6819 | N44: =ROUND((L44/L$47)*100,1) -> 6.8 | R44: =L44+P44 -> 6819
A45: 21 | C45: TOTAL RIDERS NOT INCLUDED IN RATES ABOVE | L45: =SUM(L43:L44) -> 11933 | N45: =ROUND((L45/L$47)*100,1) -> 11.9 | R45: =SUM(R43:R44) -> 11933
A47: 22 | C47: TOTAL RATE TL INCLUDING RIDERS | F47: =F40 -> 106140 | H47: =H40 -> 1442664 | L47: =L45+L40 -> 100567 | N47: 100 | P47: =ROUND(H47*CUR_FAC,0) -> 8605 | R47: =R45+R40 -> 109172
C49: (1) THESE FIGURES REPRESENT NUMBER OF UNITS BILLED.
C50: ="(2) REFLECTS FUEL COMPONENT OF "&TEXT(PRO_FAC,"$0.000000;($0.000000)")&" PER KWH." -> (2) REFLECTS FUEL COMPONENT OF $0.005965 PER KWH.
C51: ="(3) REFLECTS FUEL COST RECOVERY INCLUDED IN BASE RATES OF "&TEXT(PRO_BASE_FUEL,"$0.000000;($0.000000)")&" PER KWH." -> (3) REFLECTS FUEL COST RECOVERY INCLUDED IN BASE RATES OF $0.025401 PER KWH.
T52: =NAME -> DUKE ENERGY KENTUCKY, INC.
T53: =CASE_NO -> CASE NO. 2022-00372
T54: =TITLE -> ANNUALIZED BASE YEAR REVENUES AT PROPOSED VS. MOST CURRENT RATES
T55: =DATE -> FOR THE TWELVE MONTHS ENDED February 28, 2023
T56: =SERVICE -> (ELECTRIC SERVICE)
T57: =DATA_PERIOD -> DATA: __X__ BASE PERIOD ____FORECASTED PERIOD | AO57: SCHEDULE M-2.2
T58: =TYPE -> TYPE OF FILING: _X_ ORIGINAL ___UPDATED ___ REVISED | AO58: ="PAGE 16 OF "&TEXT(Page_Num_2.2,"00") -> PAGE 16 OF 23
T59: WORK PAPER REFERENCE NO(S).: | AO59: WITNESS:
T60: =TIME -> 6 Months Actual and 6 Months Projected with Riders | AO60: =WIT -> B. L. SAILERS
T61: CURRENT ANNUALIZED
AE63: CURRENT | AG63: % OF REV TO | AI63: REVENUE | AK63: % INCR IN | AO63: CURRENT | AQ63: TOTAL
AC64: MOST | AE64: REVENUE LESS | AG64: TOTAL LESS | AI64: INCR LESS | AK64: REV LESS | AO64: TOTAL | AQ64: REVENUE
T65: LINE | V65: RATE | W65: CLASS / | Y65: CUSTOMER | AC65: CURRENT | AE65: FUEL COST | AG65: FUEL COST | AI65: FUEL COST REV | AK65: FUEL COST REV | AM65: FUEL COST | AO65: REVENUE | AQ65: % INCREASE
T66: NO. | V66: CODE | W66: DESCRIPTION | Y66: BILLS(1) | AA66: SALES | AC66: RATES | AE66: REVENUE | AG66: REVENUE | AI66: (F - K) | AK66: (M / K) | AM66: REVENUE (2) | AO66: (K + H) | AQ66: (M / K1) | AU66: Lighting rate on
V67: (A) | W67: (B) | Y67: (C) | AA67: (D) | AC67: (J) | AE67: (K) | AG67: (L) | AI67: (M) | AK67: (N) | AM67: (H) | AO67: (K1) | AQ67: (O) | AU67: Tariff Sheet
AA68: (KWH) | AC68: ($/KWH) | AE68: ($) | AG68: (%) | AI68: ($) | AK68: (%) | AM68: ($) | AO68: ($) | AQ68: (%) | AU68: less Base Fuel
T69: 1 | V69: TL | W69: TRAFFIC LIGHTING
T70: 2 | W70: SERVICE
T72: 3 | V72: (A) WHERE COMPANY
T73: 4 | V73: SUPPLIES ENERGY ONLY (3):
T75: 5 | V75: ALL CONSUMPTION | Y75: =F24 -> 87060 | AA75: =AA24 -> 723211 | AC75: 0.043437 | AE75: =ROUND((AA75*AC75),0) -> 31414 | AG75: =ROUND((AE75/AE$98)*100,1) -> 34.4 | AI75: =L24-AE75 -> 57220 | AK75: =ROUND((AI75/AE75)*100,1) -> 182.1 | AM75: =ROUND($AM$98/$AA$98*AA75,0) -> 4314 | AO75: =AE75+AM75 -> 35728 | AQ75: =ROUND((AI75/AO75)*100,1) -> 160.2 | AU75: =AC75-CUR_BASE_FUEL -> 0.018036
T77: 6 | V77: (B) WHERE COMPANY
T78: 7 | V78: SUPPLIES ENERGY FROM A
T79: 8 | V79: SEPARATELY METERED SOURCE
T80: 9 | V80: AND PROVIDES LIMITED
T81: 10 | V81: MAINTENANCE:
T83: 11 | V83: ALL CONSUMPTION | Y83: =F32 -> 0 | AA83: =H32 -> 0 | AC83: 0.023187 | AE83: 0 | AG83: =ROUND((AE83/AE$98)*100,1) -> 0 | AI83: =L32-AE83 -> 0 | AK83: 0 | AM83: =ROUND($AM$98/$AA$98*AA83,0) -> 0 | AO83: =AE83+AM83 -> 0 | AQ83: 0 | AU83: =AC83-CUR_BASE_FUEL -> -0.002214
T85: 12 | V85: (B) WHERE COMPANY
T86: 13 | V86: SUPPLIES ENERGY AND
T87: 14 | V87: PROVIDES LIMITED
T88: 15 | V88: MAINTENANCE (3):
T90: 16 | V90: ALL CONSUMPTION | Y90: =F39 -> 19080 | AA90: =AA39 -> 719453 | AC90: 0.066624 | AE90: =ROUND((AA90*AC90),0) -> 47933 | AG90: =ROUND((AE90/AE$98)*100,1)-0.1 -> 52.4 | AI90: =L39-AE90 -> -47933 | AK90: =ROUND((AI90/AE90)*100,1) -> -100 | AM90: =ROUND($AM$98/$AA$98*AA90,0) -> 4291 | AO90: =AE90+AM90 -> 52224 | AQ90: =ROUND((AI90/AO90)*100,1) -> -91.8 | AU90: =AC90-CUR_BASE_FUEL -> 0.041223
T91: 17 | V91: TOTAL RATE TL EXCLUDING RIDERS | Y91: =Y90+Y83+Y75 -> 106140 | AA91: =AA90+AA83+AA75 -> 1442664 | AE91: =AE90+AE83+AE75 -> 79347 | AG91: =ROUND((AE91/AE$98)*100,1) -> 86.9 | AI91: =AI90+AI83+AI75 -> 9287 | AK91: =ROUND((AI91/AE91)*100,1) -> 11.7 | AM91: =AM90+AM83+AM75 -> 8605 | AO91: =AO90+AO83+AO75 -> 87952 | AQ91: =ROUND((AI91/AO91)*100,1) -> 10.6
T93: =A42 -> 18 | V93: RIDERS NOT INCLUDED IN RATES ABOVE:
T94: =A43 -> 19 | V94: =C43 -> ENVIRONMENTAL SURCHARGE MECHANISM RIDER (ESM) | AC94: =CUR_ESM_NONRES -> 0.08798914629 | AE94: =ROUND(($AO$91-(CUR_BASE_FUEL*AA91)+AO95)*AC94,0) -> 5114 | AG94: =ROUND((AE94/AE$98)*100,1) -> 5.6 | AI94: =L43-AE94 -> 0 | AK94: =IF(AE94=0,0,ROUND((AI94/AE94)*100,1)) -> 0 | AO94: =AE94+AM94 -> 5114 | AQ94: =IF(AO94=0,0,ROUND((AI94/AO94)*100,1)) -> 0
T95: =A44 -> 20 | V95: =C44 -> PROFIT SHARING MECHANISM (PSM) | AC95: =RS_PSM -> 0.004727 | AE95: =ROUND($AA$91*AC95,0) -> 6819 | AG95: =ROUND((AE95/AE$98)*100,1) -> 7.5 | AI95: =L44-AE95 -> 0 | AK95: =ROUND((AI95/AE95)*100,1) -> 0 | AO95: =AE95+AM95 -> 6819 | AQ95: =ROUND((AI95/AO95)*100,1) -> 0
T96: =A45 -> 21 | V96: TOTAL RIDERS NOT INCLUDED IN RATES ABOVE | AE96: =SUM(AE94:AE95) -> 11933 | AG96: =ROUND((AE96/AE$98)*100,1) -> 13.1 | AI96: =SUM(AI94:AI95) -> 0 | AK96: =ROUND((AI96/AE96)*100,1) -> 0 | AO96: =SUM(AO94:AO95) -> 11933 | AQ96: =ROUND((AI96/AO96)*100,1) -> 0
T98: =A47 -> 22 | V98: TOTAL RATE TL INCLUDING RIDERS | Y98: =Y91 -> 106140 | AA98: =AA91 -> 1442664 | AE98: =AE96+AE91 -> 91280 | AG98: 100 | AI98: =AI96+AI91 -> 9287 | AK98: =ROUND((AI98/AE98)*100,1) -> 10.2 | AM98: =ROUND(AA98*CUR_FAC,0) -> 8605 | AO98: =AO96+AO91 -> 99885 | AQ98: =ROUND((AI98/AO98)*100,1) -> 9.3
V100: (1) THESE FIGURES REPRESENT NUMBER OF UNITS BILLED.
V101: ="(2) REFLECTS FUEL COMPONENT OF "&TEXT(CUR_FAC,"$0.000000;($0.000000)")&" PER KWH." -> (2) REFLECTS FUEL COMPONENT OF $0.005965 PER KWH.
V102: ="(3) REFLECTS FUEL COST RECOVERY INCLUDED IN BASE RATES OF "&TEXT(CUR_BASE_FUEL,"$0.000000;($0.000000)")&" PER KWH." -> (3) REFLECTS FUEL COST RECOVERY INCLUDED IN BASE RATES OF $0.025401 PER KWH.

Sheet Rate UOLS
A1: =NAME -> DUKE ENERGY KENTUCKY, INC.
A2: =CASE_NO -> CASE NO. 2022-00372
A3: =TITLE -> ANNUALIZED BASE YEAR REVENUES AT PROPOSED VS. MOST CURRENT RATES
A4: =DATE -> FOR THE TWELVE MONTHS ENDED February 28, 2023
A5: =SERVICE -> (ELECTRIC SERVICE)
A6: =DATA_PERIOD -> DATA: __X__ BASE PERIOD ____FORECASTED PERIOD | R6: SCHEDULE M-2.3
A7: =TYPE -> TYPE OF FILING: _X_ ORIGINAL ___UPDATED ___ REVISED | R7: ="PAGE 17 OF "&TEXT(Page_Num_2.3,"00") -> PAGE 17 OF 24
A8: WORK PAPER REFERENCE NO(S).: | R8: WITNESS:
A9: =TIME -> 6 Months Actual and 6 Months Projected with Riders | R9: =WIT -> B. L. SAILERS
A10: PROPOSED ANNUALIZED
L12: PROPOSED | N12: % OF REV TO | R12: PROPOSED | Y12: Lighting rate on
L13: REVENUE LESS | N13: TOTAL LESS | R13: TOTAL | Y13: Tariff Sheet
A14: LINE | C14: RATE | D14: CLASS / | F14: CUSTOMER | J14: PROPOSED | L14: FUEL COST | N14: FUEL COST | P14: FUEL COST | R14: REVENUE | Y14: less Base Fuel
A15: NO. | C15: CODE | D15: DESCRIPTION | F15: BILLS(1) | H15: SALES | J15: RATES(3) | L15: REVENUE | N15: REVENUE | P15: REVENUE (2) | R15: (F + H)
C16: (A) | D16: (B) | F16: (C) | H16: (D) | J16: (E) | L16: (F) | N16: (G) | P16: (H) | R16: (I)
H17: (KWH) | J17: ($/KWH) | L17: ($) | N17: (%) | P17: ($) | R17: ($)
A19: 1 | C19: UOLS | D19: UNMETERED OUTDOOR LIGHTING SERV
A21: 2 | C21: BASE RATE | F21: 109668 | H21: 4869387 | J21: =ROUND(AC56+(AC56*LT_COS_RATE),6) -> 0.060527 | L21: =ROUND((H21*J21),0) -> 294729 | N21: =ROUND((L21/L$28)*100,1) -> 89.4 | P21: =P28 -> 29046 | R21: =P21+L21 -> 323775 | Y21: =J21-PRO_BASE_FUEL -> 0.035126
A23: 3 | C23: RIDERS NOT INCLUDED IN RATES ABOVE:
A24: 4 | C24: =ESM_Name -> ENVIRONMENTAL SURCHARGE MECHANISM RIDER (ESM) | L24: =AE59 -> 12033 | N24: =ROUND((L24/L$28)*100,1) -> 3.6 | R24: =P24+L24 -> 12033
A25: 5 | C25: =PSM_Name -> PROFIT SHARING MECHANISM (PSM) | J25: =PRO_PSM -> 0.004727 | L25: =ROUND($H$21*J25,0) -> 23018 | N25: =ROUND((L25/L$28)*100,1) -> 7 | R25: =P25+L25 -> 23018
A26: 6 | C26: TOTAL RIDERS NOT INCLUDED IN RATES ABOVE | L26: =SUM(L24:L25) -> 35051 | N26: =ROUND((L26/L$28)*100,1) -> 10.6 | R26: =SUM(R24:R25) -> 35051
A28: 7 | C28: TOTAL RATE UOLS INCLUDING RIDERS | F28: =F21 -> 109668 | H28: =H21 -> 4869387 | L28: =L21+L26 -> 329780 | N28: =SUM(N21,N26) -> 100 | P28: =ROUND(H28*CUR_FAC,0) -> 29046 | R28: =R21+R26 -> 358826
C30: (1) THESE FIGURES REPRESENT NUMBER OF UNITS BILLED.
C31: ="(2) REFLECTS FUEL COMPONENT OF "&TEXT(PRO_FAC,"$0.000000;($0.000000)")&" PER KWH." -> (2) REFLECTS FUEL COMPONENT OF $0.005965 PER KWH.
C32: ="(3) REFLECTS FUEL COST RECOVERY INCLUDED IN BASE RATES OF "&TEXT(PRO_BASE_FUEL,"$0.000000;($0.000000)")&" PER KWH." -> (3) REFLECTS FUEL COST RECOVERY INCLUDED IN BASE RATES OF $0.025401 PER KWH.
T36: =NAME -> DUKE ENERGY KENTUCKY, INC.
T37: =CASE_NO -> CASE NO. 2022-00372
T38: =TITLE -> ANNUALIZED BASE YEAR REVENUES AT PROPOSED VS. MOST CURRENT RATES
T39: =DATE -> FOR THE TWELVE MONTHS ENDED February 28, 2023
T40: =SERVICE -> (ELECTRIC SERVICE)
T41: =DATA_PERIOD -> DATA: __X__ BASE PERIOD ____FORECASTED PERIOD | AO41: SCHEDULE M-2.2
T42: =TYPE -> TYPE OF FILING: _X_ ORIGINAL ___UPDATED ___ REVISED | AO42: ="PAGE 17 OF "&TEXT(Page_Num_2.2,"00") -> PAGE 17 OF 23
T43: WORK PAPER REFERENCE NO(S).: | AO43: WITNESS:
T44: =TIME -> 6 Months Actual and 6 Months Projected with Riders | AO44: =WIT -> B. L. SAILERS
T45: CURRENT ANNUALIZED
AE47: CURRENT | AG47: % OF REV TO | AI47: REVENUE | AK47: % INCR IN | AO47: CURRENT | AQ47: TOTAL
AC48: MOST | AE48: REVENUE LESS | AG48: TOTAL LESS | AI48: INCR LESS | AK48: REV LESS | AO48: TOTAL | AQ48: REVENUE | AU48: Lighting rate on
T49: LINE | V49: RATE | W49: CLASS / | Y49: CUSTOMER | AC49: CURRENT | AE49: FUEL COST | AG49: FUEL COST | AI49: FUEL COST REV | AK49: FUEL COST REV | AM49: FUEL COST | AO49: REVENUE | AQ49: % INCREASE | AU49: Tariff Sheet
T50: NO. | V50: CODE | W50: DESCRIPTION | Y50: BILLS(1) | AA50: SALES | AC50: RATES(3) | AE50: REVENUE | AG50: REVENUE | AI50: (F - K) | AK50: (M / K) | AM50: REVENUE (2) | AO50: (K + H) | AQ50: (M / K1) | AU50: less Base Fuel | AX50: current | AY50: proposed
V51: (A) | W51: (B) | Y51: (C) | AA51: (D) | AC51: (J) | AE51: (K) | AG51: (L) | AI51: (M) | AK51: (N) | AM51: (H) | AO51: (K1) | AQ51: (O) | AW51: annual kwh | AX51: base fuel | AY51: base fuel
AA52: (KWH) | AC52: ($/KWH) | AE52: ($) | AG52: (%) | AI52: ($) | AK52: (%) | AM52: ($) | AO52: ($) | AQ52: (%)
AX53: =CUR_BASE_FUEL -> 0.025401 | AY53: =PRO_BASE_FUEL -> 0.025401
T54: 1 | V54: UOLS | W54: UNMETERED OUTDOOR LIGHTING SERV
T56: 2 | V56: BASE RATE | Y56: =F21 -> 109668 | AA56: =H21 -> 4869387 | AC56: 0.042793 | AE56: =ROUND((AA56*AC56),0) -> 208376 | AG56: =ROUND((AE56/AE$63)*100,1) -> 85.6 | AI56: =L21-AE56 -> 86353 | AK56: =ROUND((AI56/AE56)*100,1) -> 41.4 | AM56: =ROUND($AM$63/$AA$63*AA56,0) -> 29046 | AO56: =AE56+AM56 -> 237422 | AQ56: =ROUND((AI56/AO56)*100,1) -> 36.4 | AU56: =AC56-CUR_BASE_FUEL -> 0.017392
T58: =A23 -> 3 | V58: RIDERS NOT INCLUDED IN RATES ABOVE:
T59: =A24 -> 4 | V59: =C24 -> ENVIRONMENTAL SURCHARGE MECHANISM RIDER (ESM) | AC59: =CUR_ESM_NONRES -> 0.08798914629 | AE59: =ROUND((AO56-(CUR_BASE_FUEL*AA56)+AO60)*AC59,0) -> 12033 | AG59: =ROUND((AE59/AE$63)*100,1) -> 4.9 | AI59: =L24-AE59 -> 0 | AK59: =IF(AE59=0,0,ROUND((AI59/AE59)*100,1)) -> 0 | AO59: =AE59+AM59 -> 12033 | AQ59: =IF(AO59=0,0,ROUND((AI59/AO59)*100,1)) -> 0
T60: =A25 -> 5 | V60: =C25 -> PROFIT SHARING MECHANISM (PSM) | AC60: =RS_PSM -> 0.004727 | AE60: =ROUND($AA$56*AC60,0) -> 23018 | AG60: =ROUND((AE60/AE$63)*100,1) -> 9.5 | AI60: =L25-AE60 -> 0 | AK60: =ROUND((AI60/AE60)*100,1) -> 0 | AO60: =AE60+AM60 -> 23018 | AQ60: =ROUND((AI60/AO60)*100,1) -> 0
T61: =A26 -> 6 | V61: TOTAL RIDERS NOT INCLUDED IN RATES ABOVE | AE61: =SUM(AE59:AE60) -> 35051 | AG61: =ROUND((AE61/AE$63)*100,1) -> 14.4 | AI61: =SUM(AI59:AI60) -> 0 | AK61: 0 | AO61: =SUM(AO59:AO60) -> 35051 | AQ61: 0
T63: =A28 -> 7 | V63: TOTAL RATE UOLS INCLUDING RIDERS | Y63: =Y56 -> 109668 | AA63: =AA56 -> 4869387 | AE63: =AE61+AE56 -> 243427 | AG63: 100 | AI63: =AI56+AI61 -> 86353 | AK63: =ROUND((AI63/AE63)*100,1) -> 35.5 | AM63: =ROUND(AA63*CUR_FAC,0) -> 29046 | AO63: =AO61+AO56 -> 272473 | AQ63: =ROUND((AI63/AO63)*100,1) -> 31.7
V65: (1) THESE FIGURES REPRESENT NUMBER OF UNITS BILLED.
V66: ="(2) REFLECTS FUEL COMPONENT OF "&TEXT(CUR_FAC,"$0.000000;($0.000000)")&" PER KWH." -> (2) REFLECTS FUEL COMPONENT OF $0.005965 PER KWH.
V67: ="(3) REFLECTS FUEL COST RECOVERY INCLUDED IN BASE RATES OF "&TEXT(CUR_BASE_FUEL,"$0.000000;($0.000000)")&" PER KWH." -> (3) REFLECTS FUEL COST RECOVERY INCLUDED IN BASE RATES OF $0.025401 PER KWH.

Sheet Rate NSU
A1: =NAME -> DUKE ENERGY KENTUCKY, INC.
A2: =CASE_NO -> CASE NO. 2022-00372
A3: =TITLE -> ANNUALIZED BASE YEAR REVENUES AT PROPOSED VS. MOST CURRENT RATES
A4: =DATE -> FOR THE TWELVE MONTHS ENDED February 28, 2023
A5: =SERVICE -> (ELECTRIC SERVICE)
A6: =DATA_PERIOD -> DATA: __X__ BASE PERIOD ____FORECASTED PERIOD | R6: SCHEDULE M-2.3
A7: =TYPE -> TYPE OF FILING: _X_ ORIGINAL ___UPDATED ___ REVISED | R7: ="PAGE 18 OF "&TEXT(Page_Num_2.3,"00") -> PAGE 18 OF 24
A8: WORK PAPER REFERENCE NO(S).: | R8: WITNESS:
A9: =TIME -> 6 Months Actual and 6 Months Projected with Riders | R9: =WIT -> B. L. SAILERS
A10: PROPOSED ANNUALIZED
L12: PROPOSED | N12: % OF REV TO | R12: PROPOSED
L13: REVENUE LESS | N13: TOTAL LESS | R13: TOTAL
A14: LINE | C14: RATE | D14: CLASS / | F14: CUSTOMER | J14: PROPOSED | L14: FUEL COST | N14: FUEL COST | P14: FUEL COST | R14: REVENUE
A15: NO. | C15: CODE | D15: DESCRIPTION | F15: BILLS(1) | H15: SALES | J15: RATES(3) | L15: REVENUE | N15: REVENUE | P15: REVENUE (2) | R15: (F + H)
C16: (A) | D16: (B) | F16: (C) | H16: (D) | J16: (E) | L16: (F) | N16: (G) | P16: (H) | R16: (I)
H17: (KWH) | J17: ($/UNIT) | L17: ($) | N17: (%) | P17: ($) | R17: ($) | Y17: Lighting rate on
A18: 1 | C18: NSU | D18: NON STANDARD STREET LIGHT UNITS | Y18: Tariff Sheet
Y19: less Base Fuel
A20: 2 | C20: (A) COMPANY OWNED
A21: 3 | C21: (1) BOULEVARD INCANDESCENT(UG): | AC21: Counts (March, 2022) | AE21: kWh Factor
A22: 4 | C22: 2,500 LUMEN SERIES | F22: =AE22 -> 0 | H22: =ROUND(F22*786/12,0) -> 0 | J22: =ROUND(AC72+(AC72*LT_COS_RATE),2) -> 14.46 | L22: =ROUND((F22*J22),0) -> 0 | N22: =ROUND((L22/L$45)*100,1) -> 0 | P22: =ROUND($P$45/$H$45*H22,0) -> 0 | R22: =L22+P22 -> 0 | Y22: =J22-AY72 -> 13.16 | AC22: 0 | AE22: =ROUND(AC22*$AG$22,0) -> 0 | AG22: =8172/SUM(AC21:AC45) -> 0.8925294889 | AI22: Total Lights Factor
A23: 5 | C23: 2,500 LUMEN MULTIPLE | F23: =AE23 -> 128 | H23: =ROUND(F23*786/12,0) -> 8384 | J23: =ROUND(AC73+(AC73*LT_COS_RATE),2) -> 11.29 | L23: =ROUND((F23*J23),0) -> 1445 | N23: =ROUND((L23/L$45)*100,1) -> 1.4 | P23: =ROUND($P$45/$H$45*H23,0) -> 50 | R23: =L23+P23 -> 1495 | Y23: =J23-AY73 -> 9.63 | AC23: 144 | AE23: =ROUND(AC23*$AG$22,0)-1 -> 128
A24: 6 | C24: (2) HOLOPHANE DECORATIVE:
A25: 7 | C25: 10,000 LUMEN MV W
A26: 8 | C26: 17' FIBERGLASS POLE | F26: =AE26 -> 332 | H26: =ROUND(F26*1215/12,0) -> 33615 | J26: =ROUND(AC76+(AC76*LT_COS_RATE),2) -> 26.35 | L26: =ROUND((F26*J26),0) -> 8748 | N26: =ROUND((L26/L$45)*100,1) -> 8.6 | P26: =ROUND($P$45/$H$45*H26,0) -> 201 | R26: =L26+P26 -> 8949 | Y26: =J26-AY76 -> 23.78 | AC26: 372 | AE26: =ROUND(AC26*$AG$22,0) -> 332
A27: 9 | C27: (3) STREET LGT UNITS (OH)
A28: 10 | C28: 2,500 LUMEN INDANDESCENT | F28: =AE28 -> 750 | H28: =ROUND(F28*786/12,0) -> 49125 | J28: =ROUND(AC78+(AC78*LT_COS_RATE),2) -> 11.19 | L28: =ROUND((F28*J28),0) -> 8393 | N28: =ROUND((L28/L$45)*100,1) -> 8.3 | P28: =ROUND($P$45/$H$45*H28,0) -> 293 | R28: =L28+P28 -> 8686 | Y28: =J28-AY78 -> 9.53 | AC28: 840 | AE28: 750
A29: 11 | C29: 2,500 LUMEN MERCURY VAPOR | F29: =AE29 -> 6544 | H29: =ROUND(F29*453/12,0) -> 247036 | J29: =ROUND(AC79+(AC79*LT_COS_RATE),2) -> 10.54 | L29: =ROUND((F29*J29),0) -> 68974 | N29: =ROUND((L29/L$45)*100,1) -> 67.9 | P29: =ROUND($P$45/$H$45*H29,0) -> 1474 | R29: =L29+P29 -> 70448 | Y29: =J29-AY79 -> 9.58 | AC29: 7332 | AE29: 6544
A30: 12 | C30: 21,000 LUMEN MERCURY VAPOR | F30: =AE30 -> 364 | H30: =ROUND(F30*1914/12,0) -> 58058 | J30: =ROUND(AC80+(AC80*LT_COS_RATE),2) -> 16.93 | L30: =ROUND((F30*J30),0) -> 6163 | N30: =ROUND((L30/L$45)*100,1) -> 6.1 | P30: =P31-P22-P23-P26-P28-P29 -> 346 | R30: =L30+P30 -> 6509 | Y30: =J30-AY80 -> 12.88 | AC30: 408 | AE30: 364
A31: 13 | C31: TOTAL COMPANY OWNED | F31: =SUM(F22:F30) -> 8118 | H31: =SUM(H22:H30) -> 396218 | L31: =SUM(L22:L30) -> 93723 | N31: =ROUND((L31/L$45)*100,1) -> 92.3 | P31: =ROUND($P$45/$H$45*H31,0) -> 2364 | R31: =SUM(R22:R30) -> 96087
A33: 14 | C33: (B) CUSTOMER OWNED WITH LTD MAINT
A34: 15 | C34: (1) BOULEVARD INCANDESCENT(UG):
A35: 16 | C35: 2,500 LUMEN SERIES | F35: =AE35 -> 0 | H35: =ROUND(F35*616/12,0) -> 0 | J35: =ROUND(AC85+(AC85*LT_COS_RATE),2) -> 8.57 | L35: =ROUND((F35*J35),0) -> 0 | N35: =ROUND((L35/L$45)*100,1) -> 0 | P35: =ROUND($P$45/$H$45*H35,0) -> 0 | R35: =L35+P35 -> 0 | Y35: =J35-AY85 -> 7.266082 | AC35: 0 | AE35: 0
A36: 17 | C36: 2,500 LUMEN MULTIPLE | F36: =AE36 -> 54 | H36: =ROUND(F36*786/12,0) -> 3537 | J36: =ROUND(AC86+(AC86*LT_COS_RATE),2) -> 10.91 | L36: =ROUND((F36*J36),0) -> 589 | N36: =N37-N35 -> 0.6 | P36: =ROUND($P$45/$H$45*H36,0) -> 21 | R36: =L36+P36 -> 610 | Y36: =J36-AY86 -> 9.246234 | AC36: 60 | AE36: 54
A37: 18 | C37: TOTAL CUSTOMER OWNED | F37: =SUM(F35:F36) -> 54 | H37: =SUM(H35:H36) -> 3537 | L37: =SUM(L35:L36) -> 589 | N37: =ROUND((L37/L$45)*100,1) -> 0.6 | P37: =ROUND($P$45/$H$45*H37,0) -> 21 | R37: =SUM(R35:R36) -> 610
A38: 19 | C38: TOTAL RATE NSU EXCLUDING RIDERS | F38: =F37+F31 -> 8172 | H38: =H37+H31 -> 399755 | L38: =L37+L31 -> 94312 | N38: =ROUND((L38/L$45)*100,1) -> 92.9 | P38: =P37+P31 -> 2385 | R38: =R37+R31 -> 96697
A40: 20 | C40: RIDERS NOT INCLUDED IN RATES ABOVE ($/KWH):
A41: 21 | C41: =ESM_Name -> ENVIRONMENTAL SURCHARGE MECHANISM RIDER (ESM) | L41: =AE91 -> 5348 | N41: =ROUND((L41/L$45)*100,1) -> 5.3 | R41: =L41+P41 -> 5348
A42: 22 | C42: =PSM_Name -> PROFIT SHARING MECHANISM (PSM) | J42: =PRO_PSM -> 0.004727 | L42: =ROUND($H$38*J42,0) -> 1890 | N42: =ROUND((L42/L$45)*100,1) -> 1.9 | R42: =L42+P42 -> 1890
A43: 23 | C43: TOTAL RIDERS NOT INCLUDED IN RATES ABOVE | L43: =SUM(L41:L42) -> 7238 | N43: =ROUND((L43/L$45)*100,1) -> 7.1 | R43: =SUM(R41:R42) -> 7238
A45: 24 | C45: TOTAL RATE NSU INCLUDING RIDERS | F45: =F31+F37 -> 8172 | H45: =H31+H37 -> 399755 | L45: =L43+L38 -> 101550 | N45: 100 | P45: =ROUND(H45*CUR_FAC,0) -> 2385 | R45: =R43+R38 -> 103935
C47: (1) THESE FIGURES REPRESENT NUMBER OF UNITS BILLED.
C48: ="(2) REFLECTS FUEL COMPONENT OF "&TEXT(PRO_FAC,"$0.000000;($0.000000)")&" PER KWH." -> (2) REFLECTS FUEL COMPONENT OF $0.005965 PER KWH.
C49: ="(3) REFLECTS FUEL COST RECOVERY INCLUDED IN BASE RATES OF "&TEXT(PRO_BASE_FUEL,"$0.000000;($0.000000)")&" PER KWH." -> (3) REFLECTS FUEL COST RECOVERY INCLUDED IN BASE RATES OF $0.025401 PER KWH.
T51: =NAME -> DUKE ENERGY KENTUCKY, INC.
T52: =CASE_NO -> CASE NO. 2022-00372
T53: =TITLE -> ANNUALIZED BASE YEAR REVENUES AT PROPOSED VS. MOST CURRENT RATES
T54: =DATE -> FOR THE TWELVE MONTHS ENDED February 28, 2023
T55: =SERVICE -> (ELECTRIC SERVICE)
T56: =DATA_PERIOD -> DATA: __X__ BASE PERIOD ____FORECASTED PERIOD | AO56: SCHEDULE M-2.2
T57: =TYPE -> TYPE OF FILING: _X_ ORIGINAL ___UPDATED ___ REVISED | AO57: ="PAGE 18 OF "&TEXT(Page_Num_2.2,"00") -> PAGE 18 OF 23
T58: WORK PAPER REFERENCE NO(S).: | AO58: WITNESS:
T59: =TIME -> 6 Months Actual and 6 Months Projected with Riders | AO59: =WIT -> B. L. SAILERS
T60: CURRENT ANNUALIZED
AE62: CURRENT | AG62: % OF REV TO | AI62: REVENUE | AK62: % INCR IN | AO62: CURRENT | AQ62: TOTAL
AC63: MOST | AE63: REVENUE LESS | AG63: TOTAL LESS | AI63: INCR LESS | AK63: REV LESS | AO63: TOTAL | AQ63: REVENUE
T64: LINE | V64: RATE | W64: CLASS / | Y64: CUSTOMER | AC64: CURRENT | AE64: FUEL COST | AG64: FUEL COST | AI64: FUEL COST REV | AK64: FUEL COST REV | AM64: FUEL COST | AO64: REVENUE | AQ64: % INCREASE
T65: NO. | V65: CODE | W65: DESCRIPTION | Y65: BILLS(1) | AA65: SALES | AC65: RATES(3) | AE65: REVENUE | AG65: REVENUE | AI65: (F - K) | AK65: (M / K) | AM65: REVENUE (2) | AO65: (K + H) | AQ65: (M / K1) | AX65: current | AY65: proposed
V66: (A) | W66: (B) | Y66: (C) | AA66: (D) | AC66: (J) | AE66: (K) | AG66: (L) | AI66: (M) | AK66: (N) | AM66: (H) | AO66: (K1) | AQ66: (O) | AU66: Lighting rate on | AW66: annual kwh | AX66: base fuel | AY66: base fuel
AA67: (KWH) | AC67: ($/UNIT) | AE67: ($) | AG67: (%) | AI67: ($) | AK67: (%) | AM67: ($) | AO67: ($) | AQ67: (%) | AU67: Tariff Sheet
T68: 1 | V68: NSU | W68: NON STANDARD STREET LIGHT UNITS | AU68: less Base Fuel
T70: 2 | V70: (A) COMPANY OWNED
T71: 3 | V71: (1) BOULEVARD INCANDESCENT(UG):
T72: 4 | V72: 2,500 LUMEN SERIES | Y72: =F22 -> 0 | AA72: =H22 -> 0 | AC72: 10.22 | AE72: =ROUND((Y72*AC72),0) -> 0 | AG72: =ROUND((AE72/AE$95)*100,1) -> 0 | AI72: =L22-AE72 -> 0 | AK72: =IF(AE72=0,0,ROUND((AI72/AE72)*100,1)) -> 0 | AM72: =ROUND($AM$95/$AA$95*AA72,0) -> 0 | AO72: =AE72+AM72 -> 0 | AQ72: =IF(AO72=0,0,ROUND((AI72/AO72)*100,1)) -> 0 | AU72: =AC72-AX72 -> 8.92 | AW72: 616 | AX72: =ROUND((AW72/12)*CUR_BASE_FUEL,2) -> 1.3 | AY72: =ROUND((AW72/12)*PRO_BASE_FUEL,2) -> 1.3
T73: 5 | V73: 2,500 LUMEN MULTIPLE | Y73: =F23 -> 128 | AA73: =H23 -> 8384 | AC73: 7.98 | AE73: =ROUND((Y73*AC73),0) -> 1021 | AG73: =ROUND((AE73/AE$95)*100,1) -> 1.4 | AI73: =L23-AE73 -> 424 | AK73: 41.5 | AM73: =ROUND($AM$95/$AA$95*AA73,0) -> 50 | AO73: =AE73+AM73 -> 1071 | AQ73: 39.6 | AU73: =AC73-AX73 -> 6.32 | AW73: 786 | AX73: =ROUND((AW73/12)*CUR_BASE_FUEL,2) -> 1.66 | AY73: =ROUND((AW73/12)*PRO_BASE_FUEL,2) -> 1.66
T74: 6 | V74: (2) HOLOPHANE DECORATIVE:
T75: 7 | V75: 10,000 LUMEN MV W
T76: 8 | V76: 17' FIBERGLASS POLE | Y76: =F26 -> 332 | AA76: =H26 -> 33615 | AC76: 18.63 | AE76: =ROUND((Y76*AC76),0) -> 6185 | AG76: =ROUND((AE76/AE$95)*100,1) -> 8.4 | AI76: =L26-AE76 -> 2563 | AK76: =ROUND((AI76/AE76)*100,1) -> 41.4 | AM76: =ROUND($AM$95/$AA$95*AA76,0) -> 201 | AO76: =AE76+AM76 -> 6386 | AQ76: =ROUND((AI76/AO76)*100,1) -> 40.1 | AU76: =AC76-AX76 -> 16.06 | AW76: 1215 | AX76: =ROUND((AW76/12)*CUR_BASE_FUEL,2) -> 2.57 | AY76: =ROUND((AW76/12)*PRO_BASE_FUEL,2) -> 2.57
T77: 9 | V77: (3) STREET LGT UNITS (OH)
T78: 10 | V78: 2,500 LUMEN INDANDESCENT | Y78: =F28 -> 750 | AA78: =H28 -> 49125 | AC78: 7.91 | AE78: =ROUND((Y78*AC78),0) -> 5933 | AG78: =ROUND((AE78/AE$95)*100,1) -> 8 | AI78: =L28-AE78 -> 2460 | AK78: =ROUND((AI78/AE78)*100,1) -> 41.5 | AM78: =ROUND($AM$95/$AA$95*AA78,0) -> 293 | AO78: =AE78+AM78 -> 6226 | AQ78: =ROUND((AI78/AO78)*100,1) -> 39.5 | AU78: =AC78-AX78 -> 6.25 | AW78: 786 | AX78: =ROUND((AW78/12)*CUR_BASE_FUEL,2) -> 1.66 | AY78: =ROUND((AW78/12)*PRO_BASE_FUEL,2) -> 1.66
T79: 11 | V79: 2,500 LUMEN MERCURY VAPOR | Y79: =F29 -> 6544 | AA79: =H29 -> 247036 | AC79: 7.45 | AE79: =ROUND((Y79*AC79),0) -> 48753 | AG79: =ROUND((AE79/AE$95)*100,1) -> 66 | AI79: =L29-AE79 -> 20221 | AK79: =ROUND((AI79/AE79)*100,1) -> 41.5 | AM79: =ROUND($AM$95/$AA$95*AA79,0)-1 -> 1473 | AO79: =AE79+AM79 -> 50226 | AQ79: =ROUND((AI79/AO79)*100,1) -> 40.3 | AU79: =AC79-AX79 -> 6.49 | AW79: 453 | AX79: =ROUND((AW79/12)*CUR_BASE_FUEL,2) -> 0.96 | AY79: =ROUND((AW79/12)*PRO_BASE_FUEL,2) -> 0.96
T80: 12 | V80: 21,000 LUMEN MERCURY VAPOR | Y80: =F30 -> 364 | AA80: =H30 -> 58058 | AC80: 11.97 | AE80: =ROUND((Y80*AC80),0) -> 4357 | AG80: =ROUND((AE80/AE$95)*100,1) -> 5.9 | AI80: =L30-AE80 -> 1806 | AK80: =ROUND((AI80/AE80)*100,1) -> 41.5 | AM80: =ROUND($AM$95/$AA$95*AA80,0) -> 346 | AO80: =AE80+AM80 -> 4703 | AQ80: =ROUND((AI80/AO80)*100,1) -> 38.4 | AU80: =AC80-AX80 -> 7.92 | AW80: 1914 | AX80: =ROUND((AW80/12)*CUR_BASE_FUEL,2) -> 4.05 | AY80: =ROUND((AW80/12)*PRO_BASE_FUEL,2) -> 4.05
T81: 13 | V81: TOTAL COMPANY OWNED | Y81: =SUM(Y72:Y80) -> 8118 | AA81: =SUM(AA72:AA80) -> 396218 | AE81: =SUM(AE72:AE80) -> 66249 | AG81: =SUM(AG72:AG80) -> 89.7 | AI81: =SUM(AI72:AI80) -> 27474 | AK81: =ROUND((AI81/AE81)*100,1) -> 41.5 | AM81: =ROUND($AM$95/$AA$95*AA81,0) -> 2364 | AO81: =AE81+AM81 -> 68613 | AQ81: =ROUND((AI81/AO81)*100,1) -> 40
T83: 14 | V83: (B) CUSTOMER OWNED WITH LTD MAINT
T84: 15 | V84: (1) BOULEVARD INCANDESCENT(UG):
T85: 16 | V85: 2,500 LUMEN SERIES | Y85: =F35 -> 0 | AA85: =H35 -> 0 | AC85: 6.06 | AE85: =ROUND((Y85*AC85),0) -> 0 | AG85: =ROUND((AE85/AE$95)*100,1) -> 0 | AI85: =L35-AE85 -> 0 | AK85: =IF(AE85=0,0,ROUND((AI85/AE85)*100,1)) -> 0 | AM85: =ROUND($AM$95/$AA$95*AA85,0) -> 0 | AO85: =AE85+AM85 -> 0 | AQ85: =IF(AO85=0,0,ROUND((AI85/AO85)*100,1)) -> 0 | AU85: =AC85-AX85 -> 4.756082 | AW85: 616 | AX85: =ROUND((AW85/12)*CUR_BASE_FUEL,6) -> 1.303918 | AY85: =ROUND((AW85/12)*PRO_BASE_FUEL,6) -> 1.303918
T86: 17 | V86: 2,500 LUMEN MULTIPLE | Y86: =F36 -> 54 | AA86: =H36 -> 3537 | AC86: 7.71 | AE86: =ROUND((Y86*AC86),0) -> 416 | AG86: =ROUND((AE86/AE$95)*100,1) -> 0.6 | AI86: =L36-AE86 -> 173 | AK86: 0 | AM86: =ROUND($AM$95/$AA$95*AA86,0) -> 21 | AO86: =AE86+AM86 -> 437 | AQ86: 39.6 | AU86: =AC86-AX86 -> 6.046234 | AW86: 786 | AX86: =ROUND((AW86/12)*CUR_BASE_FUEL,6) -> 1.663766 | AY86: =ROUND((AW86/12)*PRO_BASE_FUEL,6) -> 1.663766
T87: 18 | V87: TOTAL CUSTOMER OWNED | Y87: =SUM(Y85:Y86) -> 54 | AA87: =SUM(AA85:AA86) -> 3537 | AE87: =SUM(AE85:AE86) -> 416 | AG87: =ROUND((AE87/AE$95)*100,1) -> 0.6 | AI87: =SUM(AI85:AI86) -> 173 | AK87: =ROUND((AI87/AE87)*100,1) -> 41.6 | AM87: =ROUND($AM$95/$AA$95*AA87,0) -> 21 | AO87: =SUM(AO85:AO86) -> 437 | AQ87: =ROUND((AI87/AO87)*100,1) -> 39.6
T88: 19 | V88: TOTAL RATE NSU EXCLUDING RIDERS | Y88: =Y87+Y81 -> 8172 | AA88: =AA87+AA81 -> 399755 | AE88: =AE87+AE81 -> 66665 | AG88: =ROUND((AE88/AE$95)*100,1) -> 90.2 | AI88: =AI87+AI81 -> 27647 | AK88: =ROUND((AI88/AE88)*100,1) -> 41.5 | AM88: =AM87+AM81 -> 2385 | AO88: =AO87+AO81 -> 69050 | AQ88: =ROUND((AI88/AO88)*100,1) -> 40
T90: =A40 -> 20 | V90: RIDERS NOT INCLUDED IN RATES ABOVE ($/KWH):
T91: =A41 -> 21 | V91: =C41 -> ENVIRONMENTAL SURCHARGE MECHANISM RIDER (ESM) | AC91: =CUR_ESM_NONRES -> 0.08798914629 | AE91: =ROUND((AO88-(CUR_BASE_FUEL*AA88)+AO92)*AC91,0) -> 5348 | AG91: =ROUND((AE91/AE$95)*100,1) -> 7.2 | AI91: =L41-AE91 -> 0 | AK91: =IF(AE91=0,0,ROUND((AI91/AE91)*100,1)) -> 0 | AO91: =AE91+AM91 -> 5348 | AQ91: =IF(AO91=0,0,ROUND((AI91/AO91)*100,1)) -> 0
T92: =A42 -> 22 | V92: =C42 -> PROFIT SHARING MECHANISM (PSM) | AC92: =RS_PSM -> 0.004727 | AE92: =ROUND($AA$88*AC92,0) -> 1890 | AG92: =ROUND((AE92/AE$95)*100,1) -> 2.6 | AI92: =L42-AE92 -> 0 | AK92: =ROUND((AI92/AE92)*100,1) -> 0 | AO92: =AE92+AM92 -> 1890 | AQ92: =ROUND((AI92/AO92)*100,1) -> 0
T93: =A43 -> 23 | V93: TOTAL RIDERS NOT INCLUDED IN RATES ABOVE | AE93: =SUM(AE91:AE92) -> 7238 | AG93: =ROUND((AE93/AE$95)*100,1) -> 9.8 | AI93: =SUM(AI91:AI92) -> 0 | AK93: 0 | AO93: =SUM(AO91:AO92) -> 7238 | AQ93: 0
T95: =A45 -> 24 | V95: TOTAL RATE NSU INCLUDING RIDERS | Y95: =Y88 -> 8172 | AA95: =AA88 -> 399755 | AE95: =AE88+AE93 -> 73903 | AG95: 100 | AI95: =AI88+AI93 -> 27647 | AK95: =ROUND((AI95/AE95)*100,1) -> 37.4 | AM95: =ROUND(AA95*CUR_FAC,0) -> 2385 | AO95: =AO88+AO93 -> 76288 | AQ95: =ROUND((AI95/AO95)*100,1) -> 36.2
V97: (1) THESE FIGURES REPRESENT NUMBER OF UNITS BILLED.
V98: ="(2) REFLECTS FUEL COMPONENT OF "&TEXT(CUR_FAC,"$0.000000;($0.000000)")&" PER KWH." -> (2) REFLECTS FUEL COMPONENT OF $0.005965 PER KWH.
V99: ="(3) REFLECTS FUEL COST RECOVERY INCLUDED IN BASE RATES OF "&TEXT(CUR_BASE_FUEL,"$0.000000;($0.000000)")&" PER KWH." -> (3) REFLECTS FUEL COST RECOVERY INCLUDED IN BASE RATES OF $0.025401 PER KWH.

Sheet Rate SC
A1: =NAME -> DUKE ENERGY KENTUCKY, INC.
A2: =CASE_NO -> CASE NO. 2022-00372
A3: =TITLE -> ANNUALIZED BASE YEAR REVENUES AT PROPOSED VS. MOST CURRENT RATES
A4: =DATE -> FOR THE TWELVE MONTHS ENDED February 28, 2023
A5: =SERVICE -> (ELECTRIC SERVICE)
A6: =DATA_PERIOD -> DATA: __X__ BASE PERIOD ____FORECASTED PERIOD | R6: SCHEDULE M-2.3
A7: =TYPE -> TYPE OF FILING: _X_ ORIGINAL ___UPDATED ___ REVISED | R7: ="PAGE 19 OF "&TEXT(Page_Num_2.3,"00") -> PAGE 19 OF 24
A8: WORK PAPER REFERENCE NO(S).: | R8: WITNESS:
A9: =TIME -> 6 Months Actual and 6 Months Projected with Riders | R9: =WIT -> B. L. SAILERS
A10: PROPOSED ANNUALIZED
L12: PROPOSED | N12: % OF REV TO | R12: PROPOSED
L13: REVENUE LESS | N13: TOTAL LESS | R13: TOTAL
A14: LINE | C14: RATE | D14: CLASS / | F14: CUSTOMER | J14: PROPOSED | L14: FUEL COST | N14: FUEL COST | P14: FUEL COST | R14: REVENUE
A15: NO. | C15: CODE | D15: DESCRIPTION | F15: BILLS(1) | H15: SALES | J15: RATES(3) | L15: REVENUE | N15: REVENUE | P15: REVENUE (2) | R15: (F + H)
C16: (A) | D16: (B) | F16: (C) | H16: (D) | J16: (E) | L16: (F) | N16: (G) | P16: (H) | R16: (I)
H17: (KWH) | J17: ($/UNIT)/ | L17: ($) | N17: (%) | P17: ($) | R17: ($) | Y17: Lighting rate on
A18: 1 | C18: SC | D18: STREET LIGHTING - | J18: ($/KWH) | Y18: Tariff Sheet
A19: 2 | C19: CUST OWNED/LTD MAINT
A20: 3 | C20: STANDARD UNIT-COBRAHEAD
A21: 4 | C21: MERCURY VAPOR --
A22: 5 | C22: 7,000 LUMEN | F22: 0 | H22: 0 | J22: =ROUND(AC95+(AC95*LT_COS_RATE),2) -> 6.66 | L22: =ROUND(F22*J22,0) -> 0 | N22: =ROUND((L22/L$72)*100,1) -> 0 | P22: =ROUND((P$72/H$72)*H22,0) -> 0 | R22: =P22+L22 -> 0 | Y22: =J22-AY95 -> 4.96
A23: 6 | C23: 10,000 LUMEN | F23: 0 | H23: 0 | J23: =ROUND(AC96+(AC96*LT_COS_RATE),2) -> 8.51 | L23: =ROUND(F23*J23,0) -> 0 | N23: =ROUND((L23/L$72)*100,1) -> 0 | P23: =ROUND((P$72/H$72)*H23,0) -> 0 | R23: =P23+L23 -> 0 | Y23: =J23-AY96 -> 6.09
A24: 7 | C24: 21,000 LUMEN | F24: 0 | H24: 0 | J24: =ROUND(AC97+(AC97*LT_COS_RATE),2) -> 11.84 | L24: =ROUND(F24*J24,0) -> 0 | N24: =ROUND((L24/L$72)*100,1) -> 0 | P24: =ROUND((P$72/H$72)*H24,0) -> 0 | R24: =P24+L24 -> 0 | Y24: =J24-AY97 -> 8.05
A26: 8 | C26: METAL HALIDE --
A27: 9 | C27: 14,000 LUMEN | F27: 0 | H27: 0 | J27: =ROUND(AC100+(AC100*LT_COS_RATE),2) -> 6.66 | L27: =ROUND(F27*J27,0) -> 0 | N27: =ROUND((L27/L$72)*100,1) -> 0 | P27: =ROUND((P$72/H$72)*H27,0) -> 0 | R27: =P27+L27 -> 0 | Y27: =J27-AY100 -> 4.96
A28: 10 | C28: 20,500 LUMEN | F28: 0 | H28: 0 | J28: =ROUND(AC101+(AC101*LT_COS_RATE),2) -> 8.51 | L28: =ROUND(F28*J28,0) -> 0 | N28: =ROUND((L28/L$72)*100,1) -> 0 | P28: =ROUND((P$72/H$72)*H28,0) -> 0 | R28: =P28+L28 -> 0 | Y28: =J28-AY101 -> 6.09
A29: 11 | C29: 36,000 LUMEN | F29: 0 | H29: 0 | J29: =ROUND(AC102+(AC102*LT_COS_RATE),2) -> 11.84 | L29: =ROUND(F29*J29,0) -> 0 | N29: =ROUND((L29/L$72)*100,1) -> 0 | P29: =ROUND((P$72/H$72)*H29,0) -> 0 | R29: =P29+L29 -> 0 | Y29: =J29-AY102 -> 8.05
A31: 12 | C31: SODIUM VAPOR--
A32: 13 | C32: 9,500 LUMEN | F32: 0 | H32: =ROUND(F32*487/12,0) -> 0 | J32: =ROUND(AC105+(AC105*LT_COS_RATE),2) -> 7.92 | L32: =ROUND(F32*J32,0) -> 0 | N32: =ROUND((L32/L$72)*100,1) -> 0 | P32: =ROUND((P$72/H$72)*H32,0) -> 0 | R32: =P32+L32 -> 0 | Y32: =J32-AY105 -> 6.89
A33: 14 | C33: 16,000 LUMEN | F33: 0 | H33: 0 | J33: =ROUND(AC106+(AC106*LT_COS_RATE),2) -> 8.87 | L33: =ROUND(F33*J33,0) -> 0 | N33: =ROUND((L33/L$72)*100,1) -> 0 | P33: =ROUND((P$72/H$72)*H33,0) -> 0 | R33: =P33+L33 -> 0 | Y33: =J33-AY106 -> 7.36
A34: 15 | C34: 22,000 LUMEN | F34: 0 | H34: 0 | J34: =ROUND(AC107+(AC107*LT_COS_RATE),2) -> 9.77 | L34: =ROUND(F34*J34,0) -> 0 | N34: =ROUND((L34/L$72)*100,1) -> 0 | P34: =ROUND((P$72/H$72)*H34,0) -> 0 | R34: =P34+L34 -> 0 | Y34: =J34-AY107 -> 7.76
A35: 16 | C35: 27,500 LUMEN | F35: 0 | H35: 0 | J35: =ROUND(AC108+(AC108*LT_COS_RATE),2) -> 9.77 | L35: =ROUND(F35*J35,0) -> 0 | N35: =ROUND((L35/L$72)*100,1) -> 0 | P35: =ROUND((P$72/H$72)*H35,0) -> 0 | R35: =P35+L35 -> 0 | Y35: =J35-AY108 -> 7.76
A36: 17 | C36: 50,000 LUMEN | F36: 0 | H36: 0 | J36: =ROUND(AC109+(AC109*LT_COS_RATE),2) -> 13.37 | L36: =ROUND(F36*J36,0) -> 0 | N36: =ROUND((L36/L$72)*100,1) -> 0 | P36: =ROUND((P$72/H$72)*H36,0) -> 0 | R36: =P36+L36 -> 0 | Y36: =J36-AY109 -> 9.22
A38: 18 | C38: DECORATIVE UNITS:
A39: 19 | C39: 7,000 LUMEN MERCURY VAPOR--
A40: 20 | C40: HOLOPHANE | F40: 0 | H40: 0 | J40: =ROUND(AC113+(AC113*LT_COS_RATE),2) -> 8.44 | L40: =ROUND(F40*J40,0) -> 0 | N40: =ROUND((L40/L$72)*100,1) -> 0 | P40: =ROUND((P$72/H$72)*H40,0) -> 0 | R40: =P40+L40 -> 0 | Y40: =J40-AY113 -> 6.59
A41: 21 | C41: TOWN & COUNTRY | F41: 0 | H41: 0 | J41: =ROUND(AC114+(AC114*LT_COS_RATE),2) -> 8.36 | L41: =ROUND(F41*J41,0) -> 0 | N41: =ROUND((L41/L$72)*100,1) -> 0 | P41: =ROUND((P$72/H$72)*H41,0) -> 0 | R41: =P41+L41 -> 0 | Y41: =J41-AY114 -> 6.55
A42: 22 | C42: GAS REPLICA | F42: 0 | H42: 0 | J42: =ROUND(AC115+(AC115*LT_COS_RATE),2) -> 8.44 | L42: =ROUND(F42*J42,0) -> 0 | N42: =ROUND((L42/L$72)*100,1) -> 0 | P42: =ROUND((P$72/H$72)*H42,0) -> 0 | R42: =P42+L42 -> 0 | Y42: =J42-AY115 -> 6.59
A43: 23 | C43: ASPEN | F43: 0 | H43: 0 | J43: =ROUND(AC116+(AC116*LT_COS_RATE),2) -> 8.44 | L43: =ROUND(F43*J43,0) -> 0 | N43: =ROUND((L43/L$72)*100,1) -> 0 | P43: =ROUND((P$72/H$72)*H43,0) -> 0 | R43: =P43+L43 -> 0 | Y43: =J43-AY116 -> 6.59
A45: 24 | C45: 14,000 LUMEN METAL HALIDE-- | AX45: current | AY45: proposed
A46: 25 | C46: TRADITIONAIRE | F46: 0 | H46: 0 | J46: =ROUND(AC119+(AC119*LT_COS_RATE),2) -> 8.36 | L46: =ROUND(F46*J46,0) -> 0 | N46: =ROUND((L46/L$72)*100,1) -> 0 | P46: =ROUND((P$72/H$72)*H46,0) -> 0 | R46: =P46+L46 -> 0 | Y46: =J46-AY119 -> 6.55 | AW46: annual kwh | AX46: base fuel | AY46: base fuel
A47: 26 | C47: GRANVILLE ACORN | F47: 0 | H47: 0 | J47: =ROUND(AC120+(AC120*LT_COS_RATE),2) -> 8.44 | L47: =ROUND(F47*J47,0) -> 0 | N47: =ROUND((L47/L$72)*100,1) -> 0 | P47: =ROUND((P$72/H$72)*H47,0) -> 0 | R47: =P47+L47 -> 0 | Y47: =J47-AY120 -> 6.59
A48: 27 | C48: GAS REPLICA | F48: 0 | H48: 0 | J48: =ROUND(AC121+(AC121*LT_COS_RATE),2) -> 8.44 | L48: =ROUND(F48*J48,0) -> 0 | N48: =ROUND((L48/L$72)*100,1) -> 0 | P48: =ROUND((P$72/H$72)*H48,0) -> 0 | R48: =P48+L48 -> 0 | Y48: =J48-AY121 -> 6.59
A50: 28 | C50: 9,500 LUMEN SODIUM VAPOR--
A51: 29 | C51: TOWN & COUNTRY | F51: 0 | H51: 0 | J51: =ROUND(AC124+(AC124*LT_COS_RATE),2) -> 7.81 | L51: =ROUND(F51*J51,0) -> 0 | N51: =ROUND((L51/L$72)*100,1) -> 0 | P51: =ROUND((P$72/H$72)*H51,0) -> 0 | R51: =P51+L51 -> 0 | Y51: =J51-AY124 -> 6.78
A52: 30 | C52: TRADITIONAIRE | F52: 0 | H52: 0 | J52: 7.81 | L52: 0 | N52: 0 | P52: 0 | R52: 0 | Y52: 6.78
A53: 31 | C53: GRANVILLE ACORN | F53: 0 | H53: 0 | J53: 8.15 | L53: 0 | N53: 0 | P53: 0 | R53: 0 | Y53: 7.02 | AW53: =487 -> 487 | AX53: =ROUND((AW53/12)*CUR_BASE_FUEL,2) -> 1.03 | AY53: =ROUND((AW53/12)*PRO_BASE_FUEL,2) -> 1.03
A54: 32 | C54: RECTILINEAR | F54: 0 | H54: 0 | J54: 7.81 | L54: 0 | N54: 0 | P54: 0 | R54: 0 | Y54: 6.78
A55: 33 | C55: ASPEN | F55: 0 | H55: 0 | J55: 8.15 | L55: 0 | N55: 0 | P55: 0 | R55: 0 | Y55: 7.02
A56: 34 | C56: HOLOPHANE | F56: 0 | H56: 0 | J56: 8.15 | L56: 0 | N56: 0 | P56: 0 | R56: 0 | Y56: 7.02
A57: 35 | C57: GAS REPLICA | F57: 0 | H57: 0 | J57: 8.15 | L57: 0 | N57: 0 | P57: 0 | R57: 0 | Y57: 7.02 | AX57: =CUR_BASE_FUEL -> 0.025401 | AY57: =PRO_BASE_FUEL -> 0.025401
A59: 36 | C59: SODIUM VAPOR --
A60: 37 | C60: 22,000 LUMEN (RECTILINEAR) | F60: 0 | H60: 0 | J60: =ROUND(AC133+(AC133*LT_COS_RATE),2) -> 10.35 | L60: =ROUND(F60*J60,0) -> 0 | N60: =ROUND((L60/L$72)*100,1) -> 0 | P60: =ROUND((P$72/H$72)*H60,0) -> 0 | R60: =P60+L60 -> 0 | Y60: =J60-AY133 -> 8.18
A61: 38 | C61: 50,000 LUMEN (RECTILINEAR) | F61: 0 | H61: 0 | J61: =ROUND(AC134+(AC134*LT_COS_RATE),2) -> 13.82 | L61: =ROUND(F61*J61,0) -> 0 | N61: =ROUND((L61/L$72)*100,1) -> 0 | P61: =ROUND((P$72/H$72)*H61,0) -> 0 | R61: =P61+L61 -> 0 | Y61: =J61-AY134 -> 9.67
A63: 39 | C63: CUST OWNED/CUST MAINT
A64: 40 | C64: ENERGY ONLY | F64: 2064 | H64: =7607*12 -> 91284 | J64: =ROUND(AC137+(AC137*LT_COS_RATE),6) -> 0.060527 | L64: =ROUND((H64*J64),0) -> 5525 | N64: =ROUND((L64/L$72)*100,1) -> 89.4 | P64: =ROUND((P$72/H$72)*H64,0) -> 545 | R64: =P64+L64 -> 6070 | Y64: =J64-PRO_BASE_FUEL -> 0.035126
A65: 41 | C65: TOTAL RATE SC EXCLUDING RIDERS | F65: =SUM(F22:F64) -> 2064 | H65: =SUM(H22:H64) -> 91284 | L65: =SUM(L22:L64) -> 5525 | N65: =ROUND((L65/L$72)*100,1) -> 89.4 | P65: =SUM(P22:P64) -> 545 | R65: =SUM(R22:R64) -> 6070
A67: 42 | C67: RIDERS NOT INCLUDED IN RATES ABOVE ($/KWH):
A68: 43 | C68: =ESM_Name -> ENVIRONMENTAL SURCHARGE MECHANISM RIDER (ESM) | L68: =AE141 -> 226 | N68: =ROUND((L68/L$72)*100,1) -> 3.7 | R68: =P68+L68 -> 226
A69: 44 | C69: =PSM_Name -> PROFIT SHARING MECHANISM (PSM) | J69: =PRO_PSM -> 0.004727 | L69: =ROUND($H$65*J69,0) -> 431 | N69: =ROUND((L69/L$72)*100,1) -> 7 | R69: =P69+L69 -> 431
A70: 45 | C70: TOTAL RIDERS NOT INCLUDED IN RATES ABOVE | L70: =SUM(L68:L69) -> 657 | N70: =ROUND((L70/L$72)*100,1) -> 10.6 | R70: =SUM(R68:R69) -> 657
A72: 46 | C72: TOTAL RATE SC INCLUDING RIDERS | F72: =F65 -> 2064 | H72: =H65 -> 91284 | L72: =L70+L65 -> 6182 | N72: 100 | P72: =ROUND(H72*CUR_FAC,0) -> 545 | R72: =R70+R65 -> 6727
C74: (1) THESE FIGURES REPRESENT NUMBER OF UNITS BILLED. | T74: =NAME -> DUKE ENERGY KENTUCKY, INC.
C75: ="(2) REFLECTS FUEL COMPONENT OF "&TEXT(PRO_FAC,"$0.000000;($0.000000)")&" PER KWH." -> (2) REFLECTS FUEL COMPONENT OF $0.005965 PER KWH. | T75: =CASE_NO -> CASE NO. 2022-00372
C76: ="(3) REFLECTS FUEL COST RECOVERY INCLUDED IN BASE RATES OF "&TEXT(PRO_BASE_FUEL,"$0.000000;($0.000000)")&" PER KWH." -> (3) REFLECTS FUEL COST RECOVERY INCLUDED IN BASE RATES OF $0.025401 PER KWH. | T76: =TITLE -> ANNUALIZED BASE YEAR REVENUES AT PROPOSED VS. MOST CURRENT RATES
T77: =DATE -> FOR THE TWELVE MONTHS ENDED February 28, 2023
T78: =SERVICE -> (ELECTRIC SERVICE)
T79: =DATA_PERIOD -> DATA: __X__ BASE PERIOD ____FORECASTED PERIOD | AO79: SCHEDULE M-2.2
T80: =TYPE -> TYPE OF FILING: _X_ ORIGINAL ___UPDATED ___ REVISED | AO80: ="PAGE 19 OF "&TEXT(Page_Num_2.2,"00") -> PAGE 19 OF 23
T81: WORK PAPER REFERENCE NO(S).: | AO81: WITNESS:
T82: =TIME -> 6 Months Actual and 6 Months Projected with Riders | AO82: =WIT -> B. L. SAILERS
T83: CURRENT ANNUALIZED
AE85: CURRENT | AG85: % OF REV TO | AI85: REVENUE | AK85: % INCR IN | AO85: CURRENT | AQ85: TOTAL
AC86: MOST | AE86: REVENUE LESS | AG86: TOTAL LESS | AI86: INCR LESS | AK86: REV LESS | AO86: TOTAL | AQ86: REVENUE
T87: LINE | V87: RATE | W87: CLASS / | Y87: CUSTOMER | AC87: CURRENT | AE87: FUEL COST | AG87: FUEL COST | AI87: FUEL COST REV | AK87: FUEL COST REV | AM87: FUEL COST | AO87: REVENUE | AQ87: % INCREASE
T88: NO. | V88: CODE | W88: DESCRIPTION | Y88: BILLS(1) | AA88: SALES | AC88: RATES(3) | AE88: REVENUE | AG88: REVENUE | AI88: (F - K) | AK88: (M / K) | AM88: REVENUE (2) | AO88: (K + H) | AQ88: (M / K1)
V89: (A) | W89: (B) | Y89: (C) | AA89: (D) | AC89: (J) | AE89: (K) | AG89: (L) | AI89: (M) | AK89: (N) | AM89: (H) | AO89: (K1) | AQ89: (O)
AA90: (KWH) | AC90: ($/UNIT) | AE90: ($) | AG90: (%) | AI90: ($) | AK90: (%) | AM90: ($) | AO90: ($) | AQ90: (%)
T91: 1 | V91: SC | W91: STREET LIGHTING - | AC91: ($/KWH)
T92: 2 | V92: CUST OWNED/LTD MAINT | AU92: Tariff Sheet
T93: 3 | V93: STANDARD UNIT-COBRAHEAD | AU93: less Base Fuel | AW93: KWH | AX93: CURRENT BASE | AY93: PROPOSED
T94: 4 | V94: MERCURY VAPOR -- | AW94: ANNUAL | AX94: FUEL | AY94: BASEFUEL
T95: 5 | V95: 7,000 LUMEN | Y95: =F22 -> 0 | AA95: =H22 -> 0 | AC95: 4.71 | AE95: =ROUND(Y95*AC95,0) -> 0 | AG95: =ROUND((AE95/AE$145)*100,1) -> 0 | AI95: =L22-AE95 -> 0 | AK95: 0 | AM95: =ROUND((AM$145/AA$145)*AA95,0) -> 0 | AO95: =AM95+AE95 -> 0 | AQ95: 0 | AU95: =AC95-AX95 -> 3.01 | AW95: 803 | AX95: =ROUND((AW95/12)*CUR_BASE_FUEL,2) -> 1.7 | AY95: =ROUND((AW95/12)*PRO_BASE_FUEL,2) -> 1.7
T96: 6 | V96: 10,000 LUMEN | Y96: =F23 -> 0 | AA96: =H23 -> 0 | AC96: 6.02 | AE96: =ROUND(Y96*AC96,0) -> 0 | AG96: =ROUND((AE96/AE$145)*100,1) -> 0 | AI96: =L23-AE96 -> 0 | AK96: 0 | AM96: =ROUND((AM$145/AA$145)*AA96,0) -> 0 | AO96: =AM96+AE96 -> 0 | AQ96: 0 | AU96: =AC96-AX96 -> 3.6 | AW96: 1144 | AX96: =ROUND((AW96/12)*CUR_BASE_FUEL,2) -> 2.42 | AY96: =ROUND((AW96/12)*PRO_BASE_FUEL,2) -> 2.42
T97: 7 | V97: 21,000 LUMEN | Y97: =F24 -> 0 | AA97: =H24 -> 0 | AC97: 8.37 | AE97: =ROUND(Y97*AC97,0) -> 0 | AG97: =ROUND((AE97/AE$145)*100,1) -> 0 | AI97: =L24-AE97 -> 0 | AK97: 0 | AM97: =ROUND((AM$145/AA$145)*AA97,0) -> 0 | AO97: =AM97+AE97 -> 0 | AQ97: 0 | AU97: =AC97-AX97 -> 4.58 | AW97: 1789 | AX97: =ROUND((AW97/12)*CUR_BASE_FUEL,2) -> 3.79 | AY97: =ROUND((AW97/12)*PRO_BASE_FUEL,2) -> 3.79
T99: 8 | V99: METAL HALIDE --
T100: 9 | V100: 14,000 LUMEN | Y100: =F27 -> 0 | AA100: =H27 -> 0 | AC100: 4.71 | AE100: =ROUND(Y100*AC100,0) -> 0 | AG100: =ROUND((AE100/AE$145)*100,1) -> 0 | AI100: =L27-AE100 -> 0 | AK100: 0 | AM100: =ROUND((AM$145/AA$145)*AA100,0) -> 0 | AO100: =AM100+AE100 -> 0 | AQ100: 0 | AU100: =AC100-AX100 -> 3.01 | AW100: 803 | AX100: =ROUND((AW100/12)*CUR_BASE_FUEL,2) -> 1.7 | AY100: =ROUND((AW100/12)*PRO_BASE_FUEL,2) -> 1.7
T101: 10 | V101: 20,500 LUMEN | Y101: =F28 -> 0 | AA101: =H28 -> 0 | AC101: 6.02 | AE101: =ROUND(Y101*AC101,0) -> 0 | AG101: =ROUND((AE101/AE$145)*100,1) -> 0 | AI101: =L28-AE101 -> 0 | AK101: 0 | AM101: =ROUND((AM$145/AA$145)*AA101,0) -> 0 | AO101: =AM101+AE101 -> 0 | AQ101: 0 | AU101: =AC101-AX101 -> 3.6 | AW101: 1144 | AX101: =ROUND((AW101/12)*CUR_BASE_FUEL,2) -> 2.42 | AY101: =ROUND((AW101/12)*PRO_BASE_FUEL,2) -> 2.42
T102: 11 | V102: 36,000 LUMEN | Y102: =F29 -> 0 | AA102: =H29 -> 0 | AC102: 8.37 | AE102: =ROUND(Y102*AC102,0) -> 0 | AG102: =ROUND((AE102/AE$145)*100,1) -> 0 | AI102: =L29-AE102 -> 0 | AK102: 0 | AM102: =ROUND((AM$145/AA$145)*AA102,0) -> 0 | AO102: =AM102+AE102 -> 0 | AQ102: 0 | AU102: =AC102-AX102 -> 4.58 | AW102: 1789 | AX102: =ROUND((AW102/12)*CUR_BASE_FUEL,2) -> 3.79 | AY102: =ROUND((AW102/12)*PRO_BASE_FUEL,2) -> 3.79
T104: 12 | V104: SODIUM VAPOR--
T105: 13 | V105: 9,500 LUMEN | Y105: =F32 -> 0 | AA105: =H32 -> 0 | AC105: 5.6 | AE105: =ROUND(Y105*AC105,0) -> 0 | AG105: =ROUND((AE105/AE$145)*100,1) -> 0 | AI105: =L32-AE105 -> 0 | AK105: 0 | AM105: =ROUND((AM$145/AA$145)*AA105,0) -> 0 | AO105: =AM105+AE105 -> 0 | AQ105: 0 | AU105: =AC105-AX105 -> 4.57 | AW105: =487 -> 487 | AX105: =ROUND((AW105/12)*CUR_BASE_FUEL,2) -> 1.03 | AY105: =ROUND((AW105/12)*PRO_BASE_FUEL,2) -> 1.03
T106: 14 | V106: 16,000 LUMEN | Y106: =F33 -> 0 | AA106: =H33 -> 0 | AC106: 6.27 | AE106: =ROUND(Y106*AC106,0) -> 0 | AG106: =ROUND((AE106/AE$145)*100,1) -> 0 | AI106: =L33-AE106 -> 0 | AK106: 0 | AM106: =ROUND((AM$145/AA$145)*AA106,0) -> 0 | AO106: =AM106+AE106 -> 0 | AQ106: 0 | AU106: =AC106-AX106 -> 4.76 | AW106: 711 | AX106: =ROUND((AW106/12)*CUR_BASE_FUEL,2) -> 1.51 | AY106: =ROUND((AW106/12)*PRO_BASE_FUEL,2) -> 1.51
T107: 15 | V107: 22,000 LUMEN | Y107: =F34 -> 0 | AA107: =H34 -> 0 | AC107: 6.91 | AE107: =ROUND(Y107*AC107,0) -> 0 | AG107: =ROUND((AE107/AE$145)*100,1) -> 0 | AI107: =L34-AE107 -> 0 | AK107: 0 | AM107: =ROUND((AM$145/AA$145)*AA107,0) -> 0 | AO107: =AM107+AE107 -> 0 | AQ107: 0 | AU107: =AC107-AX107 -> 4.9 | AW107: 948 | AX107: =ROUND((AW107/12)*CUR_BASE_FUEL,2) -> 2.01 | AY107: =ROUND((AW107/12)*PRO_BASE_FUEL,2) -> 2.01
T108: 16 | V108: 27,500 LUMEN | Y108: =F35 -> 0 | AA108: =H35 -> 0 | AC108: 6.91 | AE108: =ROUND(Y108*AC108,0) -> 0 | AG108: =ROUND((AE108/AE$145)*100,1) -> 0 | AI108: =L35-AE108 -> 0 | AK108: 0 | AM108: =ROUND((AM$145/AA$145)*AA108,0) -> 0 | AO108: =AM108+AE108 -> 0 | AQ108: 0 | AU108: =AC108-AX108 -> 4.9 | AW108: 948 | AX108: =ROUND((AW108/12)*CUR_BASE_FUEL,2) -> 2.01 | AY108: =ROUND((AW108/12)*PRO_BASE_FUEL,2) -> 2.01
T109: 17 | V109: 50,000 LUMEN | Y109: =F36 -> 0 | AA109: =H36 -> 0 | AC109: 9.45 | AE109: =ROUND(Y109*AC109,0) -> 0 | AG109: =ROUND((AE109/AE$145)*100,1) -> 0 | AI109: =L36-AE109 -> 0 | AK109: 0 | AM109: =ROUND((AM$145/AA$145)*AA109,0) -> 0 | AO109: =AM109+AE109 -> 0 | AQ109: 0 | AU109: =AC109-AX109 -> 5.3 | AW109: 1959 | AX109: =ROUND((AW109/12)*CUR_BASE_FUEL,2) -> 4.15 | AY109: =ROUND((AW109/12)*PRO_BASE_FUEL,2) -> 4.15
T111: 18 | V111: DECORATIVE UNITS:
T112: 19 | V112: 7,000 LUMEN MERCURY VAPOR--
T113: 20 | V113: HOLOPHANE | Y113: =F40 -> 0 | AA113: =H40 -> 0 | AC113: 5.97 | AE113: =ROUND(Y113*AC113,0) -> 0 | AG113: =ROUND((AE113/AE$145)*100,1) -> 0 | AI113: =L40-AE113 -> 0 | AK113: 0 | AM113: =ROUND((AM$145/AA$145)*AA113,0) -> 0 | AO113: =AM113+AE113 -> 0 | AQ113: 0 | AU113: =AC113-AX113 -> 4.12 | AW113: 874 | AX113: =ROUND((AW113/12)*CUR_BASE_FUEL,2) -> 1.85 | AY113: =ROUND((AW113/12)*PRO_BASE_FUEL,2) -> 1.85
T114: 21 | V114: TOWN & COUNTRY | Y114: =F41 -> 0 | AA114: =H41 -> 0 | AC114: 5.91 | AE114: =ROUND(Y114*AC114,0) -> 0 | AG114: =ROUND((AE114/AE$145)*100,1) -> 0 | AI114: =L41-AE114 -> 0 | AK114: 0 | AM114: =ROUND((AM$145/AA$145)*AA114,0) -> 0 | AO114: =AM114+AE114 -> 0 | AQ114: 0 | AU114: =AC114-AX114 -> 4.1 | AW114: 853 | AX114: =ROUND((AW114/12)*CUR_BASE_FUEL,2) -> 1.81 | AY114: =ROUND((AW114/12)*PRO_BASE_FUEL,2) -> 1.81
T115: 22 | V115: GAS REPLICA | Y115: =F42 -> 0 | AA115: =H42 -> 0 | AC115: 5.97 | AE115: =ROUND(Y115*AC115,0) -> 0 | AG115: =ROUND((AE115/AE$145)*100,1) -> 0 | AI115: =L42-AE115 -> 0 | AK115: 0 | AM115: =ROUND((AM$145/AA$145)*AA115,0) -> 0 | AO115: =AM115+AE115 -> 0 | AQ115: 0 | AU115: =AC115-AX115 -> 4.12 | AW115: 874 | AX115: =ROUND((AW115/12)*CUR_BASE_FUEL,2) -> 1.85 | AY115: =ROUND((AW115/12)*PRO_BASE_FUEL,2) -> 1.85
T116: 23 | V116: ASPEN | Y116: =F43 -> 0 | AA116: =H43 -> 0 | AC116: 5.97 | AE116: =ROUND(Y116*AC116,0) -> 0 | AG116: =ROUND((AE116/AE$145)*100,1) -> 0 | AI116: =L43-AE116 -> 0 | AK116: 0 | AM116: =ROUND((AM$145/AA$145)*AA116,0) -> 0 | AO116: =AM116+AE116 -> 0 | AQ116: 0 | AU116: =AC116-AX116 -> 4.12 | AW116: 874 | AX116: =ROUND((AW116/12)*CUR_BASE_FUEL,2) -> 1.85 | AY116: =ROUND((AW116/12)*PRO_BASE_FUEL,2) -> 1.85
T118: 24 | V118: 14,000 LUMEN METAL HALIDE--
T119: 25 | V119: TRADITIONAIRE | Y119: =F46 -> 0 | AA119: =H46 -> 0 | AC119: 5.91 | AE119: =ROUND(Y119*AC119,0) -> 0 | AG119: =ROUND((AE119/AE$145)*100,1) -> 0 | AI119: =L46-AE119 -> 0 | AK119: 0 | AM119: =ROUND((AM$145/AA$145)*AA119,0) -> 0 | AO119: =AM119+AE119 -> 0 | AQ119: 0 | AU119: =AC119-AX119 -> 4.1 | AW119: 853 | AX119: =ROUND((AW119/12)*CUR_BASE_FUEL,2) -> 1.81 | AY119: =ROUND((AW119/12)*PRO_BASE_FUEL,2) -> 1.81
T120: 26 | V120: GRANVILLE ACORN | Y120: =F47 -> 0 | AA120: =H47 -> 0 | AC120: 5.97 | AE120: =ROUND(Y120*AC120,0) -> 0 | AG120: =ROUND((AE120/AE$145)*100,1) -> 0 | AI120: =L47-AE120 -> 0 | AK120: 0 | AM120: =ROUND((AM$145/AA$145)*AA120,0) -> 0 | AO120: =AM120+AE120 -> 0 | AQ120: 0 | AU120: =AC120-AX120 -> 4.12 | AW120: 874 | AX120: =ROUND((AW120/12)*CUR_BASE_FUEL,2) -> 1.85 | AY120: =ROUND((AW120/12)*PRO_BASE_FUEL,2) -> 1.85
T121: 27 | V121: GAS REPLICA | Y121: =F48 -> 0 | AA121: =H48 -> 0 | AC121: 5.97 | AE121: =ROUND(Y121*AC121,0) -> 0 | AG121: =ROUND((AE121/AE$145)*100,1) -> 0 | AI121: =L48-AE121 -> 0 | AK121: 0 | AM121: =ROUND((AM$145/AA$145)*AA121,0) -> 0 | AO121: =AM121+AE121 -> 0 | AQ121: 0 | AU121: =AC121-AX121 -> 4.12 | AW121: 874 | AX121: =ROUND((AW121/12)*CUR_BASE_FUEL,2) -> 1.85 | AY121: =ROUND((AW121/12)*PRO_BASE_FUEL,2) -> 1.85
T123: 28 | V123: 9,500 LUMEN SODIUM VAPOR--
T124: 29 | V124: TOWN & COUNTRY | Y124: =F51 -> 0 | AA124: =H51 -> 0 | AC124: 5.52 | AE124: =ROUND(Y124*AC124,0) -> 0 | AG124: =ROUND((AE124/AE$145)*100,1) -> 0 | AI124: =L51-AE124 -> 0 | AK124: 0 | AM124: =ROUND((AM$145/AA$145)*AA124,0) -> 0 | AO124: =AM124+AE124 -> 0 | AQ124: 0 | AU124: =AC124-AX124 -> 4.49 | AW124: 487 | AX124: =ROUND((AW124/12)*CUR_BASE_FUEL,2) -> 1.03 | AY124: =ROUND((AW124/12)*PRO_BASE_FUEL,2) -> 1.03
T125: 30 | V125: TRADITIONAIRE | Y125: 0 | AA125: 0 | AC125: 5.52 | AE125: 0 | AG125: 0 | AI125: 0 | AK125: 0 | AM125: 0 | AO125: 0 | AQ125: 0 | AU125: 4.49 | AW125: 487 | AX125: 1.03 | AY125: 1.03
T126: 31 | V126: GRANVILLE ACORN | Y126: 0 | AA126: 0 | AC126: 5.76 | AE126: 0 | AG126: 0 | AI126: 0 | AK126: 0 | AM126: 0 | AO126: 0 | AQ126: 0 | AU126: 4.63 | AW126: 532 | AX126: 1.13 | AY126: 1.13
T127: 32 | V127: RECTILINEAR | Y127: 0 | AA127: 0 | AC127: 5.52 | AE127: 0 | AG127: 0 | AI127: 0 | AK127: 0 | AM127: 0 | AO127: 0 | AQ127: 0 | AU127: 4.49 | AW127: 487 | AX127: 1.03 | AY127: 1.03
T128: 33 | V128: ASPEN | Y128: 0 | AA128: 0 | AC128: 5.76 | AE128: 0 | AG128: 0 | AI128: 0 | AK128: 0 | AM128: 0 | AO128: 0 | AQ128: 0 | AU128: 4.63 | AW128: 532 | AX128: 1.13 | AY128: 1.13
T129: 34 | V129: HOLOPHANE | Y129: 0 | AA129: 0 | AC129: 5.76 | AE129: 0 | AG129: 0 | AI129: 0 | AK129: 0 | AM129: 0 | AO129: 0 | AQ129: 0 | AU129: 4.63 | AW129: 532 | AX129: 1.13 | AY129: 1.13
T130: 35 | V130: GAS REPLICA | Y130: 0 | AA130: 0 | AC130: 5.76 | AE130: 0 | AG130: 0 | AI130: 0 | AK130: 0 | AM130: 0 | AO130: 0 | AQ130: 0 | AU130: 4.63 | AW130: 532 | AX130: 1.13 | AY130: 1.13
T132: 36 | V132: SODIUM VAPOR --
T133: 37 | V133: 22,000 LUMEN (RECTILINEAR) | Y133: =F60 -> 0 | AA133: =H60 -> 0 | AC133: 7.32 | AE133: =ROUND(Y133*AC133,0) -> 0 | AG133: =ROUND((AE133/AE$145)*100,1) -> 0 | AI133: =L60-AE133 -> 0 | AK133: 0 | AM133: =ROUND((AM$145/AA$145)*AA133,0) -> 0 | AO133: =AM133+AE133 -> 0 | AQ133: 0 | AU133: =AC133-AX133 -> 5.15 | AW133: 1023 | AX133: =ROUND((AW133/12)*CUR_BASE_FUEL,2) -> 2.17 | AY133: =ROUND((AW133/12)*PRO_BASE_FUEL,2) -> 2.17
T134: 38 | V134: 50,000 LUMEN (RECTILINEAR) | Y134: =F61 -> 0 | AA134: =H61 -> 0 | AC134: 9.77 | AE134: =ROUND(Y134*AC134,0) -> 0 | AG134: =ROUND((AE134/AE$145)*100,1) -> 0 | AI134: =L61-AE134 -> 0 | AK134: 0 | AM134: =ROUND((AM$145/AA$145)*AA134,0) -> 0 | AO134: =AM134+AE134 -> 0 | AQ134: 0 | AU134: =AC134-AX134 -> 5.62 | AW134: 1959 | AX134: =ROUND((AW134/12)*CUR_BASE_FUEL,2) -> 4.15 | AY134: =ROUND((AW134/12)*PRO_BASE_FUEL,2) -> 4.15
T136: 39 | V136: CUST OWNED/CUST MAINT | AX136: =CUR_BASE_FUEL -> 0.025401 | AY136: =PRO_BASE_FUEL -> 0.025401
T137: 40 | V137: ENERGY ONLY | Y137: =F64 -> 2064 | AA137: =H64 -> 91284 | AC137: 0.042793 | AE137: =ROUND((AA137*AC137),0) -> 3906 | AG137: =ROUND((AE137/AE$145)*100,1) -> 85.6 | AI137: =L64-AE137 -> 1619 | AK137: =ROUND((AI137/AE137)*100,1) -> 41.4 | AM137: =ROUND((AM$145/AA$145)*AA137,0) -> 545 | AO137: =AM137+AE137 -> 4451 | AQ137: =ROUND((AI137/AO137)*100,1) -> 36.4 | AU137: =AC137-CUR_BASE_FUEL -> 0.017392
T138: 41 | V138: TOTAL RATE SC EXCLUDING RIDERS | Y138: =SUM(Y95:Y137) -> 2064 | AA138: =SUM(AA95:AA137) -> 91284 | AE138: =SUM(AE95:AE137) -> 3906 | AG138: =ROUND((AE138/AE$145)*100,1) -> 85.6 | AI138: =SUM(AI95:AI137) -> 1619 | AK138: =ROUND((AI138/AE138)*100,1) -> 41.4 | AM138: =SUM(AM95:AM137) -> 545 | AO138: =SUM(AO95:AO137) -> 4451 | AQ138: =ROUND((AI138/AO138)*100,1) -> 36.4
T140: =A67 -> 42 | V140: RIDERS NOT INCLUDED IN RATES ABOVE ($/KWH):
T141: =A68 -> 43 | V141: =C68 -> ENVIRONMENTAL SURCHARGE MECHANISM RIDER (ESM) | AC141: =CUR_ESM_NONRES -> 0.08798914629 | AE141: =ROUND((AO138-(CUR_BASE_FUEL*AA138)+AO142)*AC141,0) -> 226 | AG141: =ROUND((AE141/AE$145)*100,1) -> 5 | AI141: =L68-AE141 -> 0 | AK141: =IF(AE141=0,0,ROUND((AI141/AE141)*100,1)) -> 0 | AO141: =AM141+AE141 -> 226 | AQ141: =IF(AO141=0,0,ROUND((AI141/AO141)*100,1)) -> 0
T142: =A69 -> 44 | V142: =C69 -> PROFIT SHARING MECHANISM (PSM) | AC142: =RS_PSM -> 0.004727 | AE142: =ROUND($AA$138*AC142,0) -> 431 | AG142: =ROUND((AE142/AE$145)*100,1) -> 9.4 | AI142: =L69-AE142 -> 0 | AK142: =ROUND((AI142/AE142)*100,1) -> 0 | AO142: =AM142+AE142 -> 431 | AQ142: =ROUND((AI142/AO142)*100,1) -> 0
T143: =A70 -> 45 | V143: TOTAL RIDERS NOT INCLUDED IN RATES ABOVE | AE143: =SUM(AE141:AE142) -> 657 | AG143: =ROUND((AE143/AE$145)*100,1) -> 14.4 | AI143: =SUM(AI141:AI142) -> 0 | AK143: 0 | AO143: =SUM(AO141:AO142) -> 657 | AQ143: 0
T145: =A72 -> 46 | V145: TOTAL RATE SC INCLUDING RIDERS | Y145: =Y138 -> 2064 | AA145: =AA138 -> 91284 | AE145: =AE143+AE138 -> 4563 | AG145: 100 | AI145: =AI143+AI138 -> 1619 | AK145: =ROUND((AI145/AE145)*100,1) -> 35.5 | AM145: =ROUND(AA145*CUR_FAC,0) -> 545 | AO145: =AO143+AO138 -> 5108 | AQ145: =ROUND((AI145/AO145)*100,1) -> 31.7
V147: (1) THESE FIGURES REPRESENT NUMBER OF UNITS BILLED.
V148: ="(2) REFLECTS FUEL COMPONENT OF "&TEXT(CUR_FAC,"$0.000000;($0.000000)")&" PER KWH." -> (2) REFLECTS FUEL COMPONENT OF $0.005965 PER KWH.
V149: ="(3) REFLECTS FUEL COST RECOVERY INCLUDED IN BASE RATES OF "&TEXT(CUR_BASE_FUEL,"$0.000000;($0.000000)")&" PER KWH." -> (3) REFLECTS FUEL COST RECOVERY INCLUDED IN BASE RATES OF $0.025401 PER KWH.

Sheet Rate SE
A1: =NAME -> DUKE ENERGY KENTUCKY, INC.
A2: =CASE_NO -> CASE NO. 2022-00372
A3: =TITLE -> ANNUALIZED BASE YEAR REVENUES AT PROPOSED VS. MOST CURRENT RATES
A4: =DATE -> FOR THE TWELVE MONTHS ENDED February 28, 2023
A5: =SERVICE -> (ELECTRIC SERVICE)
A6: =DATA_PERIOD -> DATA: __X__ BASE PERIOD ____FORECASTED PERIOD | R6: SCHEDULE M-2.3
A7: =TYPE -> TYPE OF FILING: _X_ ORIGINAL ___UPDATED ___ REVISED | R7: ="PAGE 20 OF "&TEXT(Page_Num_2.3,"00") -> PAGE 20 OF 24
A8: WORK PAPER REFERENCE NO(S).: | R8: WITNESS:
A9: =TIME -> 6 Months Actual and 6 Months Projected with Riders | R9: =WIT -> B. L. SAILERS
A10: PROPOSED ANNUALIZED
L12: PROPOSED | N12: % OF REV TO | R12: PROPOSED
L13: REVENUE LESS | N13: TOTAL LESS | R13: TOTAL
A14: LINE | C14: RATE | D14: CLASS / | F14: CUSTOMER | J14: PROPOSED | L14: FUEL COST | N14: FUEL COST | P14: FUEL COST | R14: REVENUE
A15: NO. | C15: CODE | D15: DESCRIPTION | F15: BILLS(1) | H15: SALES | J15: RATES(3) | L15: REVENUE | N15: REVENUE | P15: REVENUE (2) | R15: (F + H) | Y15: Lighting rate on
C16: (A) | D16: (B) | F16: (C) | H16: (D) | J16: (E) | L16: (F) | N16: (G) | P16: (H) | R16: (I) | Y16: Tariff Sheet | AA16: Lighting kWh on
H17: (KWH) | J17: ($/UNIT) | L17: ($) | N17: (%) | P17: ($) | R17: ($) | Y17: less Base Fuel | AA17: Tariff Sheet
A18: 1 | C18: SE | D18: STREET LIGHTING
A19: 2 | D19: OVERHEAD EQUIVALENT RATE
A21: 3 | C21: MERCURY VAPOR 7,000 LUMEN: | AC21: Counts (March, 2022) | AE21: kWh Factor
A22: 4 | C22: TOWN & COUNTRY | F22: =AE22 -> 6570 | H22: =ROUND(F22*AA22/12,0) -> 467018 | J22: =ROUND(AC78+(AC78*LT_COS_RATE),2) -> 11.5 | L22: =ROUND(F22*J22,0) -> 75555 | N22: =ROUND((L22/L$52)*100,1) -> 24.5 | P22: =ROUND((P$52/H$52)*H22,0) -> 2786 | R22: =P22+L22 -> 78341 | Y22: =J22-AY78 -> 9.69 | AA22: 853 | AC22: =6552+336 -> 6888 | AE22: =ROUND(AC22*$AG$22,0)-1 -> 6570 | AG22: =23664/SUM(AC21:AC45) -> 0.954039671 | AI22: Total Lights Factor
A23: 5 | C23: HOLOPHANE | F23: =AE23 -> 2186 | H23: =ROUND(F23*AA23/12,0) -> 159214 | J23: =ROUND(AC79+(AC79*LT_COS_RATE),2) -> 11.54 | L23: =ROUND(F23*J23,0) -> 25226 | N23: =ROUND((L23/L$52)*100,1) -> 8.2 | P23: =ROUND((P$52/H$52)*H23,0) -> 950 | R23: =P23+L23 -> 26176 | Y23: =J23-AY79 -> 9.69 | AA23: 874 | AC23: =2232+36+24 -> 2292 | AE23: =ROUND(AC23*$AG$22,0)-1 -> 2186
A24: 6 | C24: GAS REPLICA | F24: 664 | H24: 48361 | J24: =ROUND(AC80+(AC80*LT_COS_RATE),2) -> 11.54 | L24: =ROUND(F24*J24,0) -> 7663 | N24: =ROUND((L24/L$52)*100,1) -> 2.5 | P24: =ROUND((P$52/H$52)*H24,0) -> 289 | R24: =P24+L24 -> 7952 | Y24: =J24-AY80 -> 9.69 | AA24: 874 | AC24: =36+324+132+204 -> 696 | AE24: =ROUND(AC24*$AG$22,0) -> 664
A25: 7 | C25: ASPEN | F25: 126 | H25: 9177 | J25: =ROUND(AC81+(AC81*LT_COS_RATE),2) -> 11.54 | L25: =ROUND(F25*J25,0) -> 1454 | N25: =ROUND((L25/L$52)*100,1) -> 0.5 | P25: =ROUND((P$52/H$52)*H25,0) -> 55 | R25: =P25+L25 -> 1509 | Y25: =J25-AY81 -> 9.69 | AA25: 874 | AC25: 132 | AE25: 126
A27: 8 | C27: METAL HALIDE 14,000 LUMEN:
A28: 9 | C28: TRADITIONAIRE | F28: 3010 | H28: =ROUND(F28*AA28/12,0) -> 213961 | J28: =ROUND(AC84+(AC84*LT_COS_RATE),2) -> 11.5 | L28: =ROUND(F28*J28,0) -> 34615 | N28: =ROUND((L28/L$52)*100,1) -> 11.2 | P28: =ROUND((P$52/H$52)*H28,0) -> 1276 | R28: =P28+L28 -> 35891 | Y28: =J28-AY84 -> 9.69 | AA28: 853 | AC28: 3156 | AE28: =ROUND(AC28*$AG$22,0)-1 -> 3010
A29: 10 | C29: GRANVILLE ACORN | F29: 0 | H29: 0 | J29: =ROUND(AC85+(AC85*LT_COS_RATE),2) -> 11.54 | L29: =ROUND(F29*J29,0) -> 0 | N29: =ROUND((L29/L$52)*100,1) -> 0 | P29: =ROUND((P$52/H$52)*H29,0) -> 0 | R29: =P29+L29 -> 0 | Y29: =J29-AY85 -> 9.69 | AA29: 874 | AC29: 0 | AE29: 0
A30: 11 | C30: GAS REPLICA | F30: 424 | H30: 30881 | J30: =ROUND(AC86+(AC86*LT_COS_RATE),2) -> 11.54 | L30: =ROUND(F30*J30,0) -> 4893 | N30: =ROUND((L30/L$52)*100,1) -> 1.6 | P30: =ROUND((P$52/H$52)*H30,0) -> 184 | R30: =P30+L30 -> 5077 | Y30: =J30-AY86 -> 9.69 | AA30: 874 | AC30: 444 | AE30: 424
A32: 12 | C32: SODIUM VAPOR 9,500 LUMEN:
A33: 13 | C33: TOWN & COUNTRY | F33: 3104 | H33: =ROUND(F33*AA33/12,0) -> 125971 | J33: =ROUND(AC89+(AC89*LT_COS_RATE),2) -> 12.45 | L33: =ROUND(F33*J33,0) -> 38645 | N33: =ROUND((L33/L$52)*100,1) -> 12.5 | P33: =ROUND((P$52/H$52)*H33,0) -> 751 | R33: =P33+L33 -> 39396 | Y33: =J33-AY89 -> 11.42 | AA33: 487 | AC33: 3252 | AE33: =ROUND(AC33*$AG$22,0)+1 -> 3104
A34: 15 | C34: HOLOPHANE | F34: 2312 | H34: 102499 | J34: 12.63 | L34: =ROUND(F34*J34,0) -> 29201 | N34: 9.5 | P34: 611 | R34: =P34+L34 -> 29812 | Y34: 11.5 | AA34: 532 | AC34: 2424 | AE34: =ROUND(AC34*$AG$22,0)-1 -> 2312
A35: 16 | C35: RECTILINEAR | F35: 928 | H35: 37661 | J35: 12.45 | L35: =ROUND(F35*J35,0) -> 11554 | N35: 3.7 | P35: 225 | R35: =P35+L35 -> 11779 | Y35: 11.42 | AA35: 487 | AC35: 972 | AE35: =ROUND(AC35*$AG$22,0)+1 -> 928
A36: 17 | C36: GAS REPLICA | F36: 1214 | H36: 53821 | J36: 12.62 | L36: =ROUND(F36*J36,0) -> 15321 | N36: 5 | P36: 321 | R36: =P36+L36 -> 15642 | Y36: 11.49 | AA36: 532 | AC36: =588+72+612 -> 1272 | AE36: 1214
A37: 19 | C37: ASPEN | F37: 2496 | H37: 110656 | J37: 12.62 | L37: =ROUND(F37*J37,0) -> 31500 | N37: 10.2 | P37: 660 | R37: =P37+L37 -> 32160 | Y37: 11.49 | AA37: 532 | AC37: 2616 | AE37: 2496
A38: 14 | C38: TRADITIONAIRE | F38: 0 | H38: 0 | J38: 12.45 | L38: =ROUND(F38*J38,0) -> 0 | N38: 0 | P38: 0 | R38: =P38+L38 -> 0 | Y38: 11.42 | AA38: 487 | AC38: 0 | AE38: 0
A39: 18 | C39: GRANVILLE ACORN | F39: 148 | H39: 6561 | J39: 12.62 | L39: 1868 | N39: 0.6 | P39: 39 | R39: 1907 | Y39: 11.49 | AA39: 532 | AC39: =84+72 -> 156 | AE39: =ROUND(AC39*$AG$22,0)-1 -> 148
A41: 20 | C41: SODIUM VAPOR:
A42: 21 | C42: 22,000 LUMEN (RECTILINEAR) | F42: 458 | H42: =ROUND(F42*AA42/12,0) -> 39045 | J42: =ROUND(AC98+(AC98*LT_COS_RATE),2) -> 17.95 | L42: =ROUND(F42*J42,0) -> 8221 | N42: =ROUND((L42/L$52)*100,1) -> 2.7 | P42: =ROUND((P$52/H$52)*H42,0) -> 233 | R42: =P42+L42 -> 8454 | Y42: =J42-AY98 -> 15.78 | AA42: 1023 | AC42: 480 | AE42: 458
A43: 22 | C43: 50,000 LUMEN (RECTILINEAR) | F43: 24 | H43: 3918 | J43: =ROUND(AC99+(AC99*LT_COS_RATE),2) -> 23.88 | L43: =ROUND(F43*J43,0) -> 573 | N43: =ROUND((L43/L$52)*100,1) -> 0.2 | P43: =ROUND((P$52/H$52)*H43,0) -> 23 | R43: =P43+L43 -> 596 | Y43: =J43-AY99 -> 19.73 | AA43: 1959 | AC43: 24 | AE43: =ROUND(AC43*$AG$22,0)+1 -> 24
A44: 23 | C44: 50,000 LUMEN (SETBACK) | F44: 0 | H44: 0 | J44: =ROUND(AC100+(AC100*LT_COS_RATE),2) -> 23.88 | L44: =ROUND(F44*J44,0) -> 0 | N44: =ROUND((L44/L$52)*100,1) -> 0 | P44: =ROUND((P$52/H$52)*H44,0) -> 0 | R44: =P44+L44 -> 0 | Y44: =J44-AY100 -> 19.73 | AA44: 1959 | AC44: 0 | AE44: 0
A45: 24 | C45: TOTAL RATE SE EXCLUDING RIDERS | F45: =SUM(F22:F44) -> 23664 | H45: =SUM(H22:H44) -> 1408744 | L45: =SUM(L22:L44) -> 286289 | N45: =ROUND((L45/L$52)*100,1) -> 92.7 | P45: =SUM(P22:P44) -> 8403 | R45: =SUM(R22:R44) -> 294692
A47: 25 | C47: RIDERS NOT INCLUDED IN RATES ABOVE ($/KWH):
A48: 26 | C48: =ESM_Name -> ENVIRONMENTAL SURCHARGE MECHANISM RIDER (ESM) | L48: =AE104 -> 15985 | N48: =ROUND((L48/L$52)*100,1) -> 5.2 | R48: =P48+L48 -> 15985
A49: 29 | C49: =PSM_Name -> PROFIT SHARING MECHANISM (PSM) | J49: =PRO_PSM -> 0.004727 | L49: =ROUND($H$45*J49,0) -> 6659 | N49: =ROUND((L49/L$52)*100,1) -> 2.2 | R49: =P49+L49 -> 6659
A50: 30 | C50: TOTAL RIDERS NOT INCLUDED IN RATES ABOVE | L50: =SUM(L48:L49) -> 22644 | N50: =ROUND((L50/L$52)*100,1) -> 7.3 | R50: =SUM(R48:R49) -> 22644
A52: 31 | C52: TOTAL RATE SE INCLUDING RIDERS | F52: =SUM(F22:F44) -> 23664 | H52: =SUM(H22:H44) -> 1408744 | L52: =L50+L45 -> 308933 | N52: 100 | P52: =ROUND(H52*CUR_FAC,0)+1 -> 8404 | R52: =R50+R45 -> 317336
C54: (1) THESE FIGURES REPRESENT NUMBER OF UNITS BILLED.
C55: ="(2) REFLECTS FUEL COMPONENT OF "&TEXT(PRO_FAC,"$0.000000;($0.000000)")&" PER KWH." -> (2) REFLECTS FUEL COMPONENT OF $0.005965 PER KWH.
C56: ="(3) REFLECTS FUEL COST RECOVERY INCLUDED IN BASE RATES OF "&TEXT(PRO_BASE_FUEL,"$0.000000;($0.000000)")&" PER KWH." -> (3) REFLECTS FUEL COST RECOVERY INCLUDED IN BASE RATES OF $0.025401 PER KWH.
T57: =NAME -> DUKE ENERGY KENTUCKY, INC.
T58: =CASE_NO -> CASE NO. 2022-00372
J59: SE Summary | T59: =TITLE -> ANNUALIZED BASE YEAR REVENUES AT PROPOSED VS. MOST CURRENT RATES
H60: =H52/12 -> 117395.3333 | J60: 117000 | T60: =DATE -> FOR THE TWELVE MONTHS ENDED February 28, 2023
T61: =SERVICE -> (ELECTRIC SERVICE)
T62: =DATA_PERIOD -> DATA: __X__ BASE PERIOD ____FORECASTED PERIOD | AO62: SCHEDULE M-2.2
T63: =TYPE -> TYPE OF FILING: _X_ ORIGINAL ___UPDATED ___ REVISED | AO63: ="PAGE 20 OF "&TEXT(Page_Num_2.2,"00") -> PAGE 20 OF 23
T64: WORK PAPER REFERENCE NO(S).: | AO64: WITNESS:
T65: =TIME -> 6 Months Actual and 6 Months Projected with Riders | AO65: =WIT -> B. L. SAILERS
T66: CURRENT ANNUALIZED
AE68: CURRENT | AG68: % OF REV TO | AI68: REVENUE | AK68: % INCR IN | AO68: CURRENT | AQ68: TOTAL
AC69: MOST | AE69: REVENUE LESS | AG69: TOTAL LESS | AI69: INCR LESS | AK69: REV LESS | AO69: TOTAL | AQ69: REVENUE
T70: LINE | V70: RATE | W70: CLASS / | Y70: CUSTOMER | AC70: CURRENT | AE70: FUEL COST | AG70: FUEL COST | AI70: FUEL COST REV | AK70: FUEL COST REV | AM70: FUEL COST | AO70: REVENUE | AQ70: % INCREASE | AU70: Lighting rate on | AX70: current | AY70: proposed
T71: NO. | V71: CODE | W71: DESCRIPTION | Y71: BILLS(1) | AA71: SALES | AC71: RATES(3) | AE71: REVENUE | AG71: REVENUE | AI71: (F - K) | AK71: (M / K) | AM71: REVENUE (2) | AO71: (K + H) | AQ71: (M / K1) | AU71: Tariff Sheet | AW71: annual kwh | AX71: base fuel | AY71: base fuel
V72: (A) | W72: (B) | Y72: (C) | AA72: (D) | AC72: (J) | AE72: (K) | AG72: (L) | AI72: (M) | AK72: (N) | AM72: (H) | AO72: (K1) | AQ72: (O) | AU72: less Base Fuel | AX72: =CUR_BASE_FUEL -> 0.025401 | AY72: =PRO_BASE_FUEL -> 0.025401
AA73: (KWH) | AC73: ($/UNIT) | AE73: ($) | AG73: (%) | AI73: ($) | AK73: (%) | AM73: ($) | AO73: ($) | AQ73: (%)
T74: 1 | V74: SE | W74: STREET LIGHTING -
T75: 2 | W75: OVERHEAD EQUIVALENT RATE
T77: 3 | V77: MERCURY VAPOR 7,000 LUMEN:
T78: 4 | V78: TOWN & COUNTRY | Y78: =F22 -> 6570 | AA78: =H22 -> 467018 | AC78: 8.13 | AE78: =ROUND(Y78*AC78,0) -> 53414 | AG78: =ROUND((AE78/AE$108)*100,1) -> 23.7 | AI78: =L22-AE78 -> 22141 | AK78: =IF(AE78=0,"0.0 ",ROUND((AI78/AE78)*100,1)) -> 41.5 | AM78: =ROUND((AM$108/AA$108)*AA78,0) -> 2786 | AO78: =AM78+AE78 -> 56200 | AQ78: =IF(AO78=0,"0.0 ",ROUND((AI78/AO78)*100,1)) -> 39.4 | AU78: =AC78-AX78 -> 6.32 | AW78: =853 -> 853 | AX78: =ROUND((AW78/12)*CUR_BASE_FUEL,2) -> 1.81 | AY78: =ROUND((AW78/12)*PRO_BASE_FUEL,2) -> 1.81
T79: 5 | V79: HOLOPHANE | Y79: =F23 -> 2186 | AA79: =H23 -> 159214 | AC79: 8.16 | AE79: =ROUND(Y79*AC79,0) -> 17838 | AG79: =ROUND((AE79/AE$108)*100,1) -> 7.9 | AI79: =L23-AE79 -> 7388 | AK79: =IF(AE79=0,"0.0 ",ROUND((AI79/AE79)*100,1)) -> 41.4 | AM79: =ROUND((AM$108/AA$108)*AA79,0) -> 950 | AO79: =AM79+AE79 -> 18788 | AQ79: =IF(AO79=0,"0.0 ",ROUND((AI79/AO79)*100,1)) -> 39.3 | AU79: =AC79-AX79 -> 6.31 | AW79: 874 | AX79: =ROUND((AW79/12)*CUR_BASE_FUEL,2) -> 1.85 | AY79: =ROUND((AW79/12)*PRO_BASE_FUEL,2) -> 1.85
T80: 6 | V80: GAS REPLICA | Y80: =F24 -> 664 | AA80: =H24 -> 48361 | AC80: 8.16 | AE80: =ROUND(Y80*AC80,0) -> 5418 | AG80: =ROUND((AE80/AE$108)*100,1) -> 2.4 | AI80: =L24-AE80 -> 2245 | AK80: =IF(AE80=0,"0.0 ",ROUND((AI80/AE80)*100,1)) -> 41.4 | AM80: =ROUND((AM$108/AA$108)*AA80,0) -> 289 | AO80: =AM80+AE80 -> 5707 | AQ80: =IF(AO80=0,"0.0 ",ROUND((AI80/AO80)*100,1)) -> 39.3 | AU80: =AC80-AX80 -> 6.31 | AW80: 874 | AX80: =ROUND((AW80/12)*CUR_BASE_FUEL,2) -> 1.85 | AY80: =ROUND((AW80/12)*PRO_BASE_FUEL,2) -> 1.85
T81: 7 | V81: ASPEN | Y81: =F25 -> 126 | AA81: =H25 -> 9177 | AC81: 8.16 | AE81: =ROUND(Y81*AC81,0) -> 1028 | AG81: =ROUND((AE81/AE$108)*100,1) -> 0.5 | AI81: =L25-AE81 -> 426 | AK81: =IF(AE81=0,"0.0 ",ROUND((AI81/AE81)*100,1)) -> 41.4 | AM81: =ROUND((AM$108/AA$108)*AA81,0) -> 55 | AO81: =AM81+AE81 -> 1083 | AQ81: =IF(AO81=0,"0.0 ",ROUND((AI81/AO81)*100,1)) -> 39.3 | AU81: =AC81-AX81 -> 6.31 | AW81: 874 | AX81: =ROUND((AW81/12)*CUR_BASE_FUEL,2) -> 1.85 | AY81: =ROUND((AW81/12)*PRO_BASE_FUEL,2) -> 1.85
T83: 8 | V83: METAL HALIDE 14,000 LUMEN:
T84: 9 | V84: TRADITIONAIRE | Y84: =F28 -> 3010 | AA84: =H28 -> 213961 | AC84: 8.13 | AE84: =ROUND(Y84*AC84,0) -> 24471 | AG84: =ROUND((AE84/AE$108)*100,1) -> 10.9 | AI84: =L28-AE84 -> 10144 | AK84: =IF(AE84=0,"0.0 ",ROUND((AI84/AE84)*100,1)) -> 41.5 | AM84: =ROUND((AM$108/AA$108)*AA84,0) -> 1276 | AO84: =AM84+AE84 -> 25747 | AQ84: =IF(AO84=0,"0.0 ",ROUND((AI84/AO84)*100,1)) -> 39.4 | AU84: =AC84-AX84 -> 6.32 | AW84: 853 | AX84: =ROUND((AW84/12)*CUR_BASE_FUEL,2) -> 1.81 | AY84: =ROUND((AW84/12)*PRO_BASE_FUEL,2) -> 1.81
T85: 10 | V85: GRANVILLE ACORN | Y85: =F29 -> 0 | AA85: =H29 -> 0 | AC85: 8.16 | AE85: =ROUND(Y85*AC85,0) -> 0 | AG85: =ROUND((AE85/AE$108)*100,1) -> 0 | AI85: =L29-AE85 -> 0 | AK85: =IF(AE85=0,"0.0 ",ROUND((AI85/AE85)*100,1)) -> 0.0 | AM85: =ROUND((AM$108/AA$108)*AA85,0) -> 0 | AO85: =AM85+AE85 -> 0 | AQ85: =IF(AO85=0,"0.0 ",ROUND((AI85/AO85)*100,1)) -> 0.0 | AU85: =AC85-AX85 -> 6.31 | AW85: 874 | AX85: =ROUND((AW85/12)*CUR_BASE_FUEL,2) -> 1.85 | AY85: =ROUND((AW85/12)*PRO_BASE_FUEL,2) -> 1.85
T86: 11 | V86: GAS REPLICA | Y86: =F30 -> 424 | AA86: =H30 -> 30881 | AC86: 8.16 | AE86: =ROUND(Y86*AC86,0) -> 3460 | AG86: =ROUND((AE86/AE$108)*100,1) -> 1.5 | AI86: =L30-AE86 -> 1433 | AK86: =IF(AE86=0,"0.0 ",ROUND((AI86/AE86)*100,1)) -> 41.4 | AM86: =ROUND((AM$108/AA$108)*AA86,0) -> 184 | AO86: =AM86+AE86 -> 3644 | AQ86: =IF(AO86=0,"0.0 ",ROUND((AI86/AO86)*100,1)) -> 39.3 | AU86: =AC86-AX86 -> 6.31 | AW86: 874 | AX86: =ROUND((AW86/12)*CUR_BASE_FUEL,2) -> 1.85 | AY86: =ROUND((AW86/12)*PRO_BASE_FUEL,2) -> 1.85
T88: 12 | V88: SODIUM VAPOR 9,500 LUMEN:
T89: 13 | V89: TOWN & COUNTRY | Y89: =F33 -> 3104 | AA89: =H33 -> 125971 | AC89: 8.8 | AE89: =ROUND(Y89*AC89,0) -> 27315 | AG89: =ROUND((AE89/AE$108)*100,1) -> 12.1 | AI89: =L33-AE89 -> 11330 | AK89: =IF(AE89=0,"0.0 ",ROUND((AI89/AE89)*100,1)) -> 41.5 | AM89: =ROUND((AM$108/AA$108)*AA89,0) -> 751 | AO89: =AM89+AE89 -> 28066 | AQ89: =IF(AO89=0,"0.0 ",ROUND((AI89/AO89)*100,1)) -> 40.4 | AU89: =AC89-AX89 -> 7.77 | AW89: 487 | AX89: =ROUND((AW89/12)*CUR_BASE_FUEL,2) -> 1.03 | AY89: =ROUND((AW89/12)*PRO_BASE_FUEL,2) -> 1.03
T90: 15 | V90: HOLOPHANE | Y90: 2312 | AA90: 102499 | AC90: 8.93 | AE90: =ROUND(Y90*AC90,0) -> 20646 | AG90: 9.2 | AI90: 8555 | AK90: =IF(AE90=0,"0.0 ",ROUND((AI90/AE90)*100,1)) -> 41.4 | AM90: 611 | AO90: =AM90+AE90 -> 21257 | AQ90: =IF(AO90=0,"0.0 ",ROUND((AI90/AO90)*100,1)) -> 40.2 | AU90: =AC90-AX90 -> 7.8 | AW90: 532 | AX90: =ROUND((AW90/12)*CUR_BASE_FUEL,2) -> 1.13 | AY90: =ROUND((AW90/12)*PRO_BASE_FUEL,2) -> 1.13
T91: 16 | V91: RECTILINEAR | Y91: 928 | AA91: 37661 | AC91: 8.8 | AE91: =ROUND(Y91*AC91,0) -> 8166 | AG91: 3.6 | AI91: 3388 | AK91: =IF(AE91=0,"0.0 ",ROUND((AI91/AE91)*100,1)) -> 41.5 | AM91: 225 | AO91: =AM91+AE91 -> 8391 | AQ91: =IF(AO91=0,"0.0 ",ROUND((AI91/AO91)*100,1)) -> 40.4 | AU91: =AC91-AX91 -> 7.77 | AW91: 487 | AX91: =ROUND((AW91/12)*CUR_BASE_FUEL,2) -> 1.03 | AY91: =ROUND((AW91/12)*PRO_BASE_FUEL,2) -> 1.03
T92: 17 | V92: GAS REPLICA | Y92: 1214 | AA92: 53821 | AC92: 8.92 | AE92: =ROUND(Y92*AC92,0) -> 10829 | AG92: 4.8 | AI92: 4492 | AK92: =IF(AE92=0,"0.0 ",ROUND((AI92/AE92)*100,1)) -> 41.5 | AM92: 321 | AO92: =AM92+AE92 -> 11150 | AQ92: =IF(AO92=0,"0.0 ",ROUND((AI92/AO92)*100,1)) -> 40.3 | AU92: =AC92-AX92 -> 7.79 | AW92: 532 | AX92: =ROUND((AW92/12)*CUR_BASE_FUEL,2) -> 1.13 | AY92: =ROUND((AW92/12)*PRO_BASE_FUEL,2) -> 1.13
T93: 19 | V93: ASPEN | Y93: 2496 | AA93: 110656 | AC93: 8.92 | AE93: =ROUND(Y93*AC93,0) -> 22264 | AG93: 9.9 | AI93: 9236 | AK93: =IF(AE93=0,"0.0 ",ROUND((AI93/AE93)*100,1)) -> 41.5 | AM93: 660 | AO93: =AM93+AE93 -> 22924 | AQ93: =IF(AO93=0,"0.0 ",ROUND((AI93/AO93)*100,1)) -> 40.3 | AU93: =AC93-AX93 -> 7.79 | AW93: 532 | AX93: =ROUND((AW93/12)*CUR_BASE_FUEL,2) -> 1.13 | AY93: =ROUND((AW93/12)*PRO_BASE_FUEL,2) -> 1.13
T94: 14 | V94: TRADITIONAIRE | Y94: 0 | AA94: 0 | AC94: 8.8 | AE94: =ROUND(Y94*AC94,0) -> 0 | AG94: 0 | AI94: 0 | AK94: =IF(AE94=0,"0.0 ",ROUND((AI94/AE94)*100,1)) -> 0.0 | AM94: 0 | AO94: =AM94+AE94 -> 0 | AQ94: =IF(AO94=0,"0.0 ",ROUND((AI94/AO94)*100,1)) -> 0.0 | AU94: 7.77 | AW94: 487 | AX94: 1.03 | AY94: 1.03
T95: 18 | V95: GRANVILLE ACORN | Y95: 148 | AA95: 6561 | AC95: 8.92 | AE95: 1320 | AG95: 0.6 | AI95: 548 | AK95: 41.5 | AM95: 39 | AO95: 1359 | AQ95: 40.3 | AU95: 7.79 | AW95: 532 | AX95: 1.13 | AY95: 1.13
T97: 20 | V97: SODIUM VAPOR:
T98: 21 | V98: 22,000 LUMEN (RECTILINEAR) | Y98: =F42 -> 458 | AA98: =H42 -> 39045 | AC98: 12.69 | AE98: =ROUND(Y98*AC98,0) -> 5812 | AG98: =ROUND((AE98/AE$108)*100,1) -> 2.6 | AI98: =L42-AE98 -> 2409 | AK98: =IF(AE98=0,"0.0 ",ROUND((AI98/AE98)*100,1)) -> 41.4 | AM98: =ROUND((AM$108/AA$108)*AA98,0) -> 233 | AO98: =AM98+AE98 -> 6045 | AQ98: =IF(AO98=0,"0.0 ",ROUND((AI98/AO98)*100,1)) -> 39.9 | AU98: =AC98-AX98 -> 10.52 | AW98: 1023 | AX98: =ROUND((AW98/12)*CUR_BASE_FUEL,2) -> 2.17 | AY98: =ROUND((AW98/12)*PRO_BASE_FUEL,2) -> 2.17
T99: 22 | V99: 50,000 LUMEN (RECTILINEAR) | Y99: =F43 -> 24 | AA99: =H43 -> 3918 | AC99: 16.88 | AE99: =ROUND(Y99*AC99,0) -> 405 | AG99: =ROUND((AE99/AE$108)*100,1) -> 0.2 | AI99: =L43-AE99 -> 168 | AK99: =IF(AE99=0,"0.0 ",ROUND((AI99/AE99)*100,1)) -> 41.5 | AM99: =ROUND((AM$108/AA$108)*AA99,0) -> 23 | AO99: =AM99+AE99 -> 428 | AQ99: =IF(AO99=0,"0.0 ",ROUND((AI99/AO99)*100,1)) -> 39.3 | AU99: =AC99-AX99 -> 12.73 | AW99: 1959 | AX99: =ROUND((AW99/12)*CUR_BASE_FUEL,2) -> 4.15 | AY99: =ROUND((AW99/12)*PRO_BASE_FUEL,2) -> 4.15
T100: 23 | V100: 50,000 LUMEN (SETBACK) | Y100: =F44 -> 0 | AA100: =H44 -> 0 | AC100: 16.88 | AE100: =ROUND(Y100*AC100,0) -> 0 | AG100: =ROUND((AE100/AE$108)*100,1) -> 0 | AI100: =L44-AE100 -> 0 | AK100: =IF(AE100=0,"0.0 ",ROUND((AI100/AE100)*100,1)) -> 0.0 | AM100: =ROUND((AM$108/AA$108)*AA100,0) -> 0 | AO100: =AM100+AE100 -> 0 | AQ100: =IF(AO100=0,"0.0 ",ROUND((AI100/AO100)*100,1)) -> 0.0 | AU100: =AC100-AX100 -> 12.73 | AW100: 1959 | AX100: =ROUND((AW100/12)*CUR_BASE_FUEL,2) -> 4.15 | AY100: =ROUND((AW100/12)*PRO_BASE_FUEL,2) -> 4.15
